Workbook

Sheet Interne documentatie
B2: Interne documentatie

Sheet Invulinstructie
B2: Invulinstructie | G2: Versienummer: V-2026.1.0
C5: Gele velden betreffen invulvelden
C6: Terracotta velden betreffen verwijzingen
C7: Grijze cellen zijn afgeleide velden, hierin staan berekeningen
C8: Blauwe cellen bevatten een meerkeuze menu, door op de cellen te klikken kunt u een keuze maken uit een aantal mogelijkheden
C9: Groene velden bevatten vaste parameters en tabelwaarden
C10: Roze cellen bevatten uitkomsten
B12: Dit hulpprogramma is bedoeld om de omvang te berekenen van het effect van de UFR op de Beste Schatting.
B13: De uitkomsten laten zien hoe dit UFR-effect voor de rapportagejaren 2025 tot en met 2045 zal veranderen.
B15: Toelichting
B16: De UFR-methodiek bepaalt met welke rente de toekomstige kasstromen moeten worden verdisconteerd.
B17: Daarmee is deze methodiek van belang om de hoogte van de Beste Schatting te bepalen.
B18: Naarmate de kasstromen die nu nog (ver) in de toekomst liggen dichterbij komen, neemt ook het effect dat de UFR heeft op de Beste Schatting af
B20: Daarnaast is de UFR zelf ook onderhevig aan verandering
B21: De methodiek voor de berekening van de UFR is door EIOPA vastgesteld. Jaarlijks bepaalt EIOPA de hoogte van de UFR. De maximale verandering in de UFR is vastgesteld op 0,15%.
B22: De UFR voor 2024 is volgens de methodiek van EIOPA berekend op 3,30%.
B23: Dit betekent dat vanaf 1-1-2024, dus voor de kwartaalrapportages van 2024, gerekend moet worden met een UFR van 3,30%.
B25: Invoer
B26: In Tabblad 'Invoer' plakt u de gegevens uit staat TV-3 van de Nationale Staat.
B28: Configuratie
B29: U hebt mogelijkheid voor aanpassing van de VA (volatiliteitsaanpassing) en de rentecurve.
B30: Standaard staan deze ingevuld op de waarden van 31-12-2025.
B32: De nieuwste waarden van de VA en de rentecurve kunt u vinden op <https://www.toezicht.dnb.nl/2/50-235853.jsp>. Download de Excelsheet in de bijlage.
B33: - De VA is te vinden in tabblad 'termstructure_alternative_VA' in Kolom C.
B34: - De rentecurve is te vinden op 'termstructure_alternative'. Pak hiervoor alle 120 kolommen vanaf Kolom F. Kies bij het kopieëren/plakken voor de optie "Transponeren" om van de lange rij een lange kolom te maken.
B36: NB: de VA is hier de volatiliteitsaanpassing, zie paragraaf 2.3.6 van de 'Toelichting bij het invullen van de Solvency II Basic verzekeringstaten'.
B37: NB: indien u de rentecurve aanpast (bijvoorbeeld naar die van 30-06-2025), adviseren we ook de kasstromen in te vullen zoals op dat moment bekend.
B39: Uitvoer
B40: Het hulpprogramma genereert vervolgens de volgende uitkomsten:
B41: - de omvang van de Beste Schatting voor 2025 tot en met 2045, zowel met UFR als zonder UFR;
B42: - de omvang van het UFR-effect voor 2025 tot en met 2045;
B43: - de verandering in deze omvang (de UFR-drag).

Sheet Invoer
A1: TV-3 | B1: Projectie toekomstige bruto kasstromen Leven (Beste schatting - leven, natura-uitvaart en arbeidsongeschiktheid)
B2: Invullen in euro's
B5: Jaar (projectie van de niet-verdisconteerde verwachte kasstromen) | C5: Verzekeringen met winstdeling | G5: Geïndexeerde en unit-linkedverzekeringen | K5: Overige levensverzekeringen | O5: Arbeidsongeschiktheidsverzekeringen | S5: Natura-uitvaartverzekeringen | W5: Totaal verhaalbare herverzeke-ringsbedragen (na aanpassing)
C6: Uitgaande kasstromen | E6: Inkomende kasstromen | G6: Uitgaande kasstromen | I6: Inkomende kasstromen | K6: Uitgaande kasstromen | M6: Inkomende kasstromen | O6: Uitgaande kasstromen | Q6: Inkomende kasstromen | S6: Uitgaande kasstromen | U6: Inkomende kasstromen
C7: Toekomstige uitkeringen | D7: Toekomstige kosten en andere uitgaande kasstromen | E7: Toekomstige premies | F7: Andere inkomende kasstromen | G7: Toekomstige uitkeringen | H7: Toekomstige kosten en andere uitgaande kasstromen | I7: Toekomstige premies | J7: Andere inkomende kasstromen | K7: Toekomstige uitkeringen | L7: Toekomstige kosten en andere uitgaande kasstromen | M7: Toekomstige premies | N7: Andere inkomende kasstromen | O7: Toekomstige uitkeringen | P7: Toekomstige kosten en andere uitgaande kasstromen | Q7: Toekomstige premies | R7: Andere inkomende kasstromen | S7: Toekomstige uitkeringen | T7: Toekomstige kosten en andere uitgaande kasstromen | U7: Toekomstige premies | V7: Andere inkomende kasstromen
C8: A1 | D8: A2 | E8: A3 | F8: A4 | G8: B1 | H8: B2 | I8: B3 | J8: B4 | K8: C1 | L8: C2 | M8: C3 | N8: C4 | O8: D1 | P8: D2 | Q8: D3 | R8: D4 | S8: E1 | T8: E2 | U8: E3 | V8: E4 | W8: F
A9: 1 | B9: 1
A10: 2 | B10: 2
A11: 3 | B11: 3
A12: 4 | B12: 4
A13: 5 | B13: 5
A14: 6 | B14: 6
A15: 7 | B15: 7
A16: 8 | B16: 8
A17: 9 | B17: 9
A18: 10 | B18: 10
A19: 11 | B19: 11
A20: 12 | B20: 12
A21: 13 | B21: 13
A22: 14 | B22: 14
A23: 15 | B23: 15
A24: 16 | B24: 16
A25: 17 | B25: 17
A26: 18 | B26: 18
A27: 19 | B27: 19
A28: 20 | B28: 20
A29: 21 | B29: 21
A30: 22 | B30: 22
A31: 23 | B31: 23
A32: 24 | B32: 24
A33: 25 | B33: 25
A34: 26 | B34: 26
A35: 27 | B35: 27
A36: 28 | B36: 28
A37: 29 | B37: 29
A38: 30 | B38: 30
A39: 31 | B39: 31
A40: 32 | B40: 32
A41: 33 | B41: 33
A42: 34 | B42: 34
A43: 35 | B43: 35
A44: 36 | B44: 36
A45: 37 | B45: 37
A46: 38 | B46: 38
A47: 39 | B47: 39
A48: 40 | B48: 40
A49: 41 | B49: 41
A50: 42 | B50: 42
A51: 43 | B51: 43
A52: 44 | B52: 44
A53: 45 | B53: 45
A54: 46 | B54: 46
A55: 47 | B55: 47
A56: 48 | B56: 48
A57: 49 | B57: 49
A58: 50 | B58: 50
A59: 51 | B59: 51
A60: 52 | B60: 52
A61: 53 | B61: 53
A62: 54 | B62: 54
A63: 55 | B63: 55
A64: 56 | B64: 56
A65: 57 | B65: 57
A66: 58 | B66: 58
A67: 59 | B67: 59
A68: 60 | B68: 60
A69: 61 | B69: 61
A70: 62 | B70: 62
A71: 63 | B71: 63
A72: 64 | B72: 64
A73: 65 | B73: 65
A74: 66 | B74: 66
A75: 67 | B75: 67
A76: 68 | B76: 68
A77: 69 | B77: 69
A78: 70 | B78: 70
A79: 71 | B79: 71
A80: 72 | B80: 72
A81: 73 | B81: 73
A82: 74 | B82: 74
A83: 75 | B83: 75
A84: 76 | B84: 76
A85: 77 | B85: 77
A86: 78 | B86: 78
A87: 79 | B87: 79
A88: 80 | B88: 80
A89: 81 | B89: 81
A90: 82 | B90: 82
A91: 83 | B91: 83
A92: 84 | B92: 84
A93: 85 | B93: 85
A94: 86 | B94: 86
A95: 87 | B95: 87
A96: 88 | B96: 88
A97: 89 | B97: 89
A98: 90 | B98: 90
A99: 91 | B99: 91
A100: 92 | B100: 92
A101: 93 | B101: 93
A102: 94 | B102: 94
A103: 95 | B103: 95
A104: 96 | B104: 96
A105: 97 | B105: 97
A106: 98 | B106: 98
A107: 99 | B107: 99
A108: 100 | B108: 100
A109: 101 | B109: 101
A110: 102 | B110: 102
A111: 103 | B111: 103
A112: 104 | B112: 104
A113: 105 | B113: 105
A114: 106 | B114: 106
A115: 107 | B115: 107
A116: 108 | B116: 108
A117: 109 | B117: 109
A118: 110 | B118: 110
A119: 111 | B119: 111 en verder

Sheet Configuratie en berekeningen
C2: Configuratie | I2: Berekeningen
J3: Met VA | K3: Zonder VA
C4: Keuze VA | D4: Met VA | E4: Hoogte VA: | F4: 14 | G4: basispunten
C6: Totaal | D6: =SUM(D8:D147) -> 0
C7: jaar | D7: totaal van de kasstromen | E7: kale rentecurve | I7: jaar | J7: UFR | K7: LLP | L7: Beste Schatting zonder UFR, VA | M7: Beste Schatting met UFR, VA (indien van toepassing) | N7: jaar | O7: UFR-effect | P7: UFR-drag
B8: 1 | C8: 2025 | D8: =Invoer!W9 +SUM(Invoer!E9:F9,Invoer!I9:J9,Invoer!M9:N9,Invoer!Q9:R9,Invoer!U9:V9) -SUM(Invoer!C9:D9,Invoer!G9:H9,Invoer!K9:L9,Invoer!O9:P9,Invoer!S9:T9) -> 0 | E8: 0.02076 | I8: =C8 -> 2025 | J8: 0.033 | K8: 20 | L8: =SUMPRODUCT(D8:D127,'Kale curves (zonder UFR, VA)'!Y$19:Y$138) -> 0 | M8: =SUMPRODUCT(D8:D127,'Curves met UFR, met VA'!Y$25:Y$144) -> 0 | N8: =I8 -> 2025 | O8: =L8-M8 -> 0
B9: =B8+1 -> 2 | C9: =C8+1 -> 2026 | D9: =Invoer!W10 +SUM(Invoer!E10:F10,Invoer!I10:J10,Invoer!M10:N10,Invoer!Q10:R10,Invoer!U10:V10) -SUM(Invoer!C10:D10,Invoer!G10:H10,Invoer!K10:L10,Invoer!O10:P10,Invoer!S10:T10) -> 0 | E9: 0.02163 | I9: =I8+1 -> 2026 | J9: =J8 -> 0.033 | K9: =K8 -> 20 | L9: =SUMPRODUCT(D9:D128,'Kale curves (zonder UFR, VA)'!Z$19:Z$138) -> 0 | M9: =SUMPRODUCT(D9:D128,'Curves met UFR, met VA'!Z$25:Z$144) -> 0 | N9: =N8+1 -> 2026 | O9: 0 | P9: =O8-O9 -> 0
B10: =B9+1 -> 3 | C10: 2027 | D10: =Invoer!W11 +SUM(Invoer!E11:F11,Invoer!I11:J11,Invoer!M11:N11,Invoer!Q11:R11,Invoer!U11:V11) -SUM(Invoer!C11:D11,Invoer!G11:H11,Invoer!K11:L11,Invoer!O11:P11,Invoer!S11:T11) -> 0 | E10: 0.02283 | I10: =I9+1 -> 2027 | J10: =J9 -> 0.033 | K10: =K9 -> 20 | L10: =SUMPRODUCT(D10:D129,'Kale curves (zonder UFR, VA)'!AA$19:AA$138) -> 0 | M10: =SUMPRODUCT(D10:D129,'Curves met UFR, met VA'!AA$25:AA$144) -> 0 | N10: =N9+1 -> 2027 | O10: 0 | P10: =O9-O10 -> 0
B11: 4 | C11: 2028 | D11: =Invoer!W12 +SUM(Invoer!E12:F12,Invoer!I12:J12,Invoer!M12:N12,Invoer!Q12:R12,Invoer!U12:V12) -SUM(Invoer!C12:D12,Invoer!G12:H12,Invoer!K12:L12,Invoer!O12:P12,Invoer!S12:T12) -> 0 | E11: 0.02386 | I11: 2028 | J11: =J10 -> 0.033 | K11: 20 | L11: =SUMPRODUCT(D11:D130,'Kale curves (zonder UFR, VA)'!AB$19:AB$138) -> 0 | M11: =SUMPRODUCT(D11:D130,'Curves met UFR, met VA'!AB$25:AB$144) -> 0 | N11: 2028 | O11: 0 | P11: 0
B12: 5 | C12: 2029 | D12: =Invoer!W13 +SUM(Invoer!E13:F13,Invoer!I13:J13,Invoer!M13:N13,Invoer!Q13:R13,Invoer!U13:V13) -SUM(Invoer!C13:D13,Invoer!G13:H13,Invoer!K13:L13,Invoer!O13:P13,Invoer!S13:T13) -> 0 | E12: 0.02479 | I12: 2029 | J12: =J11 -> 0.033 | K12: 20 | L12: =SUMPRODUCT(D12:D131,'Kale curves (zonder UFR, VA)'!AC$19:AC$138) -> 0 | M12: =SUMPRODUCT(D12:D131,'Curves met UFR, met VA'!AC$25:AC$144) -> 0 | N12: 2029 | O12: 0 | P12: 0
B13: 6 | C13: 2030 | D13: =Invoer!W14 +SUM(Invoer!E14:F14,Invoer!I14:J14,Invoer!M14:N14,Invoer!Q14:R14,Invoer!U14:V14) -SUM(Invoer!C14:D14,Invoer!G14:H14,Invoer!K14:L14,Invoer!O14:P14,Invoer!S14:T14) -> 0 | E13: 0.02565 | I13: 2030 | J13: 0.033 | K13: 20 | L13: =SUMPRODUCT(D13:D132,'Kale curves (zonder UFR, VA)'!AD$19:AD$138) -> 0 | M13: =SUMPRODUCT(D13:D132,'Curves met UFR, met VA'!AD$25:AD$144) -> 0 | N13: 2030 | O13: 0 | P13: 0
B14: 7 | C14: 2031 | D14: =Invoer!W15 +SUM(Invoer!E15:F15,Invoer!I15:J15,Invoer!M15:N15,Invoer!Q15:R15,Invoer!U15:V15) -SUM(Invoer!C15:D15,Invoer!G15:H15,Invoer!K15:L15,Invoer!O15:P15,Invoer!S15:T15) -> 0 | E14: 0.02651 | I14: 2031 | J14: 0.033 | K14: 20 | L14: =SUMPRODUCT(D14:D133,'Kale curves (zonder UFR, VA)'!AE$19:AE$138) -> 0 | M14: =SUMPRODUCT(D14:D133,'Curves met UFR, met VA'!AE$25:AE$144) -> 0 | N14: 2031 | O14: 0 | P14: 0
B15: 8 | C15: 2032 | D15: =Invoer!W16 +SUM(Invoer!E16:F16,Invoer!I16:J16,Invoer!M16:N16,Invoer!Q16:R16,Invoer!U16:V16) -SUM(Invoer!C16:D16,Invoer!G16:H16,Invoer!K16:L16,Invoer!O16:P16,Invoer!S16:T16) -> 0 | E15: 0.02724 | I15: 2032 | J15: 0.033 | K15: 20 | L15: =SUMPRODUCT(D15:D134,'Kale curves (zonder UFR, VA)'!AF$19:AF$138) -> 0 | M15: =SUMPRODUCT(D15:D134,'Curves met UFR, met VA'!AF$25:AF$144) -> 0 | N15: 2032 | O15: 0 | P15: 0
B16: 9 | C16: 2033 | D16: =Invoer!W17 +SUM(Invoer!E17:F17,Invoer!I17:J17,Invoer!M17:N17,Invoer!Q17:R17,Invoer!U17:V17) -SUM(Invoer!C17:D17,Invoer!G17:H17,Invoer!K17:L17,Invoer!O17:P17,Invoer!S17:T17) -> 0 | E16: 0.02793 | I16: 2033 | J16: 0.033 | K16: 20 | L16: =SUMPRODUCT(D16:D135,'Kale curves (zonder UFR, VA)'!AG$19:AG$138) -> 0 | M16: =SUMPRODUCT(D16:D135,'Curves met UFR, met VA'!AG$25:AG$144) -> 0 | N16: 2033 | O16: 0 | P16: 0
B17: 10 | C17: 2034 | D17: =Invoer!W18 +SUM(Invoer!E18:F18,Invoer!I18:J18,Invoer!M18:N18,Invoer!Q18:R18,Invoer!U18:V18) -SUM(Invoer!C18:D18,Invoer!G18:H18,Invoer!K18:L18,Invoer!O18:P18,Invoer!S18:T18) -> 0 | E17: 0.02863 | I17: 2034 | J17: 0.033 | K17: 20 | L17: =SUMPRODUCT(D17:D136,'Kale curves (zonder UFR, VA)'!AH$19:AH$138) -> 0 | M17: =SUMPRODUCT(D17:D136,'Curves met UFR, met VA'!AH$25:AH$144) -> 0 | N17: 2034 | O17: 0 | P17: 0
B18: 11 | C18: 2035 | D18: =Invoer!W19 +SUM(Invoer!E19:F19,Invoer!I19:J19,Invoer!M19:N19,Invoer!Q19:R19,Invoer!U19:V19) -SUM(Invoer!C19:D19,Invoer!G19:H19,Invoer!K19:L19,Invoer!O19:P19,Invoer!S19:T19) -> 0 | E18: 0.02921 | I18: 2035 | J18: 0.033 | K18: 20 | L18: =SUMPRODUCT(D18:D137,'Kale curves (zonder UFR, VA)'!AI$19:AI$138) -> 0 | M18: =SUMPRODUCT(D18:D137,'Curves met UFR, met VA'!AI$25:AI$144) -> 0 | N18: 2035 | O18: 0 | P18: 0
B19: 12 | C19: 2036 | D19: =Invoer!W20 +SUM(Invoer!E20:F20,Invoer!I20:J20,Invoer!M20:N20,Invoer!Q20:R20,Invoer!U20:V20) -SUM(Invoer!C20:D20,Invoer!G20:H20,Invoer!K20:L20,Invoer!O20:P20,Invoer!S20:T20) -> 0 | E19: 0.02975 | I19: 2036 | J19: 0.033 | K19: 20 | L19: =SUMPRODUCT(D19:D138,'Kale curves (zonder UFR, VA)'!AJ$19:AJ$138) -> 0 | M19: =SUMPRODUCT(D19:D138,'Curves met UFR, met VA'!AJ$25:AJ$144) -> 0 | N19: 2036 | O19: 0 | P19: 0
B20: 13 | C20: 2037 | D20: =Invoer!W21 +SUM(Invoer!E21:F21,Invoer!I21:J21,Invoer!M21:N21,Invoer!Q21:R21,Invoer!U21:V21) -SUM(Invoer!C21:D21,Invoer!G21:H21,Invoer!K21:L21,Invoer!O21:P21,Invoer!S21:T21) -> 0 | E20: 0.03033 | I20: 2037 | J20: 0.033 | K20: 20 | L20: =SUMPRODUCT(D20:D139,'Kale curves (zonder UFR, VA)'!AK$19:AK$138) -> 0 | M20: =SUMPRODUCT(D20:D139,'Curves met UFR, met VA'!AK$25:AK$144) -> 0 | N20: 2037 | O20: 0 | P20: 0
B21: 14 | C21: 2038 | D21: =Invoer!W22 +SUM(Invoer!E22:F22,Invoer!I22:J22,Invoer!M22:N22,Invoer!Q22:R22,Invoer!U22:V22) -SUM(Invoer!C22:D22,Invoer!G22:H22,Invoer!K22:L22,Invoer!O22:P22,Invoer!S22:T22) -> 0 | E21: 0.03075989536 | I21: 2038 | J21: 0.033 | K21: 20 | L21: =SUMPRODUCT(D21:D140,'Kale curves (zonder UFR, VA)'!AL$19:AL$138) -> 0 | M21: =SUMPRODUCT(D21:D140,'Curves met UFR, met VA'!AL$25:AL$144) -> 0 | N21: 2038 | O21: 0 | P21: 0
B22: 15 | C22: 2039 | D22: =Invoer!W23 +SUM(Invoer!E23:F23,Invoer!I23:J23,Invoer!M23:N23,Invoer!Q23:R23,Invoer!U23:V23) -SUM(Invoer!C23:D23,Invoer!G23:H23,Invoer!K23:L23,Invoer!O23:P23,Invoer!S23:T23) -> 0 | E22: 0.03107 | I22: 2039 | J22: 0.033 | K22: 20 | L22: =SUMPRODUCT(D22:D141,'Kale curves (zonder UFR, VA)'!AM$19:AM$138) -> 0 | M22: =SUMPRODUCT(D22:D141,'Curves met UFR, met VA'!AM$25:AM$144) -> 0 | N22: 2039 | O22: 0 | P22: 0
B23: 16 | C23: 2040 | D23: =Invoer!W24 +SUM(Invoer!E24:F24,Invoer!I24:J24,Invoer!M24:N24,Invoer!Q24:R24,Invoer!U24:V24) -SUM(Invoer!C24:D24,Invoer!G24:H24,Invoer!K24:L24,Invoer!O24:P24,Invoer!S24:T24) -> 0 | E23: 0.03133145815 | I23: 2040 | J23: 0.033 | K23: 20 | L23: =SUMPRODUCT(D23:D142,'Kale curves (zonder UFR, VA)'!AN$19:AN$138) -> 0 | M23: =SUMPRODUCT(D23:D142,'Curves met UFR, met VA'!AN$25:AN$144) -> 0 | N23: 2040 | O23: 0 | P23: 0
B24: 17 | C24: 2041 | D24: =Invoer!W25 +SUM(Invoer!E25:F25,Invoer!I25:J25,Invoer!M25:N25,Invoer!Q25:R25,Invoer!U25:V25) -SUM(Invoer!C25:D25,Invoer!G25:H25,Invoer!K25:L25,Invoer!O25:P25,Invoer!S25:T25) -> 0 | E24: 0.0315607637 | I24: 2041 | J24: 0.033 | K24: 20 | L24: =SUMPRODUCT(D24:D143,'Kale curves (zonder UFR, VA)'!AO$19:AO$138) -> 0 | M24: =SUMPRODUCT(D24:D143,'Curves met UFR, met VA'!AO$25:AO$144) -> 0 | N24: 2041 | O24: 0 | P24: 0
B25: 18 | C25: 2042 | D25: =Invoer!W26 +SUM(Invoer!E26:F26,Invoer!I26:J26,Invoer!M26:N26,Invoer!Q26:R26,Invoer!U26:V26) -SUM(Invoer!C26:D26,Invoer!G26:H26,Invoer!K26:L26,Invoer!O26:P26,Invoer!S26:T26) -> 0 | E25: 0.03176173581 | I25: 2042 | J25: 0.033 | K25: 20 | L25: =SUMPRODUCT(D25:D144,'Kale curves (zonder UFR, VA)'!AP$19:AP$138) -> 0 | M25: =SUMPRODUCT(D25:D144,'Curves met UFR, met VA'!AP$25:AP$144) -> 0 | N25: 2042 | O25: 0 | P25: 0
B26: 19 | C26: 2043 | D26: =Invoer!W27 +SUM(Invoer!E27:F27,Invoer!I27:J27,Invoer!M27:N27,Invoer!Q27:R27,Invoer!U27:V27) -SUM(Invoer!C27:D27,Invoer!G27:H27,Invoer!K27:L27,Invoer!O27:P27,Invoer!S27:T27) -> 0 | E26: 0.03193736221 | I26: 2043 | J26: 0.033 | K26: 20 | L26: =SUMPRODUCT(D26:D145,'Kale curves (zonder UFR, VA)'!AQ$19:AQ$138) -> 0 | M26: =SUMPRODUCT(D26:D145,'Curves met UFR, met VA'!AQ$25:AQ$144) -> 0 | N26: 2043 | O26: 0 | P26: 0
B27: 20 | C27: 2044 | D27: =Invoer!W28 +SUM(Invoer!E28:F28,Invoer!I28:J28,Invoer!M28:N28,Invoer!Q28:R28,Invoer!U28:V28) -SUM(Invoer!C28:D28,Invoer!G28:H28,Invoer!K28:L28,Invoer!O28:P28,Invoer!S28:T28) -> 0 | E27: 0.03209 | I27: 2044 | J27: 0.033 | K27: 20 | L27: =SUMPRODUCT(D27:D146,'Kale curves (zonder UFR, VA)'!AR$19:AR$138) -> 0 | M27: =SUMPRODUCT(D27:D146,'Curves met UFR, met VA'!AR$25:AR$144) -> 0 | N27: 2044 | O27: 0 | P27: 0
B28: 21 | C28: 2045 | D28: =Invoer!W29 +SUM(Invoer!E29:F29,Invoer!I29:J29,Invoer!M29:N29,Invoer!Q29:R29,Invoer!U29:V29) -SUM(Invoer!C29:D29,Invoer!G29:H29,Invoer!K29:L29,Invoer!O29:P29,Invoer!S29:T29) -> 0 | E28: 0.03222183517 | I28: 2045 | J28: 0.033 | K28: 20 | L28: =SUMPRODUCT(D28:D147,'Kale curves (zonder UFR, VA)'!AS$19:AS$138) -> 0 | M28: =SUMPRODUCT(D28:D147,'Curves met UFR, met VA'!AS$25:AS$144) -> 0 | N28: 2045 | O28: 0 | P28: 0
B29: 22 | C29: 2046 | D29: =Invoer!W30 +SUM(Invoer!E30:F30,Invoer!I30:J30,Invoer!M30:N30,Invoer!Q30:R30,Invoer!U30:V30) -SUM(Invoer!C30:D30,Invoer!G30:H30,Invoer!K30:L30,Invoer!O30:P30,Invoer!S30:T30) -> 0 | E29: 0.03233582633
B30: 23 | C30: 2047 | D30: =Invoer!W31 +SUM(Invoer!E31:F31,Invoer!I31:J31,Invoer!M31:N31,Invoer!Q31:R31,Invoer!U31:V31) -SUM(Invoer!C31:D31,Invoer!G31:H31,Invoer!K31:L31,Invoer!O31:P31,Invoer!S31:T31) -> 0 | E30: 0.0324346795
B31: 24 | C31: 2048 | D31: =Invoer!W32 +SUM(Invoer!E32:F32,Invoer!I32:J32,Invoer!M32:N32,Invoer!Q32:R32,Invoer!U32:V32) -SUM(Invoer!C32:D32,Invoer!G32:H32,Invoer!K32:L32,Invoer!O32:P32,Invoer!S32:T32) -> 0 | E31: 0.03252062664
B32: 25 | C32: 2049 | D32: =Invoer!W33 +SUM(Invoer!E33:F33,Invoer!I33:J33,Invoer!M33:N33,Invoer!Q33:R33,Invoer!U33:V33) -SUM(Invoer!C33:D33,Invoer!G33:H33,Invoer!K33:L33,Invoer!O33:P33,Invoer!S33:T33) -> 0 | E32: 0.03259552168
B33: 26 | C33: 2050 | D33: =Invoer!W34 +SUM(Invoer!E34:F34,Invoer!I34:J34,Invoer!M34:N34,Invoer!Q34:R34,Invoer!U34:V34) -SUM(Invoer!C34:D34,Invoer!G34:H34,Invoer!K34:L34,Invoer!O34:P34,Invoer!S34:T34) -> 0 | E33: 0.03266091428
B34: 27 | C34: 2051 | D34: =Invoer!W35 +SUM(Invoer!E35:F35,Invoer!I35:J35,Invoer!M35:N35,Invoer!Q35:R35,Invoer!U35:V35) -SUM(Invoer!C35:D35,Invoer!G35:H35,Invoer!K35:L35,Invoer!O35:P35,Invoer!S35:T35) -> 0 | E34: 0.03271810725
B35: 28 | C35: 2052 | D35: =Invoer!W36 +SUM(Invoer!E36:F36,Invoer!I36:J36,Invoer!M36:N36,Invoer!Q36:R36,Invoer!U36:V36) -SUM(Invoer!C36:D36,Invoer!G36:H36,Invoer!K36:L36,Invoer!O36:P36,Invoer!S36:T36) -> 0 | E35: 0.03276820159
B36: 29 | C36: 2053 | D36: =Invoer!W37 +SUM(Invoer!E37:F37,Invoer!I37:J37,Invoer!M37:N37,Invoer!Q37:R37,Invoer!U37:V37) -SUM(Invoer!C37:D37,Invoer!G37:H37,Invoer!K37:L37,Invoer!O37:P37,Invoer!S37:T37) -> 0 | E36: 0.03281213221
B37: 30 | C37: 2054 | D37: =Invoer!W38 +SUM(Invoer!E38:F38,Invoer!I38:J38,Invoer!M38:N38,Invoer!Q38:R38,Invoer!U38:V38) -SUM(Invoer!C38:D38,Invoer!G38:H38,Invoer!K38:L38,Invoer!O38:P38,Invoer!S38:T38) -> 0 | E37: 0.03285069641
B38: 31 | C38: 2055 | D38: =Invoer!W39 +SUM(Invoer!E39:F39,Invoer!I39:J39,Invoer!M39:N39,Invoer!Q39:R39,Invoer!U39:V39) -SUM(Invoer!C39:D39,Invoer!G39:H39,Invoer!K39:L39,Invoer!O39:P39,Invoer!S39:T39) -> 0 | E38: 0.0328845769
B39: 32 | C39: 2056 | D39: =Invoer!W40 +SUM(Invoer!E40:F40,Invoer!I40:J40,Invoer!M40:N40,Invoer!Q40:R40,Invoer!U40:V40) -SUM(Invoer!C40:D40,Invoer!G40:H40,Invoer!K40:L40,Invoer!O40:P40,Invoer!S40:T40) -> 0 | E39: 0.03291436038
B40: 33 | C40: 2057 | D40: =Invoer!W41 +SUM(Invoer!E41:F41,Invoer!I41:J41,Invoer!M41:N41,Invoer!Q41:R41,Invoer!U41:V41) -SUM(Invoer!C41:D41,Invoer!G41:H41,Invoer!K41:L41,Invoer!O41:P41,Invoer!S41:T41) -> 0 | E40: 0.03294055273
B41: 34 | C41: 2058 | D41: =Invoer!W42 +SUM(Invoer!E42:F42,Invoer!I42:J42,Invoer!M42:N42,Invoer!Q42:R42,Invoer!U42:V42) -SUM(Invoer!C42:D42,Invoer!G42:H42,Invoer!K42:L42,Invoer!O42:P42,Invoer!S42:T42) -> 0 | E41: 0.03296359154
B42: 35 | C42: 2059 | D42: =Invoer!W43 +SUM(Invoer!E43:F43,Invoer!I43:J43,Invoer!M43:N43,Invoer!Q43:R43,Invoer!U43:V43) -SUM(Invoer!C43:D43,Invoer!G43:H43,Invoer!K43:L43,Invoer!O43:P43,Invoer!S43:T43) -> 0 | E42: 0.03298385639
B43: 36 | C43: 2060 | D43: =Invoer!W44 +SUM(Invoer!E44:F44,Invoer!I44:J44,Invoer!M44:N44,Invoer!Q44:R44,Invoer!U44:V44) -SUM(Invoer!C44:D44,Invoer!G44:H44,Invoer!K44:L44,Invoer!O44:P44,Invoer!S44:T44) -> 0 | E43: 0.03300167741
B44: 37 | C44: 2061 | D44: =Invoer!W45 +SUM(Invoer!E45:F45,Invoer!I45:J45,Invoer!M45:N45,Invoer!Q45:R45,Invoer!U45:V45) -SUM(Invoer!C45:D45,Invoer!G45:H45,Invoer!K45:L45,Invoer!O45:P45,Invoer!S45:T45) -> 0 | E44: 0.03301734244
B45: 38 | C45: 2062 | D45: =Invoer!W46 +SUM(Invoer!E46:F46,Invoer!I46:J46,Invoer!M46:N46,Invoer!Q46:R46,Invoer!U46:V46) -SUM(Invoer!C46:D46,Invoer!G46:H46,Invoer!K46:L46,Invoer!O46:P46,Invoer!S46:T46) -> 0 | E45: 0.03303110301
B46: 39 | C46: 2063 | D46: =Invoer!W47 +SUM(Invoer!E47:F47,Invoer!I47:J47,Invoer!M47:N47,Invoer!Q47:R47,Invoer!U47:V47) -SUM(Invoer!C47:D47,Invoer!G47:H47,Invoer!K47:L47,Invoer!O47:P47,Invoer!S47:T47) -> 0 | E46: 0.03304317939
B47: 40 | C47: 2064 | D47: =Invoer!W48 +SUM(Invoer!E48:F48,Invoer!I48:J48,Invoer!M48:N48,Invoer!Q48:R48,Invoer!U48:V48) -SUM(Invoer!C48:D48,Invoer!G48:H48,Invoer!K48:L48,Invoer!O48:P48,Invoer!S48:T48) -> 0 | E47: 0.03305376486
B48: 41 | C48: 2065 | D48: =Invoer!W49 +SUM(Invoer!E49:F49,Invoer!I49:J49,Invoer!M49:N49,Invoer!Q49:R49,Invoer!U49:V49) -SUM(Invoer!C49:D49,Invoer!G49:H49,Invoer!K49:L49,Invoer!O49:P49,Invoer!S49:T49) -> 0 | E48: 0.0330630293
B49: 42 | C49: 2066 | D49: =Invoer!W50 +SUM(Invoer!E50:F50,Invoer!I50:J50,Invoer!M50:N50,Invoer!Q50:R50,Invoer!U50:V50) -SUM(Invoer!C50:D50,Invoer!G50:H50,Invoer!K50:L50,Invoer!O50:P50,Invoer!S50:T50) -> 0 | E49: 0.03307112229
B50: 43 | C50: 2067 | D50: =Invoer!W51 +SUM(Invoer!E51:F51,Invoer!I51:J51,Invoer!M51:N51,Invoer!Q51:R51,Invoer!U51:V51) -SUM(Invoer!C51:D51,Invoer!G51:H51,Invoer!K51:L51,Invoer!O51:P51,Invoer!S51:T51) -> 0 | E50: 0.03307817578
B51: 44 | C51: 2068 | D51: =Invoer!W52 +SUM(Invoer!E52:F52,Invoer!I52:J52,Invoer!M52:N52,Invoer!Q52:R52,Invoer!U52:V52) -SUM(Invoer!C52:D52,Invoer!G52:H52,Invoer!K52:L52,Invoer!O52:P52,Invoer!S52:T52) -> 0 | E51: 0.03308430625
B52: 45 | C52: 2069 | D52: =Invoer!W53 +SUM(Invoer!E53:F53,Invoer!I53:J53,Invoer!M53:N53,Invoer!Q53:R53,Invoer!U53:V53) -SUM(Invoer!C53:D53,Invoer!G53:H53,Invoer!K53:L53,Invoer!O53:P53,Invoer!S53:T53) -> 0 | E52: 0.03308961677
B53: 46 | C53: 2070 | D53: =Invoer!W54 +SUM(Invoer!E54:F54,Invoer!I54:J54,Invoer!M54:N54,Invoer!Q54:R54,Invoer!U54:V54) -SUM(Invoer!C54:D54,Invoer!G54:H54,Invoer!K54:L54,Invoer!O54:P54,Invoer!S54:T54) -> 0 | E53: 0.03309419858
B54: 47 | C54: 2071 | D54: =Invoer!W55 +SUM(Invoer!E55:F55,Invoer!I55:J55,Invoer!M55:N55,Invoer!Q55:R55,Invoer!U55:V55) -SUM(Invoer!C55:D55,Invoer!G55:H55,Invoer!K55:L55,Invoer!O55:P55,Invoer!S55:T55) -> 0 | E54: 0.03309813257
B55: 48 | C55: 2072 | D55: =Invoer!W56 +SUM(Invoer!E56:F56,Invoer!I56:J56,Invoer!M56:N56,Invoer!Q56:R56,Invoer!U56:V56) -SUM(Invoer!C56:D56,Invoer!G56:H56,Invoer!K56:L56,Invoer!O56:P56,Invoer!S56:T56) -> 0 | E55: 0.03310149054
B56: 49 | C56: 2073 | D56: =Invoer!W57 +SUM(Invoer!E57:F57,Invoer!I57:J57,Invoer!M57:N57,Invoer!Q57:R57,Invoer!U57:V57) -SUM(Invoer!C57:D57,Invoer!G57:H57,Invoer!K57:L57,Invoer!O57:P57,Invoer!S57:T57) -> 0 | E56: 0.03310433627
B57: 50 | C57: 2074 | D57: =Invoer!W58 +SUM(Invoer!E58:F58,Invoer!I58:J58,Invoer!M58:N58,Invoer!Q58:R58,Invoer!U58:V58) -SUM(Invoer!C58:D58,Invoer!G58:H58,Invoer!K58:L58,Invoer!O58:P58,Invoer!S58:T58) -> 0 | E57: 0.03310672649
B58: 51 | C58: 2075 | D58: =Invoer!W59 +SUM(Invoer!E59:F59,Invoer!I59:J59,Invoer!M59:N59,Invoer!Q59:R59,Invoer!U59:V59) -SUM(Invoer!C59:D59,Invoer!G59:H59,Invoer!K59:L59,Invoer!O59:P59,Invoer!S59:T59) -> 0 | E58: 0.03310871167
B59: 52 | C59: 2076 | D59: =Invoer!W60 +SUM(Invoer!E60:F60,Invoer!I60:J60,Invoer!M60:N60,Invoer!Q60:R60,Invoer!U60:V60) -SUM(Invoer!C60:D60,Invoer!G60:H60,Invoer!K60:L60,Invoer!O60:P60,Invoer!S60:T60) -> 0 | E59: 0.03311033678
B60: 53 | C60: 2077 | D60: =Invoer!W61 +SUM(Invoer!E61:F61,Invoer!I61:J61,Invoer!M61:N61,Invoer!Q61:R61,Invoer!U61:V61) -SUM(Invoer!C61:D61,Invoer!G61:H61,Invoer!K61:L61,Invoer!O61:P61,Invoer!S61:T61) -> 0 | E60: 0.0331116419
B61: 54 | C61: 2078 | D61: =Invoer!W62 +SUM(Invoer!E62:F62,Invoer!I62:J62,Invoer!M62:N62,Invoer!Q62:R62,Invoer!U62:V62) -SUM(Invoer!C62:D62,Invoer!G62:H62,Invoer!K62:L62,Invoer!O62:P62,Invoer!S62:T62) -> 0 | E61: 0.03311266278
B62: 55 | C62: 2079 | D62: =Invoer!W63 +SUM(Invoer!E63:F63,Invoer!I63:J63,Invoer!M63:N63,Invoer!Q63:R63,Invoer!U63:V63) -SUM(Invoer!C63:D63,Invoer!G63:H63,Invoer!K63:L63,Invoer!O63:P63,Invoer!S63:T63) -> 0 | E62: 0.03311343132
B63: 56 | C63: 2080 | D63: =Invoer!W64 +SUM(Invoer!E64:F64,Invoer!I64:J64,Invoer!M64:N64,Invoer!Q64:R64,Invoer!U64:V64) -SUM(Invoer!C64:D64,Invoer!G64:H64,Invoer!K64:L64,Invoer!O64:P64,Invoer!S64:T64) -> 0 | E63: 0.03311397603
B64: 57 | C64: 2081 | D64: =Invoer!W65 +SUM(Invoer!E65:F65,Invoer!I65:J65,Invoer!M65:N65,Invoer!Q65:R65,Invoer!U65:V65) -SUM(Invoer!C65:D65,Invoer!G65:H65,Invoer!K65:L65,Invoer!O65:P65,Invoer!S65:T65) -> 0 | E64: 0.03311432234
B65: 58 | C65: 2082 | D65: =Invoer!W66 +SUM(Invoer!E66:F66,Invoer!I66:J66,Invoer!M66:N66,Invoer!Q66:R66,Invoer!U66:V66) -SUM(Invoer!C66:D66,Invoer!G66:H66,Invoer!K66:L66,Invoer!O66:P66,Invoer!S66:T66) -> 0 | E65: 0.03311449301
B66: 59 | C66: 2083 | D66: =Invoer!W67 +SUM(Invoer!E67:F67,Invoer!I67:J67,Invoer!M67:N67,Invoer!Q67:R67,Invoer!U67:V67) -SUM(Invoer!C67:D67,Invoer!G67:H67,Invoer!K67:L67,Invoer!O67:P67,Invoer!S67:T67) -> 0 | E66: 0.03311450837
B67: 60 | C67: 2084 | D67: =Invoer!W68 +SUM(Invoer!E68:F68,Invoer!I68:J68,Invoer!M68:N68,Invoer!Q68:R68,Invoer!U68:V68) -SUM(Invoer!C68:D68,Invoer!G68:H68,Invoer!K68:L68,Invoer!O68:P68,Invoer!S68:T68) -> 0 | E67: 0.03311438663
B68: 61 | C68: 2085 | D68: =Invoer!W69 +SUM(Invoer!E69:F69,Invoer!I69:J69,Invoer!M69:N69,Invoer!Q69:R69,Invoer!U69:V69) -SUM(Invoer!C69:D69,Invoer!G69:H69,Invoer!K69:L69,Invoer!O69:P69,Invoer!S69:T69) -> 0 | E68: 0.03311414405
B69: 62 | C69: 2086 | D69: =Invoer!W70 +SUM(Invoer!E70:F70,Invoer!I70:J70,Invoer!M70:N70,Invoer!Q70:R70,Invoer!U70:V70) -SUM(Invoer!C70:D70,Invoer!G70:H70,Invoer!K70:L70,Invoer!O70:P70,Invoer!S70:T70) -> 0 | E69: 0.03311379518
B70: 63 | C70: 2087 | D70: =Invoer!W71 +SUM(Invoer!E71:F71,Invoer!I71:J71,Invoer!M71:N71,Invoer!Q71:R71,Invoer!U71:V71) -SUM(Invoer!C71:D71,Invoer!G71:H71,Invoer!K71:L71,Invoer!O71:P71,Invoer!S71:T71) -> 0 | E70: 0.03311335307
B71: 64 | C71: 2088 | D71: =Invoer!W72 +SUM(Invoer!E72:F72,Invoer!I72:J72,Invoer!M72:N72,Invoer!Q72:R72,Invoer!U72:V72) -SUM(Invoer!C72:D72,Invoer!G72:H72,Invoer!K72:L72,Invoer!O72:P72,Invoer!S72:T72) -> 0 | E71: 0.03311282937
B72: 65 | C72: 2089 | D72: =Invoer!W73 +SUM(Invoer!E73:F73,Invoer!I73:J73,Invoer!M73:N73,Invoer!Q73:R73,Invoer!U73:V73) -SUM(Invoer!C73:D73,Invoer!G73:H73,Invoer!K73:L73,Invoer!O73:P73,Invoer!S73:T73) -> 0 | E72: 0.03311223451
B73: 66 | C73: 2090 | D73: =Invoer!W74 +SUM(Invoer!E74:F74,Invoer!I74:J74,Invoer!M74:N74,Invoer!Q74:R74,Invoer!U74:V74) -SUM(Invoer!C74:D74,Invoer!G74:H74,Invoer!K74:L74,Invoer!O74:P74,Invoer!S74:T74) -> 0 | E73: 0.03311157782
B74: =B73+1 -> 67 | C74: 2091 | D74: =Invoer!W75 +SUM(Invoer!E75:F75,Invoer!I75:J75,Invoer!M75:N75,Invoer!Q75:R75,Invoer!U75:V75) -SUM(Invoer!C75:D75,Invoer!G75:H75,Invoer!K75:L75,Invoer!O75:P75,Invoer!S75:T75) -> 0 | E74: 0.03311086767
B75: 68 | C75: 2092 | D75: =Invoer!W76 +SUM(Invoer!E76:F76,Invoer!I76:J76,Invoer!M76:N76,Invoer!Q76:R76,Invoer!U76:V76) -SUM(Invoer!C76:D76,Invoer!G76:H76,Invoer!K76:L76,Invoer!O76:P76,Invoer!S76:T76) -> 0 | E75: 0.03311011151
B76: 69 | C76: 2093 | D76: =Invoer!W77 +SUM(Invoer!E77:F77,Invoer!I77:J77,Invoer!M77:N77,Invoer!Q77:R77,Invoer!U77:V77) -SUM(Invoer!C77:D77,Invoer!G77:H77,Invoer!K77:L77,Invoer!O77:P77,Invoer!S77:T77) -> 0 | E76: 0.03310931604
B77: 70 | C77: 2094 | D77: =Invoer!W78 +SUM(Invoer!E78:F78,Invoer!I78:J78,Invoer!M78:N78,Invoer!Q78:R78,Invoer!U78:V78) -SUM(Invoer!C78:D78,Invoer!G78:H78,Invoer!K78:L78,Invoer!O78:P78,Invoer!S78:T78) -> 0 | E77: 0.03310848722
B78: 71 | C78: 2095 | D78: =Invoer!W79 +SUM(Invoer!E79:F79,Invoer!I79:J79,Invoer!M79:N79,Invoer!Q79:R79,Invoer!U79:V79) -SUM(Invoer!C79:D79,Invoer!G79:H79,Invoer!K79:L79,Invoer!O79:P79,Invoer!S79:T79) -> 0 | E78: 0.0331076304
B79: 72 | C79: 2096 | D79: =Invoer!W80 +SUM(Invoer!E80:F80,Invoer!I80:J80,Invoer!M80:N80,Invoer!Q80:R80,Invoer!U80:V80) -SUM(Invoer!C80:D80,Invoer!G80:H80,Invoer!K80:L80,Invoer!O80:P80,Invoer!S80:T80) -> 0 | E79: 0.03310675032
B80: 73 | C80: 2097 | D80: =Invoer!W81 +SUM(Invoer!E81:F81,Invoer!I81:J81,Invoer!M81:N81,Invoer!Q81:R81,Invoer!U81:V81) -SUM(Invoer!C81:D81,Invoer!G81:H81,Invoer!K81:L81,Invoer!O81:P81,Invoer!S81:T81) -> 0 | E80: 0.03310585125
B81: 74 | C81: 2098 | D81: =Invoer!W82 +SUM(Invoer!E82:F82,Invoer!I82:J82,Invoer!M82:N82,Invoer!Q82:R82,Invoer!U82:V82) -SUM(Invoer!C82:D82,Invoer!G82:H82,Invoer!K82:L82,Invoer!O82:P82,Invoer!S82:T82) -> 0 | E81: 0.03310493698
B82: 75 | C82: 2099 | D82: =Invoer!W83 +SUM(Invoer!E83:F83,Invoer!I83:J83,Invoer!M83:N83,Invoer!Q83:R83,Invoer!U83:V83) -SUM(Invoer!C83:D83,Invoer!G83:H83,Invoer!K83:L83,Invoer!O83:P83,Invoer!S83:T83) -> 0 | E82: 0.03310401089
B83: 76 | C83: 2100 | D83: =Invoer!W84 +SUM(Invoer!E84:F84,Invoer!I84:J84,Invoer!M84:N84,Invoer!Q84:R84,Invoer!U84:V84) -SUM(Invoer!C84:D84,Invoer!G84:H84,Invoer!K84:L84,Invoer!O84:P84,Invoer!S84:T84) -> 0 | E83: 0.03310307597
B84: 77 | C84: 2101 | D84: =Invoer!W85 +SUM(Invoer!E85:F85,Invoer!I85:J85,Invoer!M85:N85,Invoer!Q85:R85,Invoer!U85:V85) -SUM(Invoer!C85:D85,Invoer!G85:H85,Invoer!K85:L85,Invoer!O85:P85,Invoer!S85:T85) -> 0 | E84: 0.03310213491
B85: 78 | C85: 2102 | D85: =Invoer!W86 +SUM(Invoer!E86:F86,Invoer!I86:J86,Invoer!M86:N86,Invoer!Q86:R86,Invoer!U86:V86) -SUM(Invoer!C86:D86,Invoer!G86:H86,Invoer!K86:L86,Invoer!O86:P86,Invoer!S86:T86) -> 0 | E85: 0.03310119007
B86: 79 | C86: 2103 | D86: =Invoer!W87 +SUM(Invoer!E87:F87,Invoer!I87:J87,Invoer!M87:N87,Invoer!Q87:R87,Invoer!U87:V87) -SUM(Invoer!C87:D87,Invoer!G87:H87,Invoer!K87:L87,Invoer!O87:P87,Invoer!S87:T87) -> 0 | E86: 0.03310024355
B87: 80 | C87: 2104 | D87: =Invoer!W88 +SUM(Invoer!E88:F88,Invoer!I88:J88,Invoer!M88:N88,Invoer!Q88:R88,Invoer!U88:V88) -SUM(Invoer!C88:D88,Invoer!G88:H88,Invoer!K88:L88,Invoer!O88:P88,Invoer!S88:T88) -> 0 | E87: 0.03309929722
B88: 81 | C88: 2105 | D88: =Invoer!W89 +SUM(Invoer!E89:F89,Invoer!I89:J89,Invoer!M89:N89,Invoer!Q89:R89,Invoer!U89:V89) -SUM(Invoer!C89:D89,Invoer!G89:H89,Invoer!K89:L89,Invoer!O89:P89,Invoer!S89:T89) -> 0 | E88: 0.03309835272
B89: 82 | C89: 2106 | D89: =Invoer!W90 +SUM(Invoer!E90:F90,Invoer!I90:J90,Invoer!M90:N90,Invoer!Q90:R90,Invoer!U90:V90) -SUM(Invoer!C90:D90,Invoer!G90:H90,Invoer!K90:L90,Invoer!O90:P90,Invoer!S90:T90) -> 0 | E89: 0.03309741148
B90: 83 | C90: 2107 | D90: =Invoer!W91 +SUM(Invoer!E91:F91,Invoer!I91:J91,Invoer!M91:N91,Invoer!Q91:R91,Invoer!U91:V91) -SUM(Invoer!C91:D91,Invoer!G91:H91,Invoer!K91:L91,Invoer!O91:P91,Invoer!S91:T91) -> 0 | E90: 0.03309647479
B91: 84 | C91: 2108 | D91: =Invoer!W92 +SUM(Invoer!E92:F92,Invoer!I92:J92,Invoer!M92:N92,Invoer!Q92:R92,Invoer!U92:V92) -SUM(Invoer!C92:D92,Invoer!G92:H92,Invoer!K92:L92,Invoer!O92:P92,Invoer!S92:T92) -> 0 | E91: 0.03309554375
B92: 85 | C92: 2109 | D92: =Invoer!W93 +SUM(Invoer!E93:F93,Invoer!I93:J93,Invoer!M93:N93,Invoer!Q93:R93,Invoer!U93:V93) -SUM(Invoer!C93:D93,Invoer!G93:H93,Invoer!K93:L93,Invoer!O93:P93,Invoer!S93:T93) -> 0 | E92: 0.03309461934
B93: 86 | C93: 2110 | D93: =Invoer!W94 +SUM(Invoer!E94:F94,Invoer!I94:J94,Invoer!M94:N94,Invoer!Q94:R94,Invoer!U94:V94) -SUM(Invoer!C94:D94,Invoer!G94:H94,Invoer!K94:L94,Invoer!O94:P94,Invoer!S94:T94) -> 0 | E93: 0.03309370238
B94: 87 | C94: 2111 | D94: =Invoer!W95 +SUM(Invoer!E95:F95,Invoer!I95:J95,Invoer!M95:N95,Invoer!Q95:R95,Invoer!U95:V95) -SUM(Invoer!C95:D95,Invoer!G95:H95,Invoer!K95:L95,Invoer!O95:P95,Invoer!S95:T95) -> 0 | E94: 0.03309279363
B95: 88 | C95: 2112 | D95: =Invoer!W96 +SUM(Invoer!E96:F96,Invoer!I96:J96,Invoer!M96:N96,Invoer!Q96:R96,Invoer!U96:V96) -SUM(Invoer!C96:D96,Invoer!G96:H96,Invoer!K96:L96,Invoer!O96:P96,Invoer!S96:T96) -> 0 | E95: 0.03309189369
B96: 89 | C96: 2113 | D96: =Invoer!W97 +SUM(Invoer!E97:F97,Invoer!I97:J97,Invoer!M97:N97,Invoer!Q97:R97,Invoer!U97:V97) -SUM(Invoer!C97:D97,Invoer!G97:H97,Invoer!K97:L97,Invoer!O97:P97,Invoer!S97:T97) -> 0 | E96: 0.03309100311
B97: 90 | C97: 2114 | D97: =Invoer!W98 +SUM(Invoer!E98:F98,Invoer!I98:J98,Invoer!M98:N98,Invoer!Q98:R98,Invoer!U98:V98) -SUM(Invoer!C98:D98,Invoer!G98:H98,Invoer!K98:L98,Invoer!O98:P98,Invoer!S98:T98) -> 0 | E97: 0.03309012234
B98: 91 | C98: 2115 | D98: =Invoer!W99 +SUM(Invoer!E99:F99,Invoer!I99:J99,Invoer!M99:N99,Invoer!Q99:R99,Invoer!U99:V99) -SUM(Invoer!C99:D99,Invoer!G99:H99,Invoer!K99:L99,Invoer!O99:P99,Invoer!S99:T99) -> 0 | E98: 0.03308925176
B99: 92 | C99: 2116 | D99: =Invoer!W100 +SUM(Invoer!E100:F100,Invoer!I100:J100,Invoer!M100:N100,Invoer!Q100:R100,Invoer!U100:V100) -SUM(Invoer!C100:D100,Invoer!G100:H100,Invoer!K100:L100,Invoer!O100:P100,Invoer!S100:T100) -> 0 | E99: 0.03308839167
B100: 93 | C100: 2117 | D100: =Invoer!W101 +SUM(Invoer!E101:F101,Invoer!I101:J101,Invoer!M101:N101,Invoer!Q101:R101,Invoer!U101:V101) -SUM(Invoer!C101:D101,Invoer!G101:H101,Invoer!K101:L101,Invoer!O101:P101,Invoer!S101:T101) -> 0 | E100: 0.03308754234
B101: 94 | C101: 2118 | D101: =Invoer!W102 +SUM(Invoer!E102:F102,Invoer!I102:J102,Invoer!M102:N102,Invoer!Q102:R102,Invoer!U102:V102) -SUM(Invoer!C102:D102,Invoer!G102:H102,Invoer!K102:L102,Invoer!O102:P102,Invoer!S102:T102) -> 0 | E101: 0.03308670396
B102: 95 | C102: 2119 | D102: =Invoer!W103 +SUM(Invoer!E103:F103,Invoer!I103:J103,Invoer!M103:N103,Invoer!Q103:R103,Invoer!U103:V103) -SUM(Invoer!C103:D103,Invoer!G103:H103,Invoer!K103:L103,Invoer!O103:P103,Invoer!S103:T103) -> 0 | E102: 0.03308587669
B103: 96 | C103: 2120 | D103: =Invoer!W104 +SUM(Invoer!E104:F104,Invoer!I104:J104,Invoer!M104:N104,Invoer!Q104:R104,Invoer!U104:V104) -SUM(Invoer!C104:D104,Invoer!G104:H104,Invoer!K104:L104,Invoer!O104:P104,Invoer!S104:T104) -> 0 | E103: 0.03308506065
B104: 97 | C104: 2121 | D104: =Invoer!W105 +SUM(Invoer!E105:F105,Invoer!I105:J105,Invoer!M105:N105,Invoer!Q105:R105,Invoer!U105:V105) -SUM(Invoer!C105:D105,Invoer!G105:H105,Invoer!K105:L105,Invoer!O105:P105,Invoer!S105:T105) -> 0 | E104: 0.0330842559
B105: 98 | C105: 2122 | D105: =Invoer!W106 +SUM(Invoer!E106:F106,Invoer!I106:J106,Invoer!M106:N106,Invoer!Q106:R106,Invoer!U106:V106) -SUM(Invoer!C106:D106,Invoer!G106:H106,Invoer!K106:L106,Invoer!O106:P106,Invoer!S106:T106) -> 0 | E105: 0.0330834625
B106: 99 | C106: 2123 | D106: =Invoer!W107 +SUM(Invoer!E107:F107,Invoer!I107:J107,Invoer!M107:N107,Invoer!Q107:R107,Invoer!U107:V107) -SUM(Invoer!C107:D107,Invoer!G107:H107,Invoer!K107:L107,Invoer!O107:P107,Invoer!S107:T107) -> 0 | E106: 0.03308268045
B107: 100 | C107: 2124 | D107: =Invoer!W108 +SUM(Invoer!E108:F108,Invoer!I108:J108,Invoer!M108:N108,Invoer!Q108:R108,Invoer!U108:V108) -SUM(Invoer!C108:D108,Invoer!G108:H108,Invoer!K108:L108,Invoer!O108:P108,Invoer!S108:T108) -> 0 | E107: 0.03308190974
B108: 101 | C108: 2125 | D108: =Invoer!W109 +SUM(Invoer!E109:F109,Invoer!I109:J109,Invoer!M109:N109,Invoer!Q109:R109,Invoer!U109:V109) -SUM(Invoer!C109:D109,Invoer!G109:H109,Invoer!K109:L109,Invoer!O109:P109,Invoer!S109:T109) -> 0 | E108: 0.03308115035
B109: 102 | C109: 2126 | D109: =Invoer!W110 +SUM(Invoer!E110:F110,Invoer!I110:J110,Invoer!M110:N110,Invoer!Q110:R110,Invoer!U110:V110) -SUM(Invoer!C110:D110,Invoer!G110:H110,Invoer!K110:L110,Invoer!O110:P110,Invoer!S110:T110) -> 0 | E109: 0.03308040221
B110: 103 | C110: 2127 | D110: =Invoer!W111 +SUM(Invoer!E111:F111,Invoer!I111:J111,Invoer!M111:N111,Invoer!Q111:R111,Invoer!U111:V111) -SUM(Invoer!C111:D111,Invoer!G111:H111,Invoer!K111:L111,Invoer!O111:P111,Invoer!S111:T111) -> 0 | E110: 0.03307966525
B111: 104 | C111: 2128 | D111: =Invoer!W112 +SUM(Invoer!E112:F112,Invoer!I112:J112,Invoer!M112:N112,Invoer!Q112:R112,Invoer!U112:V112) -SUM(Invoer!C112:D112,Invoer!G112:H112,Invoer!K112:L112,Invoer!O112:P112,Invoer!S112:T112) -> 0 | E111: 0.03307893939
B112: 105 | C112: 2129 | D112: =Invoer!W113 +SUM(Invoer!E113:F113,Invoer!I113:J113,Invoer!M113:N113,Invoer!Q113:R113,Invoer!U113:V113) -SUM(Invoer!C113:D113,Invoer!G113:H113,Invoer!K113:L113,Invoer!O113:P113,Invoer!S113:T113) -> 0 | E112: 0.03307822453
B113: 106 | C113: 2130 | D113: =Invoer!W114 +SUM(Invoer!E114:F114,Invoer!I114:J114,Invoer!M114:N114,Invoer!Q114:R114,Invoer!U114:V114) -SUM(Invoer!C114:D114,Invoer!G114:H114,Invoer!K114:L114,Invoer!O114:P114,Invoer!S114:T114) -> 0 | E113: 0.03307752055
B114: 107 | C114: 2131 | D114: =Invoer!W115 +SUM(Invoer!E115:F115,Invoer!I115:J115,Invoer!M115:N115,Invoer!Q115:R115,Invoer!U115:V115) -SUM(Invoer!C115:D115,Invoer!G115:H115,Invoer!K115:L115,Invoer!O115:P115,Invoer!S115:T115) -> 0 | E114: 0.03307682734
B115: 108 | C115: 2132 | D115: =Invoer!W116 +SUM(Invoer!E116:F116,Invoer!I116:J116,Invoer!M116:N116,Invoer!Q116:R116,Invoer!U116:V116) -SUM(Invoer!C116:D116,Invoer!G116:H116,Invoer!K116:L116,Invoer!O116:P116,Invoer!S116:T116) -> 0 | E115: 0.03307614475
B116: 109 | C116: 2133 | D116: =Invoer!W117 +SUM(Invoer!E117:F117,Invoer!I117:J117,Invoer!M117:N117,Invoer!Q117:R117,Invoer!U117:V117) -SUM(Invoer!C117:D117,Invoer!G117:H117,Invoer!K117:L117,Invoer!O117:P117,Invoer!S117:T117) -> 0 | E116: 0.03307547266
B117: 110 | C117: 2134 | D117: =Invoer!W118 +SUM(Invoer!E118:F118,Invoer!I118:J118,Invoer!M118:N118,Invoer!Q118:R118,Invoer!U118:V118) -SUM(Invoer!C118:D118,Invoer!G118:H118,Invoer!K118:L118,Invoer!O118:P118,Invoer!S118:T118) -> 0 | E117: 0.03307481093
B118: 111 | C118: 2135 | D118: =(Invoer!W$119 +SUM(Invoer!E$119:F$119,Invoer!I$119:J$119,Invoer!M$119:N$119,Invoer!Q$119:R$119,Invoer!U$119:V$119) -SUM(Invoer!C$119:D$119,Invoer!G$119:H$119,Invoer!K$119:L$119,Invoer!O$119:P$119,Invoer!S$119:T$119))/10 -> 0 | E118: 0.03307415939
B119: 112 | C119: 2136 | D119: =(Invoer!W$119 +SUM(Invoer!E$119:F$119,Invoer!I$119:J$119,Invoer!M$119:N$119,Invoer!Q$119:R$119,Invoer!U$119:V$119) -SUM(Invoer!C$119:D$119,Invoer!G$119:H$119,Invoer!K$119:L$119,Invoer!O$119:P$119,Invoer!S$119:T$119))/10 -> 0 | E119: 0.03307351791
B120: 113 | C120: 2137 | D120: =(Invoer!W$119 +SUM(Invoer!E$119:F$119,Invoer!I$119:J$119,Invoer!M$119:N$119,Invoer!Q$119:R$119,Invoer!U$119:V$119) -SUM(Invoer!C$119:D$119,Invoer!G$119:H$119,Invoer!K$119:L$119,Invoer!O$119:P$119,Invoer!S$119:T$119))/10 -> 0 | E120: 0.03307288633
B121: 114 | C121: 2138 | D121: =(Invoer!W$119 +SUM(Invoer!E$119:F$119,Invoer!I$119:J$119,Invoer!M$119:N$119,Invoer!Q$119:R$119,Invoer!U$119:V$119) -SUM(Invoer!C$119:D$119,Invoer!G$119:H$119,Invoer!K$119:L$119,Invoer!O$119:P$119,Invoer!S$119:T$119))/10 -> 0 | E121: 0.03307226448
B122: 115 | C122: 2139 | D122: =(Invoer!W$119 +SUM(Invoer!E$119:F$119,Invoer!I$119:J$119,Invoer!M$119:N$119,Invoer!Q$119:R$119,Invoer!U$119:V$119) -SUM(Invoer!C$119:D$119,Invoer!G$119:H$119,Invoer!K$119:L$119,Invoer!O$119:P$119,Invoer!S$119:T$119))/10 -> 0 | E122: 0.03307165221
B123: 116 | C123: =C122+1 -> 2140 | D123: =(Invoer!W$119 +SUM(Invoer!E$119:F$119,Invoer!I$119:J$119,Invoer!M$119:N$119,Invoer!Q$119:R$119,Invoer!U$119:V$119) -SUM(Invoer!C$119:D$119,Invoer!G$119:H$119,Invoer!K$119:L$119,Invoer!O$119:P$119,Invoer!S$119:T$119))/10 -> 0 | E123: 0.03307104936
B124: 117 | C124: 2141 | D124: =(Invoer!W$119 +SUM(Invoer!E$119:F$119,Invoer!I$119:J$119,Invoer!M$119:N$119,Invoer!Q$119:R$119,Invoer!U$119:V$119) -SUM(Invoer!C$119:D$119,Invoer!G$119:H$119,Invoer!K$119:L$119,Invoer!O$119:P$119,Invoer!S$119:T$119))/10 -> 0 | E124: 0.03307045577
B125: 118 | C125: 2142 | D125: =(Invoer!W$119 +SUM(Invoer!E$119:F$119,Invoer!I$119:J$119,Invoer!M$119:N$119,Invoer!Q$119:R$119,Invoer!U$119:V$119) -SUM(Invoer!C$119:D$119,Invoer!G$119:H$119,Invoer!K$119:L$119,Invoer!O$119:P$119,Invoer!S$119:T$119))/10 -> 0 | E125: 0.03306987128
B126: 119 | C126: 2143 | D126: =(Invoer!W$119 +SUM(Invoer!E$119:F$119,Invoer!I$119:J$119,Invoer!M$119:N$119,Invoer!Q$119:R$119,Invoer!U$119:V$119) -SUM(Invoer!C$119:D$119,Invoer!G$119:H$119,Invoer!K$119:L$119,Invoer!O$119:P$119,Invoer!S$119:T$119))/10 -> 0 | E126: 0.03306929572
B127: 120 | C127: 2144 | D127: =(Invoer!W$119 +SUM(Invoer!E$119:F$119,Invoer!I$119:J$119,Invoer!M$119:N$119,Invoer!Q$119:R$119,Invoer!U$119:V$119) -SUM(Invoer!C$119:D$119,Invoer!G$119:H$119,Invoer!K$119:L$119,Invoer!O$119:P$119,Invoer!S$119:T$119))/10 -> 0 | E127: 0.03306872893
B128: 121 | C128: 2145 | D128: 0 | E128: =E127-($E$126-$E$127) -> 0.03306816214
B129: 122 | C129: 2146 | D129: 0 | E129: =E128-($E$126-$E$127) -> 0.03306759536
B130: 123 | C130: 2147 | D130: 0 | E130: 0.03306702857
B131: 124 | C131: 2148 | D131: 0 | E131: 0.03306646178
B132: 125 | C132: 2149 | D132: 0 | E132: 0.033065895
B133: 126 | C133: 2150 | D133: 0 | E133: 0.03306532821
B134: 127 | C134: 2151 | D134: 0 | E134: 0.03306476142
B135: 128 | C135: 2152 | D135: 0 | E135: 0.03306419464
B136: 129 | C136: 2153 | D136: 0 | E136: 0.03306362785
B137: 130 | C137: 2154 | D137: 0 | E137: 0.03306306106
B138: 131 | C138: 2155 | D138: 0 | E138: 0.03306249428
B139: 132 | C139: 2156 | D139: 0 | E139: 0.03306192749
B140: 133 | C140: 2157 | D140: 0 | E140: 0.0330613607
B141: 134 | C141: 2158 | D141: 0 | E141: 0.03306079392
B142: 135 | C142: 2159 | D142: 0 | E142: 0.03306022713
B143: 136 | C143: 2160 | D143: 0 | E143: 0.03305966035
B144: 137 | C144: 2161 | D144: 0 | E144: 0.03305909356
B145: 138 | C145: 2162 | D145: 0 | E145: 0.03305852677
B146: 139 | C146: 2163 | D146: 0 | E146: 0.03305795999
B147: 140 | C147: 2164 | D147: 0 | E147: 0.0330573932

Sheet Uitvoer
B2: Beschrijving van uitkomsten
D4: Beste Schatting zonder UFR | E4: Omvang UFR-effect in dat jaar | F4: Beste Schatting met UFR
B5: Rapportagejaar 2020 | D5: ='Configuratie en berekeningen'!L8 -> 0 | E5: ='Configuratie en berekeningen'!O8 -> 0 | F5: =D5-E5 -> 0
B6: Rapportagejaar 2021 | D6: ='Configuratie en berekeningen'!L9 -> 0 | E6: ='Configuratie en berekeningen'!O9 -> 0 | F6: =D6-E6 -> 0
B7: Verschil | D7: =D6-D5 -> 0 | E7: =E6-E5 -> 0 | F7: =F6-F5 -> 0
D9: ="Dit betekent dat de Beste Schatting eind 2021 EUR "&ROUND(ABS(F7/1000000),1)&" mln "&IF(F7>0,"hoger","lager")&" zal liggen dan eind 2020. De afname van het UFR-effect tussen 2020 en 2021 is daarbij becijferd op EUR "&ROUND(-E7/1000000,1)&" mln." -> Dit betekent dat de Beste Schatting eind 2021 EUR 0 mln lager zal liggen dan eind 2020. De afname van het UFR-effect tussen 2020 en 2021 is daarbij becijferd op EUR 0 mln.
B16: Alle uitkomsten
D18: Beste Schatting zonder UFR | E18: Beste Schatting met UFR | F18: UFR-effect | G18: Afname in UFR-effect (UFR-drag)
B19: Rapportagejaar 2020 | D19: ='Configuratie en berekeningen'!L8 -> 0 | E19: ='Configuratie en berekeningen'!M8 -> 0 | F19: =D19-E19 -> 0
B20: Rapportagejaar 2021 | D20: ='Configuratie en berekeningen'!L9 -> 0 | E20: ='Configuratie en berekeningen'!M9 -> 0 | F20: =D20-E20 -> 0 | G20: =F19-F20 -> 0
B21: Rapportagejaar 2022 | D21: ='Configuratie en berekeningen'!L10 -> 0 | E21: ='Configuratie en berekeningen'!M10 -> 0 | F21: 0 | G21: =F20-F21 -> 0
B22: Rapportagejaar 2023 | D22: ='Configuratie en berekeningen'!L11 -> 0 | E22: ='Configuratie en berekeningen'!M11 -> 0 | F22: 0 | G22: 0
B23: Rapportagejaar 2024 | D23: ='Configuratie en berekeningen'!L12 -> 0 | E23: ='Configuratie en berekeningen'!M12 -> 0 | F23: 0 | G23: 0
B24: Rapportagejaar 2025 | D24: ='Configuratie en berekeningen'!L13 -> 0 | E24: ='Configuratie en berekeningen'!M13 -> 0 | F24: 0 | G24: 0
B25: Rapportagejaar 2026 | D25: ='Configuratie en berekeningen'!L14 -> 0 | E25: ='Configuratie en berekeningen'!M14 -> 0 | F25: 0 | G25: 0
B26: Rapportagejaar 2027 | D26: ='Configuratie en berekeningen'!L15 -> 0 | E26: ='Configuratie en berekeningen'!M15 -> 0 | F26: 0 | G26: 0
B27: Rapportagejaar 2028 | D27: ='Configuratie en berekeningen'!L16 -> 0 | E27: ='Configuratie en berekeningen'!M16 -> 0 | F27: 0 | G27: 0
B28: Rapportagejaar 2029 | D28: ='Configuratie en berekeningen'!L17 -> 0 | E28: ='Configuratie en berekeningen'!M17 -> 0 | F28: 0 | G28: 0
B29: Rapportagejaar 2030 | D29: ='Configuratie en berekeningen'!L18 -> 0 | E29: ='Configuratie en berekeningen'!M18 -> 0 | F29: 0 | G29: 0
B30: Rapportagejaar 2031 | D30: ='Configuratie en berekeningen'!L19 -> 0 | E30: ='Configuratie en berekeningen'!M19 -> 0 | F30: 0 | G30: 0
B31: Rapportagejaar 2032 | D31: ='Configuratie en berekeningen'!L20 -> 0 | E31: ='Configuratie en berekeningen'!M20 -> 0 | F31: 0 | G31: 0
B32: Rapportagejaar 2033 | D32: ='Configuratie en berekeningen'!L21 -> 0 | E32: ='Configuratie en berekeningen'!M21 -> 0 | F32: 0 | G32: 0
B33: Rapportagejaar 2034 | D33: ='Configuratie en berekeningen'!L22 -> 0 | E33: ='Configuratie en berekeningen'!M22 -> 0 | F33: 0 | G33: 0
B34: Rapportagejaar 2035 | D34: ='Configuratie en berekeningen'!L23 -> 0 | E34: ='Configuratie en berekeningen'!M23 -> 0 | F34: 0 | G34: 0
B35: Rapportagejaar 2036 | D35: ='Configuratie en berekeningen'!L24 -> 0 | E35: ='Configuratie en berekeningen'!M24 -> 0 | F35: 0 | G35: 0
B36: Rapportagejaar 2037 | D36: ='Configuratie en berekeningen'!L25 -> 0 | E36: ='Configuratie en berekeningen'!M25 -> 0 | F36: 0 | G36: 0
B37: Rapportagejaar 2038 | D37: ='Configuratie en berekeningen'!L26 -> 0 | E37: ='Configuratie en berekeningen'!M26 -> 0 | F37: 0 | G37: 0
B38: Rapportagejaar 2039 | D38: ='Configuratie en berekeningen'!L27 -> 0 | E38: ='Configuratie en berekeningen'!M27 -> 0 | F38: 0 | G38: 0
B39: Rapportagejaar 2040 | D39: ='Configuratie en berekeningen'!L28 -> 0 | E39: ='Configuratie en berekeningen'!M28 -> 0 | F39: 0 | G39: 0

Sheet Kale curves (zonder UFR, VA)
B2: Rentetermijnstructuur zonder UFR en zonder VA
B16: Rentes | Y16: Discount factors
B18: 1 | C18: 2 | D18: 3 | E18: 4 | F18: 5 | G18: 6 | H18: 7 | I18: 8 | J18: 9 | K18: 10 | L18: 11 | M18: 12 | N18: 13 | O18: 14 | P18: 15 | Q18: 16 | R18: 17 | S18: 18 | T18: 19 | U18: 20 | V18: 21 | Y18: 1 | Z18: 2 | AA18: 3 | AB18: 4 | AC18: 5 | AD18: 6 | AE18: 7 | AF18: 8 | AG18: 9 | AH18: 10 | AI18: 11 | AJ18: 12 | AK18: 13 | AL18: 14 | AM18: 15 | AN18: 16 | AO18: 17 | AP18: 18 | AQ18: 19 | AR18: 20 | AS18: 21
A19: 1 | B19: ='Configuratie en berekeningen'!E8 -> 0.02076 | C19: =((1+B20)^$A20/(1+B$19)^$A$19)^(1/($A20-$A$19))-1 -> 0.02250074151 | D19: =((1+C20)^$A20/(1+C$19)^$A$19)^(1/($A20-$A$19))-1 -> 0.02523423019 | E19: 0.0269562275 | F19: 0.02851845512 | G19: 0.02996083775 | H19: 0.03168516436 | I19: 0.03236455655 | J19: 0.03346671127 | K19: 0.03495148988 | L19: 0.03502801749 | M19: 0.03570873213 | N19: 0.03731553383 | O19: 0.036364885 | P19: 0.03542127369 | Q19: 0.03526129591 | R19: 0.03523659394 | S19: 0.03518425842 | T19: 0.03510375448 | U19: 0.03499441149 | V19: 0.0348620778 | X19: 1 | Y19: =(1+B19)^-$A19 -> 0.9796622125 | Z19: =(1+C19)^-$A19 -> 0.9779944008 | AA19: =(1+D19)^-$A19 -> 0.9753868634 | AB19: =(1+E19)^-$A19 -> 0.9737513374 | AC19: =(1+F19)^-$A19 -> 0.9722722962 | AD19: =(1+G19)^-$A19 -> 0.970910702 | AE19: =(1+H19)^-$A19 -> 0.9692879519 | AF19: =(1+I19)^-$A19 -> 0.96865007 | AG19: =(1+J19)^-$A19 -> 0.9676170399 | AH19: =(1+K19)^-$A19 -> 0.9662288617 | AI19: =(1+L19)^-$A19 -> 0.966157421 | AJ19: =(1+M19)^-$A19 -> 0.9655224186 | AK19: =(1+N19)^-$A19 -> 0.9640268244 | AL19: =(1+O19)^-$A19 -> 0.9649111182 | AM19: =(1+P19)^-$A19 -> 0.9657904714 | AN19: =(1+Q19)^-$A19 -> 0.9659397139 | AO19: =(1+R19)^-$A19 -> 0.9659627624 | AP19: =(1+S19)^-$A19 -> 0.9660115983 | AQ19: =(1+T19)^-$A19 -> 0.9660867287 | AR19: =(1+U19)^-$A19 -> 0.9661887918 | AS19: =(1+V19)^-$A19 -> 0.9663123439
A20: 2 | B20: ='Configuratie en berekeningen'!E9 -> 0.02163 | C20: =((1+B21)^$A21/(1+B$19)^$A$19)^(1/($A21-$A$19))-1 -> 0.02386657363 | D20: 0.02609486761 | E20: 0.02773704447 | F20: 0.02923939377 | G20: 0.03082264051 | H20: 0.03202480455 | I20: 0.03291548691 | J20: 0.03420883412 | K20: 0.03498975298 | L20: 0.03536831887 | M20: 0.03651182163 | N20: 0.03684010046 | O20: 0.0358929719 | P20: 0.03534128171 | Q20: 0.03524894485 | R20: 0.03521042585 | S20: 0.03514400567 | T20: 0.03504908154 | U20: 0.03492824253 | V20: 0.03479731226 | X20: 2 | Y20: =(1+B20)^-$A20 -> 0.9581041585 | Z20: 0.953922891 | AA20: =(1+D20)^-$A20 -> 0.9497842627 | AB20: 0.9467514487 | AC20: 0.9439895776 | AD20: 0.9410920458 | AE20: 0.9389008425 | AF20: 0.9372823135 | AG20: 0.934939511 | AH20: 0.9335291851 | AI20: 0.9328466498 | AJ20: 0.9307895111 | AK20: 0.9302002011 | AL20: 0.9319019636 | AM20: 0.9328953716 | AN20: 0.9330617943 | AO20: 0.933131232 | AP20: 0.9332509848 | AQ20: 0.9334221692 | AR20: 0.9336401561 | AS20: 0.9338764333
A21: 3 | B21: ='Configuratie en berekeningen'!E10 -> 0.02283 | C21: =((1+B22)^$A22/(1+B$19)^$A$19)^(1/($A22-$A$19))-1 -> 0.02489542405 | D21: 0.0269020949 | E21: 0.0284777749 | F21: 0.03005400572 | G21: 0.03133635646 | H21: 0.03250521645 | I21: 0.03359370914 | J21: 0.03448182318 | K21: 0.03522935722 | L21: 0.03601698405 | M21: 0.03646284044 | N21: 0.03636694232 | O21: 0.03568237043 | P21: 0.03530638461 | Q21: 0.03522738226 | R21: 0.03517486751 | S21: 0.03509413854 | T21: 0.0349867432 | U21: 0.03486300783 | V21: 0.03473548636 | X21: 3 | Y21: 0.9345222099 | Z21: 0.9288836909 | AA21: 0.923448926 | AB21: 0.9192111137 | AC21: 0.9149977243 | AD21: 0.9115888761 | AE21: 0.908496454 | AF21: 0.9056292229 | AG21: 0.9032987467 | AH21: 0.9013433566 | AI21: 0.8992891935 | AJ21: 0.8981291479 | AK21: 0.8983784907 | AL21: 0.9001611162 | AM21: 0.9011421902 | AN21: 0.9013485153 | AO21: 0.9014856993 | AP21: 0.9016966415 | AQ21: 0.9019773641 | AR21: 0.9023009428 | AS21: 0.9026345843
A22: 4 | B22: ='Configuratie en berekeningen'!E11 -> 0.02386 | C22: =((1+B23)^$A23/(1+B$19)^$A$19)^(1/($A23-$A$19))-1 -> 0.02579998358 | D22: 0.02766592796 | E22: 0.02927868623 | F22: 0.03063115817 | G22: 0.03186853311 | H22: 0.0331162422 | I22: 0.03395209978 | J22: 0.03478841409 | K22: 0.03575050771 | L22: 0.03610394833 | M22: 0.03620235056 | N22: 0.03609042006 | O22: 0.03557090831 | P22: 0.03527585171 | Q22: 0.03519647393 | R22: 0.03512975055 | S22: 0.03503611848 | T22: 0.03492318924 | U22: 0.03480021157 | V22: 0.03467645646 | X22: 4 | Y22: 0.9099922517 | Z22: 0.903127879 | AA22: 0.8965864449 | AB22: 0.8909802578 | AC22: 0.8863126097 | AD22: 0.8820689299 | AE22: 0.8778154946 | AF22: 0.8749803943 | AG22: 0.8721551907 | AH22: 0.8689191738 | AI22: 0.8677341412 | AJ22: 0.8674045731 | AK22: 0.8677794623 | AL22: 0.8695221184 | AM22: 0.8705138074 | AN22: 0.8707808385 | AO22: 0.8710053787 | AP22: 0.8713205952 | AQ22: 0.8717009661 | AR22: 0.8721154185 | AS22: 0.8725327397
A23: 5 | B23: ='Configuratie en berekeningen'!E12 -> 0.02479 | C23: =((1+B24)^$A24/(1+B$19)^$A$19)^(1/($A24-$A$19))-1 -> 0.02663080751 | D23: 0.02846852063 | E23: 0.02989512149 | F23: 0.0311976457 | G23: 0.0324843889 | H23: 0.03349831455 | I23: 0.03430318774 | J23: 0.03529334503 | K23: 0.03587335402 | L23: 0.03596737741 | M23: 0.03601407123 | N23: 0.03591959852 | O23: 0.03549356678 | P23: 0.03524142998 | Q23: 0.03515605829 | R23: 0.03507621046 | S23: 0.03497539781 | T23: 0.03486091303 | U23: 0.03474003965 | V23: 0.03462008568 | X23: 5 | Y23: 0.8847602561 | Z23: 0.876856523 | AA23: 0.8690504389 | AB23: 0.8630480891 | AC23: 0.8576111838 | AD23: 0.8522804581 | AE23: 0.8481079544 | AF23: 0.8448131865 | AG23: 0.8407809989 | AH23: 0.8384297716 | AI23: 0.8380493653 | AJ23: 0.8378605252 | AK23: 0.8382426465 | AL23: 0.8399684513 | AM23: 0.8409918365 | AN23: 0.8413386863 | AO23: 0.841663249 | AP23: 0.8420732435 | AQ23: 0.8425391317 | AR23: 0.8430313536 | AS23: 0.8435201727
A24: 6 | B24: ='Configuratie en berekeningen'!E13 -> 0.02565 | C24: =((1+B25)^$A25/(1+B$19)^$A$19)^(1/($A25-$A$19))-1 -> 0.02747147745 | D24: 0.02911683739 | E24: 0.03048952813 | F24: 0.03182233955 | G24: 0.03290789248 | H24: 0.03386638961 | I24: 0.03480463725 | J24: 0.03547185806 | K24: 0.0357979936 | L24: 0.03584966372 | M24: 0.03588445114 | N24: 0.03579700557 | O24: 0.03542858787 | P24: 0.03520025614 | Q24: 0.03510705574 | R24: 0.03501892592 | S24: 0.03491479692 | T24: 0.03480064991 | U24: 0.03468246391 | V24: 0.0345662437 | X24: 6 | Y24: 0.8590232013 | Z24: 0.8499264633 | AA24: 0.8418057686 | AB24: 0.8351000373 | AC24: 0.828648678 | AD24: 0.8234370893 | AE24: 0.8188672433 | AF24: 0.8144225734 | AG24: 0.8112789337 | AH24: 0.8097474843 | AI24: 0.8095051642 | AJ24: 0.8093420674 | AK24: 0.8097521187 | AL24: 0.8114823733 | AM24: 0.8125568864 | AN24: 0.812995958 | AO24: 0.8134113964 | AP24: 0.8139025732 | AQ24: 0.8144414026 | AR24: 0.8149997366 | AS24: 0.8155492193
A25: 7 | B25: ='Configuratie en berekeningen'!E14 -> 0.02651 | C25: =((1+B26)^$A26/(1+B$19)^$A$19)^(1/($A26-$A$19))-1 -> 0.02816906629 | D25: 0.02973712521 | E25: 0.03112577154 | F25: 0.03227968495 | G25: 0.03330754822 | H25: 0.03435842144 | I25: 0.03502738589 | J25: 0.03546463157 | K25: 0.03572130547 | L25: 0.0357620601 | M25: 0.03578439462 | N25: 0.03569794128 | O25: 0.03536655153 | P25: 0.03515193818 | Q25: 0.03505354673 | R25: 0.03496076179 | S25: 0.03485544242 | T25: 0.03474263778 | U25: 0.03462739968 | V25: 0.03451480646 | X25: 7 | Y25: 0.8326408395 | Z25: 0.8232813282 | AA25: 0.8145456059 | AB25: 0.8068977584 | AC25: 0.8006050696 | AD25: 0.79504697 | AE25: 0.7894099882 | AF25: 0.785845396 | AG25: 0.7835254638 | AH25: 0.7821672533 | AI25: 0.7819518445 | AJ25: 0.7818338241 | AK25: 0.7822907754 | AL25: 0.7840451739 | AM25: 0.7851837495 | AN25: 0.7857063715 | AO25: 0.7861995779 | AP25: 0.786759841 | AQ25: 0.7873604294 | AR25: 0.7879745149 | AS25: 0.788575035
A26: 8 | B26: ='Configuratie en berekeningen'!E15 -> 0.02724 | C26: =((1+B27)^$A27/(1+B$19)^$A$19)^(1/($A27-$A$19))-1 -> 0.02882978394 | D26: 0.03038748135 | E26: 0.03161274657 | F26: 0.03270769421 | G26: 0.0338076983 | H26: 0.03460901679 | I26: 0.03507661367 | J26: 0.03543921243 | K26: 0.03566070412 | L26: 0.03568981726 | M26: 0.03569929013 | N26: 0.03560997391 | O26: 0.03530347886 | P26: 0.03509950546 | Q26: 0.03499832379 | R26: 0.03490307869 | S26: 0.03479783006 | T26: 0.03468693204 | U26: 0.03457474493 | V26: 0.03446565595 | X26: 8 | Y26: 0.8065376075 | Z26: 0.7966210418 | AA26: 0.7870374736 | AB26: 0.7795902573 | AC26: 0.7730021431 | AD26: 0.7664466058 | AE26: 0.7617104744 | AF26: 0.7589619954 | AG26: 0.7568383624 | AH26: 0.7555444407 | AI26: 0.7553745511 | AJ26: 0.7553192815 | AK26: 0.7558405792 | AL26: 0.7576325297 | AM26: 0.7588277269 | AN26: 0.7594213954 | AO26: 0.7599807094 | AP26: 0.7605993068 | AQ26: 0.7612517214 | AR26: 0.7619123603 | AS26: 0.7625553739
A27: 9 | B27: ='Configuratie en berekeningen'!E16 -> 0.02793 | C27: =((1+B28)^$A28/(1+B$19)^$A$19)^(1/($A28-$A$19))-1 -> 0.02950818143 | D27: 0.03090206732 | E27: 0.03206705497 | F27: 0.03321866394 | G27: 0.03409151828 | H27: 0.03469923608 | I27: 0.03509713229 | J27: 0.0354166973 | K27: 0.03560775488 | L27: 0.03562468279 | M27: 0.03562094658 | N27: 0.03552684766 | O27: 0.03524002686 | P27: 0.03504530969 | Q27: 0.03494287448 | R27: 0.03484657242 | S27: 0.03474217873 | T27: 0.03463351042 | U27: 0.03452439322 | V27: 0.03441867991 | X27: 9 | Y27: 0.7804195323 | Z27: 0.7697182424 | AA27: 0.7604020957 | AB27: 0.7527118707 | AC27: 0.7451948013 | AD27: 0.7395528514 | AE27: 0.7356527181 | AF27: 0.7331115327 | AG27: 0.7310776752 | AH27: 0.7298646927 | AI27: 0.729757329 | AJ27: 0.729781024 | AK27: 0.7303780817 | AL27: 0.7322013105 | AM27: 0.7334419474 | AN27: 0.734095549 | AO27: 0.7347106075 | AP27: 0.7353779921 | AQ27: 0.7360734197 | AR27: 0.7367724554 | AS27: 0.7374503883
A28: 10 | B28: ='Configuratie en berekeningen'!E17 -> 0.02863 | C28: =((1+B29)^$A29/(1+B$19)^$A$19)^(1/($A29-$A$19))-1 -> 0.03005883775 | D28: 0.03138172826 | E28: 0.03259070563 | F28: 0.03353285575 | G28: 0.03422441693 | H28: 0.03475542833 | I28: 0.03511107761 | J28: 0.03539345107 | K28: 0.0355573438 | L28: 0.03556163839 | M28: 0.03554503467 | N28: 0.03544739054 | O28: 0.03517719158 | P28: 0.03499070445 | Q28: 0.03488803729 | R28: 0.03479160962 | S28: 0.03468857203 | T28: 0.03458231475 | U28: 0.03447623866 | V28: 0.03437377165 | X28: 10 | Y28: 0.7540638764 | Z28: 0.743668992 | AA28: 0.7341852706 | AB28: 0.7256344344 | AC28: 0.719046749 | AD28: 0.714253097 | AE28: 0.7105961761 | AF28: 0.7081584413 | AG28: 0.7062295135 | AH28: 0.7051125933 | AI28: 0.7050833521 | AJ28: 0.7051964119 | AK28: 0.7058617042 | AL28: 0.7077062896 | AM28: 0.7089824863 | AN28: 0.709686154 | AO28: 0.7103477566 | AP28: 0.7110554606 | AQ28: 0.7117860912 | AR28: 0.7125162998 | AS28: 0.7132224465
A29: 11 | B29: ='Configuratie en berekeningen'!E18 -> 0.02921 | C29: =((1+B30)^$A30/(1+B$19)^$A$19)^(1/($A30-$A$19))-1 -> 0.0305711884 | D29: 0.03191975958 | E29: 0.03293324413 | F29: 0.0337043877 | G29: 0.03431863573 | H29: 0.03479916142 | I29: 0.0351177302 | J29: 0.03536711167 | K29: 0.03550615549 | L29: 0.03549802244 | M29: 0.03547114614 | N29: 0.03537140404 | O29: 0.03511555463 | P29: 0.03493650197 | Q29: 0.03483429957 | R29: 0.03473838021 | S29: 0.03463702244 | T29: 0.03453326983 | U29: 0.03443017807 | V29: 0.03433082974 | X29: 11 | Y29: 0.72854441 | Z29: 0.7180290838 | AA29: 0.7077742949 | AB29: 0.7001727335 | AC29: 0.6944484986 | AD29: 0.6899254322 | AE29: 0.6864094452 | AF29: 0.6840892677 | AG29: 0.6822789604 | AH29: 0.6812718847 | AI29: 0.6813307466 | AJ29: 0.6815252998 | AK29: 0.682247847 | AL29: 0.6841050836 | AM29: 0.6854081252 | AN29: 0.6861531088 | AO29: 0.686853097 | AP29: 0.6875936196 | AQ29: 0.6883525412 | AR29: 0.6891075339 | AS29: 0.6898359665
A30: 12 | B30: ='Configuratie en berekeningen'!E19 -> 0.02975 | C30: =((1+B31)^$A31/(1+B$19)^$A$19)^(1/($A31-$A$19))-1 -> 0.03113153841 | D30: 0.03228945736 | E30: 0.03314035139 | F30: 0.03383404057 | G30: 0.03439510115 | H30: 0.03483124736 | I30: 0.03511656555 | J30: 0.03533604819 | K30: 0.03545246704 | L30: 0.03543421151 | M30: 0.03539951052 | N30: 0.03529870788 | O30: 0.03505545866 | P30: 0.03488320137 | Q30: 0.03478194643 | R30: 0.03468697346 | S30: 0.03458750324 | T30: 0.03448629269 | U30: 0.03438611196 | V30: 0.0342897578 | X30: 12 | Y30: 0.7034259608 | Z30: 0.6921992975 | AA30: 0.6829392863 | AB30: 0.6762201543 | AC30: 0.6707953841 | AD30: 0.6664422763 | AE30: 0.6630794852 | AF30: 0.6608895627 | AG30: 0.6592102844 | AH30: 0.6583214317 | AI30: 0.658460726 | AJ30: 0.6587255913 | AK30: 0.6594956513 | AL30: 0.6613579205 | AM30: 0.6626801344 | AN30: 0.663458684 | AO30: 0.6641898322 | AP30: 0.6649565385 | AQ30: 0.6657376431 | AR30: 0.6665117791 | AS30: 0.6672572657
A31: 13 | B31: ='Configuratie en berekeningen'!E20 -> 0.03033 | C31: =((1+B32)^$A32/(1+B$19)^$A$19)^(1/($A32-$A$19))-1 -> 0.0315331636 | D31: 0.03253002963 | E31: 0.03330334658 | F31: 0.0339418618 | G31: 0.03445578419 | H31: 0.0348522069 | I31: 0.03510716857 | J31: 0.03529958122 | K31: 0.03539707108 | L31: 0.0353709294 | M31: 0.03533024245 | N31: 0.03522913564 | O31: 0.03499710178 | P31: 0.03483111143 | Q31: 0.0347311408 | R31: 0.03463741884 | S31: 0.03453996565 | T31: 0.03444129756 | U31: 0.0343439449 | V31: 0.03425046431 | X31: 13 | Y31: 0.6781214952 | Z31: 0.6679107981 | AA31: 0.6595762553 | AB31: 0.6531879024 | AC31: 0.6479633622 | AD31: 0.6437909685 | AE31: 0.6405922907 | AF31: 0.6385440882 | AG31: 0.6370030351 | AH31: 0.6362237577 | AI31: 0.6364326184 | AJ31: 0.6367578363 | AK31: 0.6375667759 | AL31: 0.6394274294 | AM31: 0.6407620752 | AN31: 0.6415673365 | AO31: 0.6423232548 | AP31: 0.6431102847 | AQ31: 0.6439081843 | AR31: 0.6446964914 | AS31: 0.6454544228
A32: 14 | B32: ='Configuratie en berekeningen'!E21 -> 0.03075989536 | C32: =((1+B33)^$A33/(1+B$19)^$A$19)^(1/($A33-$A$19))-1 -> 0.0318104009 | D32: 0.03272488089 | E32: 0.03344131587 | F32: 0.03403055494 | G32: 0.03450205433 | H32: 0.03486236372 | I32: 0.03508966016 | J32: 0.03525906875 | K32: 0.0353409638 | L32: 0.03530865202 | M32: 0.03526338517 | N32: 0.03516253209 | O32: 0.03494059137 | P32: 0.03478042075 | Q32: 0.03468196902 | R32: 0.03458970927 | S32: 0.03449434851 | T32: 0.03439819851 | U32: 0.03430358565 | V32: 0.0342128623 | X32: 14 | Y32: 0.6543269702 | Z32: 0.6450618845 | AA32: 0.6371108993 | AB32: 0.6309551906 | AC32: 0.6259401232 | AD32: 0.6219579107 | AE32: 0.6189330914 | AF32: 0.6170330345 | AG32: 0.6156209492 | AH32: 0.6149395645 | AI32: 0.6152083089 | AJ32: 0.6155850154 | AK32: 0.6164251943 | AL32: 0.6182784504 | AM32: 0.6196196203 | AN32: 0.6204455409 | AO32: 0.6212205871 | AP32: 0.6220227742 | AQ32: 0.6228327243 | AR32: 0.623630829 | AS32: 0.6243971529
A33: 15 | B33: ='Configuratie en berekeningen'!E22 -> 0.03107 | C33: =((1+B34)^$A34/(1+B$19)^$A$19)^(1/($A34-$A$19))-1 -> 0.03204010227 | D33: 0.03289213867 | E33: 0.03355742069 | F33: 0.03410206695 | G33: 0.03453487085 | H33: 0.03486234466 | I33: 0.03506584903 | J33: 0.03521590795 | K33: 0.03528483738 | L33: 0.03524769232 | M33: 0.03519893646 | N33: 0.03509875157 | O33: 0.03488597629 | P33: 0.03473123957 | Q33: 0.03463446815 | R33: 0.03454381498 | S33: 0.03445058393 | T33: 0.03435691099 | U33: 0.03426494722 | V33: 0.03417686924 | X33: 15 | Y33: 0.631942753 | Z33: 0.6230908922 | AA33: 0.6154254042 | AB33: 0.6095100321 | AC33: 0.6047124459 | AD33: 0.6009287623 | AE33: 0.5980826863 | AF33: 0.5963212755 | AG33: 0.5950260011 | AH33: 0.594432024 | AI33: 0.5947520309 | AJ33: 0.5951723444 | AK33: 0.5960370111 | AL33: 0.5978778607 | AM33: 0.5992203915 | AN33: 0.6000616362 | AO33: 0.6008508373 | AP33: 0.6016636355 | AQ33: 0.6024814675 | AR33: 0.6032855308 | AS33: 0.6040566928
A34: 16 | B34: ='Configuratie en berekeningen'!E23 -> 0.03133145815 | C34: =((1+B35)^$A35/(1+B$19)^$A$19)^(1/($A35-$A$19))-1 -> 0.03223959353 | D34: 0.03303524735 | E34: 0.03365399884 | F34: 0.03415781593 | G34: 0.03455531825 | H34: 0.03485423207 | I34: 0.03503746799 | J34: 0.03517111085 | K34: 0.03522917719 | L34: 0.0351882532 | M34: 0.03513686482 | N34: 0.03503765679 | O34: 0.03483326692 | P34: 0.03468362598 | Q34: 0.03458864296 | R34: 0.03449969207 | S34: 0.03440860083 | T34: 0.03431735275 | U34: 0.0342279467 | V34: 0.03414240672 | X34: 16 | Y34: 0.610418602 | Z34: 0.6018825995 | AA34: 0.5945080784 | AB34: 0.588839553 | AC34: 0.5842663875 | AD34: 0.5806848808 | AE34: 0.5780070279 | AF34: 0.5763719776 | AG34: 0.5751825555 | AH34: 0.5746665778 | AI34: 0.5750301773 | AJ34: 0.5754870966 | AK34: 0.5763702954 | AL34: 0.5781944179 | AM34: 0.5795338105 | AN34: 0.5803856858 | AO34: 0.5811846674 | AP34: 0.5820040853 | AQ34: 0.5828261449 | AR34: 0.5836328062 | AS34: 0.5844056966
A35: 17 | B35: ='Configuratie en berekeningen'!E24 -> 0.0315607637 | C35: =((1+B36)^$A36/(1+B$19)^$A$19)^(1/($A36-$A$19))-1 -> 0.03241257701 | D35: 0.03315680973 | E35: 0.03373279857 | F35: 0.03419922983 | G35: 0.03456574285 | H35: 0.03483997247 | I35: 0.03500580842 | J35: 0.03512541957 | K35: 0.03517432445 | L35: 0.03513046172 | M35: 0.03507711977 | N35: 0.03497911805 | O35: 0.03478244803 | P35: 0.0346376027 | Q35: 0.03454447678 | R35: 0.03445728797 | S35: 0.0343683271 | T35: 0.03427944429 | U35: 0.03419250523 | V35: 0.03410940036 | X35: 17 | Y35: 0.589641639 | Z35: 0.5814255719 | AA35: 0.5743463646 | AB35: 0.5689301763 | AC35: 0.5645838224 | AD35: 0.5611932092 | AE35: 0.5586704137 | AF35: 0.5571506227 | AG35: 0.556057173 | AH35: 0.5556107537 | AI35: 0.556011129 | AJ35: 0.5564984417 | AK35: 0.5573949286 | AL35: 0.5591986171 | AM35: 0.5605309651 | AN35: 0.5613893513 | AO35: 0.562194274 | AP35: 0.5630168158 | AQ35: 0.5638399085 | AR35: 0.564646234 | AS35: 0.5654181403
A36: 18 | B36: ='Configuratie en berekeningen'!E25 -> 0.03176173581 | C36: =((1+B37)^$A37/(1+B$19)^$A$19)^(1/($A37-$A$19))-1 -> 0.03256190314 | D36: 0.03325881307 | E36: 0.03379550396 | F36: 0.03422885156 | G36: 0.03456830407 | H36: 0.03482104811 | I36: 0.03497184477 | J36: 0.03507938307 | K36: 0.03512051803 | L36: 0.0350743918 | M36: 0.03501963868 | N36: 0.0349230126 | O36: 0.03473348726 | P36: 0.03459316823 | Q36: 0.03450193869 | R36: 0.03441654504 | S36: 0.03432969099 | T36: 0.03424310914 | U36: 0.03415854778 | V36: 0.03407777951 | X36: 18 | Y36: 0.5696006621 | Z36: 0.5617075287 | AA36: 0.5549270201 | AB36: 0.5497642522 | AC36: 0.5456326101 | AD36: 0.5424190836 | AE36: 0.540039386 | AF36: 0.5386248195 | AG36: 0.5376184328 | AH36: 0.5372340003 | AI36: 0.5376650992 | AJ36: 0.5381772996 | AK36: 0.539082467 | AL36: 0.5408625603 | AM36: 0.5421844863 | AN36: 0.5430457762 | AO36: 0.5438532786 | AP36: 0.5446758912 | AQ36: 0.5454972331 | AR36: 0.5463006699 | AS36: 0.5470692341
A37: 19 | B37: ='Configuratie en berekeningen'!E26 -> 0.03193736221 | C37: =((1+B38)^$A38/(1+B$19)^$A$19)^(1/($A38-$A$19))-1 -> 0.03268978725 | D37: 0.03334313347 | E37: 0.03384480105 | F37: 0.03424900561 | G37: 0.03456467674 | H37: 0.03479860084 | I37: 0.03493631964 | J37: 0.03503340963 | K37: 0.03506792292 | L37: 0.03502007967 | M37: 0.03496435139 | N37: 0.03486922408 | O37: 0.03468634093 | P37: 0.03455030439 | Q37: 0.03446098842 | R37: 0.03437740291 | S37: 0.03429262197 | T37: 0.03420827398 | U37: 0.03412600305 | V37: 0.03404747716 | X37: 19 | Y37: 0.5502836403 | Z37: 0.5427155185 | AA37: 0.5362328295 | AB37: 0.5313104838 | AC37: 0.5273790479 | AD37: 0.5243300193 | AE37: 0.5220825482 | AF37: 0.5207641326 | AG37: 0.5198367731 | AH37: 0.5195075367 | AI37: 0.5199639918 | AJ37: 0.5204962074 | AK37: 0.5214060165 | AL37: 0.5231598389 | AM37: 0.5244684361 | AN37: 0.5253294804 | AO37: 0.5261366285 | AP37: 0.526956654 | AQ37: 0.527773827 | AR37: 0.5285721624 | AS37: 0.5293353427
A38: 20 | B38: ='Configuratie en berekeningen'!E27 -> 0.03209 | C38: =((1+B39)^$A39/(1+B$19)^$A$19)^(1/($A39-$A$19))-1 -> 0.0327982934 | D38: 0.03341256 | E38: 0.03388313977 | F38: 0.03426152324 | G38: 0.0345561739 | H38: 0.03477351882 | I38: 0.03489980326 | J38: 0.03498780345 | K38: 0.03501665007 | L38: 0.0349675346 | M38: 0.03491118331 | N38: 0.03481764216 | O38: 0.03464095791 | P38: 0.03450898152 | Q38: 0.03442157963 | R38: 0.03433980012 | S38: 0.03425705134 | T38: 0.03417486868 | U38: 0.03409480329 | V38: 0.03401842968 | X38: 20 | Y38: 0.5316778856 | Z38: 0.5244327048 | AA38: 0.5182332663 | AB38: 0.5135360532 | AC38: 0.5097915518 | AD38: 0.5068955334 | AE38: 0.5047703995 | AF38: 0.5035399267 | AG38: 0.5026843449 | AH38: 0.5024042159 | AI38: 0.5028812733 | AJ38: 0.5034291981 | AK38: 0.5043401181 | AL38: 0.5060654251 | AM38: 0.5073582065 | AN38: 0.5082162644 | AO38: 0.5090205051 | AP38: 0.5098356382 | AQ38: 0.5106465512 | AR38: 0.5114378752 | AS38: 0.5121939116
A39: 21 | B39: ='Configuratie en berekeningen'!E28 -> 0.03222183517 | C39: =((1+B40)^$A40/(1+B$19)^$A$19)^(1/($A40-$A$19))-1 -> 0.03289031885 | D39: 0.03346963731 | E39: 0.03391247655 | F39: 0.03426786142 | G39: 0.03454383442 | H39: 0.03474649833 | I39: 0.03486273591 | J39: 0.03494279078 | K39: 0.03496677056 | L39: 0.03491674655 | M39: 0.03486005763 | N39: 0.03476816216 | O39: 0.03459728247 | P39: 0.03446916221 | Q39: 0.03438366227 | R39: 0.0343036752 | S39: 0.03422291254 | T39: 0.03414282628 | U39: 0.03406488413 | V39: 0.03399057671 | X39: 21 | Y39: 0.5137669038 | Z39: 0.5068292327 | AA39: 0.5008963201 | AB39: 0.4964102054 | AC39: 0.4928404841 | AD39: 0.490086983 | AE39: 0.4880751842 | AF39: 0.4869252259 | AG39: 0.4861348802 | AH39: 0.4858984003 | AI39: 0.4863918556 | AJ39: 0.4869516907 | AK39: 0.4878606448 | AL39: 0.4895555743 | AM39: 0.4908304256 | AN39: 0.4916831211 | AO39: 0.4924822414 | AP39: 0.4932904911 | AQ39: 0.4940933438 | AR39: 0.4948760166 | AS39: 0.4956234
A40: 22 | B40: ='Configuratie en berekeningen'!E29 -> 0.03233582633 | C40: =((1+B41)^$A41/(1+B$19)^$A$19)^(1/($A41-$A$19))-1 -> 0.03296850789 | D40: 0.03351642187 | E40: 0.03393438789 | F40: 0.03426918933 | G40: 0.03452848668 | H40: 0.03471808875 | I40: 0.03482545875 | J40: 0.03489853884 | K40: 0.03491832576 | L40: 0.03486769158 | M40: 0.0348108968 | N40: 0.03472068468 | O40: 0.03455525616 | P40: 0.03443080386 | Q40: 0.03434718419 | R40: 0.03426896742 | S40: 0.03419014137 | T40: 0.03411208288 | U40: 0.03403618444 | V40: 0.03396386097 | X40: 22 | Y40: 0.4965214475 | Z40: 0.4898737965 | AA40: 0.4841919932 | AB40: 0.4799040806 | AC40: 0.4764979962 | AD40: 0.4738774198 | AE40: 0.471970755 | AF40: 0.4708945858 | AG40: 0.4701635718 | AH40: 0.469965849 | AI40: 0.4704719896 | AJ40: 0.4710403897 | AK40: 0.4719447057 | AL40: 0.4736077347 | AM40: 0.4748628733 | AN40: 0.4757081554 | AO40: 0.4765002454 | AP40: 0.4772999007 | AQ40: 0.478093152 | AR40: 0.478865774 | AS40: 0.4796032185
A41: 23 | B41: ='Configuratie en berekeningen'!E30 -> 0.0324346795 | C41: =((1+B42)^$A42/(1+B$19)^$A$19)^(1/($A42-$A$19))-1 -> 0.03303502072 | D41: 0.03355458946 | E41: 0.03395015428 | F41: 0.03426645218 | G41: 0.03451079558 | H41: 0.03468872566 | I41: 0.03478823647 | J41: 0.03485516971 | K41: 0.03487133484 | L41: 0.03482033589 | M41: 0.03476362366 | N41: 0.03467511535 | O41: 0.03451481924 | P41: 0.03439386056 | Q41: 0.03431209235 | R41: 0.0342356173 | S41: 0.03415867611 | T41: 0.03408257762 | U41: 0.03400864617 | V41: 0.03393822809 | X41: 23 | Y41: 0.4799108473 | Z41: 0.4735370583 | AA41: 0.4680921358 | AB41: 0.4639905611 | AC41: 0.460737887 | AD41: 0.458241457 | AE41: 0.4564324486 | AF41: 0.4554239768 | AG41: 0.4547469637 | AH41: 0.454583615 | AI41: 0.455099168 | AJ41: 0.4556731937 | AK41: 0.4565705605 | AL41: 0.458200466 | AM41: 0.4594344036 | AN41: 0.4602705107 | AO41: 0.4610539306 | AP41: 0.4618435299 | AQ41: 0.4626258691 | AR41: 0.4633872543 | AS41: 0.4641136728
A42: 24 | B42: ='Configuratie en berekeningen'!E31 -> 0.03252062664 | C42: =((1+B43)^$A43/(1+B$19)^$A$19)^(1/($A43-$A$19))-1 -> 0.03309163555 | D42: 0.03358551575 | E42: 0.03396082312 | F42: 0.03426041909 | G42: 0.03449129772 | H42: 0.03465875565 | I42: 0.0347512743 | J42: 0.03481277076 | K42: 0.0348258003 | L42: 0.03477463872 | M42: 0.03471816212 | N42: 0.03463136456 | O42: 0.03447591169 | P42: 0.03435828451 | Q42: 0.03427833361 | R42: 0.03420356694 | S42: 0.03412845757 | T42: 0.03405425254 | U42: 0.03398221421 | V42: 0.03391362649 | X42: 24 | Y42: 0.4639063622 | Z42: 0.4577914879 | AA42: 0.452570298 | AB42: 0.4486441337 | AC42: 0.4455354736 | AD42: 0.4431551491 | AE42: 0.4414369737 | AF42: 0.4404906782 | AG42: 0.4398628519 | AH42: 0.4397299511 | AI42: 0.4402520376 | AJ42: 0.4408291119 | AK42: 0.4417175402 | AL42: 0.4433133641 | AM42: 0.4445248735 | AN42: 0.4453503018 | AO42: 0.4461236519 | AP42: 0.4469019552 | AQ42: 0.4476722766 | AR42: 0.4484214288 | AS42: 0.4491359103
A43: 25 | B43: ='Configuratie en berekeningen'!E32 -> 0.03259552168 | C43: =((1+B44)^$A44/(1+B$19)^$A$19)^(1/($A44-$A$19))-1 -> 0.03313982617 | D43: 0.03361033743 | E43: 0.03396725642 | F43: 0.03425171939 | G43: 0.03447042816 | H43: 0.03462845513 | I43: 0.03471473081 | J43: 0.03477140244 | K43: 0.03478171218 | L43: 0.03473055455 | M43: 0.03467443774 | N43: 0.03458934718 | O43: 0.03443847389 | P43: 0.03432402698 | Q43: 0.03424585534 | R43: 0.03417276025 | S43: 0.03409942909 | T43: 0.03402705248 | U43: 0.03395683622 | V43: 0.03389000723 | X43: 25 | Y43: 0.4484810219 | Z43: 0.4426112174 | AA43: 0.4376015943 | AB43: 0.4338407633 | AC43: 0.4308674744 | AD43: 0.428595882 | AE43: 0.4269623073 | AF43: 0.4260731823 | AG43: 0.4254901936 | AH43: 0.4253842252 | AI43: 0.4259103178 | AJ43: 0.4264881878 | AK43: 0.4273659746 | AL43: 0.4289269928 | AM43: 0.4301150779 | AN43: 0.4309285527 | AO43: 0.4316906472 | AP43: 0.4324566114 | AQ43: 0.4332139912 | AR43: 0.4339500826 | AS43: 0.4346518727
A44: 26 | B44: ='Configuratie en berekeningen'!E33 -> 0.03266091428 | C44: =((1+B45)^$A45/(1+B$19)^$A$19)^(1/($A45-$A$19))-1 -> 0.03318082162 | D44: 0.03362999931 | E44: 0.03397016755 | F44: 0.03424087049 | G44: 0.03444854085 | H44: 0.03459804469 | I44: 0.03467872777 | J44: 0.0347311043 | K44: 0.03473905119 | L44: 0.03468803473 | M44: 0.03463237807 | N44: 0.03454898234 | O44: 0.03440244716 | P44: 0.03429103905 | Q44: 0.03421460583 | R44: 0.03414314309 | S44: 0.03407153647 | T44: 0.03400092495 | U44: 0.03393246252 | V44: 0.03386732384 | X44: 26 | Y44: 0.4336094845 | Z44: 0.427971909 | AA44: 0.4231625813 | AB44: 0.4195577794 | AC44: 0.4167119023 | AD44: 0.4145422735 | AE44: 0.4129876022 | AF44: 0.4121511059 | AG44: 0.4116090248 | AH44: 0.4115268416 | AI44: 0.4120547276 | AJ44: 0.4126314295 | AK44: 0.4134971267 | AL44: 0.4150228208 | AM44: 0.4161866901 | AN44: 0.4169871402 | AO44: 0.417736983 | AP44: 0.41848974 | AQ44: 0.4192334157 | AR44: 0.4199557677 | AS44: 0.4206442505
A45: 27 | B45: ='Configuratie en berekeningen'!E34 -> 0.03271810725 | C45: =((1+B46)^$A46/(1+B$19)^$A$19)^(1/($A46-$A$19))-1 -> 0.0332156525 | D45: 0.03364529078 | E45: 0.03397014968 | F45: 0.03422829955 | G45: 0.03442592455 | H45: 0.03456770031 | I45: 0.03464335772 | J45: 0.03469189957 | K45: 0.03469779113 | L45: 0.03464702868 | M45: 0.03459191287 | N45: 0.03451019323 | O45: 0.03436777411 | P45: 0.03425927215 | Q45: 0.03418453461 | R45: 0.03411466336 | S45: 0.03404472798 | T45: 0.03397582006 | U45: 0.03390904594 | V45: 0.03384553226 | X45: 27 | Y45: 0.4192679072 | Z45: 0.4138506351 | AA45: 0.4092311465 | AB45: 0.4057737722 | AC45: 0.4030479682 | AD45: 0.4009740828 | AE45: 0.3994931013 | AF45: 0.3987051107 | AG45: 0.3982003843 | AH45: 0.3981391704 | AI45: 0.3986669177 | AJ45: 0.3992407459 | AK45: 0.400093132 | AL45: 0.4015831645 | AM45: 0.4027222067 | AN45: 0.4035087418 | AO45: 0.4042455053 | AP45: 0.4049843419 | AQ45: 0.4057136938 | AR45: 0.4064217602 | AS45: 0.4070964422
A46: 28 | B46: ='Configuratie en berekeningen'!E35 -> 0.03276820159 | C46: =((1+B47)^$A47/(1+B$19)^$A$19)^(1/($A47-$A$19))-1 -> 0.03324518739 | D46: 0.03365687453 | E46: 0.03396769814 | F46: 0.03421436039 | G46: 0.03440281523 | H46: 0.03453756204 | I46: 0.0346086899 | J46: 0.03465379875 | K46: 0.03465790075 | L46: 0.03460748487 | M46: 0.0345529743 | N46: 0.03447290686 | O46: 0.03433439889 | P46: 0.03422867842 | Q46: 0.03415559264 | R46: 0.03408727099 | S46: 0.03401895427 | T46: 0.03395169034 | U46: 0.0338865417 | V46: 0.03382459065 | X46: 28 | Y46: 0.4054338289 | Z46: 0.4002257699 | AA46: 0.3957864069 | AB46: 0.392468498 | AC46: 0.3898559922 | AD46: 0.3878721274 | AE46: 0.3864600601 | AF46: 0.3857168301 | AG46: 0.3852462455 | AH46: 0.3852034821 | AI46: 0.3857294094 | AJ46: 0.3862988884 | AK46: 0.3871369428 | AL46: 0.3885911348 | AM46: 0.389704898 | AN46: 0.3904767878 | AO46: 0.3911997937 | AP46: 0.3919241338 | AQ46: 0.3926386687 | AR46: 0.3933320197 | AS46: 0.3939925162
A47: 29 | B47: ='Configuratie en berekeningen'!E36 -> 0.03281213221 | C47: =((1+B48)^$A48/(1+B$19)^$A$19)^(1/($A48-$A$19))-1 -> 0.03327016161 | D47: 0.03366530923 | E47: 0.03396322807 | F47: 0.03419934694 | G47: 0.03437940593 | H47: 0.0345077409 | I47: 0.03457477492 | J47: 0.03461680241 | K47: 0.03461934521 | L47: 0.03456935147 | M47: 0.03451549696 | N47: 0.03443705388 | O47: 0.03430226736 | P47: 0.03419921105 | Q47: 0.03412773243 | R47: 0.03406091799 | S47: 0.03399416825 | T47: 0.03392849071 | U47: 0.03386490728 | V47: 0.0338044593 | X47: 29 | Y47: 0.3920860632 | Z47: 0.3870768899 | AA47: 0.3828086173 | AB47: 0.3796227938 | AC47: 0.3771173239 | AD47: 0.3752182083 | AE47: 0.3738706763 | AF47: 0.3731688027 | AG47: 0.3727294531 | AH47: 0.3727028882 | AI47: 0.3732255378 | AJ47: 0.3737893973 | AK47: 0.3746122777 | AL47: 0.3760305889 | AM47: 0.3771187609 | AN47: 0.3778754168 | AO47: 0.378584119 | AP47: 0.3792935079 | AQ47: 0.3799928442 | AR47: 0.3806711532 | AS47: 0.3813171746
A48: 30 | B48: ='Configuratie en berekeningen'!E37 -> 0.03285069641 | C48: =((1+B49)^$A49/(1+B$19)^$A$19)^(1/($A49-$A$19))-1 -> 0.0332912003 | D48: 0.0336710676 | E48: 0.03395708857 | F48: 0.03418350387 | G48: 0.03435585455 | H48: 0.0344783243 | I48: 0.03454164844 | J48: 0.03458090337 | K48: 0.03458208714 | L48: 0.03453257689 | M48: 0.03447941799 | N48: 0.03440256841 | O48: 0.03427132722 | P48: 0.03417082443 | Q48: 0.03410090816 | R48: 0.03403555841 | S48: 0.03397032508 | T48: 0.03390617829 | U48: 0.03384410232 | V48: 0.03378510053 | X48: 30 | Y48: 0.3792046023 | Z48: 0.3743846843 | AA48: 0.3702790861 | AB48: 0.3672184985 | AC48: 0.3648142689 | AD48: 0.3629950408 | AE48: 0.3617080245 | AF48: 0.3610444108 | AG48: 0.3606336654 | AH48: 0.3606212865 | AI48: 0.3611394001 | AJ48: 0.3616965524 | AK48: 0.3625035745 | AL48: 0.3638860853 | AM48: 0.3649484769 | AN48: 0.3656894356 | AO48: 0.3663834047 | AP48: 0.3670774947 | AQ48: 0.3677613491 | AR48: 0.3684243802 | AS48: 0.3690557213
A49: 31 | B49: ='Configuratie en berekeningen'!E38 -> 0.0328845769 | C49: =((1+B50)^$A50/(1+B$19)^$A$19)^(1/($A50-$A$19))-1 -> 0.03330883687 | D49: 0.03367455101 | E49: 0.03394957394 | F49: 0.03416703523 | G49: 0.03433229012 | H49: 0.03444938046 | I49: 0.0345093341 | J49: 0.03454608849 | K49: 0.03454608757 | L49: 0.03449711021 | M49: 0.03444467701 | N49: 0.03436938784 | O49: 0.03424152802 | P49: 0.0341434743 | Q49: 0.03407507567 | R49: 0.03401114828 | S49: 0.03394738204 | T49: 0.03388471232 | U49: 0.03382408849 | V49: 0.03376647856 | X49: 31 | Y49: 0.3667705281 | Z49: 0.3621308729 | AA49: 0.3581800995 | AB49: 0.3552383823 | AC49: 0.3529300218 | AD49: 0.351186192 | AE49: 0.3499559975 | AF49: 0.3493278253 | AG49: 0.3489433018 | AH49: 0.3489433115 | AI49: 0.3494558082 | AJ49: 0.350005328 | AK49: 0.3507959472 | AL49: 0.3521428429 | AM49: 0.3531793723 | AN49: 0.3539042811 | AO49: 0.3545831908 | AP49: 0.3552617286 | AQ49: 0.3559299043 | AR49: 0.3565775015 | AS49: 0.3571940306
A50: 32 | B50: ='Configuratie en berekeningen'!E39 -> 0.03291436038 | C50: =((1+B51)^$A51/(1+B$19)^$A$19)^(1/($A51-$A$19))-1 -> 0.03332352807 | D50: 0.03367610127 | E50: 0.03394093295 | F50: 0.0341501113 | G50: 0.03430881786 | H50: 0.03442096189 | I50: 0.03447784589 | J50: 0.03451234 | K50: 0.03451130655 | L50: 0.03446290142 | M50: 0.03441121612 | N50: 0.03433745267 | O50: 0.03421282126 | P50: 0.03411711785 | Q50: 0.03405019253 | R50: 0.0339876456 | S50: 0.03392529844 | T50: 0.0338640541 | U50: 0.0338048294 | V50: 0.03374855944 | X50: 32 | Y50: 0.3547659322 | Z50: 0.3502981318 | AA50: 0.3464948514 | AB50: 0.3436660807 | AC50: 0.3414486052 | AD50: 0.3397760232 | AE50: 0.3385992523 | AF50: 0.3380039537 | AG50: 0.3376434941 | AH50: 0.3376542878 | AI50: 0.338160245 | AJ50: 0.3387013514 | AK50: 0.3394751466 | AL50: 0.3407867031 | AM50: 0.3417973825 | AN50: 0.3425059859 | AO50: 0.3431696007 | AP50: 0.3438324157 | AQ50: 0.3444847919 | AR50: 0.3451168689 | AS50: 0.3457185195
A51: 33 | B51: ='Configuratie en berekeningen'!E40 -> 0.03294055273 | C51: =((1+B52)^$A52/(1+B$19)^$A$19)^(1/($A52-$A$19))-1 -> 0.03333566617 | D51: 0.03367601026 | E51: 0.03393137619 | F51: 0.03413287429 | G51: 0.03428552326 | H51: 0.03439310821 | I51: 0.03444719005 | J51: 0.03447963664 | K51: 0.03447770374 | L51: 0.03442990167 | M51: 0.03437897991 | N51: 0.03430670636 | O51: 0.03418516032 | P51: 0.03409171376 | Q51: 0.03402621803 | R51: 0.03396501025 | S51: 0.03390403554 | T51: 0.03384416681 | U51: 0.03378629049 | V51: 0.03373131093 | X51: 33 | Y51: 0.3431738428 | Z51: 0.3388700246 | AA51: 0.3352073805 | AB51: 0.332486036 | AC51: 0.3303548143 | AD51: 0.3287496377 | AE51: 0.3276231601 | AF51: 0.3270583942 | AG51: 0.3267200425 | AH51: 0.3267401886 | AI51: 0.3272388241 | AJ51: 0.3277708646 | AK51: 0.3285275232 | AL51: 0.3298040945 | AM51: 0.3307890176 | AN51: 0.331481146 | AO51: 0.3321293101 | AP51: 0.3327763044 | AQ51: 0.3334128269 | AR51: 0.3340293587 | AS51: 0.3346161204
A52: 34 | B52: ='Configuratie en berekeningen'!E41 -> 0.03296359154 | C52: =((1+B53)^$A53/(1+B$19)^$A$19)^(1/($A53-$A$19))-1 -> 0.03334558906 | D52: 0.03367452777 | E52: 0.03392108231 | F52: 0.03411544294 | G52: 0.03426247547 | H52: 0.03436584855 | I52: 0.0344173666 | J52: 0.03444795455 | K52: 0.03444523875 | L52: 0.03439806344 | M52: 0.03434791531 | N52: 0.03427709516 | O52: 0.03415850052 | P52: 0.03406722224 | Q52: 0.03400311312 | R52: 0.03394320394 | S52: 0.0338835565 | T52: 0.03382501549 | U52: 0.03376843893 | V52: 0.03371470241 | X52: 34 | Y52: 0.331978158 | Z52: 0.3278309413 | AA52: 0.3243025118 | AB52: 0.3216834422 | AC52: 0.3196341651 | AD52: 0.3180928323 | AE52: 0.3170137611 | AF52: 0.316477392 | AG52: 0.3161593741 | AH52: 0.3161875966 | AI52: 0.3166782532 | AJ52: 0.3172006887 | AK52: 0.3179399939 | AL52: 0.3191820008 | AM52: 0.3201413322 | AN52: 0.3208168907 | AO52: 0.3214495183 | AP52: 0.3220806578 | AQ52: 0.3227013304 | AR52: 0.3233023451 | AS52: 0.3238742572
A53: 35 | B53: ='Configuratie en berekeningen'!E42 -> 0.03298385639 | C53: =((1+B54)^$A54/(1+B$19)^$A$19)^(1/($A54-$A$19))-1 -> 0.03335358851 | D53: 0.03367186805 | E53: 0.03391020296 | F53: 0.03409791628 | G53: 0.03423973004 | H53: 0.03433920335 | I53: 0.03438837059 | J53: 0.03441726797 | K53: 0.03441387152 | L53: 0.0343673406 | M53: 0.0343179716 | N53: 0.03424856799 | O53: 0.034132799 | P53: 0.03404360503 | Q53: 0.03398084041 | R53: 0.03392219016 | S53: 0.03386382622 | T53: 0.03380656689 | U53: 0.03375124356 | V53: 0.0336987048 | X53: 35 | Y53: 0.3211635852 | Z53: 0.3171660407 | AA53: 0.3137658037 | AB53: 0.3112441958 | AC53: 0.3092728485 | AD53: 0.3077920533 | AE53: 0.3067577231 | AF53: 0.3062477999 | AG53: 0.3059485062 | AH53: 0.3059836681 | AI53: 0.3064657994 | AJ53: 0.3069781919 | AK53: 0.3077000107 | AL53: 0.3089079308 | AM53: 0.3098418961 | AN53: 0.3105008557 | AO53: 0.3111179219 | AP53: 0.3117332279 | AQ53: 0.312338105 | AR53: 0.3129236772 | AS53: 0.3134808213
A54: 36 | B54: ='Configuratie en berekeningen'!E43 -> 0.03300167741 | C54: =((1+B55)^$A55/(1+B$19)^$A$19)^(1/($A55-$A$19))-1 -> 0.03335991709 | D54: 0.03366821519 | E54: 0.033898867 | F54: 0.03408037681 | G54: 0.03421733113 | H54: 0.03431318597 | I54: 0.03436019313 | J54: 0.03438754979 | K54: 0.03438356251 | L54: 0.03433768851 | M54: 0.03428910029 | N54: 0.0342210763 | O54: 0.03410801476 | P54: 0.03402082538 | Q54: 0.03395936414 | R54: 0.03390193407 | S54: 0.03384481133 | T54: 0.03378878943 | U54: 0.03373467474 | V54: 0.03368329051 | X54: 36 | Y54: 0.3107155851 | Z54: 0.3068611992 | AA54: 0.3035834999 | AB54: 0.3011548498 | AC54: 0.2992576864 | AD54: 0.2978343563 | AE54: 0.2968423027 | AF54: 0.296357042 | AG54: 0.2960750112 | AH54: 0.2961161005 | AI54: 0.2965892581 | AJ54: 0.2970912585 | AK54: 0.2977955316 | AL54: 0.2989698905 | AM54: 0.2998787678 | AN54: 0.3005211565 | AO54: 0.30112269 | AP54: 0.301722232 | AQ54: 0.3023114117 | AR54: 0.302881656 | AS54: 0.303424151
A55: 37 | B55: ='Configuratie en berekeningen'!E44 -> 0.03301734244 | C55: =((1+B56)^$A56/(1+B$19)^$A$19)^(1/($A56-$A$19))-1 -> 0.03336479386 | D55: 0.03366372758 | E55: 0.03388718396 | F55: 0.03406289306 | G55: 0.03419531347 | H55: 0.03428780394 | I55: 0.03433282221 | J55: 0.03435877206 | K55: 0.03435427295 | L55: 0.03430906409 | M55: 0.0342612551 | N55: 0.03419457393 | O55: 0.03408410858 | P55: 0.03399884806 | Q55: 0.0339386501 | R55: 0.03388240246 | S55: 0.03382648006 | T55: 0.03377165308 | U55: 0.03371870437 | V55: 0.0336684333 | X55: 37 | Y55: 0.3006203213 | Z55: 0.2969029631 | AA55: 0.2937424844 | AB55: 0.2914025724 | AC55: 0.2895760935 | AD55: 0.2882073685 | AE55: 0.2872553103 | AF55: 0.2867930803 | AG55: 0.2865269846 | AH55: 0.2865731013 | AI55: 0.2870369241 | AJ55: 0.2875282619 | AK55: 0.2882149941 | AL55: 0.2893563571 | AM55: 0.2902404694 | AN55: 0.290866365 | AO55: 0.2914524407 | AP55: 0.29203633 | AQ55: 0.2926099482 | AR55: 0.2931650139 | AS55: 0.2936930102
A56: 38 | B56: ='Configuratie en berekeningen'!E45 -> 0.03303110301 | C56: =((1+B57)^$A57/(1+B$19)^$A$19)^(1/($A57-$A$19))-1 -> 0.03336840923 | D56: 0.0336585417 | E56: 0.03387524697 | F56: 0.03404552179 | G56: 0.03417370385 | H56: 0.03426306003 | I56: 0.03430624338 | J56: 0.0343309063 | K56: 0.03432596492 | L56: 0.03428142578 | M56: 0.03423439182 | N56: 0.03416901698 | O56: 0.03406104293 | P56: 0.0339776393 | Q56: 0.03391866559 | R56: 0.0338635637 | S56: 0.0338088022 | T56: 0.0337551293 | U56: 0.03370330569 | V56: 0.03365410826 | X56: 38 | Y56: 0.2908646137 | Z56: 0.287278505 | AA56: 0.2842302411 | AB56: 0.2819751083 | AC56: 0.28021604 | AD56: 0.2788992549 | AE56: 0.2779850775 | AF56: 0.2775443837 | AG56: 0.277293016 | AH56: 0.2773433605 | AI56: 0.277797564 | AJ56: 0.2782780382 | AK56: 0.2789472901 | AL56: 0.2800562558 | AM56: 0.2809159638 | AN56: 0.2815254872 | AO56: 0.28209622 | AP56: 0.2826646038 | AQ56: 0.2832228292 | AR56: 0.2837628947 | AS56: 0.2842765702
A57: 39 | B57: ='Configuratie en berekeningen'!E46 -> 0.03304317939 | C57: =((1+B58)^$A58/(1+B$19)^$A$19)^(1/($A58-$A$19))-1 -> 0.03337092894 | D57: 0.03365277528 | E57: 0.03386313511 | F57: 0.03402830977 | G57: 0.03415252247 | H57: 0.03423895312 | I57: 0.03428044032 | J57: 0.03430392386 | K57: 0.03429860149 | L57: 0.03425473359 | M57: 0.03420846825 | N57: 0.03414436373 | O57: 0.03403878198 | P57: 0.03395716675 | Q57: 0.03389937941 | R57: 0.03384538763 | S57: 0.03379174898 | T57: 0.03373919095 | U57: 0.03368845332 | V57: 0.03364029171 | X57: 39 | Y57: 0.2814358958 | Z57: 0.2779755843 | AA57: 0.2750348164 | AB57: 0.2728607437 | AC57: 0.271166019 | AD57: 0.2698986867 | AE57: 0.2690204273 | AF57: 0.2685998994 | AG57: 0.2683621615 | AH57: 0.268416024 | AI57: 0.2688603917 | AJ57: 0.2693298622 | AK57: 0.269981743 | AL57: 0.2710589367 | AM57: 0.271894633 | AN57: 0.272487942 | AO57: 0.2730434815 | AP57: 0.2735965379 | AQ57: 0.2741395667 | AR57: 0.2746648359 | AS57: 0.2751643914
A58: 40 | B58: ='Configuratie en berekeningen'!E47 -> 0.03305376486 | C58: =((1+B59)^$A59/(1+B$19)^$A$19)^(1/($A59-$A$19))-1 -> 0.03337249755 | D58: 0.0336465299 | E58: 0.03385091556 | F58: 0.03401129535 | G58: 0.03413178397 | H58: 0.03421547892 | I58: 0.0342553953 | J58: 0.03427779608 | K58: 0.03427214678 | L58: 0.03422894907 | M58: 0.03418344413 | N58: 0.03412057449 | O58: 0.03401729148 | P58: 0.03393739949 | Q58: 0.03388076173 | R58: 0.03382784551 | S58: 0.03377529304 | T58: 0.03372381225 | U58: 0.0336741231 | V58: 0.03362696116 | X58: 40 | Y58: 0.2723221759 | Z58: 0.2689825105 | AA58: 0.2661447849 | AB58: 0.2640482737 | AC58: 0.2624150158 | AD58: 0.2611948119 | AE58: 0.2603506463 | AF58: 0.2599490265 | AG58: 0.2597239186 | AH58: 0.2597806702 | AI58: 0.260215045 | AJ58: 0.2606734255 | AK58: 0.261308086 | AL58: 0.2623541543 | AM58: 0.263166258 | AN58: 0.2637435424 | AO58: 0.2642840675 | AP58: 0.264822001 | AQ58: 0.2653500528 | AR58: 0.2658607509 | AS58: 0.2663464067
A59: 41 | B59: ='Configuratie en berekeningen'!E48 -> 0.0330630293 | C59: =((1+B60)^$A60/(1+B$19)^$A$19)^(1/($A60-$A$19))-1 -> 0.03337324125 | D59: 0.03363989333 | E59: 0.03383864522 | F59: 0.03399450969 | G59: 0.03411149838 | H59: 0.03419263062 | I59: 0.03423108954 | J59: 0.03425249455 | K59: 0.03424656601 | L59: 0.03420403527 | M59: 0.03415928105 | N59: 0.03409761151 | O59: 0.03399653875 | P59: 0.03391830791 | Q59: 0.03386278409 | R59: 0.03381090998 | S59: 0.03375940836 | T59: 0.03370896866 | U59: 0.0336602921 | V59: 0.03361409522 | X59: 41 | Y59: 0.2635120013 | Z59: 0.2602881094 | AA59: 0.2575492174 | AB59: 0.2555269726 | AC59: 0.2539524795 | AD59: 0.2527772288 | AE59: 0.2519654595 | AF59: 0.251581592 | AG59: 0.2513682031 | AH59: 0.2514272868 | AI59: 0.2518515645 | AJ59: 0.2522988152 | AK59: 0.2529164423 | AL59: 0.2539320483 | AM59: 0.2547210001 | AN59: 0.2552824766 | AO59: 0.2558081916 | AP59: 0.2563312286 | AQ59: 0.2568445431 | AR59: 0.2573409129 | AS59: 0.2578129054
A60: 42 | B60: ='Configuratie en berekeningen'!E49 -> 0.03307112229 | C60: =((1+B61)^$A61/(1+B$19)^$A$19)^(1/($A61-$A$19))-1 -> 0.0333732704 | D60: 0.03363294137 | E60: 0.03382637227 | F60: 0.03397797788 | G60: 0.03409167187 | H60: 0.03417039932 | I60: 0.03420750354 | J60: 0.0342279912 | K60: 0.03422182554 | L60: 0.03417995677 | M60: 0.03413594238 | N60: 0.03407543889 | O60: 0.03397649257 | P60: 0.03389986371 | Q60: 0.03384541935 | R60: 0.03379455494 | S60: 0.03374407016 | T60: 0.03369463685 | U60: 0.03364693849 | V60: 0.03360167358 | X60: 42 | Y60: 0.2549944252 | Z60: 0.2518816926 | AA60: 0.2492376523 | AB60: 0.2472865665 | AC60: 0.2457682967 | AD60: 0.2446359612 | AE60: 0.243855006 | AF60: 0.2434878276 | AG60: 0.243285327 | AH60: 0.2433462504 | AI60: 0.2437603726 | AJ60: 0.244196495 | AK60: 0.2447973061 | AL60: 0.2457831251 | AM60: 0.2465493834 | AN60: 0.2470952914 | AO60: 0.2476064217 | AP60: 0.2481148076 | AQ60: 0.2486136407 | AR60: 0.2490959396 | AS60: 0.2495545188
A61: 43 | B61: ='Configuratie en berekeningen'!E50 -> 0.03307817578 | C61: =((1+B62)^$A62/(1+B$19)^$A$19)^(1/($A62-$A$19))-1 -> 0.03337268157 | D61: 0.03362573951 | E61: 0.03381413734 | F61: 0.03396171982 | G61: 0.03407230741 | H61: 0.03414877451 | I61: 0.03418461734 | J61: 0.03420425848 | K61: 0.03419789287 | L61: 0.03415667958 | M61: 0.03411339319 | N61: 0.03405402248 | O61: 0.03395712314 | P61: 0.03388203987 | Q61: 0.03382864158 | R61: 0.03377875556 | S61: 0.03372925485 | T61: 0.03368079464 | U61: 0.03363404154 | V61: 0.03358967691 | X61: 43 | Y61: 0.2467589762 | Z61: 0.2437530285 | AA61: 0.2412000685 | AB61: 0.2393172076 | AC61: 0.2378527677 | AD61: 0.2367614351 | AE61: 0.2360098177 | AF61: 0.235658349 | AG61: 0.2354659785 | AH61: 0.2355283073 | AI61: 0.2359322558 | AJ61: 0.236357287 | AK61: 0.2369415255 | AL61: 0.2378982412 | AM61: 0.238642278 | AN61: 0.2391728761 | AO61: 0.239669665 | AP61: 0.2401636604 | AQ61: 0.2406482814 | AR61: 0.241116779 | AS61: 0.2415622056
A62: 44 | B62: ='Configuratie en berekeningen'!E51 -> 0.03308430625 | C62: =((1+B63)^$A63/(1+B$19)^$A$19)^(1/($A63-$A$19))-1 -> 0.03337155939 | D62: 0.03361834432 | E62: 0.0338019746 | F62: 0.03394575105 | G62: 0.03405340528 | H62: 0.03412774439 | I62: 0.03416241068 | J62: 0.03418126936 | K62: 0.03417473667 | L62: 0.03413417113 | M62: 0.03409160014 | N62: 0.03403332978 | O62: 0.03393840206 | P62: 0.03386481055 | Q62: 0.03381242607 | R62: 0.03376348817 | S62: 0.03371494001 | T62: 0.03366742092 | U62: 0.03362158152 | V62: 0.03357808684 | X62: 44 | Y62: 0.2387956312 | Z62: 0.2358923165 | AA62: 0.2334268604 | AB62: 0.2316094506 | AC62: 0.2301965841 | AD62: 0.2291444578 | AE62: 0.2284207985 | AF62: 0.2280841366 | AG62: 0.2279012036 | AH62: 0.227964555 | AI62: 0.2283583469 | AJ62: 0.2287723548 | AK62: 0.229340286 | AL62: 0.2302685873 | AM62: 0.2309908848 | AN62: 0.2315064476 | AO62: 0.2319891528 | AP62: 0.232469031 | AQ62: 0.2329397203 | AR62: 0.2333946956 | AS62: 0.2338272387
A63: 45 | B63: ='Configuratie en berekeningen'!E52 -> 0.03308961677 | C63: =((1+B64)^$A64/(1+B$19)^$A$19)^(1/($A64-$A$19))-1 -> 0.03336997804 | D63: 0.03361080462 | E63: 0.03378991268 | F63: 0.03393008338 | G63: 0.03403496357 | H63: 0.03410729619 | I63: 0.03414086326 | J63: 0.0341589975 | K63: 0.03415232675 | L63: 0.03411240021 | M63: 0.03407053148 | N63: 0.03401332985 | O63: 0.03392030218 | P63: 0.03384815107 | Q63: 0.03379674923 | R63: 0.03374873023 | S63: 0.03370110426 | T63: 0.03365449562 | U63: 0.03360953965 | V63: 0.03356688588 | X63: 45 | Y63: 0.2310947886 | Z63: 0.2282901625 | AA63: 0.2259088156 | AB63: 0.2241542317 | AC63: 0.2227908081 | AD63: 0.2217761978 | AE63: 0.2210792056 | AF63: 0.2207565168 | AG63: 0.2205823879 | AH63: 0.2206464256 | AI63: 0.2210301083 | AJ63: 0.2214331876 | AK63: 0.2219850949 | AL63: 0.2228856729 | AM63: 0.2235867212 | AN63: 0.2240875359 | AO63: 0.2245564273 | AP63: 0.2250224715 | AQ63: 0.2254795179 | AR63: 0.2259212573 | AS63: 0.226341193
A64: 46 | B64: ='Configuratie en berekeningen'!E53 -> 0.03309419858 | C64: =((1+B65)^$A65/(1+B$19)^$A$19)^(1/($A65-$A$19))-1 -> 0.03336800261 | D64: 0.03360316254 | E64: 0.03377797541 | F64: 0.03391472543 | G64: 0.03401697853 | H64: 0.03408741639 | I64: 0.03411995477 | J64: 0.03413741723 | K64: 0.03413063406 | L64: 0.03409133697 | M64: 0.03405015689 | N64: 0.03399399327 | O64: 0.03390279763 | P64: 0.03383203787 | Q64: 0.03378158858 | R64: 0.03373446025 | S64: 0.03368772729 | T64: 0.03364199964 | U64: 0.0335978981 | V64: 0.03355605743 | X64: 46 | Y64: 0.2236472457 | Z64: 0.2209375567 | AA64: 0.2186370929 | AB64: 0.2169428474 | AC64: 0.2156268531 | AD64: 0.2146481667 | AE64: 0.213976632 | AF64: 0.2136671455 | AG64: 0.2135012412 | AH64: 0.21356567 | AI64: 0.2139393175 | AJ64: 0.2143315858 | AK64: 0.2148677675 | AL64: 0.2157413131 | AM64: 0.2164216069 | AN64: 0.2169079712 | AO64: 0.2173633282 | AP64: 0.2178158295 | AQ64: 0.2182595284 | AR64: 0.2186883238 | AS64: 0.2190959328
A65: 47 | B65: ='Configuratie en berekeningen'!E54 -> 0.03309813257 | C65: =((1+B66)^$A66/(1+B$19)^$A$19)^(1/($A66-$A$19))-1 -> 0.03336569025 | D65: 0.03359545437 | E65: 0.03376618249 | F65: 0.03389968317 | G65: 0.03399944494 | H65: 0.03406809094 | I65: 0.03409966511 | J65: 0.0341165036 | K65: 0.03410963065 | L65: 0.03407095282 | M65: 0.0340304475 | N65: 0.03397529201 | O65: 0.03388586373 | P65: 0.03381644845 | Q65: 0.03376692265 | R65: 0.03372065776 | S65: 0.03367478972 | T65: 0.03362991478 | U65: 0.03358663988 | V65: 0.03354558565 | X65: 47 | Y65: 0.2164441757 | Z65: 0.2138258527 | AA65: 0.2116032034 | AB65: 0.2099669366 | AC65: 0.2086964659 | AD65: 0.207752202 | AE65: 0.2071049899 | AF65: 0.2068079922 | AG65: 0.2066497814 | AH65: 0.2067143432 | AI65: 0.2070780521 | AJ65: 0.2074596465 | AK65: 0.207980413 | AL65: 0.2088276147 | AM65: 0.2094876517 | AN65: 0.209959871 | AO65: 0.2104019803 | AP65: 0.2108412359 | AQ65: 0.2112718873 | AR65: 0.2116880346 | AS65: 0.2120836009
A66: 48 | B66: ='Configuratie en berekeningen'!E55 -> 0.03310149054 | C66: =((1+B67)^$A67/(1+B$19)^$A$19)^(1/($A67-$A$19))-1 -> 0.03336309115 | D66: 0.03358771133 | E66: 0.0337545501 | F66: 0.03388496027 | G66: 0.03398235633 | H66: 0.03404930542 | I66: 0.0340799744 | J66: 0.03409623242 | K66: 0.03408928969 | L66: 0.03405122039 | M66: 0.03401137573 | N66: 0.0339571994 | O66: 0.0338694769 | P66: 0.03380136132 | Q66: 0.03375273099 | R66: 0.03370730326 | S66: 0.03366227312 | T66: 0.03361822375 | U66: 0.03357574882 | V66: 0.0335354555 | X66: 48 | Y66: 0.2094771079 | Z66: 0.2069467481 | AA66: 0.2047989917 | AB66: 0.2032184628 | AC66: 0.2019917105 | AD66: 0.2010804511 | AE66: 0.2004564952 | AF66: 0.2001713252 | AG66: 0.2000203209 | AH66: 0.2000847906 | AI66: 0.2004386771 | AJ66: 0.2008097514 | AK66: 0.2013154223 | AL66: 0.2021369643 | AM66: 0.2027772428 | AN66: 0.2032356287 | AO66: 0.2036647826 | AP66: 0.2040910935 | AQ66: 0.2045090008 | AR66: 0.2049127981 | AS66: 0.2052966078
A67: 49 | B67: ='Configuratie en berekeningen'!E56 -> 0.03310433627 | C67: =((1+B68)^$A68/(1+B$19)^$A$19)^(1/($A68-$A$19))-1 -> 0.03336024938 | D67: 0.03357996022 | E67: 0.03374309136 | F67: 0.03387055853 | G67: 0.0339657053 | H67: 0.0340310452 | I67: 0.03406086308 | J67: 0.03407658026 | K67: 0.03406958541 | L67: 0.03403211354 | M67: 0.03399291534 | N67: 0.03393969003 | O67: 0.0338536147 | P67: 0.03378675599 | Q67: 0.03373899407 | R67: 0.03369437818 | S67: 0.03365015994 | T67: 0.03360691005 | U67: 0.03356520954 | V67: 0.03352565265 | X67: 49 | Y67: 0.2027379091 | Z67: 0.2002922671 | AA67: 0.198216619 | AB67: 0.1966896982 | AC67: 0.1955049519 | AD67: 0.1946253565 | AE67: 0.1940236539 | AF67: 0.1937496978 | AG67: 0.1936054528 | AH67: 0.1936696348 | AI67: 0.1940138315 | AJ67: 0.1943745534 | AK67: 0.1948654557 | AL67: 0.1956620161 | AM67: 0.1962830336 | AN67: 0.1967279018 | AO67: 0.1971443965 | AP67: 0.1975580667 | AQ67: 0.1979635348 | AR67: 0.1983552815 | AS67: 0.1987276215
A68: 50 | B68: ='Configuratie en berekeningen'!E57 -> 0.03310672649 | C68: =((1+B69)^$A69/(1+B$19)^$A$19)^(1/($A69-$A$19))-1 -> 0.03335720369 | D68: 0.03357222401 | E68: 0.03373181673 | F68: 0.03385647807 | G68: 0.03394948363 | H68: 0.03401329553 | I68: 0.03404231198 | J68: 0.03405752448 | K68: 0.03405049306 | L68: 0.03401360723 | M68: 0.03397504125 | N68: 0.03392273972 | O68: 0.03383825566 | P68: 0.03377261286 | Q68: 0.03372569328 | R68: 0.03368186479 | S68: 0.03363843346 | T68: 0.03359595802 | U68: 0.03355500739 | V68: 0.03351616348 | X68: 50 | Y68: 0.1962187656 | Z68: 0.1938547435 | AA68: 0.1918485478 | AB68: 0.1903732084 | AC68: 0.1892288422 | AD68: 0.188379642 | AE68: 0.1877992478 | AF68: 0.1875359354 | AG68: 0.1873980387 | AH68: 0.1874617635 | AI68: 0.1877964172 | AJ68: 0.1881469661 | AK68: 0.188623432 | AL68: 0.1893956815 | AM68: 0.1899979331 | AN68: 0.190429602 | AO68: 0.1908337359 | AP68: 0.1912350706 | AQ68: 0.191628405 | AR68: 0.1920084005 | AS68: 0.1923695575
A69: 51 | B69: ='Configuratie en berekeningen'!E58 -> 0.03310871167 | C69: =((1+B70)^$A70/(1+B$19)^$A$19)^(1/($A70-$A$19))-1 -> 0.03335398809 | D69: 0.03356452231 | E69: 0.03372073442 | F69: 0.03384271772 | G69: 0.03393368252 | H69: 0.03399604168 | I69: 0.03402430236 | J69: 0.03403904319 | K69: 0.03403198892 | L69: 0.03399567754 | M69: 0.03395772956 | N69: 0.03390632542 | O69: 0.03382337935 | P69: 0.03375891325 | Q69: 0.03371281085 | R69: 0.03366974621 | S69: 0.03362707773 | T69: 0.0335853527 | U69: 0.03354512843 | V69: 0.03350697498 | X69: 51 | Y69: 0.189912167 | Z69: 0.1876268056 | AA69: 0.1856875266 | AB69: 0.1842618382 | AC69: 0.183156307 | AD69: 0.1823362995 | AE69: 0.1817763228 | AF69: 0.1815231233 | AG69: 0.1813911967 | AH69: 0.1814543185 | AI69: 0.1817795876 | AJ69: 0.1821201523 | AK69: 0.1825825174 | AL69: 0.183331118 | AM69: 0.183915095 | AN69: 0.1843338842 | AO69: 0.1847259571 | AP69: 0.1851152618 | AQ69: 0.1854967676 | AR69: 0.1858653103 | AS69: 0.1862155697
A70: 52 | B70: ='Configuratie en berekeningen'!E59 -> 0.03311033678 | C70: =((1+B71)^$A71/(1+B$19)^$A$19)^(1/($A71-$A$19))-1 -> 0.03335063247 | D70: 0.0335568718 | E70: 0.03370985072 | F70: 0.03382927514 | G70: 0.03391829271 | H70: 0.03397926896 | I70: 0.03400681593 | J70: 0.03402111528 | K70: 0.03401405022 | L70: 0.03397830158 | M70: 0.03394095749 | N70: 0.03389042517 | O70: 0.03380896624 | P70: 0.03374563931 | Q70: 0.03370032985 | R70: 0.03365800635 | S70: 0.03361607759 | T70: 0.03357507986 | U70: 0.03353555936 | V70: 0.03349807479 | X70: 52 | Y70: 0.1838108915 | Z70: 0.1816013613 | AA70: 0.1797265764 | AB70: 0.1783486989 | AC70: 0.1772805326 | AD70: 0.1764885771 | AE70: 0.1759481764 | AF70: 0.1757045954 | AG70: 0.1755782905 | AH70: 0.175640684 | AI70: 0.1759567366 | AJ70: 0.1762875137 | AK70: 0.1767361155 | AL70: 0.17746172 | AM70: 0.178027909 | AN70: 0.1784341382 | AO70: 0.1788144497 | AP70: 0.1791920289 | AQ70: 0.1795620096 | AR70: 0.1799193963 | AS70: 0.1802590418
A71: 53 | B71: ='Configuratie en berekeningen'!E60 -> 0.0331116419 | C71: =((1+B72)^$A72/(1+B$19)^$A$19)^(1/($A72-$A$19))-1 -> 0.03334716308 | D71: 0.03354928662 | E71: 0.0336991702 | F71: 0.03381614705 | G71: 0.03390330458 | H71: 0.03396296286 | I71: 0.03398983486 | J71: 0.03400372039 | K71: 0.03399665515 | L71: 0.03396145749 | M71: 0.03392470329 | N71: 0.03387501805 | O71: 0.03379499771 | P71: 0.033732774 | Q71: 0.03368823411 | R71: 0.03364662987 | S71: 0.03360541856 | T71: 0.03356512594 | U71: 0.03352628753 | V71: 0.03348945114 | X71: 53 | Y71: 0.1779079914 | Z71: 0.1757715854 | AA71: 0.173958978 | AB71: 0.1726271557 | AC71: 0.1715949541 | AD71: 0.1708299675 | AE71: 0.1703083474 | AF71: 0.1700739234 | AG71: 0.1699529187 | AH71: 0.1700144774 | AI71: 0.1703214896 | AJ71: 0.1706426817 | AK71: 0.1710778584 | AL71: 0.1717811087 | AM71: 0.1723299904 | AN71: 0.1727239783 | AO71: 0.1730928272 | AP71: 0.1734589839 | AQ71: 0.173817741 | AR71: 0.1741642658 | AS71: 0.1744935785
A72: 54 | B72: ='Configuratie en berekeningen'!E61 -> 0.03311266278 | C72: =((1+B73)^$A73/(1+B$19)^$A$19)^(1/($A73-$A$19))-1 -> 0.03334360295 | D72: 0.03354177866 | E72: 0.03368869601 | F72: 0.03380332939 | G72: 0.03388870829 | H72: 0.03394710903 | I72: 0.03397334186 | J72: 0.03398683891 | K72: 0.03397978281 | L72: 0.03394512434 | M72: 0.0339089462 | N72: 0.03386008412 | O72: 0.03378145599 | P72: 0.03372030106 | Q72: 0.0336765082 | R72: 0.03363560214 | S72: 0.03359508685 | T72: 0.03355547802 | U72: 0.03351730088 | V72: 0.0334810928 | X72: 54 | Y72: 0.1721967802 | Z72: 0.1701309065 | AA72: 0.1683782599 | AB72: 0.1670908161 | AC72: 0.1660932448 | AD72: 0.1653541972 | AE72: 0.1648506049 | AF72: 0.1646249066 | AG72: 0.1645089053 | AH72: 0.1645695391 | AI72: 0.1648676933 | AJ72: 0.1651795076 | AK72: 0.1656015967 | AL72: 0.1662831237 | AM72: 0.1668151725 | AN72: 0.167197236 | AO72: 0.1675549193 | AP72: 0.1679099538 | AQ72: 0.1682577858 | AR72: 0.1685937398 | AS72: 0.1689129975
A73: 55 | B73: ='Configuratie en berekeningen'!E62 -> 0.03311343132 | C73: =((1+B74)^$A74/(1+B$19)^$A$19)^(1/($A74-$A$19))-1 -> 0.03333997228 | D73: 0.0335343579 | E73: 0.03367843008 | F73: 0.03379081749 | G73: 0.03387449384 | H73: 0.03393169337 | I73: 0.03395732012 | J73: 0.03397045196 | K73: 0.03396341316 | L73: 0.03392928214 | M73: 0.03389366643 | N73: 0.03384560436 | O73: 0.03376832411 | P73: 0.03370820495 | Q73: 0.03366513741 | R73: 0.03362490919 | S73: 0.03358506932 | T73: 0.03354612378 | U73: 0.03350858793 | V73: 0.03347298907 | X73: 55 | Y73: 0.1666708203 | Z73: 0.1646729954 | AA73: 0.162978187 | AB73: 0.1617335192 | AC73: 0.160769305 | AD73: 0.1600552165 | AE73: 0.1595689386 | AF73: 0.1593515627 | AG73: 0.1592402902 | AH73: 0.1592999236 | AI73: 0.1595894071 | AJ73: 0.1598920542 | AK73: 0.1603013917 | AL73: 0.1609618146 | AM73: 0.1614774974 | AN73: 0.1618479508 | AO73: 0.1621947628 | AP73: 0.1625389726 | AQ73: 0.1628761745 | AR73: 0.163201845 | AS73: 0.1635113222
A74: 56 | B74: ='Configuratie en berekeningen'!E63 -> 0.03311397603 | C74: =((1+B75)^$A75/(1+B$19)^$A$19)^(1/($A75-$A$19))-1 -> 0.03333628877 | D74: 0.0335270326 | E74: 0.03366837327 | F74: 0.03377860614 | G74: 0.03386065116 | H74: 0.03391670206 | I74: 0.03394175337 | J74: 0.03395454139 | K74: 0.033947527 | L74: 0.03391391179 | M74: 0.03387884509 | N74: 0.03383156065 | O74: 0.03375558589 | P74: 0.03369647085 | Q74: 0.03365410769 | R74: 0.03361453772 | S74: 0.03357535344 | T74: 0.03353705148 | U74: 0.03350013771 | V74: 0.03346512976 | X74: 56 | Y74: 0.161323911 | Z74: 0.1593917543 | AA74: 0.15775275 | AB74: 0.1565493257 | AC74: 0.1556172529 | AD74: 0.1549271902 | AE74: 0.1544575498 | AF74: 0.1542481183 | AG74: 0.1541413205 | AH74: 0.1541998911 | AI74: 0.1544808947 | AJ74: 0.1547745874 | AK74: 0.155171507 | AL74: 0.1558114326 | AM74: 0.1563112087 | AN74: 0.1566703628 | AO74: 0.157006595 | AP74: 0.1573402737 | AQ74: 0.1576671365 | AR74: 0.1579828068 | AS74: 0.1582827737
A75: 57 | B75: ='Configuratie en berekeningen'!E64 -> 0.03311432234 | C75: =((1+B76)^$A76/(1+B$19)^$A$19)^(1/($A76-$A$19))-1 -> 0.03333256791 | D75: 0.03351980956 | E75: 0.03365852557 | F75: 0.03376668972 | G75: 0.03384717017 | H75: 0.03390212158 | I75: 0.03392662582 | J75: 0.03393908971 | K75: 0.03393210595 | L75: 0.03389899501 | M75: 0.03386446415 | N75: 0.03381793571 | O75: 0.03374322587 | P75: 0.03368508459 | Q75: 0.03364340562 | R75: 0.03360447502 | S75: 0.03356592724 | T75: 0.03352824991 | U75: 0.03349193978 | V75: 0.03345750515 | X75: 57 | Y75: 0.1561500787 | Z75: 0.1542813062 | AA75: 0.1526961558 | AB75: 0.1515325081 | AC75: 0.1506314149 | AD75: 0.1499644881 | AE75: 0.1495108427 | AF75: 0.1493090009 | AG75: 0.1492064422 | AH75: 0.149263899 | AI75: 0.1495366162 | AJ75: 0.1498215687 | AK75: 0.1502064005 | AL75: 0.1508264231 | AM75: 0.1513107435 | AN75: 0.1516589054 | AO75: 0.1519848454 | AP75: 0.1523082826 | AQ75: 0.152625093 | AR75: 0.1529310419 | AS75: 0.1532217643
A76: 58 | B76: ='Configuratie en berekeningen'!E65 -> 0.03311449301 | C76: =((1+B77)^$A77/(1+B$19)^$A$19)^(1/($A77-$A$19))-1 -> 0.03332882324 | D76: 0.03351269427 | E76: 0.03364888617 | F76: 0.03375506228 | G76: 0.0338340408 | H76: 0.03388793871 | I76: 0.03391192225 | J76: 0.03392408013 | K76: 0.0339171324 | L76: 0.03388451432 | M76: 0.03385050638 | N76: 0.03380471304 | O76: 0.03373122929 | P76: 0.03367403264 | Q76: 0.03363301842 | R76: 0.03359470899 | S76: 0.03355677933 | T76: 0.03351970842 | U76: 0.03348398419 | V76: 0.03345010597 | X76: 58 | Y76: 0.1511435658 | Z76: 0.1493359854 | AA76: 0.1478028178 | AB76: 0.1466775417 | AC76: 0.1458063172 | AD76: 0.1451616772 | AE76: 0.1447234157 | AF76: 0.1445288307 | AG76: 0.1444302921 | AH76: 0.1444865945 | AI76: 0.1447512204 | AJ76: 0.1450276471 | AK76: 0.1454007177 | AL76: 0.1460014187 | AM76: 0.1464707258 | AN76: 0.1468081981 | AO76: 0.1471241294 | AP76: 0.14743761 | AQ76: 0.1477446499 | AR76: 0.1480411513 | AS76: 0.1483228906
A77: 59 | B77: ='Configuratie en berekeningen'!E66 -> 0.03311450837 | C77: =((1+B78)^$A78/(1+B$19)^$A$19)^(1/($A78-$A$19))-1 -> 0.03332506658 | D77: 0.03350569111 | E77: 0.03363945365 | F77: 0.03374371766 | G77: 0.03382125309 | H77: 0.03387414058 | I77: 0.03389762791 | J77: 0.03390949651 | K77: 0.03390258949 | L77: 0.03387045303 | M77: 0.03383695537 | N77: 0.03379187691 | O77: 0.03371958206 | P77: 0.03366330209 | Q77: 0.03362293386 | R77: 0.03358522804 | S77: 0.03354789882 | T77: 0.0335114168 | U77: 0.03347626143 | V77: 0.03344292337 | X77: 59 | Y77: 0.1462988218 | Z77: 0.1445503282 | AA77: 0.1430673474 | AB77: 0.1419790964 | AC77: 0.1411366772 | AD77: 0.1405135132 | AE77: 0.1400900543 | AF77: 0.1399024126 | AG77: 0.1398076909 | AH77: 0.1398628069 | AI77: 0.1401195375 | AJ77: 0.1403876527 | AK77: 0.1407492841 | AL77: 0.1413312318 | AM77: 0.1417859588 | AN77: 0.1421130394 | AO77: 0.1424192411 | AP77: 0.1427230454 | AQ77: 0.1430205916 | AR77: 0.1433079145 | AS77: 0.1435809269
A78: 60 | B78: ='Configuratie en berekeningen'!E67 -> 0.03311438663 | C78: =((1+B79)^$A79/(1+B$19)^$A$19)^(1/($A79-$A$19))-1 -> 0.03332130822 | D78: 0.03349880349 | E78: 0.03363022604 | F78: 0.03373264948 | G78: 0.03380879718 | H78: 0.03386071466 | I78: 0.03388372857 | J78: 0.03389532334 | K78: 0.03388846106 | L78: 0.03385679517 | M78: 0.03382379541 | N78: 0.03377941232 | O78: 0.03370827071 | P78: 0.03365288058 | Q78: 0.03361314026 | R78: 0.03357602115 | S78: 0.03353927533 | T78: 0.03350336533 | U78: 0.03346876243 | V78: 0.03343594892 | X78: 60 | Y78: 0.1416104943 | Z78: 0.1399190646 | AA78: 0.1384845455 | AB78: 0.1374320282 | AC78: 0.1366173961 | AD78: 0.136014933 | AE78: 0.135605723 | AF78: 0.1354247295 | AG78: 0.1353336353 | AH78: 0.1353875413 | AI78: 0.1356365724 | AJ78: 0.1358965892 | AK78: 0.1362470986 | AL78: 0.1368108481 | AM78: 0.1372514193 | AN78: 0.137568401 | AO78: 0.1378651472 | AP78: 0.1381595503 | AQ78: 0.1384478743 | AR78: 0.1387262823 | AS78: 0.1389908191
A79: 61 | B79: ='Configuratie en berekeningen'!E68 -> 0.03311414405 | C79: =((1+B80)^$A80/(1+B$19)^$A$19)^(1/($A80-$A$19))-1 -> 0.0333175571 | D79: 0.03349203394 | E79: 0.03362120089 | F79: 0.03372185125 | G79: 0.03379666335 | H79: 0.03384764879 | I79: 0.03387021052 | J79: 0.03388154574 | K79: 0.03387473165 | L79: 0.03384352546 | M79: 0.03381101152 | N79: 0.03376730492 | O79: 0.0336972824 | P79: 0.03364275632 | Q79: 0.03360362648 | R79: 0.03356707777 | S79: 0.03353089894 | T79: 0.03349554475 | U79: 0.03346147856 | V79: 0.03342917457 | X79: 61 | Y79: 0.1370734204 | Z79: 0.1354371101 | AA79: 0.1340493949 | AB79: 0.1330313721 | AC79: 0.1322435512 | AD79: 0.1316610477 | AE79: 0.1312655587 | AF79: 0.1310909353 | AG79: 0.1310032919 | AH79: 0.131055971 | AI79: 0.1312974981 | AJ79: 0.1315496281 | AK79: 0.1318893274 | AL79: 0.1324354205 | AM79: 0.1328622508 | AN79: 0.1331694209 | AO79: 0.1334569809 | AP79: 0.1337422523 | AQ79: 0.1340216203 | AR79: 0.1342913716 | AS79: 0.1345476786
A80: 62 | B80: ='Configuratie en berekeningen'!E69 -> 0.03311379518 | C80: =((1+B81)^$A81/(1+B$19)^$A$19)^(1/($A81-$A$19))-1 -> 0.03331382097 | D80: 0.03348538429 | E80: 0.03361237542 | F80: 0.03371131642 | G80: 0.03378484206 | H80: 0.03383493114 | I80: 0.0338570605 | J80: 0.03386814939 | K80: 0.03386138643 | L80: 0.03383062929 | M80: 0.03379858937 | N80: 0.03375554104 | O80: 0.03368660484 | P80: 0.03363291803 | Q80: 0.03359438186 | R80: 0.03355838784 | S80: 0.0335227602 | T80: 0.03348794619 | U80: 0.03345440154 | V80: 0.03342259265 | X80: 62 | Y80: 0.1326826189 | Z80: 0.1310995576 | AA80: 0.1297570528 | AB80: 0.1287723348 | AC80: 0.1280103892 | AD80: 0.1274471358 | AE80: 0.1270648642 | AF80: 0.1268963479 | AG80: 0.1268119907 | AH80: 0.1268634321 | AI80: 0.1270976494 | AJ80: 0.1273421024 | AK80: 0.1276712979 | AL80: 0.128200263 | AM80: 0.1286137577 | AN80: 0.1289113979 | AO80: 0.1291900355 | AP80: 0.1294664396 | AQ80: 0.1297371118 | AR80: 0.1299984591 | AS80: 0.1302467771
A81: 63 | B81: ='Configuratie en berekeningen'!E70 -> 0.03311335307 | C81: =((1+B82)^$A82/(1+B$19)^$A$19)^(1/($A82-$A$19))-1 -> 0.03331010652 | D81: 0.03347885571 | E81: 0.0336037465 | F81: 0.03370103836 | G81: 0.03377332393 | H81: 0.03382255027 | I81: 0.03384426575 | J81: 0.03385512057 | K81: 0.03384841124 | L81: 0.03381809269 | M81: 0.03378651528 | N81: 0.03374410761 | O81: 0.03367622629 | P81: 0.03362335495 | Q81: 0.03358539624 | R81: 0.03354994173 | S81: 0.03351485006 | T81: 0.03348056121 | U81: 0.0334475235 | V81: 0.0334161958 | X81: 63 | Y81: 0.1284332827 | Z81: 0.1269016711 | AA81: 0.1256028437 | AB81: 0.1246502876 | AC81: 0.1239133193 | AD81: 0.1233686365 | AE81: 0.1229991011 | AF81: 0.1228364437 | AG81: 0.1227552187 | AH81: 0.1228054172 | AI81: 0.1230325172 | AJ81: 0.1232695003 | AK81: 0.1235884924 | AL81: 0.1241008448 | AM81: 0.1245013997 | AN81: 0.1247897859 | AO81: 0.1250597596 | AP81: 0.1253275548 | AQ81: 0.1255897861 | AR81: 0.1258429762 | AS81: 0.1260835404
A82: 64 | B82: ='Configuratie en berekeningen'!E71 -> 0.03311282937 | C82: =((1+B83)^$A83/(1+B$19)^$A$19)^(1/($A83-$A$19))-1 -> 0.03330641951 | D82: 0.03347244881 | E82: 0.03359531077 | F82: 0.03369101049 | G82: 0.0337620998 | H82: 0.03381049506 | I82: 0.03383181397 | J82: 0.03384244609 | K82: 0.03383579247 | L82: 0.0338059023 | M82: 0.03377477619 | N82: 0.03373299216 | O82: 0.03366613554 | P82: 0.03361405677 | Q82: 0.03357665988 | R82: 0.03354173027 | S82: 0.0335071599 | T82: 0.03347338172 | U82: 0.03344083691 | V82: 0.03340997704 | X82: 64 | Y82: 0.1243207719 | Z82: 0.1228388779 | AA82: 0.1215822531 | AB82: 0.1206607604 | AC82: 0.1199479074 | AD82: 0.1194211436 | AE82: 0.1190638849 | AF82: 0.1189068512 | AG82: 0.1188286142 | AH82: 0.1188775691 | AI82: 0.1190977425 | AJ82: 0.1193274601 | AK82: 0.1196365433 | AL82: 0.1201327848 | AM82: 0.1205207862 | AN82: 0.1208001884 | AO82: 0.121061751 | AP82: 0.12132119 | AQ82: 0.1215752292 | AR82: 0.1218205035 | AS82: 0.1220535435
A83: 65 | B83: ='Configuratie en berekeningen'!E72 -> 0.03311223451 | C83: =((1+B84)^$A84/(1+B$19)^$A$19)^(1/($A84-$A$19))-1 -> 0.03330276486 | D83: 0.03346616374 | E83: 0.03358706466 | F83: 0.03368122621 | G83: 0.03375116072 | H83: 0.03379875478 | I83: 0.03381969331 | J83: 0.0338301133 | K83: 0.03382351711 | L83: 0.03379404533 | M83: 0.0337633596 | N83: 0.03372218277 | O83: 0.03365632185 | P83: 0.03360501364 | Q83: 0.03356816349 | R83: 0.03353374468 | S83: 0.03349968147 | T83: 0.03346640001 | U83: 0.03343433457 | V83: 0.03340392967 | X83: 65 | Y83: 0.1203406069 | Z83: =(1+C83)^-$A83 -> 0.1189067628 | AA83: =(1+D83)^-$A83 -> 0.1176909207 | AB83: =(1+E83)^-$A83 -> 0.1167994353 | AC83: =(1+F83)^-$A83 -> 0.1161098695 | AD83: =(1+G83)^-$A83 -> 0.1156004001 | AE83: =(1+H83)^-$A83 -> 0.1152549783 | AF83: =(1+I83)^-$A83 -> 0.1151033455 | AG83: =(1+J83)^-$A83 -> 0.1150279615 | AH83: =(1+K83)^-$A83 -> 0.1150756762 | AI83: =(1+L83)^-$A83 -> 0.1152891111 | AJ83: =(1+M83)^-$A83 -> 0.1155117647 | AK83: =(1+N83)^-$A83 -> 0.1158112271 | AL83: =(1+O83)^-$A83 -> 0.1162918466 | AM83: =(1+P83)^-$A83 -> 0.1166676709 | AN83: =(1+Q83)^-$A83 -> 0.1169383531 | AO83: =(1+R83)^-$A83 -> 0.1171917518 | AP83: =(1+S83)^-$A83 -> 0.1174430815 | AQ83: =(1+T83)^-$A83 -> 0.1176891717 | AR83: =(1+U83)^-$A83 -> 0.1179267657 | AS83: =(1+V83)^-$A83 -> 0.1181525056
A84: 66 | B84: ='Configuratie en berekeningen'!E73 -> 0.03311157782 | C84: =((1+B85)^$A85/(1+B$19)^$A$19)^(1/($A85-$A$19))-1 -> 0.03329914677 | D84: 0.03346000022 | E84: 0.03357900445 | F84: 0.03367167902 | G84: 0.03374049796 | H84: 0.03378731904 | I84: 0.03380789238 | J84: 0.03381811005 | K84: 0.03381157271 | L84: 0.03378250955 | M84: 0.03375225355 | N84: 0.03371166804 | O84: 0.03364677499 | P84: 0.03359621615 | Q84: 0.03355989818 | R84: 0.03352597657 | S84: 0.03349240689 | T84: 0.03345960872 | U84: 0.03342800963 | V84: 0.03339804729 | X84: 66 | Y84: =(1+B84)^-$A84 -> 0.1164884623 | Z84: 0.1151010614 | AA84: 0.1139246348 | AB84: 0.1130621407 | AC84: 0.1123950664 | AD84: 0.1119022918 | AE84: 0.111568286 | AF84: 0.111421843 | AG84: 0.1113491851 | AH84: 0.1113956666 | AI84: 0.1116025486 | AJ84: 0.1118183361 | AK84: 0.1121084596 | AL84: 0.1125739328 | AM84: 0.1129379472 | AN84: 0.1132001672 | AO84: 0.1134456434 | AP84: 0.1136891049 | AQ84: 0.1139274833 | AR84: 0.1141576266 | AS84: 0.1143762851
A85: 67 | B85: ='Configuratie en berekeningen'!E74 -> 0.03311086767 | C85: =((1+B86)^$A86/(1+B$19)^$A$19)^(1/($A86-$A$19))-1 -> 0.03329556881 | D85: 0.03345395764 | E85: 0.03357112629 | F85: 0.03366236245 | G85: 0.033730103 | H85: 0.03377617779 | I85: 0.03379640018 | J85: 0.03380642467 | K85: 0.0337999473 | L85: 0.03377128324 | M85: 0.03374144664 | N85: 0.03370143709 | O85: 0.03363748515 | P85: 0.03358765529 | Q85: 0.03355185546 | R85: 0.03351841791 | S85: 0.03348532862 | T85: 0.03345300079 | U85: 0.03342185551 | V85: 0.0333923238 | X85: 67 | Y85: 0.1127601605 | Z85: 0.111417655 | AA85: 0.1102793268 | AB85: 0.1094448463 | AC85: 0.1087994982 | AD85: 0.1083228429 | AE85: 0.10799985 | AF85: 0.107858396 | AG85: 0.1077883452 | AH85: 0.1078336035 | AI85: 0.1080341152 | AJ85: 0.108243231 | AK85: 0.108524291 | AL85: 0.1089750809 | AM85: 0.1093276428 | AN85: 0.1095816523 | AO85: 0.1098194418 | AP85: 0.1100552702 | AQ85: 0.110286168 | AR85: 0.1105090847 | AS85: 0.1107208749
A86: 68 | B86: ='Configuratie en berekeningen'!E75 -> 0.03311011151 | C86: =((1+B87)^$A87/(1+B$19)^$A$19)^(1/($A87-$A$19))-1 -> 0.03329203394 | D86: 0.03344803507 | E86: 0.03356342625 | F86: 0.03365327013 | G86: 0.03371996758 | H86: 0.03376532131 | I86: 0.03378520615 | J86: 0.033795046 | K86: 0.03378862947 | L86: 0.03376035521 | M86: 0.03373092793 | N86: 0.0336914795 | O86: 0.03362844294 | P86: 0.03357932244 | Q86: 0.0335440272 | R86: 0.03351106105 | S86: 0.03347843948 | T86: 0.03344656951 | U86: 0.03341586594 | V86: 0.03338675336 | X86: 68 | Y86: 0.1091516664 | Z86: 0.1078525642 | AA86: 0.1067510653 | AB86: 0.1059436569 | AC86: 0.1053192992 | AD86: 0.1048582101 | AE86: 0.1045458437 | AF86: 0.1044091881 | AG86: 0.1043416322 | AH86: 0.1043856802 | AI86: 0.1045800009 | AJ86: 0.1047826359 | AK86: 0.1050549012 | AL86: 0.1054914581 | AM86: 0.1058329157 | AN86: 0.1060789602 | AO86: 0.1063092928 | AP86: 0.1065377175 | AQ86: 0.1067613601 | AR86: 0.1069772683 | AS86: 0.1071823978
A87: 69 | B87: ='Configuratie en berekeningen'!E76 -> 0.03310931604 | C87: =((1+B88)^$A88/(1+B$19)^$A$19)^(1/($A88-$A$19))-1 -> 0.03328854465 | D87: 0.03344223134 | E87: 0.03355590034 | F87: 0.0336443958 | G87: 0.03371008364 | H87: 0.03375474025 | I87: 0.03377430012 | J87: 0.03378396327 | K87: 0.03377760823 | L87: 0.03374971471 | M87: 0.03372068697 | N87: 0.03368178533 | O87: 0.03361963939 | P87: 0.03357120935 | Q87: 0.03353640563 | R87: 0.03350389864 | S87: 0.03347173256 | T87: 0.03344030842 | U87: 0.03341003491 | V87: 0.03338133039 | X87: 69 | Y87: 0.1056590816 | Z87: 0.1044019441 | AA87: 0.1033360512 | AB87: 0.1025548084 | AC87: 0.1019507327 | AD87: 0.1015046785 | AE87: 0.1012025681 | AF87: 0.1010705294 | AG87: 0.1010053628 | AH87: 0.1010482152 | AI87: 0.1012365212 | AJ87: 0.1014328623 | AK87: 0.1016965954 | AL87: 0.102119357 | AM87: 0.102450049 | AN87: 0.1026883679 | AO87: 0.1029114679 | AP87: 0.1031327121 | AQ87: 0.1033493192 | AR87: 0.1035584314 | AS87: 0.1037571024
A88: 70 | B88: ='Configuratie en berekeningen'!E77 -> 0.03310848722 | C88: =((1+B89)^$A89/(1+B$19)^$A$19)^(1/($A89-$A$19))-1 -> 0.03328510296 | D88: 0.03343654506 | E88: 0.03354854453 | F88: 0.03363573332 | G88: 0.03370044337 | H88: 0.03374442555 | I88: 0.0337636723 | J88: 0.03377316619 | K88: 0.0337668731 | L88: 0.03373935149 | M88: 0.03371071377 | N88: 0.03367234506 | O88: 0.03361106593 | P88: 0.03356330814 | Q88: 0.0335289833 | R88: 0.03349692367 | S88: 0.0334652013 | T88: 0.03343421138 | U88: 0.0334043567 | V88: 0.03337604955 | X88: 70 | Y88: 0.1022786396 | Z88: 0.1010620795 | AA88: 0.1000306129 | AB88: 0.09927466236 | AC88: 0.09869018687 | AD88: 0.09825865645 | AE88: 0.09796644643 | AF88: 0.09783885178 | AG88: 0.09777597492 | AH88: 0.09781764868 | AI88: 0.09800011262 | AJ88: 0.09819034271 | AK88: 0.09844579944 | AL88: 0.09885519132 | AM88: 0.09917544725 | AN88: 0.09940627382 | AO88: 0.0996223595 | AP88: 0.099836641 | AQ88: 0.1000464262 | AR88: 0.1002489494 | AS88: 0.1004413587
A89: 71 | B89: ='Configuratie en berekeningen'!E78 -> 0.0331076304 | C89: =((1+B90)^$A90/(1+B$19)^$A$19)^(1/($A90-$A$19))-1 -> 0.03328171052 | D89: 0.03343097465 | E89: 0.0335413548 | F89: 0.03362727666 | G89: 0.0336910392 | H89: 0.03373436848 | I89: 0.03375331328 | J89: 0.03376264486 | K89: 0.033756414 | L89: 0.03372925569 | M89: 0.03370099875 | N89: 0.03366314957 | O89: 0.03360271434 | P89: 0.03355561125 | Q89: 0.0335217531 | R89: 0.03349012943 | S89: 0.03345883938 | T89: 0.03342827249 | U89: 0.0333988258 | V89: 0.03337090573 | X89: 71 | Y89: 0.09900670038 | Z89: 0.09782937935 | AA89: 0.09683120154 | AB89: 0.09609970145 | AC89: 0.09553416952 | AD89: 0.09511667127 | AE89: 0.09483402027 | AF89: 0.09471070495 | AG89: 0.09465002367 | AH89: 0.09469053726 | AI89: 0.09486732827 | AJ89: 0.09505162638 | AK89: 0.09529905617 | AL89: 0.0956954917 | AM89: 0.09600563206 | AN89: 0.09622919343 | AO89: 0.09643847753 | AP89: 0.09664600812 | AQ89: 0.09684917962 | AR89: 0.09704531505 | AS89: 0.09723165412
A90: 72 | B90: ='Configuratie en berekeningen'!E79 -> 0.03310675032 | C90: =((1+B91)^$A91/(1+B$19)^$A$19)^(1/($A91-$A$19))-1 -> 0.0332783686 | D90: 0.03342551839 | E90: 0.03353432709 | F90: 0.03361901992 | G90: 0.03368186378 | H90: 0.03372456062 | I90: 0.03374321401 | J90: 0.03375238979 | K90: 0.03374622128 | L90: 0.03371941791 | M90: 0.03369153276 | N90: 0.03365419016 | O90: 0.03359457675 | P90: 0.03354811145 | Q90: 0.0335147082 | R90: 0.0334835095 | S90: 0.03345264078 | T90: 0.03342248612 | U90: 0.03339343697 | V90: 0.03336589405 | X90: 72 | Y90: 0.09583974622 | Z90: 0.09470037292 | AA90: 0.09373438637 | AB90: 0.09302652534 | AC90: 0.09247930438 | AD90: 0.09207536519 | AE90: 0.09180194523 | AF90: 0.09168275205 | AG90: 0.09162417737 | AH90: 0.09166355061 | AI90: 0.0918348342 | AJ90: 0.0920133752 | AK90: 0.09225302098 | AL90: 0.09263690178 | AM90: 0.09293723808 | AN90: 0.0931537554 | AO90: 0.09335644498 | AP90: 0.09355743079 | AQ90: 0.09375419095 | AR90: 0.09394413443 | AS90: 0.09412458948
A91: 73 | B91: ='Configuratie en berekeningen'!E80 -> 0.03310585125 | C91: =((1+B92)^$A92/(1+B$19)^$A$19)^(1/($A92-$A$19))-1 -> 0.03327507821 | D91: 0.03342017443 | E91: 0.0335274574 | F91: 0.03361095733 | G91: 0.03367290997 | H91: 0.03371499383 | I91: 0.03373336578 | J91: 0.03374239187 | K91: 0.03373628569 | L91: 0.0337098291 | M91: 0.03368230702 | N91: 0.03364545848 | O91: 0.03358664562 | P91: 0.03354080181 | Q91: 0.0335078421 | R91: 0.03347705771 | S91: 0.03344659972 | T91: 0.03341684688 | U91: 0.03338818519 | V91: 0.03336100983 | X91: 73 | Y91: 0.09277437686 | Z91: 0.09167170503 | AA91: 0.09073685076 | AB91: 0.09005184633 | AC91: 0.08952232673 | AD91: 0.08913149108 | AE91: 0.08886698696 | AF91: 0.08875176583 | AG91: 0.08869521351 | AH91: 0.08873346731 | AI91: 0.08889940527 | AJ91: 0.08907235994 | AK91: 0.08930445824 | AL91: 0.08967617432 | AM91: 0.08996700933 | AN91: 0.09017669775 | AO91: 0.09037299429 | AP91: 0.09056763585 | AQ91: 0.09075818151 | AR91: 0.0909421234 | AS91: 0.09111687548
A92: 74 | B92: ='Configuratie en berekeningen'!E81 -> 0.03310493698 | C92: =((1+B93)^$A93/(1+B$19)^$A$19)^(1/($A93-$A$19))-1 -> 0.03327184005 | D92: 0.03341494083 | E92: 0.03352074174 | F92: 0.03360308329 | G92: 0.0336641709 | H92: 0.0337056603 | I92: 0.03372376022 | J92: 0.03373264233 | K92: 0.03372659837 | L92: 0.03370048063 | M92: 0.03367331314 | N92: 0.03363694655 | O92: 0.03357891375 | P92: 0.0335336757 | Q92: 0.03350114853 | R92: 0.03347076819 | S92: 0.03344071069 | T92: 0.0334113496 | U92: 0.03338306564 | V92: 0.0333562486 | X92: 74 | Y92: 0.08980730537 | Z92: 0.08874013199 | AA92: 0.08783538793 | AB92: 0.08717248538 | AC92: 0.0866600795 | AD92: 0.0862819087 | AE92: 0.08602601733 | AF92: 0.08591462478 | AG92: 0.08586001498 | AH92: 0.08589717117 | AI92: 0.08605792155 | AJ92: 0.08622545651 | AK92: 0.08645023755 | AL92: 0.08681016757 | AM92: 0.08709179543 | AN92: 0.08729486425 | AO92: 0.0874849637 | AP92: 0.08767345597 | AQ92: 0.08785797849 | AR92: 0.08803610384 | AS92: 0.0882053289
A93: 75 | B93: ='Configuratie en berekeningen'!E82 -> 0.03310401089 | C93: =((1+B94)^$A94/(1+B$19)^$A$19)^(1/($A94-$A$19))-1 -> 0.03326865462 | D93: 0.03340981557 | E93: 0.03351417618 | F93: 0.0335953923 | G93: 0.03365563988 | H93: 0.03369655246 | I93: 0.03371438926 | J93: 0.03372313278 | K93: 0.0337171508 | L93: 0.0336913642 | M93: 0.03366454308 | N93: 0.03362864671 | O93: 0.03357137423 | P93: 0.03352672676 | Q93: 0.03349462151 | R93: 0.0334646353 | S93: 0.0334349684 | T93: 0.03340598933 | U93: 0.03337807371 | V93: 0.03335160607 | X93: 75 | Y93: 0.08693535404 | Z93: 0.08590251758 | AA93: 0.08502689709 | AB93: 0.08438536831 | AC93: 0.08388950949 | AD93: 0.08352358087 | AE93: 0.08327601069 | AF93: 0.08316830953 | AG93: 0.0831155665 | AH93: 0.08315164758 | AI93: 0.08330736469 | AJ93: 0.08346964245 | AK93: 0.08368733017 | AL93: 0.08403584171 | AM93: 0.08430854809 | AN93: 0.08450520081 | AO93: 0.08468929372 | AP93: 0.08487182622 | AQ93: 0.08505051156 | AR93: 0.08522300017 | AS93: 0.08538686918
A94: 76 | B94: ='Configuratie en berekeningen'!E83 -> 0.03310307597 | C94: =((1+B95)^$A95/(1+B$19)^$A$19)^(1/($A95-$A$19))-1 -> 0.03326552219 | D94: 0.03340479655 | E94: 0.03350775681 | F94: 0.03358787904 | G94: 0.03364731046 | H94: 0.03368766304 | I94: 0.03370524517 | J94: 0.03371385515 | K94: 0.03370793483 | L94: 0.03368247186 | M94: 0.03365598911 | N94: 0.03362055164 | O94: 0.03356402044 | P94: 0.03351994891 | Q94: 0.03348825531 | R94: 0.03345865363 | S94: 0.03342936776 | T94: 0.03340076134 | U94: 0.03337320499 | V94: 0.03334707813 | X94: 76 | Y94: 0.08415545043 | Z94: 0.08315582927 | AA94: 0.08230837971 | AB94: 0.08168752206 | AC94: 0.08120766376 | AD94: 0.08085357 | AE94: 0.08061404041 | AF94: 0.08050989931 | AG94: 0.0804589511 | AH94: 0.08049398015 | AI94: 0.08064481448 | AJ94: 0.08080199343 | AK94: 0.08101280562 | AL94: 0.08135025541 | AM94: 0.08161431773 | AN94: 0.08180475215 | AO94: 0.08198302371 | AP94: 0.08215978061 | AQ94: 0.08233280944 | AR94: 0.08249983597 | AS94: 0.082658515
A95: 77 | B95: ='Configuratie en berekeningen'!E84 -> 0.03310213491 | C95: =((1+B96)^$A96/(1+B$19)^$A$19)^(1/($A96-$A$19))-1 -> 0.03326244285 | D95: 0.03339988166 | E95: 0.03350147982 | F95: 0.0335805383 | G95: 0.03363917639 | H95: 0.03367898502 | I95: 0.0336963205 | J95: 0.0337048017 | K95: 0.03369894264 | L95: 0.033673796 | M95: 0.03364764387 | N95: 0.03361265433 | O95: 0.03355684603 | P95: 0.03351333631 | Q95: 0.03348204444 | R95: 0.033452818 | S95: 0.03342390394 | T95: 0.0333956611 | U95: 0.03336845525 | V95: 0.03334266085 | X95: 77 | Y95: 0.08146462368 | Z95: 0.08049713449 | AA95: 0.07967693592 | AB95: 0.0790760712 | AC95: 0.07861168616 | AD95: 0.07826903456 | AE95: 0.07803727541 | AF95: 0.07793656862 | AG95: 0.07788734681 | AH95: 0.0779213473 | AI95: 0.07806744558 | AJ95: 0.07821968002 | AK95: 0.07842382839 | AL95: 0.07875056258 | AM95: 0.07900625014 | AN95: 0.07919065847 | AO95: 0.07936328863 | AP95: 0.07953444884 | AQ95: 0.07970199665 | AR95: 0.07986373074 | AS95: 0.08001738105
A96: 78 | B96: ='Configuratie en berekeningen'!E85 -> 0.03310119007 | C96: =((1+B97)^$A97/(1+B$19)^$A$19)^(1/($A97-$A$19))-1 -> 0.03325941655 | D96: 0.03339506872 | E96: 0.03349534143 | F96: 0.03357336505 | G96: 0.03363123163 | H96: 0.03367051165 | I96: 0.03368760806 | J96: 0.03369596498 | K96: 0.03369016671 | L96: 0.03366532931 | M96: 0.03363950026 | N96: 0.03360494805 | O96: 0.03354984493 | P96: 0.03350688335 | Q96: 0.03347598361 | R96: 0.03344712346 | S96: 0.03341857227 | T96: 0.03339068426 | U96: 0.03336382045 | V96: 0.03333835047 | X96: 78 | Y96: 0.07886000088 | Z96: 0.0779235972 | AA96: 0.07712976105 | AB96: 0.07654823453 | AC96: 0.07609881395 | AD96: 0.07576722585 | AE96: 0.07554297698 | AF96: 0.07544558394 | AG96: 0.07539802342 | AH96: 0.07543101908 | AI96: 0.07557252432 | AJ96: 0.07571996446 | AK96: 0.07591765476 | AL96: 0.07623400916 | AM96: 0.07648158337 | AN96: 0.07666015232 | AO96: 0.0768273159 | AP96: 0.07699305317 | AQ96: 0.07715529037 | AR96: 0.07731189672 | AS96: 0.07746067489
A97: 79 | B97: ='Configuratie en berekeningen'!E86 -> 0.03310024355 | C97: =((1+B98)^$A98/(1+B$19)^$A$19)^(1/($A98-$A$19))-1 -> 0.03325644309 | D97: 0.03339035556 | E97: 0.03348933796 | F97: 0.03356635439 | G97: 0.03362347036 | H97: 0.0336622364 | I97: 0.03367910099 | J97: 0.03368733785 | K97: 0.03368159983 | L97: 0.03365706478 | M97: 0.0336315515 | N97: 0.03359742634 | O97: 0.03354301129 | P97: 0.03350058468 | Q97: 0.03347006779 | R97: 0.03344156524 | S97: 0.0334133683 | T97: 0.03338582665 | U97: 0.0333592967 | V97: 0.03333414337 | X97: 79 | Y97: 0.07633880363 | Z97: 0.07543247444 | AA97: 0.07466414238 | AB97: 0.07410132186 | AC97: 0.07366637465 | AD97: 0.07334548481 | AE97: 0.07312849554 | AF97: 0.07303430066 | AG97: 0.0729883394 | AH97: 0.07302035415 | AI97: 0.07315740558 | AJ97: 0.07330019764 | AK97: 0.07349162976 | AL97: 0.07379793013 | AM97: 0.07403764464 | AN97: 0.07421055555 | AO97: 0.07437242233 | AP97: 0.07453290537 | AQ97: 0.07468999739 | AR97: 0.07484163588 | AS97: 0.07498569388
A98: 80 | B98: ='Configuratie en berekeningen'!E87 -> 0.03309929722 | C98: =((1+B99)^$A99/(1+B$19)^$A$19)^(1/($A99-$A$19))-1 -> 0.03325352216 | D98: 0.03338573998 | E98: 0.03348346578 | F98: 0.03355950154 | G98: 0.03361588692 | H98: 0.03365415301 | I98: 0.03367079263 | J98: 0.03367891345 | K98: 0.0336732351 | L98: 0.03364899569 | M98: 0.03362379108 | N98: 0.03359008304 | O98: 0.03353633953 | P98: 0.03349443515 | Q98: 0.03346429212 | R98: 0.03343613879 | S98: 0.03340828775 | T98: 0.03338108427 | U98: 0.03335488028 | V98: 0.0333300361 | X98: 80 | Y98: 0.0738983448 | Z98: 0.07302111318 | AA98: 0.0722774559 | AB98: 0.07173273084 | AC98: 0.07131178292 | AD98: 0.07100123894 | AE98: 0.07079126771 | AF98: 0.07070016007 | AG98: 0.07065573893 | AH98: 0.07068679672 | AI98: 0.07081952991 | AJ98: 0.07095781612 | AK98: 0.07114318423 | AL98: 0.07143974648 | AM98: 0.07167184742 | AN98: 0.07183927634 | AO98: 0.07199601116 | AP98: 0.07215140376 | AQ98: 0.07230351118 | AR98: 0.07245033698 | AS98: 0.07258982231
A99: 81 | B99: ='Configuratie en berekeningen'!E88 -> 0.03309835272 | C99: =((1+B100)^$A100/(1+B$19)^$A$19)^(1/($A100-$A$19))-1 -> 0.03325065335 | D99: 0.03338121979 | E99: 0.03347772135 | F99: 0.0335528019 | G99: 0.03360847588 | H99: 0.03364625542 | I99: 0.03366267662 | J99: 0.03367068517 | K99: 0.03366506587 | L99: 0.03364111559 | M99: 0.03361621276 | N99: 0.03358291221 | O99: 0.03352982429 | P99: 0.03348842982 | Q99: 0.03345865196 | R99: 0.03343083973 | S99: 0.03340332652 | T99: 0.03337645329 | U99: 0.03335056761 | V99: 0.03332602532 | X99: 81 | Y99: 0.0715360253 | Z99: 0.07068694717 | AA99: 0.06996716334 | AB99: 0.069439944 | AC99: 0.06903253761 | AD99: 0.06873199943 | AE99: 0.06852881336 | AF99: 0.06844068647 | AG99: 0.068397749 | AH99: 0.06842787377 | AI99: 0.06855642062 | AJ99: 0.0686903393 | AK99: 0.06886983193 | AL99: 0.06915696244 | AM99: 0.06938168856 | AN99: 0.06954380642 | AO99: 0.06969556928 | AP99: 0.0698460304 | AQ99: 0.06999330904 | AR99: 0.07013547272 | AS99: 0.0702705285
A100: 82 | B100: ='Configuratie en berekeningen'!E89 -> 0.03309741148 | C100: =((1+B101)^$A101/(1+B$19)^$A$19)^(1/($A101-$A$19))-1 -> 0.03324783616 | D100: 0.03337679281 | E100: 0.03347210121 | F100: 0.03354625098 | G100: 0.03360123197 | H100: 0.0336385378 | I100: 0.03365474683 | J100: 0.03366264668 | K100: 0.03365708577 | L100: 0.03363341829 | M100: 0.03360881054 | N100: 0.03357590816 | O100: 0.03352346041 | P100: 0.03348256395 | Q100: 0.03345314286 | R100: 0.03342566387 | S100: 0.03339848067 | T100: 0.03337193005 | U100: 0.03334635529 | V100: 0.03332210786 | X100: 82 | Y100: 0.06924933106 | Z100: 0.06842749398 | AA100: 0.06773080917 | AB100: 0.06722052583 | AC100: 0.0668262189 | AD100: 0.06653535829 | AE100: 0.06633873281 | AF100: 0.06625348436 | AG100: 0.06621197666 | AH100: 0.06624119226 | AI100: 0.06636568106 | AJ100: 0.0664953667 | AK100: 0.06666916688 | AL100: 0.06694716269 | AM100: 0.06716474559 | AN100: 0.06732171825 | AO100: 0.06746866446 | AP100: 0.06761434834 | AQ100: 0.0677569494 | AR100: 0.06789459704 | AS100: 0.06802536211
A101: 83 | B101: ='Configuratie en berekeningen'!E90 -> 0.03309647479 | C101: =((1+B102)^$A102/(1+B$19)^$A$19)^(1/($A102-$A$19))-1 -> 0.03324507 | D101: 0.03337245687 | E101: 0.03346660197 | F101: 0.03353984445 | G101: 0.0335941501 | H101: 0.03363099455 | I101: 0.03364699733 | J101: 0.03365479189 | K101: 0.03364928867 | L101: 0.03362589783 | M101: 0.03360157868 | N101: 0.03356906544 | O101: 0.03351724296 | P101: 0.033476833 | Q101: 0.03344776054 | R101: 0.03342060718 | S101: 0.03339374643 | T101: 0.033367511 | U101: 0.03334224001 | V101: 0.03331828066 | X101: 83 | Y101: 0.06703583015 | Z101: 0.06624035213 | AA101: 0.06556601784 | AB101: 0.06507212003 | AC101: 0.06469048558 | AD101: 0.06440898564 | AE101: 0.06421870416 | AF101: 0.06413623583 | AG101: 0.06409610637 | AH101: 0.06412443647 | AI101: 0.06424499199 | AJ101: 0.06437057525 | AK101: 0.06453886065 | AL101: 0.06480800976 | AM101: 0.06501867401 | AN101: 0.06517066245 | AO101: 0.0653129427 | AP101: 0.06545399899 | AQ101: 0.06559206915 | AR101: 0.06572534243 | AS101: 0.06585195148
A102: 84 | B102: ='Configuratie en berekeningen'!E91 -> 0.03309554375 | C102: =((1+B103)^$A103/(1+B$19)^$A$19)^(1/($A103-$A$19))-1 -> 0.03324235425 | D102: 0.03336820981 | E102: 0.03346122035 | F102: 0.03353357809 | G102: 0.03358722538 | H102: 0.03362362025 | I102: 0.03363942247 | J102: 0.03364711494 | K102: 0.0336416687 | L102: 0.03361854852 | M102: 0.03359451164 | N102: 0.03356237881 | O102: 0.0335111672 | P102: 0.0334712326 | Q102: 0.03344250088 | R102: 0.03341566579 | S102: 0.03338912018 | T102: 0.03336319278 | U102: 0.03333821863 | V102: 0.03331454079 | X102: 84 | Y102: 0.06489316992 | Z102: 0.06412319833 | AA102: 0.06347049105 | AB102: 0.06299244685 | AC102: 0.06262307237 | AD102: 0.06235062714 | AE102: 0.06216648067 | AF102: 0.06208669792 | AG102: 0.0620478974 | AH102: 0.06207536548 | AI102: 0.06219210897 | AJ102: 0.06231371683 | AK102: 0.06247665985 | AL102: 0.06273724144 | AM102: 0.06294120481 | AN102: 0.06308836518 | AO102: 0.06322612567 | AP102: 0.06336269955 | AQ102: 0.06349638106 | AR102: 0.06362541744 | AS102: 0.06374800106
A103: 85 | B103: ='Configuratie en berekeningen'!E92 -> 0.03309461934 | C103: =((1+B104)^$A104/(1+B$19)^$A$19)^(1/($A104-$A$19))-1 -> 0.0332396882 | D103: 0.0333640495 | E103: 0.03345595313 | F103: 0.03352744782 | G103: 0.03358045306 | H103: 0.03361640969 | I103: 0.03363201676 | J103: 0.03363961021 | K103: 0.0336342202 | L103: 0.03361136487 | M103: 0.03358760415 | N103: 0.03355584324 | O103: 0.03350522856 | P103: 0.03346575856 | Q103: 0.03343735995 | R103: 0.03341083599 | S103: 0.03338459844 | T103: 0.03335897212 | U103: 0.03333428812 | V103: 0.03331088543 | X103: 85 | Y103: 0.06281907434 | Z103: 0.06207378486 | AA103: 0.06144200515 | AB103: 0.06097930047 | AC103: 0.06062178742 | AD103: 0.06035810139 | AE103: 0.06017988827 | AF103: 0.06010270017 | AG103: 0.0600651814 | AH103: 0.06009181066 | AI103: 0.06020485994 | AJ103: 0.06032261572 | AK103: 0.06048038364 | AL103: 0.06073266831 | AM103: 0.06093014195 | AN103: 0.06107262574 | AO103: 0.06120600829 | AP103: 0.06133824056 | AQ103: 0.06146767139 | AR103: 0.06159260413 | AS103: 0.061711289
A104: 86 | B104: ='Configuratie en berekeningen'!E93 -> 0.03309370238 | C104: =((1+B105)^$A105/(1+B$19)^$A$19)^(1/($A105-$A$19))-1 -> 0.03323707112 | D104: 0.03335997385 | E104: 0.03345079718 | F104: 0.0335214497 | G104: 0.03357382857 | H104: 0.03360935785 | I104: 0.03362477495 | J104: 0.03363227227 | K104: 0.03362693774 | L104: 0.03360434162 | M104: 0.0335808511 | N104: 0.03354945391 | O104: 0.03349942269 | P104: 0.03346040685 | Q104: 0.03343233395 | R104: 0.03340611423 | S104: 0.03338017787 | T104: 0.03335484591 | U104: 0.03333044557 | V104: 0.03330731188 | X104: 86 | Y104: 0.06081134141 | Z104: 0.06008993701 | AA104: 0.05947840862 | AB104: 0.05903054657 | AC104: 0.05868450983 | AD104: 0.05842929757 | AE104: 0.05825682315 | AF104: 0.05818214217 | AG104: 0.05814585995 | AH104: 0.05817167329 | AI104: 0.05828114283 | AJ104: 0.05839516628 | AK104: 0.05854792137 | AL104: 0.0587921714 | AM104: 0.05898336001 | AN104: 0.05912131414 | AO104: 0.05925045629 | AP104: 0.05937848349 | AQ104: 0.05950379743 | AR104: 0.05962475576 | AS104: 0.05973966468
A105: 87 | B105: ='Configuratie en berekeningen'!E94 -> 0.03309279363 | C105: =((1+B106)^$A106/(1+B$19)^$A$19)^(1/($A106-$A$19))-1 -> 0.03323450224 | D105: 0.03335598079 | E105: 0.03344574945 | F105: 0.0335155799 | G105: 0.0335673475 | H105: 0.03360245988 | I105: 0.03361769198 | J105: 0.03362509592 | K105: 0.03361981611 | L105: 0.0335974737 | M105: 0.03357424761 | N105: 0.03354320618 | O105: 0.03349374537 | P105: 0.03345517361 | Q105: 0.03342741926 | R105: 0.03340149707 | S105: 0.03337585527 | T105: 0.03335081116 | U105: 0.0333266882 | V105: 0.03330381755 | X105: 87 | Y105: 0.05886784064 | Z105: 0.05816955059 | AA105: 0.05757761966 | AB105: 0.05714411993 | AC105: 0.05680918731 | AD105: 0.05656217306 | AE105: 0.05639524942 | AF105: 0.05632299132 | AG105: 0.05628790232 | AH105: 0.0563129223 | AI105: 0.05641892325 | AJ105: 0.05652933064 | AK105: 0.05667723029 | AL105: 0.05691369986 | AM105: 0.05709880185 | AN105: 0.05723236879 | AO105: 0.05735740393 | AP105: 0.05748135846 | AQ105: 0.05760268524 | AR105: 0.05771979444 | AS105: 0.05783104647
A106: 88 | B106: ='Configuratie en berekeningen'!E95 -> 0.03309189369 | C106: =((1+B107)^$A107/(1+B$19)^$A$19)^(1/($A107-$A$19))-1 -> 0.03323198075 | D106: 0.03335206828 | E106: 0.03344080697 | F106: 0.03350983473 | G106: 0.03356100557 | H106: 0.03359571112 | I106: 0.03361076297 | J106: 0.03361807616 | K106: 0.03361285029 | L106: 0.03359075624 | M106: 0.03356778898 | N106: 0.03353709559 | O106: 0.03348819258 | P106: 0.03345005511 | Q106: 0.03342261237 | R106: 0.03339698123 | S106: 0.03337162754 | T106: 0.03334686499 | U106: 0.03332301332 | V106: 0.03330039993 | X106: 88 | Y106: 0.05698651063 | Z106: 0.05631058964 | AA106: 0.0557376239 | AB106: 0.05531802212 | AC106: 0.05499383388 | AD106: 0.05475475121 | AE106: 0.0545931969 | AF106: 0.05452328052 | AG106: 0.05448934318 | AH106: 0.054513592 | AI106: 0.0546162323 | AJ106: 0.05472313647 | AK106: 0.05486633334 | AL106: 0.05509526874 | AM106: 0.05527447644 | AN106: 0.05540379435 | AO106: 0.05552485181 | AP106: 0.05564486203 | AQ106: 0.05576232739 | AR106: 0.05587570892 | AS106: 0.05598341947
A107: 89 | B107: ='Configuratie en berekeningen'!E96 -> 0.03309100311 | C107: =((1+B108)^$A108/(1+B$19)^$A$19)^(1/($A108-$A$19))-1 -> 0.03322950584 | D107: 0.03334823433 | E107: 0.03343596687 | F107: 0.0335042106 | G107: 0.03355479867 | H107: 0.03358910708 | I107: 0.03360398322 | J107: 0.03361120816 | K107: 0.03360603544 | L107: 0.03358418459 | M107: 0.03356147069 | N107: 0.03353111787 | O107: 0.03348276043 | P107: 0.03344504779 | Q107: 0.03341790992 | R107: 0.03339256354 | S107: 0.03336749173 | T107: 0.03334300462 | U107: 0.03331941836 | V107: 0.03329705665 | X107: 89 | Y107: 0.05516535684 | Z107: 0.05451108409 | AA107: 0.05395647208 | AB107: 0.05355031929 | AC107: 0.05323652768 | AD107: 0.05300511913 | AE107: 0.05284875891 | AF107: 0.05278110609 | AG107: 0.05274828052 | AH107: 0.05277177997 | AI107: 0.0528711644 | AJ107: 0.05297467486 | AK107: 0.05311331696 | AL107: 0.05333495686 | AM107: 0.05350845666 | AN107: 0.05363365947 | AO107: 0.05375086464 | AP107: 0.05386705501 | AQ107: 0.05398078084 | AR107: 0.05409055242 | AS107: 0.05419483336
A108: 90 | B108: ='Configuratie en berekeningen'!E97 -> 0.03309012234 | C108: =((1+B109)^$A109/(1+B$19)^$A$19)^(1/($A109-$A$19))-1 -> 0.03322707665 | D108: 0.03334447697 | E108: 0.03343122635 | F108: 0.03349870404 | G108: 0.03354872284 | H108: 0.03358264341 | I108: 0.03359734821 | J108: 0.03360448729 | K108: 0.03359936694 | L108: 0.03357775423 | M108: 0.03355528841 | N108: 0.0335252689 | O108: 0.03347744519 | P108: 0.03344014821 | Q108: 0.03341330869 | R108: 0.03338824098 | S108: 0.033363445 | T108: 0.03333922741 | U108: 0.03331590084 | V108: 0.03329378538 | X108: 90 | Y108: 0.05340244924 | Z108: 0.05276912758 | AA108: 0.05223227796 | AB108: 0.05183914003 | AC108: 0.05153540888 | AD108: 0.05131142561 | AE108: 0.05116009022 | AF108: 0.05109462562 | AG108: 0.05106287352 | AH108: 0.051085645 | AI108: 0.05118187524 | AJ108: 0.05128209825 | AK108: 0.0514163291 | AL108: 0.05163090474 | AM108: 0.05179887726 | AN108: 0.05192009482 | AO108: 0.05203356925 | AP108: 0.05214606037 | AQ108: 0.05225616484 | AR108: 0.05236244057 | AS108: 0.05246340033
A109: 91 | B109: ='Configuratie en berekeningen'!E98 -> 0.03308925176 | C109: =((1+B110)^$A110/(1+B$19)^$A$19)^(1/($A110-$A$19))-1 -> 0.03322469234 | D109: 0.03334079429 | E109: 0.03342658268 | F109: 0.0334933117 | G109: 0.03354277422 | H109: 0.03357631595 | I109: 0.03359085359 | J109: 0.0335979091 | K109: 0.03359284032 | L109: 0.03357146086 | M109: 0.03354923797 | N109: 0.03351954472 | O109: 0.03347224328 | P109: 0.03343535307 | Q109: 0.03340880558 | R109: 0.03338401062 | S109: 0.0333594846 | T109: 0.0333355308 | U109: 0.03331245839 | V109: 0.03329058392 | X109: 91 | Y109: 0.05169592028 | Z109: 0.05108287539 | AA109: 0.05056321619 | AB109: 0.05018267332 | AC109: 0.0498886776 | AD109: 0.04967187911 | AE109: 0.04952540502 | AF109: 0.04946205601 | AG109: 0.04943134059 | AH109: 0.04945340506 | AI109: 0.04954657979 | AJ109: 0.04964361842 | AK109: 0.04977357714 | AL109: 0.04998131258 | AM109: 0.05014393285 | AN109: 0.050261291 | AO109: 0.05037115253 | AP109: 0.05048006132 | AQ109: 0.05058665892 | AR109: 0.05068954939 | AS109: 0.05078729304
A110: 92 | B110: ='Configuratie en berekeningen'!E99 -> 0.03308839167 | C110: =((1+B111)^$A111/(1+B$19)^$A$19)^(1/($A111-$A$19))-1 -> 0.03322235204 | D110: 0.0333371844 | E110: 0.03342203322 | F110: 0.03348803034 | G110: 0.03353694913 | H110: 0.03357012067 | I110: 0.03358449517 | J110: 0.03359146927 | K110: 0.03358645128 | L110: 0.0335653003 | M110: 0.03354331534 | N110: 0.03351394153 | O110: 0.03346715125 | P110: 0.03343065919 | Q110: 0.03340439758 | R110: 0.03337986965 | S110: 0.0333556079 | T110: 0.03333191232 | U110: 0.0333090887 | V110: 0.03328745014 | X110: 92 | Y110: 0.05004396272 | Z110: 0.04945054232 | AA110: 0.04894752033 | AB110: 0.04857916654 | AC110: 0.04829459196 | AD110: 0.04808474576 | AE110: 0.04794297497 | AF110: 0.04788167153 | AG110: 0.04785195741 | AH110: 0.04787333539 | AI110: 0.04796355034 | AJ110: 0.04805750458 | AK110: 0.04818332604 | AL110: 0.04838443831 | AM110: 0.04854187593 | AN110: 0.04865549666 | AO110: 0.04876185947 | AP110: 0.04886729923 | AQ110: 0.04897050094 | AR110: 0.0490701133 | AS110: 0.04916474267
A111: 93 | B111: ='Configuratie en berekeningen'!E100 -> 0.03308754234 | C111: =((1+B112)^$A112/(1+B$19)^$A$19)^(1/($A112-$A$19))-1 -> 0.03322005488 | D111: 0.03333364548 | E111: 0.03341757541 | F111: 0.03348285681 | G111: 0.03353124398 | H111: 0.03356405367 | I111: 0.03357826891 | J111: 0.03358516367 | K111: 0.03358019568 | L111: 0.03355926855 | M111: 0.03353751668 | N111: 0.03350845568 | O111: 0.03346216578 | P111: 0.03342606352 | Q111: 0.03340008184 | R111: 0.03337581537 | S111: 0.03335181238 | T111: 0.03332836962 | U111: 0.03330578958 | V111: 0.03328438199 | X111: 93 | Y111: 0.0484448277 | Z111: 0.04787040081 | AA111: 0.04738348087 | AB111: 0.04702692351 | AC111: 0.04675146617 | AD111: 0.04654834749 | AE111: 0.04641112733 | AF111: 0.0463518019 | AG111: 0.04632305508 | AH111: 0.04634376665 | AI111: 0.04643111469 | AJ111: 0.0465220815 | AK111: 0.04664389642 | AL111: 0.04683859578 | AM111: 0.04699101506 | AN111: 0.04710101659 | AO111: 0.04720399136 | AP111: 0.04730607189 | AQ111: 0.04740598524 | AR111: 0.04750242332 | AS111: 0.04759403706
A112: 94 | B112: ='Configuratie en berekeningen'!E101 -> 0.03308670396 | C112: =((1+B113)^$A113/(1+B$19)^$A$19)^(1/($A113-$A$19))-1 -> 0.03321779998 | D112: 0.03333017572 | E112: 0.03341320676 | F112: 0.03347778808 | G112: 0.03352565533 | H112: 0.03355811123 | I112: 0.0335721709 | J112: 0.03357898833 | K112: 0.03357406955 | L112: 0.03355336177 | M112: 0.03353183826 | N112: 0.03350308363 | O112: 0.03345728368 | P112: 0.03342156311 | Q112: 0.03339585559 | R112: 0.03337184518 | S112: 0.0333480956 | T112: 0.03332490042 | U112: 0.03330255892 | V112: 0.0332813775 | X112: 94 | Y112: 0.04689682277 | Z112: 0.04634077898 | AA112: 0.04586944342 | AB112: 0.04552430271 | AC112: 0.04525766869 | AD112: 0.04506106022 | AE112: 0.04492824313 | AF112: 0.04487083055 | AG112: 0.04484301831 | AH112: 0.04486308309 | AI112: 0.04494765428 | AJ112: 0.04503572768 | AK112: 0.04515366275 | AL112: 0.04534215288 | AM112: 0.04548971301 | AN112: 0.04559620991 | AO112: 0.04569590388 | AP112: 0.04579473157 | AQ112: 0.04589146075 | AR112: 0.04598482517 | AS112: 0.04607351887
A113: 95 | B113: ='Configuratie en berekeningen'!E102 -> 0.03308587669 | C113: =((1+B114)^$A114/(1+B$19)^$A$19)^(1/($A114-$A$19))-1 -> 0.03321558649 | D113: 0.03332677338 | E113: 0.03340892486 | F113: 0.03347282122 | G113: 0.03352017984 | H113: 0.03355228971 | I113: 0.0335661974 | J113: 0.03357293941 | K113: 0.03356806907 | L113: 0.03354757624 | M113: 0.0335262765 | N113: 0.03349782201 | O113: 0.03345250187 | P113: 0.03341715514 | Q113: 0.03339171617 | R113: 0.03336795658 | S113: 0.03334445521 | T113: 0.03332150254 | U113: 0.03329939467 | V113: 0.03327843478 | X113: 95 | Y113: 0.04539831007 | Z113: 0.04486005883 | AA113: 0.04440380682 | AB113: 0.04406971542 | AC113: 0.04381162048 | AD113: 0.04362131208 | AE113: 0.04349275544 | AF113: 0.04343719282 | AG113: 0.04341028366 | AH113: 0.04342972083 | AI113: 0.04351160251 | AJ113: 0.04359687366 | AK113: 0.04371105165 | AL113: 0.04389352985 | AM113: 0.04403638506 | AN113: 0.04413948832 | AO113: 0.04423600541 | AP113: 0.04433168335 | AQ113: 0.04442532931 | AR113: 0.04451571754 | AS113: 0.04460158382
A114: 96 | B114: ='Configuratie en berekeningen'!E103 -> 0.03308506065 | C114: =((1+B115)^$A115/(1+B$19)^$A$19)^(1/($A115-$A$19))-1 -> 0.03321341353 | D114: 0.03332343674 | E114: 0.03340472736 | F114: 0.03346795338 | G114: 0.03351481428 | H114: 0.03354658564 | I114: 0.0335603448 | J114: 0.0335670132 | K114: 0.03356219052 | L114: 0.0335419084 | M114: 0.03352082798 | N114: 0.03349266755 | O114: 0.0334478174 | P114: 0.03341283687 | Q114: 0.033387661 | R114: 0.03336414715 | S114: 0.03334088896 | T114: 0.03331817386 | U114: 0.03329629486 | V114: 0.03327555199 | X114: 96 | Y114: 0.04394770448 | Z114: 0.04342667445 | AA114: 0.04298502149 | AB114: 0.04266162404 | AC114: 0.04241179326 | AD114: 0.04222758172 | AE114: 0.04210314767 | AF114: 0.04204937431 | AG114: 0.04202333791 | AH114: 0.04204216616 | AI114: 0.04212144302 | AJ114: 0.04220400031 | AK114: 0.04231454019 | AL114: 0.04249119755 | AM114: 0.04262949723 | AN114: 0.04272931441 | AO114: 0.04282275531 | AP114: 0.04291538337 | AQ114: 0.04300604393 | AR114: 0.04309355039 | AS114: 0.04317667897
A115: 97 | B115: ='Configuratie en berekeningen'!E104 -> 0.0330842559 | C115: =((1+B116)^$A116/(1+B$19)^$A$19)^(1/($A116-$A$19))-1 -> 0.03321128024 | D115: 0.03332016414 | E115: 0.03340061199 | F115: 0.03346318181 | G115: 0.03350955556 | H115: 0.03354099567 | I115: 0.0335546096 | J115: 0.03356120616 | K115: 0.03355643037 | L115: 0.03353635481 | M115: 0.03351548937 | N115: 0.0334876171 | O115: 0.03344322742 | P115: 0.03340860569 | Q115: 0.03338368764 | R115: 0.03336041459 | S115: 0.03333739467 | T115: 0.03331491236 | U115: 0.03329325762 | V115: 0.03327272739 | X115: 97 | Y115: 0.04254347197 | Z115: 0.04203911034 | AA115: 0.04161158766 | AB115: 0.0412985404 | AC115: 0.04105670784 | AD115: 0.04087839666 | AE115: 0.04075795191 | AF115: 0.04070590921 | AG115: 0.04068071637 | AH115: 0.04069895394 | AI115: 0.0407757081 | AJ115: 0.04085563719 | AK115: 0.04096265424 | AL115: 0.04113367584 | AM115: 0.0412675647 | AN115: 0.04136420001 | AO115: 0.04145466227 | AP115: 0.04154433723 | AQ115: 0.04163210712 | AR115: 0.04171682329 | AS115: 0.0417973011
A116: 98 | B116: ='Configuratie en berekeningen'!E105 -> 0.0330834625 | C116: =((1+B117)^$A117/(1+B$19)^$A$19)^(1/($A117-$A$19))-1 -> 0.03320918578 | D116: 0.03331695395 | E116: 0.03339657655 | F116: 0.03345850385 | G116: 0.03350440067 | H116: 0.03353551653 | I116: 0.03354898844 | J116: 0.03355551483 | K116: 0.03355078519 | L116: 0.03353091216 | M116: 0.03351025747 | N116: 0.03348266766 | O116: 0.03343872918 | P116: 0.03340445907 | Q116: 0.0333797937 | R116: 0.03335675665 | S116: 0.03333397026 | T116: 0.03331171608 | U116: 0.03329028113 | V116: 0.03326995928 | X116: 98 | Y116: 0.04118412784 | Z116: 0.04069589974 | AA116: 0.04028205379 | AB116: 0.03997902417 | AC116: 0.03974493258 | AD116: 0.0395723317 | AE116: 0.03945574737 | AF116: 0.03940537876 | AG116: 0.03938100134 | AH116: 0.03939866602 | AI116: 0.03947297706 | AJ116: 0.03955036099 | AK116: 0.03965396689 | AL116: 0.039819532 | AM116: 0.03994915023 | AN116: 0.04004270462 | AO116: 0.04013028275 | AP116: 0.04021709834 | AQ116: 0.04030206934 | AR116: 0.04038408385 | AS116: 0.04046199507
A117: 99 | B117: ='Configuratie en berekeningen'!E106 -> 0.03308268045 | C117: =((1+B118)^$A118/(1+B$19)^$A$19)^(1/($A118-$A$19))-1 -> 0.03320712928 | D117: 0.03331380459 | E117: 0.0333926189 | F117: 0.03345391694 | G117: 0.03349934671 | H117: 0.03353014511 | I117: 0.03354347809 | J117: 0.03354993593 | K117: 0.03354525168 | L117: 0.03352557725 | M117: 0.03350512922 | N117: 0.0334778163 | O117: 0.03343432005 | P117: 0.03340039457 | Q117: 0.03337597689 | R117: 0.03335317119 | S117: 0.0333306137 | T117: 0.03330858314 | U117: 0.03328736362 | V117: 0.03326724603 | X117: 99 | Y117: 0.03986823518 | Z117: 0.03939562306 | AA117: 0.03899501498 | AB117: 0.03870168126 | AC117: 0.0384750818 | AD117: 0.03830800738 | AE117: 0.03819515888 | AF117: 0.03814640971 | AG117: 0.03812282059 | AH117: 0.03813992969 | AI117: 0.03821187477 | AJ117: 0.03828679402 | AK117: 0.03838709698 | AL117: 0.03854737921 | AM117: 0.03867286257 | AN117: 0.03876343384 | AO117: 0.03884821941 | AP117: 0.03893226642 | AQ117: 0.03901452746 | AR117: 0.03909392613 | AS117: 0.03916935232
A118: 100 | B118: ='Configuratie en berekeningen'!E107 -> 0.03308190974 | C118: =((1+B119)^$A119/(1+B$19)^$A$19)^(1/($A119-$A$19))-1 -> 0.03320510993 | D118: 0.03331071451 | E118: 0.03338873698 | F118: 0.03344941859 | G118: 0.03349439088 | H118: 0.03352487839 | I118: 0.0335380754 | J118: 0.03354446624 | K118: 0.03353982665 | L118: 0.03352034701 | M118: 0.03350010165 | N118: 0.03347306021 | O118: 0.03342999746 | P118: 0.03339640985 | Q118: 0.03337223502 | R118: 0.03334965613 | S118: 0.03332732306 | T118: 0.03330551174 | U118: 0.03328450341 | V118: 0.03326458606 | X118: 100 | Y118: 0.03859440324 | Z118: 0.03813690631 | AA118: 0.03774911149 | AB118: 0.03746516236 | AC118: 0.03724581429 | AD118: 0.03708408852 | AE118: 0.03697485534 | AF118: 0.03692767283 | AG118: 0.03690484587 | AH118: 0.03692141627 | AI118: 0.03699107017 | AJ118: 0.03706360272 | AK118: 0.03716070757 | AL118: 0.03731587506 | AM118: 0.03743735504 | AN118: 0.03752503794 | AO118: 0.03760711962 | AP118: 0.03768848602 | AQ118: 0.03776812321 | AR118: 0.03784498919 | AS118: 0.03791800934
A119: 101 | B119: ='Configuratie en berekeningen'!E108 -> 0.03308115035 | C119: =((1+B120)^$A120/(1+B$19)^$A$19)^(1/($A120-$A$19))-1 -> 0.0332031269 | D119: 0.03330768223 | E119: 0.03338492877 | F119: 0.03344500639 | G119: 0.03348953048 | H119: 0.03351971344 | I119: 0.03353277736 | J119: 0.03353910271 | K119: 0.03353450703 | L119: 0.03351521847 | M119: 0.0334951719 | N119: 0.03346839669 | O119: 0.03342575898 | P119: 0.03339250264 | Q119: 0.03336856594 | R119: 0.03334620947 | S119: 0.03332409647 | T119: 0.03330250011 | U119: 0.03328169887 | V119: 0.03326196755 | X119: 101 | Y119: 0.03736128602 | Z119: 0.03691841967 | AA119: 0.0365430272 | AB119: 0.03626816148 | AC119: 0.03605583189 | AD119: 0.03589928275 | AE119: 0.03579354837 | AF119: 0.03574788154 | AG119: 0.03572579152 | AH119: 0.03574183962 | AI119: 0.03580927482 | AJ119: 0.03587949625 | AK119: 0.03597350454 | AL119: 0.03612372011 | AM119: 0.03624132408 | AN119: 0.03632621037 | AO119: 0.03640567407 | AP119: 0.03648444506 | AQ119: 0.0365615418 | AR119: 0.03663595563 | AS119: 0.03670668328
A120: 102 | B120: ='Configuratie en berekeningen'!E109 -> 0.03308040221 | C120: =((1+B121)^$A121/(1+B$19)^$A$19)^(1/($A121-$A$19))-1 -> 0.03320117938 | D120: 0.03330470627 | E120: 0.03338119233 | F120: 0.03344067801 | G120: 0.03348476288 | H120: 0.03351464746 | I120: 0.03352758106 | J120: 0.03353384235 | K120: 0.03352928988 | L120: 0.03351018878 | M120: 0.03349033723 | N120: 0.03346382314 | O120: 0.03342160222 | P120: 0.03338867076 | Q120: 0.03336496762 | R120: 0.03334282928 | S120: 0.03332093211 | T120: 0.03329954658 | U120: 0.03327893821 | V120: 0.03325938928 | X120: 102 | Y120: 0.0361675807 | Z120: 0.03573887599 | AA120: 0.03537548827 | AB120: 0.03510941453 | AC120: 0.03490387807 | AD120: 0.03475233918 | AE120: 0.03464999088 | AF120: 0.03460579045 | AG120: 0.03458441306 | AH120: 0.03459995485 | AI120: 0.03466524156 | AJ120: 0.03473322511 | AK120: 0.03482423519 | AL120: 0.03496965654 | AM120: 0.03508350783 | AN120: 0.0351656864 | AO120: 0.03524261534 | AP120: 0.03531887343 | AQ120: 0.03539351053 | AR120: 0.03546558597 | AS120: 0.03553409316
A121: 103 | B121: ='Configuratie en berekeningen'!E110 -> 0.03307966525 | C121: =((1+B122)^$A122/(1+B$19)^$A$19)^(1/($A122-$A$19))-1 -> 0.03319926657 | D121: 0.03330178522 | E121: 0.03337752577 | F121: 0.03343643121 | G121: 0.03348008557 | H121: 0.03350967772 | I121: 0.03352248369 | J121: 0.03352868231 | K121: 0.03352417234 | L121: 0.03350525517 | M121: 0.03348559496 | N121: 0.03345933703 | O121: 0.03341752492 | P121: 0.03338491211 | Q121: 0.03336143807 | R121: 0.03333951372 | S121: 0.03331782825 | T121: 0.0332966394 | U121: 0.03327622016 | V121: 0.03325685006 | X121: 103 | Y121: 0.03501202632 | Z121: 0.03459702945 | AA121: 0.03424526171 | AB121: 0.03398769796 | AC121: 0.03378873661 | AD121: 0.03364204697 | AE121: 0.03354297575 | AF121: 0.03350019413 | AG121: 0.03347950589 | AH121: 0.0334945569 | AI121: 0.03355776319 | AJ121: 0.03362357978 | AK121: 0.03371168695 | AL121: 0.03385246677 | AM121: 0.03396268484 | AN121: 0.03404224178 | AO121: 0.03411671655 | AP121: 0.03419054167 | AQ121: 0.03426283193 | AR121: 0.03433264254 | AS121: 0.03439899901
A122: 104 | B122: ='Configuratie en berekeningen'!E111 -> 0.03307893939 | C122: =((1+B123)^$A123/(1+B$19)^$A$19)^(1/($A123-$A$19))-1 -> 0.03319738769 | D122: 0.03329891769 | E122: 0.03337392727 | F122: 0.0334322638 | G122: 0.0334754961 | H122: 0.03350480159 | I122: 0.03351748254 | J122: 0.03352361981 | K122: 0.03351915165 | L122: 0.033500415 | M122: 0.03348094255 | N122: 0.03345493594 | O122: 0.03341352486 | P122: 0.03338122466 | Q122: 0.03335797539 | R122: 0.03333626098 | S122: 0.03331477319 | T122: 0.03329377723 | U122: 0.03327354349 | V122: 0.03325434878 | X122: 104 | Y122: 0.03389340242 | Z122: 0.03349167421 | AA122: 0.0331511541 | AB122: 0.03290182746 | AC122: 0.03270923025 | AD122: 0.03256723414 | AE122: 0.03247133456 | AF122: 0.03242992572 | AG122: 0.032409904 | AH122: 0.03242447933 | AI122: 0.03248567113 | AJ122: 0.03254938951 | AK122: 0.03263468604 | AL122: 0.03277097221 | AM122: 0.03287767273 | AN122: 0.03295469142 | AO122: 0.03302679008 | AP122: 0.03309829304 | AQ122: 0.03316831032 | AR122: 0.0332359273 | AS122: 0.03330020064
A123: 105 | B123: ='Configuratie en berekeningen'!E112 -> 0.03307822453 | C123: =((1+B124)^$A124/(1+B$19)^$A$19)^(1/($A124-$A$19))-1 -> 0.03319554197 | D123: 0.03329610236 | E123: 0.03337039506 | F123: 0.03342817368 | G123: 0.03347099211 | H123: 0.03350001655 | I123: 0.03351257498 | J123: 0.0335186522 | K123: 0.03351422516 | L123: 0.03349566568 | M123: 0.03347637751 | N123: 0.03345061753 | O123: 0.03340959992 | P123: 0.03337760645 | Q123: 0.03335457775 | R123: 0.0333330594 | S123: 0.03331176552 | T123: 0.03329095879 | U123: 0.033270907 | V123: 0.03325188435 | X123: 105 | Y123: 0.03281052765 | Z123: 0.03242164309 | AA123: 0.03209201029 | AB123: 0.03185065671 | AC123: 0.03166421951 | AD123: 0.03152676623 | AE123: 0.03143393629 | AF123: 0.03139385578 | AG123: 0.03137447871 | AH123: 0.03138859304 | AI123: 0.03144783423 | AJ123: 0.031509521 | AK123: 0.03159209627 | AL123: 0.03172403196 | AM123: 0.03182732696 | AN123: 0.03190188816 | AO123: 0.03197171857 | AP123: 0.03204097246 | AQ123: 0.03210878828 | AR123: 0.03217428062 | AS123: 0.03223653627
A124: 106 | B124: ='Configuratie en berekeningen'!E113 -> 0.03307752055 | C124: =((1+B125)^$A125/(1+B$19)^$A$19)^(1/($A125-$A$19))-1 -> 0.03319372866 | D124: 0.0332933379 | E124: 0.03336692742 | F124: 0.03342415881 | G124: 0.03346657131 | H124: 0.03349532014 | I124: 0.03350775848 | J124: 0.0335137769 | K124: 0.0335093903 | L124: 0.03349100475 | M124: 0.03347189748 | N124: 0.03344637954 | O124: 0.03340574805 | P124: 0.03337405559 | Q124: 0.03335123352 | R124: 0.03332990755 | S124: 0.03330880392 | T124: 0.03328818284 | U124: 0.03326830957 | V124: 0.03324945573 | X124: 106 | Y124: 0.0317622586 | Z124: 0.03138580637 | AA124: 0.03106671214 | AB124: 0.0308330761 | AC124: 0.03065260139 | AD124: 0.03051954515 | AE124: 0.03042968617 | AF124: 0.030390891 | AG124: 0.03037213748 | AH124: 0.03038580507 | AI124: 0.03044315754 | AJ124: 0.0305028772 | AK124: 0.03058281779 | AL124: 0.03071054165 | AM124: 0.03081053961 | AN124: 0.03088275269 | AO124: 0.03095038627 | AP124: 0.03101746188 | AQ124: 0.03108314551 | AR124: 0.03114658003 | AS124: 0.03120688137
A125: 107 | B125: ='Configuratie en berekeningen'!E114 -> 0.03307682734 | C125: =((1+B126)^$A126/(1+B$19)^$A$19)^(1/($A126-$A$19))-1 -> 0.03319194703 | D125: 0.03329062305 | E125: 0.03336352268 | F125: 0.03342021722 | G125: 0.03346223151 | H125: 0.03349071 | I125: 0.03350303061 | J125: 0.03350899142 | K125: 0.0335046446 | L125: 0.03348642982 | M125: 0.03346750013 | N125: 0.0334422198 | O125: 0.03340196727 | P125: 0.03337056052 | Q125: 0.03334794122 | R125: 0.03332680402 | S125: 0.03330588709 | T125: 0.03328544819 | U125: 0.0332657501 | V125: 0.03324706192 | X125: 107 | Y125: 0.03074748851 | Z125: 0.03038307052 | AA125: 0.03007417738 | AB125: 0.0298480116 | AC125: 0.02967330824 | AD125: 0.02954450796 | AE125: 0.02945752449 | AF125: 0.0294199731 | AG125: 0.02940182276 | AH125: 0.02941505746 | AI125: 0.02947058116 | AJ125: 0.0295283962 | AK125: 0.02960578594 | AL125: 0.02972943222 | AM125: 0.02982626828 | AN125: 0.02989620726 | AO125: 0.02996171316 | AP125: 0.03002667908 | AQ125: 0.03009029761 | AR125: 0.03015173901 | AS125: 0.03021014744
A126: 108 | B126: ='Configuratie en berekeningen'!E115 -> 0.03307614475 | C126: =((1+B127)^$A127/(1+B$19)^$A$19)^(1/($A127-$A$19))-1 -> 0.03319019634 | D126: 0.03328795658 | E126: 0.03336017923 | F126: 0.03341634698 | G126: 0.03345797057 | H126: 0.03348618383 | I126: 0.03349838899 | J126: 0.03350429336 | K126: 0.03349998567 | L126: 0.03348193857 | M126: 0.03346318326 | N126: 0.03343813619 | O126: 0.03339824603 | P126: 0.03336711969 | Q126: 0.03334469939 | R126: 0.03332374748 | S126: 0.03330301378 | T126: 0.03328275368 | U126: 0.03326322754 | V126: 0.03324470194 | X126: 108 | Y126: 0.02976514609 | Z126: 0.02941237709 | AA126: 0.02911335841 | AB126: 0.02889442358 | AC126: 0.02872530659 | AD126: 0.02860062578 | AE126: 0.02851642547 | AF126: 0.02848007767 | AG126: 0.02846251083 | AH126: 0.02847532609 | AI126: 0.02852907911 | AJ126: 0.02858505004 | AK126: 0.02865997014 | AL126: 0.02877969788 | AM126: 0.0288734721 | AN126: 0.02894120864 | AO126: 0.02900465387 | AP126: 0.02906757649 | AQ126: 0.02912919491 | AR126: 0.02918870586 | AS126: 0.02924528084
A127: 109 | B127: ='Configuratie en berekeningen'!E116 -> 0.03307547266 | C127: =((1+B128)^$A128/(1+B$19)^$A$19)^(1/($A128-$A$19))-1 -> 0.03318847589 | D127: 0.03328533729 | E127: 0.03335689552 | F127: 0.03341254627 | G127: 0.03345378642 | H127: 0.03348173942 | I127: 0.03349383134 | J127: 0.0334996804 | K127: 0.0334954112 | L127: 0.03347752878 | M127: 0.03345894471 | N127: 0.03343411713 | O127: 0.03339458267 | P127: 0.03336373159 | Q127: 0.03334150666 | R127: 0.03332073662 | S127: 0.0333001828 | T127: 0.03328009823 | U127: 0.03326074087 | V127: 0.03324237486 | X127: 109 | Y127: 0.02881419441 | Z127: 0.02847270152 | AA127: 0.02818324119 | AB127: 0.02797130571 | AC127: 0.0278075961 | AD127: 0.02768690267 | AE127: 0.02760539616 | AF127: 0.0275702131 | AG127: 0.02755321074 | AH127: 0.02756561964 | AI127: 0.02761765823 | AJ127: 0.02767184368 | AK127: 0.02774440075 | AL127: 0.02786033425 | AM127: 0.02795114354 | AN127: 0.02801674706 | AO127: 0.02807819648 | AP127: 0.02813914013 | AQ127: 0.02819882136 | AR127: 0.02825646256 | AS127: 0.02831126169
A128: 110 | B128: ='Configuratie en berekeningen'!E117 -> 0.03307481093 | C128: =((1+B129)^$A129/(1+B$19)^$A$19)^(1/($A129-$A$19))-1 -> 0.03318678498 | D128: 0.03328276402 | E128: 0.03335367002 | F128: 0.03340881328 | G128: 0.03344967708 | H128: 0.03347737464 | I128: 0.03348935547 | J128: 0.03349515029 | K128: 0.03349091896 | L128: 0.03347319828 | M128: 0.03345477293 | N128: 0.03343016084 | O128: 0.03339097562 | P128: 0.0333603948 | Q128: 0.03333836168 | R128: 0.03331777021 | S128: 0.03329739299 | T128: 0.03327748075 | U128: 0.0332582891 | V128: 0.0332400798 | X128: 110 | Y128: 0.02789362976 | Z128: 0.02756305208 | AA128: 0.02728284414 | AB128: 0.0270776839 | AC128: 0.02691920843 | AD128: 0.02680237456 | AE128: 0.02672347539 | AF128: 0.02668941952 | AG128: 0.02667296328 | AH128: 0.02668497847 | AI128: 0.02673535713 | AJ128: 0.02678784092 | AK128: 0.02685810955 | AL128: 0.02697036916 | AM128: 0.02705830735 | AN128: 0.02712184508 | AO128: 0.02718136153 | AP128: 0.02724038849 | AQ128: 0.02729819348 | AR128: 0.02735402373 | AS128: 0.02740710279
A129: 111 | B129: ='Configuratie en berekeningen'!E118 -> 0.03307415939 | C129: =((1+B130)^$A130/(1+B$19)^$A$19)^(1/($A130-$A$19))-1 -> 0.03318512295 | D129: 0.03328023564 | E129: 0.03335050128 | F129: 0.03340514628 | G129: 0.0334456406 | H129: 0.03347308742 | I129: 0.03348495924 | J129: 0.03349070087 | K129: 0.0334865068 | L129: 0.03346893562 | M129: 0.03345066612 | N129: 0.03342626564 | O129: 0.03338742336 | P129: 0.03335710793 | Q129: 0.03333526315 | R129: 0.03331484704 | S129: 0.03329464324 | T129: 0.03327490022 | U129: 0.03325587131 | V129: 0.03323781587 | X129: 111 | Y129: 0.02700248058 | Z129: 0.02668246881 | AA129: 0.02641121716 | AB129: 0.02621261521 | AC129: 0.02605920626 | AD129: 0.02594610825 | AE129: 0.02586973278 | AF129: 0.02583676775 | AG129: 0.02582083988 | AH129: 0.02583247368 | AI129: 0.02588127129 | AJ129: 0.02593210689 | AK129: 0.02600015934 | AL129: 0.0261088616 | AM129: 0.02619401954 | AN129: 0.02625555658 | AO129: 0.02631320091 | AP129: 0.02637037151 | AQ129: 0.0264263593 | AR129: 0.02648043553 | AS129: 0.02653184856
A130: 112 | B130: ='Configuratie en berekeningen'!E119 -> 0.03307351791 | C130: =((1+B131)^$A131/(1+B$19)^$A$19)^(1/($A131-$A$19))-1 -> 0.03318348913 | D130: 0.03327775104 | E130: 0.03334738785 | F130: 0.0334015436 | G130: 0.03344167512 | H130: 0.03346887576 | I130: 0.03348064058 | J130: 0.03348633005 | K130: 0.03348216331 | L130: 0.03346473897 | M130: 0.03344662253 | N130: 0.03342242988 | O130: 0.03338392442 | P130: 0.03335386964 | Q130: 0.03333220985 | R130: 0.03331196595 | S130: 0.03329193247 | T130: 0.03327235566 | U130: 0.03325348657 | V130: 0.03323558226 | X130: 112 | Y130: 0.02613980643 | Z130: 0.0258300225 | AA130: 0.02556744053 | AB130: 0.02537518695 | AC130: 0.02522668225 | AD130: 0.02511720042 | AE130: 0.02504326769 | AF130: 0.02501135836 | AG130: 0.02499594172 | AH130: 0.0250072313 | AI130: 0.02505449752 | AJ130: 0.02510373673 | AK130: 0.02516964294 | AL130: 0.02527490068 | AM130: 0.02535736636 | AN130: 0.02541696576 | AO130: 0.02547279691 | AP130: 0.02552816959 | AQ130: 0.02558239734 | AR130: 0.0256347747 | AS130: 0.02568457402
A131: 113 | B131: ='Configuratie en berekeningen'!E120 -> 0.03307288633 | C131: =((1+B132)^$A132/(1+B$19)^$A$19)^(1/($A132-$A$19))-1 -> 0.03318188288 | D131: 0.03327530917 | E131: 0.03334432837 | F131: 0.03339800361 | G131: 0.03343777883 | H131: 0.03346473771 | I131: 0.03347639751 | J131: 0.03348202657 | K131: 0.03347788669 | L131: 0.03346060657 | M131: 0.03344264049 | N131: 0.03341865199 | O131: 0.03338047739 | P131: 0.03335067864 | Q131: 0.03332920055 | R131: 0.03330912583 | S131: 0.03328925966 | T131: 0.0332698461 | U131: 0.03325113401 | V131: 0.03323337815 | X131: 113 | Y131: 0.02530469699 | Z131: 0.02500481368 | AA131: 0.024750624 | AB131: 0.02456451558 | AC131: 0.02442075812 | AD131: 0.02431477662 | AE131: 0.02424320832 | AF131: 0.0242123207 | AG131: 0.02419742313 | AH131: 0.02420837862 | AI131: 0.02425416153 | AJ131: 0.02430185452 | AK131: 0.02436568224 | AL131: 0.02446760473 | AM131: 0.02454746334 | AN131: 0.02460518616 | AO131: 0.02465926121 | AP131: 0.02471289254 | AQ131: 0.02476541563 | AR131: 0.02481614754 | AS131: 0.02486438384
A132: 114 | B132: ='Configuratie en berekeningen'!E121 -> 0.03307226448 | C132: =((1+B133)^$A133/(1+B$19)^$A$19)^(1/($A133-$A$19))-1 -> 0.03318030356 | D132: 0.03327290899 | E132: 0.0333413215 | F132: 0.03339452474 | G132: 0.03343394998 | H132: 0.03346067142 | I132: 0.03347221894 | J132: 0.03347778866 | K132: 0.03347367516 | L132: 0.03345653675 | M132: 0.03343871838 | N132: 0.03341493045 | O132: 0.0333770809 | P132: 0.03334753368 | Q132: 0.03332623412 | R132: 0.0333063256 | S132: 0.03328662379 | T132: 0.03326737064 | U132: 0.03324881278 | V132: 0.03323120277 | X132: 114 | Y132: 0.0244962711 | Z132: 0.02420597169 | AA132: 0.0239599058 | AB132: 0.02377974588 | AC132: 0.02364058369 | AD132: 0.02353799041 | AE132: 0.02346871074 | AF132: 0.02343883561 | AG132: 0.02342443966 | AH132: 0.02343507089 | AI132: 0.02347941709 | AJ132: 0.02352561245 | AK132: 0.02358742729 | AL132: 0.0236861203 | AM132: 0.02376345434 | AN132: 0.02381935972 | AO132: 0.02387173394 | AP132: 0.02392367874 | AQ132: 0.02397455079 | AR132: 0.02402368898 | AS132: 0.02407041135
A133: 115 | B133: ='Configuratie en berekeningen'!E122 -> 0.03307165221 | C133: =((1+B134)^$A134/(1+B$19)^$A$19)^(1/($A134-$A$19))-1 -> 0.03317875056 | D133: 0.03327054949 | E133: 0.03333836595 | F133: 0.03339110546 | G133: 0.03343018689 | H133: 0.033456666 | I133: 0.0334681032 | J133: 0.0334736146 | K133: 0.03346952703 | L133: 0.03345252785 | M133: 0.03343485464 | N133: 0.03341126378 | O133: 0.03337373362 | P133: 0.03334443357 | Q133: 0.03332330942 | R133: 0.03330356422 | S133: 0.03328402392 | T133: 0.03326492837 | U133: 0.03324652206 | V133: 0.03322905536 | X133: 115 | Y133: 0.02371367578 | Z133: 0.02343265372 | AA133: 0.02319445175 | AB133: 0.02302004999 | AC133: 0.02288533598 | AD133: 0.02278602242 | AE133: 0.02271898096 | AF133: 0.02269008511 | AG133: 0.02267617392 | AH133: 0.02268649045 | AI133: 0.02272944505 | AJ133: 0.02277418985 | AK133: 0.02283405534 | AL133: 0.0229296213 | AM133: 0.02300451065 | AN133: 0.02305865586 | AO133: 0.0231093828 | AP133: 0.02315969413 | AQ133: 0.0232089671 | AR133: 0.02325656166 | AS133: 0.02330181766
A134: 116 | B134: ='Configuratie en berekeningen'!E123 -> 0.03307104936 | C134: =((1+B135)^$A135/(1+B$19)^$A$19)^(1/($A135-$A$19))-1 -> 0.03317722329 | D134: 0.03326822969 | E134: 0.03333546044 | F134: 0.0333877443 | G134: 0.03342647891 | H134: 0.03345271988 | I134: 0.03346404867 | J134: 0.03346950275 | K134: 0.03346544066 | L134: 0.03344857832 | M134: 0.03343104775 | N134: 0.03340765057 | O134: 0.03337043429 | P134: 0.03334137714 | Q134: 0.03332042538 | R134: 0.03330084067 | S134: 0.0332814591 | T134: 0.03326251844 | U134: 0.03324426108 | V134: 0.03322693522 | X134: 116 | Y134: 0.02295608538 | Z134: 0.02268404394 | AA134: 0.02245345435 | AB134: 0.02228462652 | AC134: 0.02215421834 | AD134: 0.02205810175 | AE134: 0.02199322613 | AF134: 0.02196527746 | AG134: 0.02195183473 | AH134: 0.02196184582 | AI134: 0.02200345253 | AJ134: 0.02204679234 | AK134: 0.02210477001 | AL134: 0.0221973081 | AM134: 0.02226983011 | AN134: 0.02232227061 | AO134: 0.02237140212 | AP134: 0.0224201314 | AQ134: 0.02246785558 | AR134: 0.02251395505 | AS134: 0.02255779073
A135: 117 | B135: ='Configuratie en berekeningen'!E124 -> 0.03307045577 | C135: =((1+B136)^$A136/(1+B$19)^$A$19)^(1/($A136-$A$19))-1 -> 0.03317572115 | D135: 0.03326594864 | E135: 0.03333260377 | F135: 0.03338443091 | G135: 0.03342282463 | H135: 0.03344883154 | I135: 0.03346005376 | J135: 0.03346545152 | K135: 0.03346141446 | L135: 0.03344468662 | M135: 0.03342729625 | N135: 0.03340408944 | O135: 0.03336718168 | P135: 0.03333836328 | Q135: 0.03331758096 | R135: 0.033298154 | S135: 0.03327892844 | T135: 0.03326014002 | U135: 0.03324202905 | V135: 0.03322484162 | X135: 117 | Y135: 0.02222270067 | Z135: 0.02195935263 | AA135: 0.02173613196 | AB135: 0.02157269974 | AC135: 0.02144648124 | AD135: 0.02135345862 | AE135: 0.0212906788 | AF135: 0.02126364625 | AG135: 0.02125065624 | AH135: 0.02126037089 | AI135: 0.02130067202 | AJ135: 0.021342651 | AK135: 0.02139880043 | AL135: 0.02148840667 | AM135: 0.02155863625 | AN135: 0.02160942576 | AO135: 0.02165701206 | AP135: 0.02170420908 | AQ135: 0.02175043319 | AR135: 0.02179508457 | AS135: 0.02183754454
A136: 118 | B136: ='Configuratie en berekeningen'!E125 -> 0.03306987128 | C136: =((1+B137)^$A137/(1+B$19)^$A$19)^(1/($A137-$A$19))-1 -> 0.03317424357 | D136: 0.03326370544 | E136: 0.03332978591 | F136: 0.03338116408 | G136: 0.0334192227 | H136: 0.0334449995 | I136: 0.03345611697 | J136: 0.03346145935 | K136: 0.03345744691 | L136: 0.03344085128 | M136: 0.03342359875 | N136: 0.03340057907 | O136: 0.0333639746 | P136: 0.0333353909 | Q136: 0.03331477515 | R136: 0.03329550327 | S136: 0.03327643107 | T136: 0.03325779231 | U136: 0.03323982526 | V136: 0.03322277391 | X136: 118 | Y136: 0.02151274799 | Z136: 0.02125781535 | AA136: 0.02104172793 | AB136: 0.02088353979 | AC136: 0.02076137624 | AD136: 0.0206713479 | AE136: 0.02061059613 | AF136: 0.02058444966 | AG136: 0.02057189715 | AH136: 0.02058132408 | AI136: 0.02062036065 | AJ136: 0.02066102155 | AK136: 0.02071540045 | AL136: 0.02080216781 | AM136: 0.02087017749 | AN136: 0.02091936803 | AO136: 0.02096545775 | AP136: 0.02101117073 | AQ136: 0.02105594196 | AR136: 0.02109919078 | AS136: 0.02114031824
A137: 119 | B137: ='Configuratie en berekeningen'!E126 -> 0.03306929572 | C137: =((1+B138)^$A138/(1+B$19)^$A$19)^(1/($A138-$A$19))-1 -> 0.03317279 | D137: 0.0332614904 | E137: 0.0333270059 | F137: 0.03337794264 | G137: 0.03341567178 | H137: 0.03344122236 | I137: 0.03345223683 | J137: 0.03345752477 | K137: 0.03345353653 | L137: 0.03343707089 | M137: 0.03341995387 | N137: 0.03339711818 | O137: 0.0333608119 | P137: 0.03333245895 | Q137: 0.03331200697 | R137: 0.03329288756 | S137: 0.03327396616 | T137: 0.03325547454 | U137: 0.03323764898 | V137: 0.03322073142 | X137: 119 | Y137: 0.02082547842 | Z137: 0.0205786921 | AA137: 0.02036953037 | AB137: 0.02021641788 | AC137: 0.02009817889 | AD137: 0.02001104835 | AE137: 0.01995225905 | AF137: 0.01992696961 | AG137: 0.01991483989 | AH137: 0.0199239876 | AI137: 0.01996179929 | AJ137: 0.02000118354 | AK137: 0.02005384778 | AL137: 0.0201378663 | AM137: 0.02020372631 | AN137: 0.02025136826 | AO137: 0.02029600851 | AP137: 0.02034028414 | AQ137: 0.0203836482 | AR137: 0.02042553854 | AS137: 0.02046537536
A138: 120 | B138: ='Configuratie en berekeningen'!E127 -> 0.03306872893 | C138: =((1+B139)^$A139/(1+B$19)^$A$19)^(1/($A139-$A$19))-1 -> 0.03317135122 | D138: 0.03325930285 | E138: 0.03332426277 | F138: 0.03337476545 | G138: 0.03341217061 | H138: 0.03343749872 | I138: 0.03344841192 | J138: 0.03345364632 | K138: 0.03344968189 | L138: 0.03343334407 | M138: 0.0334163603 | N138: 0.03339370553 | O138: 0.03335769247 | P138: 0.03332956643 | Q138: 0.03330927549 | R138: 0.033290306 | S138: 0.03327153288 | T138: 0.03325318595 | U138: 0.03323549952 | V138: 0.03321871353 | X138: 120 | Y138: 0.02016016703 | Z138: 0.01992128665 | AA138: 0.01971882843 | AB138: 0.01957062857 | AC138: 0.01945618793 | AD138: 0.01937186184 | AE138: 0.01931497156 | AF138: 0.01929051105 | AG138: 0.0192787899 | AH138: 0.01928766661 | AI138: 0.01932429191 | AJ138: 0.01936243961 | AK138: 0.0194134433 | AL138: 0.01949480015 | AM138: 0.0195585785 | AN138: 0.01960472066 | AO138: 0.01964795706 | AP138: 0.01969084057 | AQ138: 0.01973284171 | AR138: 0.01977341629 | AS138: 0.01981200298
A139: 121 | B139: ='Configuratie en berekeningen'!E128 -> 0.03306816214 | C139: =((1+B140)^$A140/(1+B$19)^$A$19)^(1/($A140-$A$19))-1 -> 0.03316992685 | D139: =((1+C140)^$A140/(1+C$19)^$A$19)^(1/($A140-$A$19))-1 -> 0.03325714208 | E139: =((1+D140)^$A140/(1+D$19)^$A$19)^(1/($A140-$A$19))-1 -> 0.03332155563 | F139: =((1+E140)^$A140/(1+E$19)^$A$19)^(1/($A140-$A$19))-1 -> 0.03337163141 | G139: =((1+F140)^$A140/(1+F$19)^$A$19)^(1/($A140-$A$19))-1 -> 0.03340871795 | H139: =((1+G140)^$A140/(1+G$19)^$A$19)^(1/($A140-$A$19))-1 -> 0.03343382728 | I139: =((1+H140)^$A140/(1+H$19)^$A$19)^(1/($A140-$A$19))-1 -> 0.03344464087 | J139: =((1+I140)^$A140/(1+I$19)^$A$19)^(1/($A140-$A$19))-1 -> 0.03344982262 | K139: =((1+J140)^$A140/(1+J$19)^$A$19)^(1/($A140-$A$19))-1 -> 0.0334458816 | L139: =((1+K140)^$A140/(1+K$19)^$A$19)^(1/($A140-$A$19))-1 -> 0.03342966949 | M139: =((1+L140)^$A140/(1+L$19)^$A$19)^(1/($A140-$A$19))-1 -> 0.03341281676 | N139: =((1+M140)^$A140/(1+M$19)^$A$19)^(1/($A140-$A$19))-1 -> 0.03339033994 | O139: =((1+N140)^$A140/(1+N$19)^$A$19)^(1/($A140-$A$19))-1 -> 0.03335461524 | P139: =((1+O140)^$A140/(1+O$19)^$A$19)^(1/($A140-$A$19))-1 -> 0.03332671235 | Q139: =((1+P140)^$A140/(1+P$19)^$A$19)^(1/($A140-$A$19))-1 -> 0.03330657979 | R139: =((1+Q140)^$A140/(1+Q$19)^$A$19)^(1/($A140-$A$19))-1 -> 0.03328775775 | S139: =((1+R140)^$A140/(1+R$19)^$A$19)^(1/($A140-$A$19))-1 -> 0.03326913045 | T139: =((1+S140)^$A140/(1+S$19)^$A$19)^(1/($A140-$A$19))-1 -> 0.03325092582 | U139: =((1+T140)^$A140/(1+T$19)^$A$19)^(1/($A140-$A$19))-1 -> 0.03323337623
A140: 122 | B140: ='Configuratie en berekeningen'!E129 -> 0.03306759536 | C140: 0.03316851653 | D140: 0.03325500745 | E140: 0.03331888357 | F140: 0.03336853947 | G140: 0.03340531261 | H140: 0.03343020674 | I140: 0.03344092236 | J140: 0.03344605233 | K140: 0.03344213432 | L140: 0.03342604586 | M140: 0.03340932204 | N140: 0.03338702023 | O140: 0.03335157917 | P140: 0.03332389578 | Q140: 0.03330391899 | R140: 0.03328524199 | S140: 0.03326675812 | T140: 0.03324869345
A141: 123 | B141: ='Configuratie en berekeningen'!E130 -> 0.03306702857 | C141: 0.03316711994 | D141: 0.03325289831 | E141: 0.03331624575 | F141: 0.03336548859 | G141: 0.03340195343 | H141: 0.03342663587 | I141: 0.03343725511 | J141: 0.03344233413 | K141: 0.03343843878 | L141: 0.03342247195 | M141: 0.03340587493 | N141: 0.03338374529 | O141: 0.03334858325 | P141: 0.03332111579 | Q141: 0.03330129225 | R141: 0.03328275792 | S141: 0.03326441515
A142: 124 | B142: ='Configuratie en berekeningen'!E131 -> 0.03306646178 | C142: 0.03316573673 | D142: 0.03325081405 | E142: 0.03331364134 | F142: 0.03336247778 | G142: 0.03339863929 | H142: 0.03342311346 | I142: 0.03343363788 | J142: 0.03343866678 | K142: 0.0334347937 | L142: 0.03341894655 | M142: 0.03340247429 | N142: 0.03338051403 | O142: 0.03334562653 | P142: 0.0333183715 | Q142: 0.03329869874 | R142: 0.03328030478
A143: 125 | B143: ='Configuratie en berekeningen'!E132 -> 0.033065895 | C143: 0.03316436658 | D143: 0.03324875407 | E143: 0.03331106954 | F143: 0.03335950608 | G143: 0.03339536912 | H143: 0.03341963834 | I143: 0.03343006946 | J143: 0.03343504904 | K143: 0.03343119789 | L143: 0.0334154685 | M143: 0.033399119 | N143: 0.03337732542 | O143: 0.03334270804 | P143: 0.03331566206 | Q143: 0.03329613766
A144: 126 | B144: ='Configuratie en berekeningen'!E133 -> 0.03306532821 | C144: 0.03316300918 | D144: 0.0332467178 | E144: 0.03330852956 | F144: 0.03335657256 | G144: 0.03339214187 | H144: 0.0334162094 | I144: 0.0334265487 | J144: 0.03343147974 | K144: 0.03342765017 | L144: 0.03341203666 | M144: 0.03339580797 | N144: 0.03337417843 | O144: 0.03333982689 | P144: 0.03331298664
A145: 127 | B145: ='Configuratie en berekeningen'!E134 -> 0.03306476142 | C145: 0.03316166424 | D145: 0.03324470467 | E145: 0.03330602066 | F145: 0.03335367632 | G145: 0.03338895652 | H145: 0.03341282554 | I145: 0.03342307446 | J145: 0.03342795773 | K145: 0.03342414939 | L145: 0.03340864996 | M145: 0.03339254017 | N145: 0.03337107208 | O145: 0.03333698219
A146: 128 | B146: ='Configuratie en berekeningen'!E135 -> 0.03306419464 | C146: 0.03316033145 | D146: 0.03324271414 | E146: 0.03330354211 | F146: 0.03335081648 | G146: 0.03338581209 | H146: 0.0334094857 | I146: 0.03341964566 | J146: 0.0334244819 | K146: 0.03342069447 | L146: 0.03340530732 | M146: 0.03338931458 | N146: 0.03336800541
A147: 129 | B147: ='Configuratie en berekeningen'!E136 -> 0.03306362785 | C147: 0.03315901055 | D147: 0.03324074569 | E147: 0.03330109321 | F147: 0.0333479922 | G147: 0.03338270763 | H147: 0.03340618886 | I147: 0.03341626124 | J147: 0.03342105119 | K147: 0.03341728434 | L147: 0.03340200772 | M147: 0.03338613022
A148: 130 | B148: ='Configuratie en berekeningen'!E137 -> 0.03306306106 | C148: =((1+B149)^$A149/(1+B$19)^$A$19)^(1/($A149-$A$19))-1 -> 0.03315770124 | D148: =((1+C149)^$A149/(1+C$19)^$A$19)^(1/($A149-$A$19))-1 -> 0.0332387988 | E148: 0.03329867326 | F148: 0.03334520265 | G148: 0.03337964222 | H148: 0.03340293403 | I148: 0.03341292018 | J148: 0.03341766454 | K148: 0.03341391796 | L148: 0.03339875017
A149: 131 | B149: ='Configuratie en berekeningen'!E138 -> 0.03306249428 | C149: 0.03315640327 | D149: =((1+C150)^$A150/(1+C$19)^$A$19)^(1/($A150-$A$19))-1 -> 0.03323687299 | E149: 0.03329628161 | F149: 0.03334244704 | G149: 0.03337661497 | H149: 0.03339972025 | I149: 0.03340962148 | J149: 0.03341432095 | K149: 0.03341059432
A150: 132 | B150: ='Configuratie en berekeningen'!E139 -> 0.03306192749 | C150: 0.03315511638 | D150: =((1+C151)^$A151/(1+C$19)^$A$19)^(1/($A151-$A$19))-1 -> 0.03323496777 | E150: 0.03329391761 | F150: 0.0333397246 | G150: 0.033373625 | H150: 0.03339654658 | I150: 0.03340636418 | J150: 0.03341101944
A151: 133 | B151: ='Configuratie en berekeningen'!E140 -> 0.0330613607 | C151: 0.03315384032 | D151: =((1+C152)^$A152/(1+C$19)^$A$19)^(1/($A152-$A$19))-1 -> 0.03323308267 | E151: 0.03329158064 | F151: 0.03333703458 | G151: 0.03337067147 | H151: 0.03339341212 | I151: 0.03340314734
A152: 134 | B152: ='Configuratie en berekeningen'!E141 -> 0.03306079392 | C152: 0.03315257485 | D152: =((1+C153)^$A153/(1+C$19)^$A$19)^(1/($A153-$A$19))-1 -> 0.03323121726 | E152: =((1+D153)^$A153/(1+D$19)^$A$19)^(1/($A153-$A$19))-1 -> 0.03328927009 | F152: =((1+E153)^$A153/(1+E$19)^$A$19)^(1/($A153-$A$19))-1 -> 0.03333437625 | G152: =((1+F153)^$A153/(1+F$19)^$A$19)^(1/($A153-$A$19))-1 -> 0.03336775357 | H152: =((1+G153)^$A153/(1+G$19)^$A$19)^(1/($A153-$A$19))-1 -> 0.03339031598
A153: 135 | B153: ='Configuratie en berekeningen'!E142 -> 0.03306022713 | C153: 0.03315131972 | D153: =((1+C154)^$A154/(1+C$19)^$A$19)^(1/($A154-$A$19))-1 -> 0.03322937108 | E153: =((1+D154)^$A154/(1+D$19)^$A$19)^(1/($A154-$A$19))-1 -> 0.03328698538 | F153: =((1+E154)^$A154/(1+E$19)^$A$19)^(1/($A154-$A$19))-1 -> 0.03333174892 | G153: =((1+F154)^$A154/(1+F$19)^$A$19)^(1/($A154-$A$19))-1 -> 0.03336487051
A154: 136 | B154: ='Configuratie en berekeningen'!E143 -> 0.03305966035 | C154: 0.03315007472 | D154: =((1+C155)^$A155/(1+C$19)^$A$19)^(1/($A155-$A$19))-1 -> 0.03322754372 | E154: =((1+D155)^$A155/(1+D$19)^$A$19)^(1/($A155-$A$19))-1 -> 0.03328472594 | F154: =((1+E155)^$A155/(1+E$19)^$A$19)^(1/($A155-$A$19))-1 -> 0.03332915189
A155: 137 | B155: ='Configuratie en berekeningen'!E144 -> 0.03305909356 | C155: 0.03314883962 | D155: =((1+C156)^$A156/(1+C$19)^$A$19)^(1/($A156-$A$19))-1 -> 0.03322573477 | E155: =((1+D156)^$A156/(1+D$19)^$A$19)^(1/($A156-$A$19))-1 -> 0.03328249121
A156: 138 | B156: ='Configuratie en berekeningen'!E145 -> 0.03305852677 | C156: 0.03314761421 | D156: =((1+C157)^$A157/(1+C$19)^$A$19)^(1/($A157-$A$19))-1 -> 0.03322394382
A157: 139 | B157: ='Configuratie en berekeningen'!E146 -> 0.03305795999 | C157: 0.03314639828
A158: 140 | B158: ='Configuratie en berekeningen'!E147 -> 0.0330573932

Sheet Curves met UFR, zonder VA
B2: Rentetermijnstructuur met UFR, zonder VA
M3: Input annual rates | N3: Zero | O3: Zero, Bond, Swap
M4: Coupon frequency | N4: 0 | O4: coupons per year (only used for Bond and Swap, set to 0 for Zero instrument)
M5: CRA applied to input rates | N5: 0 | O5: basispoints
M6: Mininum alpha | N6: 0.134742
M7: Bandwith convergence UFR | N7: 100 | O7: basispoint intensity
M8: Convergence at T= | N8: 40 | O8: years
B19: Rentes | Y19: Discount factors
A21: UFR | B21: ='Configuratie en berekeningen'!J8 -> 0.033 | C21: ='Configuratie en berekeningen'!J9 -> 0.033 | D21: ='Configuratie en berekeningen'!J10 -> 0.033 | E21: ='Configuratie en berekeningen'!J11 -> 0.033 | F21: ='Configuratie en berekeningen'!J12 -> 0.033 | G21: ='Configuratie en berekeningen'!J13 -> 0.033 | H21: ='Configuratie en berekeningen'!J14 -> 0.033 | I21: ='Configuratie en berekeningen'!J15 -> 0.033 | J21: ='Configuratie en berekeningen'!J16 -> 0.033 | K21: ='Configuratie en berekeningen'!J17 -> 0.033 | L21: ='Configuratie en berekeningen'!J18 -> 0.033 | M21: ='Configuratie en berekeningen'!J19 -> 0.033 | N21: ='Configuratie en berekeningen'!J20 -> 0.033 | O21: ='Configuratie en berekeningen'!J21 -> 0.033 | P21: ='Configuratie en berekeningen'!J22 -> 0.033 | Q21: ='Configuratie en berekeningen'!J23 -> 0.033 | R21: ='Configuratie en berekeningen'!J24 -> 0.033 | S21: ='Configuratie en berekeningen'!J25 -> 0.033 | T21: ='Configuratie en berekeningen'!J26 -> 0.033 | U21: ='Configuratie en berekeningen'!J27 -> 0.033 | V21: ='Configuratie en berekeningen'!J28 -> 0.033
A22: LLP | B22: ='Configuratie en berekeningen'!$K$8 -> 20 | C22: ='Configuratie en berekeningen'!$K$9 -> 20 | D22: ='Configuratie en berekeningen'!$K$10 -> 20 | E22: ='Configuratie en berekeningen'!$K$11 -> 20 | F22: ='Configuratie en berekeningen'!$K$12 -> 20 | G22: ='Configuratie en berekeningen'!$K$13 -> 20 | H22: ='Configuratie en berekeningen'!$K$14 -> 20 | I22: ='Configuratie en berekeningen'!$K$15 -> 20 | J22: ='Configuratie en berekeningen'!$K$16 -> 20 | K22: ='Configuratie en berekeningen'!$K$17 -> 20 | L22: ='Configuratie en berekeningen'!$K$18 -> 20 | M22: ='Configuratie en berekeningen'!$K$19 -> 20 | N22: ='Configuratie en berekeningen'!$K$20 -> 20 | O22: ='Configuratie en berekeningen'!$K$21 -> 20 | P22: ='Configuratie en berekeningen'!$K$22 -> 20 | Q22: ='Configuratie en berekeningen'!$K$23 -> 20 | R22: ='Configuratie en berekeningen'!$K$24 -> 20 | S22: ='Configuratie en berekeningen'!$K$25 -> 20 | T22: ='Configuratie en berekeningen'!$K$26 -> 20 | U22: ='Configuratie en berekeningen'!$K$27 -> 20 | V22: ='Configuratie en berekeningen'!$K$28 -> 20
B23: 1 | C23: 2 | D23: 3 | E23: 4 | F23: 5 | G23: 6 | H23: 7 | I23: 8 | J23: 9 | K23: 10 | L23: 11 | M23: 12 | N23: 13 | O23: 14 | P23: 15 | Q23: 16 | R23: 17 | S23: 18 | T23: 19 | U23: 20 | V23: 21 | Y23: 1 | Z23: 2 | AA23: 3 | AB23: 4 | AC23: 5 | AD23: 6 | AE23: 7 | AF23: 8 | AG23: 9 | AH23: 10 | AI23: 11 | AJ23: 12 | AK23: 13 | AL23: 14 | AM23: 15 | AN23: 16 | AO23: 17 | AP23: 18 | AQ23: 19 | AR23: 20 | AS23: 21
A24: 0 | B24: =SmithWilsonBruteForce($N$3,B$154:B$203,$A$154:$A$203,'Kale curves (zonder UFR, VA)'!B$19:B$68,$N$4,$N$5,B$21,$N$6,$N$7,$N$8) -> 0 | C24: =SmithWilsonBruteForce($N$3,C$154:C$203,$A$154:$A$203,'Kale curves (zonder UFR, VA)'!C$19:C$68,$N$4,$N$5,C$21,$N$6,$N$7,$N$8) -> 0 | D24: =SmithWilsonBruteForce($N$3,D$154:D$203,$A$154:$A$203,'Kale curves (zonder UFR, VA)'!D$19:D$68,$N$4,$N$5,D$21,$N$6,$N$7,$N$8) -> 0 | E24: =SmithWilsonBruteForce($N$3,E$154:E$203,$A$154:$A$203,'Kale curves (zonder UFR, VA)'!E$19:E$68,$N$4,$N$5,E$21,$N$6,$N$7,$N$8) -> 0 | F24: =SmithWilsonBruteForce($N$3,F$154:F$203,$A$154:$A$203,'Kale curves (zonder UFR, VA)'!F$19:F$68,$N$4,$N$5,F$21,$N$6,$N$7,$N$8) -> 0 | G24: =SmithWilsonBruteForce($N$3,G$154:G$203,$A$154:$A$203,'Kale curves (zonder UFR, VA)'!G$19:G$68,$N$4,$N$5,G$21,$N$6,$N$7,$N$8) -> 0 | H24: =SmithWilsonBruteForce($N$3,H$154:H$203,$A$154:$A$203,'Kale curves (zonder UFR, VA)'!H$19:H$68,$N$4,$N$5,H$21,$N$6,$N$7,$N$8) -> 0 | I24: =SmithWilsonBruteForce($N$3,I$154:I$203,$A$154:$A$203,'Kale curves (zonder UFR, VA)'!I$19:I$68,$N$4,$N$5,I$21,$N$6,$N$7,$N$8) -> 0 | J24: =SmithWilsonBruteForce($N$3,J$154:J$203,$A$154:$A$203,'Kale curves (zonder UFR, VA)'!J$19:J$68,$N$4,$N$5,J$21,$N$6,$N$7,$N$8) -> 0 | K24: =SmithWilsonBruteForce($N$3,K$154:K$203,$A$154:$A$203,'Kale curves (zonder UFR, VA)'!K$19:K$68,$N$4,$N$5,K$21,$N$6,$N$7,$N$8) -> 0 | L24: =SmithWilsonBruteForce($N$3,L$154:L$203,$A$154:$A$203,'Kale curves (zonder UFR, VA)'!L$19:L$68,$N$4,$N$5,L$21,$N$6,$N$7,$N$8) -> 0 | M24: =SmithWilsonBruteForce($N$3,M$154:M$203,$A$154:$A$203,'Kale curves (zonder UFR, VA)'!M$19:M$68,$N$4,$N$5,M$21,$N$6,$N$7,$N$8) -> 0 | N24: =SmithWilsonBruteForce($N$3,N$154:N$203,$A$154:$A$203,'Kale curves (zonder UFR, VA)'!N$19:N$68,$N$4,$N$5,N$21,$N$6,$N$7,$N$8) -> 0 | O24: =SmithWilsonBruteForce($N$3,O$154:O$203,$A$154:$A$203,'Kale curves (zonder UFR, VA)'!O$19:O$68,$N$4,$N$5,O$21,$N$6,$N$7,$N$8) -> 0 | P24: =SmithWilsonBruteForce($N$3,P$154:P$203,$A$154:$A$203,'Kale curves (zonder UFR, VA)'!P$19:P$68,$N$4,$N$5,P$21,$N$6,$N$7,$N$8) -> 0 | Q24: =SmithWilsonBruteForce($N$3,Q$154:Q$203,$A$154:$A$203,'Kale curves (zonder UFR, VA)'!Q$19:Q$68,$N$4,$N$5,Q$21,$N$6,$N$7,$N$8) -> 0 | R24: =SmithWilsonBruteForce($N$3,R$154:R$203,$A$154:$A$203,'Kale curves (zonder UFR, VA)'!R$19:R$68,$N$4,$N$5,R$21,$N$6,$N$7,$N$8) -> 0 | S24: =SmithWilsonBruteForce($N$3,S$154:S$203,$A$154:$A$203,'Kale curves (zonder UFR, VA)'!S$19:S$68,$N$4,$N$5,S$21,$N$6,$N$7,$N$8) -> 0 | T24: =SmithWilsonBruteForce($N$3,T$154:T$203,$A$154:$A$203,'Kale curves (zonder UFR, VA)'!T$19:T$68,$N$4,$N$5,T$21,$N$6,$N$7,$N$8) -> 0 | U24: =SmithWilsonBruteForce($N$3,U$154:U$203,$A$154:$A$203,'Kale curves (zonder UFR, VA)'!U$19:U$68,$N$4,$N$5,U$21,$N$6,$N$7,$N$8) -> 0 | V24: =SmithWilsonBruteForce($N$3,V$154:V$203,$A$154:$A$203,'Kale curves (zonder UFR, VA)'!V$19:V$68,$N$4,$N$5,V$21,$N$6,$N$7,$N$8) -> 0 | X24: 0
A25: 1 | B25: 0.02076 | C25: 0.02250074151 | D25: 0.02523423019 | E25: 0.0269562275 | F25: 0.02851845512 | G25: 0.02996083775 | H25: 0.03168516436 | I25: 0.03236455655 | J25: 0.03346671127 | K25: 0.03495148988 | L25: 0.03502801749 | M25: 0.03570873213 | N25: 0.03731553383 | O25: 0.036364885 | P25: 0.03542127369 | Q25: 0.03526129591 | R25: 0.03523659394 | S25: 0.03518425842 | T25: 0.03510375448 | U25: 0.03499441149 | V25: 0.0348620778 | X25: 1 | Y25: =(1+B25)^-$A25 -> 0.9796622125 | Z25: =(1+C25)^-$A25 -> 0.9779944008 | AA25: =(1+D25)^-$A25 -> 0.9753868634 | AB25: =(1+E25)^-$A25 -> 0.9737513374 | AC25: =(1+F25)^-$A25 -> 0.9722722962 | AD25: =(1+G25)^-$A25 -> 0.970910702 | AE25: =(1+H25)^-$A25 -> 0.9692879519 | AF25: =(1+I25)^-$A25 -> 0.96865007 | AG25: =(1+J25)^-$A25 -> 0.9676170399 | AH25: =(1+K25)^-$A25 -> 0.9662288617 | AI25: =(1+L25)^-$A25 -> 0.966157421 | AJ25: =(1+M25)^-$A25 -> 0.9655224186 | AK25: =(1+N25)^-$A25 -> 0.9640268244 | AL25: =(1+O25)^-$A25 -> 0.9649111182 | AM25: =(1+P25)^-$A25 -> 0.9657904714 | AN25: =(1+Q25)^-$A25 -> 0.9659397139 | AO25: =(1+R25)^-$A25 -> 0.9659627624 | AP25: =(1+S25)^-$A25 -> 0.9660115983 | AQ25: =(1+T25)^-$A25 -> 0.9660867287 | AR25: =(1+U25)^-$A25 -> 0.9661887918 | AS25: =(1+V25)^-$A25 -> 0.9663123439
A26: 2 | B26: 0.02163 | C26: 0.02386657363 | D26: 0.02609486761 | E26: 0.02773704447 | F26: 0.02923939377 | G26: 0.03082264051 | H26: 0.03202480455 | I26: 0.03291548691 | J26: 0.03420883412 | K26: 0.03498975298 | L26: 0.03536831887 | M26: 0.03651182163 | N26: 0.03684010046 | O26: 0.0358929719 | P26: 0.03534128171 | Q26: 0.03524894485 | R26: 0.03521042585 | S26: 0.03514400567 | T26: 0.03504908154 | U26: 0.03492824253 | V26: 0.03479731226 | X26: 2 | Y26: =(1+B26)^-$A26 -> 0.9581041585 | Z26: 0.953922891 | AA26: 0.9497842627 | AB26: 0.9467514487 | AC26: 0.9439895776 | AD26: 0.9410920458 | AE26: 0.9389008425 | AF26: 0.9372823135 | AG26: 0.934939511 | AH26: 0.9335291851 | AI26: 0.9328466498 | AJ26: 0.9307895111 | AK26: 0.9302002011 | AL26: 0.9319019636 | AM26: 0.9328953716 | AN26: 0.9330617943 | AO26: 0.933131232 | AP26: 0.9332509848 | AQ26: 0.9334221692 | AR26: 0.9336401561 | AS26: 0.9338764333
A27: 3 | B27: 0.02283 | C27: 0.02489542405 | D27: 0.0269020949 | E27: 0.0284777749 | F27: 0.03005400572 | G27: 0.03133635646 | H27: 0.03250521645 | I27: 0.03359370914 | J27: 0.03448182318 | K27: 0.03522935722 | L27: 0.03601698405 | M27: 0.03646284044 | N27: 0.03636694232 | O27: 0.03568237043 | P27: 0.03530638461 | Q27: 0.03522738226 | R27: 0.03517486751 | S27: 0.03509413854 | T27: 0.0349867432 | U27: 0.03486300783 | V27: 0.03473548636 | X27: 3 | Y27: 0.9345222099 | Z27: 0.9288836909 | AA27: 0.923448926 | AB27: 0.9192111137 | AC27: 0.9149977243 | AD27: 0.9115888761 | AE27: 0.908496454 | AF27: 0.9056292229 | AG27: 0.9032987467 | AH27: 0.9013433566 | AI27: 0.8992891935 | AJ27: 0.8981291479 | AK27: 0.8983784907 | AL27: 0.9001611162 | AM27: 0.9011421902 | AN27: 0.9013485153 | AO27: 0.9014856993 | AP27: 0.9016966415 | AQ27: 0.9019773641 | AR27: 0.9023009428 | AS27: 0.9026345843
A28: 4 | B28: 0.02386 | C28: 0.02579998358 | D28: 0.02766592796 | E28: 0.02927868623 | F28: 0.03063115817 | G28: 0.03186853311 | H28: 0.0331162422 | I28: 0.03395209978 | J28: 0.03478841409 | K28: 0.03575050771 | L28: 0.03610394833 | M28: 0.03620235056 | N28: 0.03609042006 | O28: 0.03557090831 | P28: 0.03527585171 | Q28: 0.03519647393 | R28: 0.03512975055 | S28: 0.03503611848 | T28: 0.03492318924 | U28: 0.03480021157 | V28: 0.03467645646 | X28: 4 | Y28: 0.9099922517 | Z28: 0.903127879 | AA28: 0.8965864449 | AB28: 0.8909802578 | AC28: 0.8863126097 | AD28: 0.8820689299 | AE28: 0.8778154946 | AF28: 0.8749803943 | AG28: 0.8721551907 | AH28: 0.8689191738 | AI28: 0.8677341412 | AJ28: 0.8674045731 | AK28: 0.8677794623 | AL28: 0.8695221184 | AM28: 0.8705138074 | AN28: 0.8707808385 | AO28: 0.8710053787 | AP28: 0.8713205952 | AQ28: 0.8717009661 | AR28: 0.8721154185 | AS28: 0.8725327397
A29: 5 | B29: 0.02479 | C29: 0.02663080751 | D29: 0.02846852063 | E29: 0.02989512149 | F29: 0.0311976457 | G29: 0.0324843889 | H29: 0.03349831455 | I29: 0.03430318774 | J29: 0.03529334503 | K29: 0.03587335402 | L29: 0.03596737741 | M29: 0.03601407123 | N29: 0.03591959852 | O29: 0.03549356678 | P29: 0.03524142998 | Q29: 0.03515605829 | R29: 0.03507621046 | S29: 0.03497539781 | T29: 0.03486091303 | U29: 0.03474003965 | V29: 0.03462008568 | X29: 5 | Y29: 0.8847602561 | Z29: 0.876856523 | AA29: 0.8690504389 | AB29: 0.8630480891 | AC29: 0.8576111838 | AD29: 0.8522804581 | AE29: 0.8481079544 | AF29: 0.8448131865 | AG29: 0.8407809989 | AH29: 0.8384297716 | AI29: 0.8380493653 | AJ29: 0.8378605252 | AK29: 0.8382426465 | AL29: 0.8399684513 | AM29: 0.8409918365 | AN29: 0.8413386863 | AO29: 0.841663249 | AP29: 0.8420732435 | AQ29: 0.8425391317 | AR29: 0.8430313536 | AS29: 0.8435201727
A30: 6 | B30: 0.02565 | C30: 0.02747147745 | D30: 0.02911683739 | E30: 0.03048952813 | F30: 0.03182233955 | G30: 0.03290789248 | H30: 0.03386638961 | I30: 0.03480463725 | J30: 0.03547185806 | K30: 0.0357979936 | L30: 0.03584966372 | M30: 0.03588445114 | N30: 0.03579700557 | O30: 0.03542858787 | P30: 0.03520025614 | Q30: 0.03510705574 | R30: 0.03501892592 | S30: 0.03491479692 | T30: 0.03480064991 | U30: 0.03468246391 | V30: 0.0345662437 | X30: 6 | Y30: 0.8590232013 | Z30: 0.8499264633 | AA30: 0.8418057686 | AB30: 0.8351000373 | AC30: 0.828648678 | AD30: 0.8234370893 | AE30: 0.8188672433 | AF30: 0.8144225734 | AG30: 0.8112789337 | AH30: 0.8097474843 | AI30: 0.8095051642 | AJ30: 0.8093420674 | AK30: 0.8097521187 | AL30: 0.8114823733 | AM30: 0.8125568864 | AN30: 0.812995958 | AO30: 0.8134113964 | AP30: 0.8139025732 | AQ30: 0.8144414026 | AR30: 0.8149997366 | AS30: 0.8155492193
A31: 7 | B31: 0.02651 | C31: 0.02816906629 | D31: 0.02973712521 | E31: 0.03112577154 | F31: 0.03227968495 | G31: 0.03330754822 | H31: 0.03435842144 | I31: 0.03502738589 | J31: 0.03546463157 | K31: 0.03572130547 | L31: 0.0357620601 | M31: 0.03578439462 | N31: 0.03569794128 | O31: 0.03536655153 | P31: 0.03515193818 | Q31: 0.03505354673 | R31: 0.03496076179 | S31: 0.03485544242 | T31: 0.03474263778 | U31: 0.03462739968 | V31: 0.03451480646 | X31: 7 | Y31: 0.8326408395 | Z31: 0.8232813282 | AA31: 0.8145456059 | AB31: 0.8068977584 | AC31: 0.8006050696 | AD31: 0.79504697 | AE31: 0.7894099882 | AF31: 0.785845396 | AG31: 0.7835254638 | AH31: 0.7821672533 | AI31: 0.7819518445 | AJ31: 0.7818338241 | AK31: 0.7822907754 | AL31: 0.7840451739 | AM31: 0.7851837495 | AN31: 0.7857063715 | AO31: 0.7861995779 | AP31: 0.786759841 | AQ31: 0.7873604294 | AR31: 0.7879745149 | AS31: 0.788575035
A32: 8 | B32: 0.02724 | C32: 0.02882978394 | D32: 0.03038748135 | E32: 0.03161274657 | F32: 0.03270769421 | G32: 0.0338076983 | H32: 0.03460901679 | I32: 0.03507661367 | J32: 0.03543921243 | K32: 0.03566070412 | L32: 0.03568981726 | M32: 0.03569929013 | N32: 0.03560997391 | O32: 0.03530347886 | P32: 0.03509950546 | Q32: 0.03499832379 | R32: 0.03490307869 | S32: 0.03479783006 | T32: 0.03468693204 | U32: 0.03457474493 | V32: 0.03446565595 | X32: 8 | Y32: 0.8065376075 | Z32: 0.7966210418 | AA32: 0.7870374736 | AB32: 0.7795902573 | AC32: 0.7730021431 | AD32: 0.7664466058 | AE32: 0.7617104744 | AF32: 0.7589619954 | AG32: 0.7568383624 | AH32: 0.7555444407 | AI32: 0.7553745511 | AJ32: 0.7553192815 | AK32: 0.7558405792 | AL32: 0.7576325297 | AM32: 0.7588277269 | AN32: 0.7594213954 | AO32: 0.7599807094 | AP32: 0.7605993068 | AQ32: 0.7612517214 | AR32: 0.7619123603 | AS32: 0.7625553739
A33: 9 | B33: 0.02793 | C33: 0.02950818143 | D33: 0.03090206732 | E33: 0.03206705497 | F33: 0.03321866394 | G33: 0.03409151828 | H33: 0.03469923608 | I33: 0.03509713229 | J33: 0.0354166973 | K33: 0.03560775488 | L33: 0.03562468279 | M33: 0.03562094658 | N33: 0.03552684766 | O33: 0.03524002686 | P33: 0.03504530969 | Q33: 0.03494287448 | R33: 0.03484657242 | S33: 0.03474217873 | T33: 0.03463351042 | U33: 0.03452439322 | V33: 0.03441867991 | X33: 9 | Y33: 0.7804195323 | Z33: 0.7697182424 | AA33: 0.7604020957 | AB33: 0.7527118707 | AC33: 0.7451948013 | AD33: 0.7395528514 | AE33: 0.7356527181 | AF33: 0.7331115327 | AG33: 0.7310776752 | AH33: 0.7298646927 | AI33: 0.729757329 | AJ33: 0.729781024 | AK33: 0.7303780817 | AL33: 0.7322013105 | AM33: 0.7334419474 | AN33: 0.734095549 | AO33: 0.7347106075 | AP33: 0.7353779921 | AQ33: 0.7360734197 | AR33: 0.7367724554 | AS33: 0.7374503883
A34: 10 | B34: 0.02863 | C34: 0.03005883775 | D34: 0.03138172826 | E34: 0.03259070563 | F34: 0.03353285575 | G34: 0.03422441693 | H34: 0.03475542833 | I34: 0.03511107761 | J34: 0.03539345107 | K34: 0.0355573438 | L34: 0.03556163839 | M34: 0.03554503467 | N34: 0.03544739054 | O34: 0.03517719158 | P34: 0.03499070445 | Q34: 0.03488803729 | R34: 0.03479160962 | S34: 0.03468857203 | T34: 0.03458231475 | U34: 0.03447623866 | V34: 0.03437377165 | X34: 10 | Y34: 0.7540638764 | Z34: 0.743668992 | AA34: 0.7341852706 | AB34: 0.7256344344 | AC34: 0.719046749 | AD34: 0.714253097 | AE34: 0.7105961761 | AF34: 0.7081584413 | AG34: 0.7062295135 | AH34: 0.7051125933 | AI34: 0.7050833521 | AJ34: 0.7051964119 | AK34: 0.7058617042 | AL34: 0.7077062896 | AM34: 0.7089824863 | AN34: 0.709686154 | AO34: 0.7103477566 | AP34: 0.7110554606 | AQ34: 0.7117860912 | AR34: 0.7125162998 | AS34: 0.7132224465
A35: 11 | B35: 0.02921 | C35: 0.0305711884 | D35: 0.03191975958 | E35: 0.03293324413 | F35: 0.0337043877 | G35: 0.03431863573 | H35: 0.03479916142 | I35: 0.0351177302 | J35: 0.03536711167 | K35: 0.03550615549 | L35: 0.03549802244 | M35: 0.03547114614 | N35: 0.03537140404 | O35: 0.03511555463 | P35: 0.03493650197 | Q35: 0.03483429957 | R35: 0.03473838021 | S35: 0.03463702244 | T35: 0.03453326983 | U35: 0.03443017807 | V35: 0.03433082974 | X35: 11 | Y35: 0.72854441 | Z35: 0.7180290838 | AA35: 0.7077742949 | AB35: 0.7001727335 | AC35: 0.6944484986 | AD35: 0.6899254322 | AE35: 0.6864094452 | AF35: 0.6840892677 | AG35: 0.6822789604 | AH35: 0.6812718847 | AI35: 0.6813307466 | AJ35: 0.6815252998 | AK35: 0.682247847 | AL35: 0.6841050836 | AM35: 0.6854081252 | AN35: 0.6861531088 | AO35: 0.686853097 | AP35: 0.6875936196 | AQ35: 0.6883525412 | AR35: 0.6891075339 | AS35: 0.6898359665
A36: 12 | B36: 0.02975 | C36: 0.03113153841 | D36: 0.03228945736 | E36: 0.03314035139 | F36: 0.03383404057 | G36: 0.03439510115 | H36: 0.03483124736 | I36: 0.03511656555 | J36: 0.03533604819 | K36: 0.03545246704 | L36: 0.03543421151 | M36: 0.03539951052 | N36: 0.03529870788 | O36: 0.03505545866 | P36: 0.03488320137 | Q36: 0.03478194643 | R36: 0.03468697346 | S36: 0.03458750324 | T36: 0.03448629269 | U36: 0.03438611196 | V36: 0.0342897578 | X36: 12 | Y36: 0.7034259608 | Z36: 0.6921992975 | AA36: 0.6829392863 | AB36: 0.6762201543 | AC36: 0.6707953841 | AD36: 0.6664422763 | AE36: 0.6630794852 | AF36: 0.6608895627 | AG36: 0.6592102844 | AH36: 0.6583214317 | AI36: 0.658460726 | AJ36: 0.6587255913 | AK36: 0.6594956513 | AL36: 0.6613579205 | AM36: 0.6626801344 | AN36: 0.663458684 | AO36: 0.6641898322 | AP36: 0.6649565385 | AQ36: 0.6657376431 | AR36: 0.6665117791 | AS36: 0.6672572657
A37: 13 | B37: 0.03033 | C37: 0.0315331636 | D37: 0.03253002963 | E37: 0.03330334658 | F37: 0.0339418618 | G37: 0.03445578419 | H37: 0.0348522069 | I37: 0.03510716857 | J37: 0.03529958122 | K37: 0.03539707108 | L37: 0.0353709294 | M37: 0.03533024245 | N37: 0.03522913564 | O37: 0.03499710178 | P37: 0.03483111143 | Q37: 0.0347311408 | R37: 0.03463741884 | S37: 0.03453996565 | T37: 0.03444129756 | U37: 0.0343439449 | V37: 0.03425046431 | X37: 13 | Y37: 0.6781214952 | Z37: 0.6679107981 | AA37: 0.6595762553 | AB37: 0.6531879024 | AC37: 0.6479633622 | AD37: 0.6437909685 | AE37: 0.6405922907 | AF37: 0.6385440882 | AG37: 0.6370030351 | AH37: 0.6362237577 | AI37: 0.6364326184 | AJ37: 0.6367578363 | AK37: 0.6375667759 | AL37: 0.6394274294 | AM37: 0.6407620752 | AN37: 0.6415673365 | AO37: 0.6423232548 | AP37: 0.6431102847 | AQ37: 0.6439081843 | AR37: 0.6446964914 | AS37: 0.6454544228
A38: 14 | B38: 0.03075989536 | C38: 0.0318104009 | D38: 0.03272488089 | E38: 0.03344131587 | F38: 0.03403055494 | G38: 0.03450205433 | H38: 0.03486236372 | I38: 0.03508966016 | J38: 0.03525906875 | K38: 0.0353409638 | L38: 0.03530865202 | M38: 0.03526338517 | N38: 0.03516253209 | O38: 0.03494059137 | P38: 0.03478042075 | Q38: 0.03468196902 | R38: 0.03458970927 | S38: 0.03449434851 | T38: 0.03439819851 | U38: 0.03430358565 | V38: 0.0342128623 | X38: 14 | Y38: 0.6543269702 | Z38: 0.6450618845 | AA38: 0.6371108993 | AB38: 0.6309551906 | AC38: 0.6259401232 | AD38: 0.6219579107 | AE38: 0.6189330914 | AF38: 0.6170330345 | AG38: 0.6156209492 | AH38: 0.6149395645 | AI38: 0.6152083089 | AJ38: 0.6155850154 | AK38: 0.6164251943 | AL38: 0.6182784504 | AM38: 0.6196196203 | AN38: 0.6204455409 | AO38: 0.6212205871 | AP38: 0.6220227742 | AQ38: 0.6228327243 | AR38: 0.623630829 | AS38: 0.6243971529
A39: 15 | B39: 0.03107 | C39: 0.03204010227 | D39: 0.03289213867 | E39: 0.03355742069 | F39: 0.03410206695 | G39: 0.03453487085 | H39: 0.03486234466 | I39: 0.03506584903 | J39: 0.03521590795 | K39: 0.03528483738 | L39: 0.03524769232 | M39: 0.03519893646 | N39: 0.03509875157 | O39: 0.03488597629 | P39: 0.03473123957 | Q39: 0.03463446815 | R39: 0.03454381498 | S39: 0.03445058393 | T39: 0.03435691099 | U39: 0.03426494722 | V39: 0.03417686924 | X39: 15 | Y39: 0.631942753 | Z39: 0.6230908922 | AA39: 0.6154254042 | AB39: 0.6095100321 | AC39: 0.6047124459 | AD39: 0.6009287623 | AE39: 0.5980826863 | AF39: 0.5963212755 | AG39: 0.5950260011 | AH39: 0.594432024 | AI39: 0.5947520309 | AJ39: 0.5951723444 | AK39: 0.5960370111 | AL39: 0.5978778607 | AM39: 0.5992203915 | AN39: 0.6000616362 | AO39: 0.6008508373 | AP39: 0.6016636355 | AQ39: 0.6024814675 | AR39: 0.6032855308 | AS39: 0.6040566928
A40: 16 | B40: 0.03133145815 | C40: 0.03223959353 | D40: 0.03303524735 | E40: 0.03365399884 | F40: 0.03415781593 | G40: 0.03455531825 | H40: 0.03485423207 | I40: 0.03503746799 | J40: 0.03517111085 | K40: 0.03522917719 | L40: 0.0351882532 | M40: 0.03513686482 | N40: 0.03503765679 | O40: 0.03483326692 | P40: 0.03468362598 | Q40: 0.03458864296 | R40: 0.03449969207 | S40: 0.03440860083 | T40: 0.03431735275 | U40: 0.0342279467 | V40: 0.03414240672 | X40: 16 | Y40: 0.610418602 | Z40: 0.6018825995 | AA40: 0.5945080784 | AB40: 0.588839553 | AC40: 0.5842663875 | AD40: 0.5806848808 | AE40: 0.5780070279 | AF40: 0.5763719776 | AG40: 0.5751825555 | AH40: 0.5746665778 | AI40: 0.5750301773 | AJ40: 0.5754870966 | AK40: 0.5763702954 | AL40: 0.5781944179 | AM40: 0.5795338105 | AN40: 0.5803856858 | AO40: 0.5811846674 | AP40: 0.5820040853 | AQ40: 0.5828261449 | AR40: 0.5836328062 | AS40: 0.5844056966
A41: 17 | B41: 0.0315607637 | C41: 0.03241257701 | D41: 0.03315680973 | E41: 0.03373279857 | F41: 0.03419922983 | G41: 0.03456574285 | H41: 0.03483997247 | I41: 0.03500580842 | J41: 0.03512541957 | K41: 0.03517432445 | L41: 0.03513046172 | M41: 0.03507711977 | N41: 0.03497911805 | O41: 0.03478244802 | P41: 0.0346376027 | Q41: 0.03454447678 | R41: 0.03445728797 | S41: 0.0343683271 | T41: 0.03427944429 | U41: 0.03419250523 | V41: 0.03410940036 | X41: 17 | Y41: 0.589641639 | Z41: 0.5814255719 | AA41: 0.5743463646 | AB41: 0.5689301763 | AC41: 0.5645838224 | AD41: 0.5611932092 | AE41: 0.5586704137 | AF41: 0.5571506227 | AG41: 0.556057173 | AH41: 0.5556107537 | AI41: 0.556011129 | AJ41: 0.5564984417 | AK41: 0.5573949286 | AL41: 0.5591986171 | AM41: 0.5605309651 | AN41: 0.5613893513 | AO41: 0.562194274 | AP41: 0.5630168158 | AQ41: 0.5638399085 | AR41: 0.564646234 | AS41: 0.5654181403
A42: 18 | B42: 0.03176173581 | C42: 0.03256190314 | D42: 0.03325881307 | E42: 0.03379550396 | F42: 0.03422885156 | G42: 0.03456830407 | H42: 0.03482104811 | I42: 0.03497184477 | J42: 0.03507938307 | K42: 0.03512051803 | L42: 0.0350743918 | M42: 0.03501963868 | N42: 0.0349230126 | O42: 0.03473348726 | P42: 0.03459316823 | Q42: 0.03450193869 | R42: 0.03441654504 | S42: 0.03432969099 | T42: 0.03424310914 | U42: 0.03415854778 | V42: 0.03407777951 | X42: 18 | Y42: 0.5696006621 | Z42: 0.5617075287 | AA42: 0.5549270201 | AB42: 0.5497642522 | AC42: 0.5456326101 | AD42: 0.5424190836 | AE42: 0.540039386 | AF42: 0.5386248195 | AG42: 0.5376184328 | AH42: 0.5372340003 | AI42: 0.5376650992 | AJ42: 0.5381772996 | AK42: 0.539082467 | AL42: 0.5408625603 | AM42: 0.5421844863 | AN42: 0.5430457762 | AO42: 0.5438532786 | AP42: 0.5446758912 | AQ42: 0.5454972331 | AR42: 0.5463006699 | AS42: 0.5470692341
A43: 19 | B43: 0.03193736221 | C43: 0.03268978725 | D43: 0.03334313347 | E43: 0.03384480105 | F43: 0.03424900561 | G43: 0.03456467674 | H43: 0.03479860084 | I43: 0.03493631964 | J43: 0.03503340963 | K43: 0.03506792292 | L43: 0.03502007967 | M43: 0.03496435139 | N43: 0.03486922408 | O43: 0.03468634093 | P43: 0.03455030439 | Q43: 0.03446098842 | R43: 0.03437740291 | S43: 0.03429262197 | T43: 0.03420827398 | U43: 0.03412600305 | V43: 0.03404747716 | X43: 19 | Y43: 0.5502836403 | Z43: 0.5427155185 | AA43: 0.5362328295 | AB43: 0.5313104838 | AC43: 0.5273790479 | AD43: 0.5243300193 | AE43: 0.5220825482 | AF43: 0.5207641326 | AG43: 0.5198367731 | AH43: 0.5195075367 | AI43: 0.5199639918 | AJ43: 0.5204962074 | AK43: 0.5214060165 | AL43: 0.5231598389 | AM43: 0.5244684361 | AN43: 0.5253294804 | AO43: 0.5261366285 | AP43: 0.526956654 | AQ43: 0.527773827 | AR43: 0.5285721624 | AS43: 0.5293353427
A44: 20 | B44: 0.03209 | C44: 0.0327982934 | D44: 0.03341256 | E44: 0.03388313977 | F44: 0.03426152324 | G44: 0.0345561739 | H44: 0.03477351882 | I44: 0.03489980326 | J44: 0.03498780345 | K44: 0.03501665007 | L44: 0.0349675346 | M44: 0.03491118331 | N44: 0.03481764216 | O44: 0.03464095791 | P44: 0.03450898152 | Q44: 0.03442157963 | R44: 0.03433980012 | S44: 0.03425705134 | T44: 0.03417486868 | U44: 0.03409480329 | V44: 0.03401842968 | X44: 20 | Y44: 0.5316778856 | Z44: 0.5244327048 | AA44: 0.5182332663 | AB44: 0.5135360532 | AC44: 0.5097915518 | AD44: 0.5068955334 | AE44: 0.5047703995 | AF44: 0.5035399267 | AG44: 0.5026843449 | AH44: 0.5024042159 | AI44: 0.5028812733 | AJ44: 0.5034291981 | AK44: 0.5043401181 | AL44: 0.5060654251 | AM44: 0.5073582065 | AN44: 0.5082162644 | AO44: 0.5090205051 | AP44: 0.5098356382 | AQ44: 0.5106465512 | AR44: 0.5114378752 | AS44: 0.5121939116
A45: 21 | B45: 0.03221776694 | C45: 0.0328865313 | D45: 0.0334661116 | E45: 0.03390919543 | F45: 0.03426480848 | G45: 0.03454099428 | H45: 0.03474385657 | I45: 0.03486027908 | J45: 0.03494050619 | K45: 0.0349646464 | L45: 0.03491477182 | M45: 0.03485822195 | N45: 0.0347664559 | O45: 0.0345956967 | P45: 0.03446768845 | Q45: 0.03438229259 | R45: 0.03430240232 | S45: 0.03422172965 | T45: 0.03414172707 | U45: 0.03406386271 | V45: 0.0339896276 | X45: 21 | Y45: 0.5138094281 | Z45: 0.5068682631 | AA45: 0.5009322067 | AB45: 0.4964432891 | AC45: 0.4928710352 | AD45: 0.4901152381 | AE45: 0.4881013527 | AF45: 0.4869495024 | AG45: 0.4861574164 | AH45: 0.4859193432 | AI45: 0.4864113458 | AJ45: 0.4869698303 | AK45: 0.4878775385 | AL45: 0.4895713321 | AM45: 0.4908451104 | AN45: 0.4916967935 | AO45: 0.4924949693 | AP45: 0.4933023394 | AQ45: 0.4941043727 | AR45: 0.4948862821 | AS45: 0.4956329537
A46: 22 | B46: 0.03232388256 | C46: 0.03295738958 | D46: 0.03350607364 | E46: 0.03392475868 | F46: 0.03426023074 | G46: 0.03452015335 | H46: 0.03471033819 | I46: 0.03481825134 | J46: 0.03489183721 | K46: 0.03491209516 | L46: 0.03486189964 | M46: 0.034805513 | N46: 0.03471568067 | O46: 0.03455060572 | P46: 0.03442648204 | Q46: 0.03434316779 | R46: 0.03426523498 | S46: 0.03418667294 | T46: 0.0341088599 | U46: 0.03403318963 | V46: 0.03396107825 | X46: 22 | Y46: 0.496647845 | Z46: 0.489989811 | AA46: 0.4842986624 | AB46: 0.4800024185 | AC46: 0.4765888062 | AD46: 0.4739614055 | AE46: 0.4720485382 | AF46: 0.4709667453 | AG46: 0.4702305582 | AH46: 0.4700280996 | AI46: 0.4705299222 | AJ46: 0.4710943078 | AK46: 0.4719949206 | AL46: 0.4736545733 | AM46: 0.4749065225 | AN46: 0.4757487954 | AO46: 0.4765380778 | AP46: 0.4773351186 | AQ46: 0.4781259344 | AR46: 0.478896287 | AS46: 0.4796316162
A47: 23 | B47: 0.032412353 | C47: 0.03301423985 | D47: 0.03353525029 | E47: 0.03393216079 | F47: 0.03424971347 | G47: 0.03449522652 | H47: 0.03467424658 | I47: 0.03477477304 | J47: 0.03484265192 | K47: 0.03485969756 | L47: 0.0348095185 | M47: 0.03475356901 | N47: 0.03466577041 | O47: 0.03450613492 | P47: 0.0343857902 | Q47: 0.03430459257 | R47: 0.03422864797 | S47: 0.03415219995 | T47: 0.03407655992 | U47: 0.03400305463 | V47: 0.03393303266 | X47: 23 | Y47: 0.4801496059 | Z47: 0.4737562052 | AA47: 0.4682936294 | AB47: 0.4641763175 | AC47: 0.4609094232 | AD47: 0.4584001026 | AE47: 0.456579378 | AF47: 0.455560283 | AG47: 0.4548734982 | AH47: 0.4547012036 | AI47: 0.4552086003 | AJ47: 0.4557750429 | AK47: 0.4566654145 | AL47: 0.4582889422 | AM47: 0.4595168552 | AN47: 0.460347278 | AO47: 0.4611253944 | AP47: 0.461910055 | AQ47: 0.4626877937 | AR47: 0.4634448921 | AS47: 0.4641673148
A48: 24 | B48: 0.03248638031 | C48: 0.0330597637 | D48: 0.03355585832 | E48: 0.03393323203 | F48: 0.03423475437 | G48: 0.03446742832 | H48: 0.03463655895 | I48: 0.03473063596 | J48: 0.03479358316 | K48: 0.03480796334 | L48: 0.03475805924 | M48: 0.03470275234 | N48: 0.03461704304 | O48: 0.03446260304 | P48: 0.03434591716 | Q48: 0.03426684099 | R48: 0.03419288749 | S48: 0.0341185341 | T48: 0.0340450318 | U48: 0.03397364665 | V48: 0.03390566604 | X48: 24 | Y48: 0.4642757962 | Z48: 0.4581305778 | AA48: 0.4528820722 | AB48: 0.4489315575 | AC48: 0.4458008944 | AD48: 0.443400624 | AE48: 0.4416643199 | AF48: 0.4407015872 | AG48: 0.4400586408 | AH48: 0.439911898 | AI48: 0.440421364 | AJ48: 0.4409867048 | AK48: 0.4418643093 | AL48: 0.4434502647 | AM48: 0.4446524522 | AN48: 0.4454690851 | AO48: 0.446234229 | AP48: 0.4470048906 | AQ48: 0.4477680936 | AR48: 0.4485106127 | AS48: 0.4492189116
A49: 25 | B49: 0.03254853832 | C49: 0.03309610503 | D49: 0.03356965804 | E49: 0.03392941467 | F49: 0.03421652252 | G49: 0.03443769582 | H49: 0.03459801859 | I49: 0.03468643282 | J49: 0.03474509503 | K49: 0.03475725777 | L49: 0.03470782513 | M49: 0.03465331273 | N49: 0.03456971475 | O49: 0.03442023049 | P49: 0.03430707439 | Q49: 0.03423010222 | R49: 0.03415812215 | S49: 0.03408582752 | T49: 0.03401441438 | U49: 0.03394509363 | V49: 0.03387909693 | X49: 25 | Y49: 0.4489914738 | Z49: 0.4430797435 | AA49: 0.4380323775 | AB49: 0.4342379013 | AC49: 0.4312342104 | AD49: 0.4289350585 | AE49: 0.4272764352 | AF49: 0.4263645985 | AG49: 0.4257607183 | AH49: 0.425635624 | AI49: 0.4261442787 | AJ49: 0.4267059364 | AK49: 0.4275687677 | AL49: 0.4291161505 | AM49: 0.4302913554 | AN49: 0.4310926774 | AO49: 0.4318434333 | AP49: 0.4325988389 | AQ49: 0.4333463831 | AR49: 0.4340733094 | AS49: 0.4347665568
A50: 26 | B50: 0.03260090641 | C50: 0.03312498569 | D50: 0.03357805265 | E50: 0.03392184838 | F50: 0.03419593181 | G50: 0.0344067516 | H50: 0.03455918882 | I50: 0.03464260394 | J50: 0.0346975232 | K50: 0.0347078368 | L50: 0.03465902329 | M50: 0.03460541544 | N50: 0.03452392555 | O50: 0.03437916381 | P50: 0.03426940368 | Q50: 0.03419450177 | R50: 0.03412446246 | S50: 0.03405417899 | T50: 0.03398479732 | U50: 0.03391747793 | V50: 0.03385340158 | X50: 26 | Y50: 0.4342651214 | Z50: 0.4285736962 | AA50: 0.4237158904 | AB50: 0.4200678739 | AC50: 0.4171829476 | AD50: 0.4149779206 | AE50: 0.4133910762 | AF50: 0.4125254084 | AG50: 0.4119564936 | AH50: 0.4118497448 | AI50: 0.4123552331 | AJ50: 0.4129111115 | AK50: 0.4137575995 | AL50: 0.4152657799 | AM50: 0.4164131054 | AN50: 0.4171979462 | AO50: 0.4179332255 | AP50: 0.4186724207 | AQ50: 0.4194034632 | AR50: 0.4201140435 | AS50: 0.4207915537
A51: 27 | B51: 0.03264517224 | C51: 0.03314779413 | D51: 0.03358216429 | E51: 0.03391143567 | F51: 0.0341736969 | G51: 0.03437515167 | H51: 0.034520494 | I51: 0.03459947272 | J51: 0.03465110542 | K51: 0.03465987355 | L51: 0.03461178837 | M51: 0.03455916231 | N51: 0.0344797585 | O51: 0.03433949415 | P51: 0.03423299443 | Q51: 0.03416011735 | R51: 0.03409197539 | S51: 0.03402364742 | T51: 0.03395623349 | U51: 0.03389084788 | V51: 0.0338286246 | X51: 27 | Y51: 0.420068182 | Z51: 0.4145851815 | AA51: 0.4099065198 | AB51: 0.4063963975 | AC51: 0.4036229297 | AD51: 0.401505837 | AE51: 0.3999855848 | AF51: 0.3991619872 | AG51: 0.3986245075 | AH51: 0.3985333086 | AI51: 0.3990337171 | AJ51: 0.399582128 | AK51: 0.400411067 | AL51: 0.4018797222 | AM51: 0.4029985711 | AN51: 0.4037660533 | AO51: 0.4044850404 | AP51: 0.4052073234 | AQ51: 0.4059212552 | AR51: 0.4066149527 | AS51: 0.4072762417
A52: 28 | B52: 0.03268271133 | C52: 0.03316565405 | D52: 0.03358289272 | E52: 0.03389889216 | F52: 0.03415037632 | G52: 0.03434332219 | H52: 0.03448225086 | I52: 0.03455727254 | J52: 0.03460600467 | K52: 0.03461347845 | L52: 0.03456620042 | M52: 0.03451460774 | N52: 0.03443725417 | O52: 0.03430127113 | P52: 0.03419789678 | Q52: 0.03412699093 | R52: 0.03406069544 | S52: 0.03399426198 | T52: 0.03392874839 | U52: 0.03386522644 | V52: 0.0338047871 | X52: 28 | Y52: 0.4063746633 | Z52: 0.4010893323 | AA52: 0.3965804029 | AB52: 0.3932004813 | AC52: 0.3905319401 | AD52: 0.388497279 | AE52: 0.3870390435 | AF52: 0.3862539526 | AG52: 0.3857448617 | AH52: 0.3856668468 | AI52: 0.3861606334 | AJ52: 0.3867002309 | AK52: 0.38751072 | AL52: 0.38893978 | AM52: 0.390029803 | AN52: 0.3907792935 | AO52: 0.3914814007 | AP52: 0.3921862798 | AQ52: 0.3928826862 | AR52: 0.3935591446 | AS52: 0.3942038957
A53: 29 | B53: 0.03271464905 | C53: 0.03317947769 | D53: 0.03358096089 | E53: 0.03388478558 | F53: 0.03412640569 | G53: 0.0343115878 | H53: 0.03444469264 | I53: 0.03451616752 | J53: 0.03456232695 | K53: 0.03456871454 | L53: 0.03452229854 | M53: 0.03447177079 | N53: 0.03439642165 | O53: 0.03426451345 | P53: 0.03416413156 | Q53: 0.03409513785 | R53: 0.03403063294 | S53: 0.03396602979 | T53: 0.03390234726 | U53: 0.03384061785 | V53: 0.03378189279 | X53: 29 | Y53: 0.3931608015 | Z53: 0.3880633591 | AA53: 0.3837156188 | AB53: 0.3804589567 | AC53: 0.3778894762 | AD53: 0.3759323346 | AE53: 0.3745320635 | AF53: 0.3737823712 | AG53: 0.373299035 | AH53: 0.3732322013 | AI53: 0.3737181359 | AJ53: 0.3742478609 | AK53: 0.3750392528 | AL53: 0.3764288551 | AM53: 0.3774899081 | AN53: 0.3782209766 | AO53: 0.3789058058 | AP53: 0.3795929639 | AQ53: 0.3802715915 | AR53: 0.3809306037 | AS53: 0.3815586387
A54: 30 | B54: 0.0327419094 | C54: 0.03319000772 | D54: 0.03357695062 | E54: 0.03386956626 | F54: 0.03410212368 | G54: 0.03428019362 | H54: 0.03440798774 | I54: 0.03447626847 | J54: 0.03452013485 | K54: 0.03452560923 | L54: 0.03448009128 | M54: 0.0344306444 | N54: 0.03435724687 | O54: 0.03422921693 | P54: 0.03413169784 | Q54: 0.03406455376 | R54: 0.03400178049 | S54: 0.03393894177 | T54: 0.03387702042 | U54: 0.03381701259 | V54: 0.03375993263 | X54: 30 | Y54: 0.3804047746 | Z54: 0.3754862862 | AA54: 0.3712919453 | AB54: 0.3681522516 | AC54: 0.3656765405 | AD54: 0.3637925141 | AE54: 0.3624466034 | AF54: 0.36172959 | AG54: 0.3612697242 | AH54: 0.3612123768 | AI54: 0.3616894902 | AJ54: 0.3622085241 | AK54: 0.3629803826 | AL54: 0.3643308338 | AM54: 0.3653629413 | AN54: 0.3660753263 | AO54: 0.3667426362 | AP54: 0.3674119008 | AQ54: 0.3680726295 | AR54: 0.3687141117 | AS54: 0.3693253671
A55: 31 | B55: 0.0327652535 | C55: 0.03319785027 | D55: 0.03357133068 | E55: 0.03385359099 | F55: 0.03407779222 | G55: 0.03424932241 | H55: 0.03437225419 | I55: 0.03443764526 | J55: 0.03447945809 | K55: 0.03448416334 | L55: 0.03443956461 | M55: 0.03439120245 | N55: 0.03431969902 | O55: 0.03419536064 | P55: 0.03410057874 | Q55: 0.03403521995 | R55: 0.0339741177 | S55: 0.03391297711 | T55: 0.03385274749 | U55: 0.03379439122 | V55: 0.03373888839 | X55: 31 | Y55: 0.3680864587 | Z55: 0.3633387264 | AA55: 0.3592906508 | AB55: 0.3562621975 | AC55: 0.353875461 | AD55: 0.352060583 | AE55: 0.3507658137 | AF55: 0.3500790912 | AG55: 0.3496407096 | AH55: 0.3495914134 | AI55: 0.3500589555 | AJ55: 0.3505666803 | AK55: 0.3513187443 | AL55: 0.3526304883 | AM55: 0.3536338126 | AN55: 0.3543273917 | AO55: 0.3549770709 | AP55: 0.3556283887 | AQ55: 0.3562712082 | AR55: 0.3568951781 | AS55: 0.3574896843
A56: 32 | B56: 0.03278531022 | C56: 0.03320350104 | D56: 0.03356447892 | E56: 0.03383714188 | F56: 0.0340536125 | G56: 0.03421910795 | H56: 0.03433757095 | I56: 0.03440033638 | J56: 0.03444030163 | K56: 0.03444435797 | L56: 0.03440068806 | M56: 0.03435340517 | N56: 0.03428373538 | O56: 0.03416291162 | P56: 0.0340707459 | Q56: 0.03400710737 | R56: 0.03394761501 | S56: 0.03388810665 | T56: 0.03382950044 | U56: 0.03377272726 | V56: 0.03371873532 | X56: 32 | Y56: 0.3561872191 | Z56: 0.3516026892 | AA56: 0.3476943163 | AB56: 0.3447718652 | AC56: 0.3424697387 | AD56: 0.3407204202 | AE56: 0.3394739044 | AF56: 0.3388153679 | AG56: 0.3383967382 | AH56: 0.3383542784 | AI56: 0.3388116817 | AJ56: 0.339307647 | AK56: 0.3400398002 | AL56: 0.3413133906 | AM56: 0.3422882064 | AN56: 0.3429629719 | AO56: 0.3435950158 | AP56: 0.3442284315 | AQ56: 0.3448534215 | AR56: 0.3454599795 | AS56: 0.3460378439
A57: 33 | B57: 0.03280260059 | C57: 0.03320736621 | D57: 0.03355669995 | E57: 0.03382044124 | F57: 0.03402973748 | G57: 0.03418964564 | H57: 0.03430398678 | I57: 0.03436435649 | J57: 0.03440265195 | K57: 0.03440615991 | L57: 0.03436341938 | M57: 0.0343172032 | N57: 0.03424930503 | O57: 0.03413182849 | P57: 0.03404216281 | Q57: 0.03398017977 | R57: 0.03392223642 | S57: 0.03386429547 | T57: 0.03380724599 | U57: 0.03375198945 | V57: 0.0336994442 | X57: 33 | Y57: 0.3446897327 | Z57: 0.3402614158 | AA57: 0.3364866838 | AB57: 0.3336654234 | AC57: 0.3314439162 | AD57: 0.3297568955 | AE57: 0.3285560306 | AF57: 0.3279238176 | AG57: 0.3275234238 | AH57: 0.3274867719 | AI57: 0.3279336217 | AJ57: 0.3284175163 | AK57: 0.3291297611 | AL57: 0.3303658392 | AM57: 0.3313125116 | AN57: 0.3319685497 | AO57: 0.3325830415 | AP57: 0.3331986797 | AQ57: 0.3338059931 | AR57: 0.3343953073 | AS57: 0.3349566997
A58: 34 | B58: 0.03281755749 | C58: 0.03320977909 | D58: 0.03354823917 | E58: 0.03380366348 | F58: 0.03400628186 | G58: 0.03416100081 | H58: 0.03427152716 | I58: 0.03432970216 | J58: 0.03436648195 | K58: 0.03436952573 | L58: 0.03432770816 | M58: 0.03428254079 | N58: 0.03421635171 | O58: 0.03410206417 | P58: 0.03401478747 | Q58: 0.03395439603 | R58: 0.0338979417 | S58: 0.03384150491 | T58: 0.03378594748 | U58: 0.03373214336 | V58: 0.03368098295 | X58: 34 | Y58: 0.3335778358 | Z58: 0.3292992393 | AA58: 0.3256525264 | AB58: 0.3229280183 | AC58: 0.3207834653 | AD58: 0.3191557645 | AE58: 0.3179981945 | AF58: 0.3173906501 | AG58: 0.3170071609 | AH58: 0.3169754459 | AI58: 0.3174114545 | AJ58: 0.317883083 | AK58: 0.3185755195 | AL58: 0.319774795 | AM58: 0.3206937615 | AN58: 0.3213312349 | AO58: 0.3219283289 | AP58: 0.3225263792 | AQ58: 0.3231162282 | AR58: 0.323688521 | AS58: 0.3242336613
A59: 35 | B59: 0.0328305414 | C59: 0.03321101357 | D59: 0.03353929408 | E59: 0.03378694459 | F59: 0.03398333002 | G59: 0.03413321528 | H59: 0.03424019974 | I59: 0.0342963565 | J59: 0.03433175472 | K59: 0.03433440497 | L59: 0.03429349858 | M59: 0.03424935819 | N59: 0.03418481593 | O59: 0.03407356799 | P59: 0.03398857432 | Q59: 0.03392971196 | R59: 0.03387468802 | S59: 0.03381969401 | T59: 0.0337655662 | U59: 0.03371315273 | V59: 0.03366331776 | X59: 35 | Y59: 0.3228363937 | Z59: 0.3187014637 | AA59: 0.3151775357 | AB59: 0.312545669 | AC59: 0.3104746901 | AD59: 0.3089035787 | AE59: 0.3077871609 | AF59: 0.3072028086 | AG59: 0.3068350506 | AH59: 0.3068075349 | AI59: 0.3072325198 | AJ59: 0.3076917825 | AK59: 0.30836459 | AL59: 0.3095278253 | AM59: 0.3104195803 | AN59: 0.3110387137 | AO59: 0.3116186219 | AP59: 0.312199326 | AQ59: 0.3127719703 | AR59: 0.3133275075 | AS59: 0.3138566561
A60: 36 | B60: 0.03284185328 | C60: 0.03321129495 | D60: 0.0335300233 | E60: 0.03377038966 | F60: 0.0339609423 | G60: 0.03410631258 | H60: 0.03420999861 | I60: 0.03426429268 | J60: 0.03429842645 | K60: 0.03430074255 | L60: 0.03426073154 | M60: 0.03421759346 | N60: 0.03415463659 | O60: 0.0340462873 | P60: 0.03396347579 | Q60: 0.03390608173 | R60: 0.03385243116 | S60: 0.03379882066 | T60: 0.03374606246 | U60: 0.03369498042 | V60: 0.03364641402 | X60: 36 | Y60: 0.3124511889 | Z60: 0.3084542605 | AA60: 0.3050482269 | AB60: 0.302505179 | AC60: 0.300504644 | AD60: 0.2989876072 | AE60: 0.2979103846 | AF60: 0.2973479008 | AG60: 0.2969948355 | AH60: 0.2969708944 | AI60: 0.2973847605 | AJ60: 0.2978316367 | AK60: 0.2984850586 | AL60: 0.2996130551 | AM60: 0.3004781377 | AN60: 0.3010792051 | AO60: 0.3016421858 | AP60: 0.3022058269 | AQ60: 0.3027615639 | AR60: 0.3033006457 | AS60: 0.3038140942
A61: 37 | B61: 0.03285174489 | C61: 0.03321080866 | D61: 0.03352055386 | E61: 0.03375407901 | F61: 0.03393916 | G61: 0.03408030207 | H61: 0.03418090772 | I61: 0.03423347671 | J61: 0.03426644873 | K61: 0.03426848065 | L61: 0.03422934626 | M61: 0.03418718383 | N61: 0.03412575224 | O61: 0.03402016863 | P61: 0.03393944341 | Q61: 0.03388345883 | R61: 0.03383112651 | S61: 0.03377884247 | T61: 0.03372739636 | U61: 0.03367758912 | V61: 0.03363023697 | X61: 37 | Y61: 0.3024088251 | Z61: 0.2985445801 | AA61: 0.2952518553 | AB61: 0.2927940589 | AC61: 0.2908610576 | AD61: 0.2893957698 | AE61: 0.2883559467 | AF61: 0.2878141399 | AG61: 0.2874748447 | AH61: 0.2874539488 | AI61: 0.2878566729 | AJ61: 0.2882912064 | AK61: 0.2889255375 | AL61: 0.2900191251 | AM61: 0.2908581077 | AN61: 0.2914414226 | AO61: 0.2919877704 | AP61: 0.2925346645 | AQ61: 0.2930738209 | AR61: 0.2935967741 | AS61: 0.2940948387
A62: 38 | B62: 0.03286042735 | C62: 0.03320970742 | D62: 0.03351098716 | E62: 0.03373807306 | F62: 0.03391800945 | G62: 0.03405518223 | H62: 0.03415290347 | I62: 0.03420386964 | J62: 0.0342357703 | K62: 0.03423756016 | L62: 0.03419928146 | M62: 0.03415806677 | N62: 0.03409810193 | O62: 0.03399515862 | P62: 0.03391642867 | Q62: 0.03386179688 | R62: 0.03381072967 | S62: 0.0337597174 | T62: 0.03370952836 | U62: 0.03366094187 | V62: 0.03361475219 | X62: 38 | Y62: 0.2926966441 | Z62: 0.2889600742 | AA62: 0.2857763457 | AB62: 0.2834004595 | AC62: 0.2815322763 | AD62: 0.2801165785 | AE62: 0.2791125001 | AF62: 0.2785902929 | AG62: 0.2782639442 | AH62: 0.2782456452 | AI62: 0.278637263 | AJ62: 0.2790595505 | AK62: 0.279675126 | AL62: 0.2807351537 | AM62: 0.2815486336 | AN62: 0.28211454 | AO62: 0.2826445781 | AP62: 0.2831750664 | AQ62: 0.2836979911 | AR62: 0.2842051627 | AS62: 0.284688178
A63: 39 | B63: 0.03286807802 | C63: 0.03320811704 | D63: 0.03350140371 | E63: 0.0337224163 | F63: 0.03389750521 | G63: 0.03403094325 | H63: 0.03412595684 | I63: 0.03417542919 | J63: 0.03420633835 | K63: 0.03420792171 | L63: 0.03417047627 | M63: 0.03413018068 | N63: 0.03407162591 | O63: 0.03397120468 | P63: 0.03389438367 | Q63: 0.03384105018 | R63: 0.03379119705 | S63: 0.0337414042 | T63: 0.03369241971 | U63: 0.03364500249 | V63: 0.033599926 | X63: 39 | Y63: 0.2833026552 | Z63: 0.2796890305 | AA63: 0.27661023 | AB63: 0.2743131147 | AC63: 0.2725072068 | AD63: 0.2711390866 | AE63: 0.2701692221 | AF63: 0.2696656355 | AG63: 0.2693514952 | AH63: 0.2693354131 | AI63: 0.2697160086 | AJ63: 0.2701261893 | AK63: 0.2707233762 | AL63: 0.2717507041 | AM63: 0.2725392961 | AN63: 0.2730881613 | AO63: 0.2736022346 | AP63: 0.2741166771 | AQ63: 0.2746237361 | AR63: 0.2751154879 | AS63: 0.2755838019
A64: 40 | B64: 0.03287484622 | C64: 0.03320614113 | D64: 0.03349186702 | E64: 0.03370714044 | F64: 0.03387765264 | G64: 0.03400756912 | H64: 0.03410003503 | I64: 0.03414811111 | J64: 0.03417809958 | K64: 0.03417950648 | L64: 0.03414287095 | M64: 0.0341034655 | N64: 0.03404626608 | O64: 0.03394825546 | P64: 0.03387326158 | Q64: 0.03382117416 | R64: 0.0337724862 | S64: 0.03372386275 | T64: 0.03367603277 | U64: 0.03362973581 | V64: 0.03358572565 | X64: 40 | Y64: 0.2742154724 | Z64: 0.2707203145 | AA64: 0.267742594 | AB64: 0.2655212912 | AC64: 0.2637752696 | AD64: 0.2624528449 | AE64: 0.2615157721 | AF64: 0.2610299128 | AG64: 0.2607273164 | AH64: 0.260713129 | AI64: 0.2610828252 | AJ64: 0.2614810729 | AK64: 0.2620602621 | AL64: 0.2630557557 | AM64: 0.2638200855 | AN64: 0.2643522942 | AO64: 0.2648507637 | AP64: 0.2653495343 | AQ64: 0.265841105 | AR64: 0.2663178092 | AS64: 0.2667717794
A65: 41 | B65: 0.03288085787 | C65: 0.033203865 | D65: 0.03348242677 | E65: 0.03369226698 | F65: 0.03385844996 | G65: 0.03398503923 | H65: 0.03407510273 | I65: 0.03412187013 | J65: 0.03415100095 | K65: 0.03415225682 | L65: 0.03411640728 | M65: 0.03407786305 | N65: 0.03402196633 | O65: 0.0339262612 | P65: 0.03385301693 | Q65: 0.03380212561 | R65: 0.03375455603 | S65: 0.03370705428 | T65: 0.03366033118 | U65: 0.03361510792 | V65: 0.03357211956 | X65: 41 | Y65: 0.2654242619 | Z65: 0.2620433202 | AA65: 0.259163031 | AB65: 0.2570147446 | AC65: 0.2553263582 | AD65: 0.2540478629 | AE65: 0.2531422557 | AF65: 0.252673305 | AG65: 0.2523816514 | AH65: 0.2523690856 | AI65: 0.2527280367 | AJ65: 0.2531145525 | AK65: 0.2536761525 | AL65: 0.2546406772 | AM65: 0.2553813767 | AN65: 0.255897326 | AO65: 0.2563805641 | AP65: 0.2568640461 | AQ65: 0.2573405139 | AR65: 0.2578025493 | AS65: 0.2582425389
A66: 42 | B66: 0.03288621939 | C66: 0.03320135882 | D66: 0.03347312141 | E66: 0.03367780933 | F66: 0.03383988994 | G66: 0.0339633297 | H66: 0.03405112311 | I66: 0.03409666079 | J66: 0.03412499025 | K66: 0.03412611664 | L66: 0.03409102897 | M66: 0.03405331732 | N66: 0.03399867274 | O66: 0.03390517396 | P66: 0.03383360588 | Q66: 0.03378386293 | R66: 0.03373736705 | S66: 0.03369094156 | T66: 0.03364528004 | U66: 0.03360108622 | V66: 0.03355907741 | X66: 42 | Y66: 0.2569186946 | Z66: 0.2536479262 | AA66: 0.2508616008 | AB66: 0.2487836818 | AC66: 0.2471508034 | AD66: 0.2459145749 | AE66: 0.2450391926 | AF66: 0.2445863966 | AG66: 0.2443051398 | AH66: 0.2442939638 | AI66: 0.2446423491 | AJ66: 0.2450173552 | AK66: 0.2455617874 | AL66: 0.2464962043 | AM66: 0.2472139071 | AN66: 0.2477140021 | AO66: 0.2481823887 | AP66: 0.2486509712 | AQ66: 0.2491127262 | AR66: 0.2495604751 | AS66: 0.2499868504
A67: 43 | B67: 0.03289102088 | C67: 0.03319868027 | D67: 0.03346398023 | E67: 0.03366377447 | F67: 0.0338219612 | G67: 0.03394241439 | H67: 0.0340280586 | I67: 0.03407243796 | J67: 0.03410001654 | K67: 0.03410103172 | L67: 0.03406668185 | M67: 0.03402977461 | N67: 0.03397633374 | O67: 0.03388494775 | P67: 0.03381498636 | Q67: 0.03376634623 | R67: 0.03372088144 | S67: 0.03367548894 | T67: 0.03363084594 | U67: 0.03358763956 | V67: 0.03354657021 | X67: 43 | Y67: 0.2486889063 | Z67: 0.245524458 | AA67: 0.2428287942 | AB67: 0.2408187271 | AC67: 0.2392393414 | AD67: 0.2380438102 | AE67: 0.2371974878 | AF67: 0.2367601498 | AG67: 0.2364887914 | AH67: 0.2364788086 | AI67: 0.2368168269 | AJ67: 0.237180562 | AK67: 0.2377082557 | AL67: 0.2386134181 | AM67: 0.2393087566 | AN67: 0.2397934069 | AO67: 0.2402473264 | AP67: 0.2407014012 | AQ67: 0.2411488352 | AR67: 0.2415826811 | AS67: 0.2419958089
A68: 44 | B68: 0.03289533875 | C68: 0.03319587665 | D68: 0.03345502511 | E68: 0.03365016432 | F68: 0.03380464927 | G68: 0.03392226572 | H68: 0.03400587149 | I68: 0.03404915733 | J68: 0.03407603044 | K68: 0.03407694994 | L68: 0.03404331403 | M68: 0.03400718365 | N68: 0.03395490012 | O68: 0.03386553864 | P68: 0.03379711812 | Q68: 0.03374953741 | R68: 0.03370506308 | S68: 0.03366066244 | T68: 0.03361699706 | U68: 0.03357473825 | V68: 0.03353457031 | X68: 44 | Y68: 0.2407254616 | Z68: 0.2376636547 | AA68: 0.2350555021 | AB68: 0.2331108927 | AC68: 0.2315830864 | AD68: 0.2304267668 | AE68: 0.2296084074 | AF68: 0.2291858805 | AG68: 0.2289239637 | AH68: 0.2289150073 | AI68: 0.2292428724 | AJ68: 0.2295955873 | AK68: 0.2301069767 | AL68: 0.2309837273 | AM68: 0.231657329 | AN68: 0.2321269464 | AO68: 0.2325667844 | AP68: 0.233006744 | AQ68: 0.2334402482 | AR68: 0.2338605736 | AS68: 0.2342608197
A69: 45 | B69: 0.0328992379 | C69: 0.03319298669 | D69: 0.0334462719 | E69: 0.03363697685 | F69: 0.03378793747 | G69: 0.03390285528 | H69: 0.03398452439 | I69: 0.03402677569 | J69: 0.03405298434 | K69: 0.03405382135 | L69: 0.03402087595 | M69: 0.0339854956 | N69: 0.03393432514 | O69: 0.03384690479 | P69: 0.03377996282 | Q69: 0.03373340019 | R69: 0.03368987764 | S69: 0.03364642972 | T69: 0.03360370312 | U69: 0.03356235405 | V69: 0.03352305144 | X69: 45 | Y69: 0.2330193226 | Z69: 0.2300566394 | AA69: 0.2275329876 | AB69: 0.2256515531 | AC69: 0.2241735052 | AD69: 0.2230549876 | AE69: 0.2222635552 | AF69: 0.221855237 | AG69: 0.2216023411 | AH69: 0.2215942694 | AI69: 0.2219122063 | AJ69: 0.2222541608 | AK69: 0.2227496814 | AL69: 0.2235988503 | AM69: 0.2242513364 | AN69: 0.2247063318 | AO69: 0.2251324736 | AP69: 0.2255587088 | AQ69: 0.2259786721 | AR69: 0.2263858567 | AS69: 0.2267735841
A70: 46 | B70: 0.03290277358 | C70: 0.03319004202 | D70: 0.03343773161 | E70: 0.03362420695 | F70: 0.03377180753 | G70: 0.03388415433 | H70: 0.03396398056 | I70: 0.03400525118 | J70: 0.03403083249 | K70: 0.03403159825 | L70: 0.03399932043 | M70: 0.03396466408 | N70: 0.03391456439 | O70: 0.03382900643 | P70: 0.03376348399 | Q70: 0.03371790008 | R70: 0.03367529248 | S70: 0.03363276011 | T70: 0.03359093542 | U70: 0.0335504602 | V70: 0.0335119887 | X70: 46 | Y70: 0.2255618221 | Z70: 0.2226948939 | AA70: 0.2202528614 | AB70: 0.2184324217 | AC70: 0.2170023961 | AD70: 0.2159203401 | AE70: 0.2151548538 | AF70: 0.214760181 | AG70: 0.2145159172 | AH70: 0.2145086096 | AI70: 0.2148168515 | AJ70: 0.2151483112 | AK70: 0.215628398 | AL70: 0.2164508005 | AM70: 0.2170827834 | AN70: 0.2175235654 | AO70: 0.217936394 | AP70: 0.2183492923 | AQ70: 0.2187561 | AR70: 0.2191505194 | AS70: 0.2195260866
A71: 47 | B71: 0.03290599291 | C71: 0.03318706837 | D71: 0.03342941133 | E71: 0.0336118472 | F71: 0.03375624019 | G71: 0.03386613419 | H71: 0.03394420415 | I71: 0.03398454341 | J71: 0.03400953114 | K71: 0.03401023522 | L71: 0.03397860263 | M71: 0.03394464511 | N71: 0.03389557584 | O71: 0.03381180585 | P71: 0.03374764704 | Q71: 0.03370300438 | R71: 0.03366127672 | S71: 0.03361962455 | T71: 0.03357866676 | U71: 0.03353903133 | V71: 0.03350135849 | X71: 47 | Y71: 0.2183446381 | Z71: 0.2155702353 | AA71: 0.2132070609 | AB71: 0.2114455301 | AC71: 0.2100618688 | AD71: 0.2090149972 | AE71: 0.2082745261 | AF71: 0.2078929701 | AG71: 0.2076569774 | AH71: 0.2076503318 | AI71: 0.2079491171 | AJ71: 0.2082703513 | AK71: 0.2087354363 | AL71: 0.209531872 | AM71: 0.2101439542 | AN71: 0.2105709272 | AO71: 0.2109708217 | AP71: 0.2113707662 | AQ71: 0.2117647983 | AR71: 0.212146823 | AS71: 0.2125105838
A72: 48 | B72: 0.03290893611 | C72: 0.03318408657 | D72: 0.033421315 | E72: 0.03359988842 | F72: 0.03374121558 | G72: 0.03384876653 | H72: 0.0339251604 | I72: 0.03396461362 | J72: 0.03398903853 | K72: 0.03398968912 | L72: 0.03395868005 | M72: 0.03392539705 | N72: 0.03387731973 | O72: 0.03379526733 | P72: 0.03373241918 | Q72: 0.03368868216 | R72: 0.03364780109 | S72: 0.03360699556 | T72: 0.03356687142 | U72: 0.03352804347 | V72: 0.0334911385 | X72: 48 | Y72: 0.2113597734 | Z72: 0.2086747954 | AA72: 0.2063878297 | AB72: 0.20468321 | AC72: 0.2033443269 | AD72: 0.2023314208 | AE72: 0.2016150792 | AF72: 0.2012461428 | AG72: 0.201018085 | AH72: 0.201012014 | AI72: 0.2013015849 | AJ72: 0.2016128642 | AK72: 0.2020633752 | AL72: 0.2028346264 | AM72: 0.2034273993 | AN72: 0.2038409626 | AO72: 0.204228297 | AP72: 0.204615665 | AQ72: 0.2049972959 | AR72: 0.2053672902 | AS72: 0.2057195922
A73: 49 | B73: 0.03291163761 | C73: 0.03318111343 | D73: 0.03341344406 | E73: 0.03358832013 | F73: 0.03372671355 | G73: 0.03383202355 | H73: 0.03390681576 | I73: 0.03394542467 | J73: 0.03396931492 | K73: 0.03396991898 | L73: 0.03393951242 | M73: 0.03390688053 | N73: 0.0338597585 | O73: 0.03377935711 | P73: 0.03371776942 | Q73: 0.03367490413 | R73: 0.03363483796 | S73: 0.03359484715 | T73: 0.03355552511 | U73: 0.03351747398 | V73: 0.03348130766 | X73: 49 | Y73: 0.204599535 | Z73: 0.2020010028 | AA73: 0.1997877012 | AB73: 0.1981380763 | AC73: 0.1968424524 | AD73: 0.1958623461 | AE73: 0.1951692903 | AF73: 0.1948125039 | AG73: 0.1945920665 | AH73: 0.1945864962 | AI73: 0.1948670961 | AJ73: 0.1951686912 | AK73: 0.19560505 | AL73: 0.1963518816 | AM73: 0.1969259244 | AN73: 0.197326471 | AO73: 0.1977016135 | AP73: 0.198076776 | AQ73: 0.198446373 | AR73: 0.1988046945 | AS73: 0.1991458789
A74: 50 | B74: 0.03291412693 | C74: 0.03317816239 | D74: 0.03340579797 | E74: 0.03357713098 | F74: 0.03371271396 | G74: 0.03381587819 | H74: 0.03388913796 | I74: 0.0339269411 | J74: 0.03395032251 | K74: 0.03395088601 | L74: 0.03392106165 | M74: 0.03388905836 | N74: 0.03384285667 | O74: 0.03376404329 | P74: 0.03370366844 | Q74: 0.03366164265 | R74: 0.03362236122 | S74: 0.03358315483 | T74: 0.0335446049 | U74: 0.03350730147 | V74: 0.03347184608 | X74: 50 | Y74: 0.198056518 | Z74: 0.1955415665 | AA74: 0.1933994825 | AB74: 0.1918030125 | AC74: 0.1905491906 | AD74: 0.1896007685 | AE74: 0.1889301926 | AF74: 0.1885851121 | AG74: 0.1883720001 | AH74: 0.1883668671 | AI74: 0.1886387396 | AJ74: 0.1889309199 | AK74: 0.1893535418 | AL74: 0.1900767002 | AM74: 0.1906325794 | AN74: 0.191020495 | AO74: 0.1913838071 | AP74: 0.191747128 | AQ74: 0.1921050514 | AR74: 0.1924520502 | AS74: 0.1927824512
A75: 51 | B75: 0.03291642941 | C75: 0.03317524411 | D75: 0.03339837463 | E75: 0.033566309 | F75: 0.03369919687 | G75: 0.03380030424 | H75: 0.03387209608 | I75: 0.03390912914 | J75: 0.03393202546 | K75: 0.03393255351 | L75: 0.03390329178 | M75: 0.03387189545 | N75: 0.03382658081 | O75: 0.03374929573 | P75: 0.03369008858 | Q75: 0.03364887162 | R75: 0.03361034625 | S75: 0.03357189545 | T75: 0.03353408917 | U75: 0.0334975058 | V75: 0.03346273503 | X75: 51 | Y75: 0.1917235888 | Z75: 0.1892894604 | AA75: 0.1872162401 | AB75: 0.1856711567 | AC75: 0.1844577381 | AD75: 0.1835399302 | AE75: 0.1828910639 | AF75: 0.1825572679 | AG75: 0.1823512037 | AH75: 0.1823464541 | AI75: 0.1826098415 | AJ75: 0.1828928739 | AK75: 0.1833021664 | AL75: 0.1840023794 | AM75: 0.1845406484 | AN75: 0.1849163113 | AO75: 0.1852681471 | AP75: 0.1856199826 | AQ75: 0.1859665847 | AR75: 0.1863026036 | AS75: 0.1866225476
A76: 52 | B76: 0.03291856685 | C76: 0.03317236695 | D76: 0.03339117072 | E76: 0.03355584188 | F76: 0.03368614267 | G76: 0.03378527637 | H76: 0.03385566052 | I76: 0.03389195664 | J76: 0.03391438978 | K76: 0.03391488676 | L76: 0.0338861688 | M76: 0.03385535868 | N76: 0.03381089937 | O76: 0.03373508602 | P76: 0.03367700373 | Q76: 0.03363656641 | R76: 0.03359876981 | S76: 0.0335610472 | T76: 0.03352395752 | U76: 0.03348806796 | V76: 0.0334539568 | X76: 52 | Y76: 0.1855938719 | Z76: 0.1832379107 | AA76: 0.1812312875 | AB76: 0.1797358896 | AC76: 0.1785615297 | AD76: 0.1776733096 | AE76: 0.1770454149 | AF76: 0.1767225028 | AG76: 0.1765232243 | AH76: 0.1765188121 | AI76: 0.1767739547 | AJ76: 0.1770481028 | AK76: 0.1774444653 | AL76: 0.1781224419 | AM76: 0.1786436405 | AN76: 0.1790074204 | AO76: 0.1793481267 | AP76: 0.179688825 | AQ76: 0.1800244502 | AR76: 0.1803498236 | AS76: 0.1806596297
A77: 53 | B77: 0.03292055805 | C77: 0.03316953738 | D77: 0.03338418199 | E77: 0.03354571711 | F77: 0.03367353222 | G77: 0.03377077023 | H77: 0.03383980307 | I77: 0.03387539307 | J77: 0.03389738331 | K77: 0.03389785297 | L77: 0.03386966065 | M77: 0.03383941683 | N77: 0.03379578263 | O77: 0.03372138737 | P77: 0.03366438925 | Q77: 0.0336247038 | R77: 0.03358761001 | S77: 0.03355058955 | T77: 0.03351419074 | U77: 0.03347897004 | V77: 0.03344549475 | X77: 53 | Y77: 0.1796607368 | Z77: 0.1773803829 | AA77: 0.1754381728 | AB77: 0.173990823 | AC77: 0.1728542286 | AD77: 0.1719946097 | AE77: 0.1713869794 | AF77: 0.1710745695 | AG77: 0.1708818287 | AH77: 0.1708777146 | AI77: 0.1711248496 | AJ77: 0.171390373 | AK77: 0.1717741962 | AL77: 0.1724306263 | AM77: 0.1729352806 | AN77: 0.1732875391 | AO77: 0.1736174544 | AP77: 0.1739473556 | AQ77: 0.1742723397 | AR77: 0.1745873941 | AS77: 0.1748873734
A78: 54 | B78: 0.03292241924 | C78: 0.0331667603 | D78: 0.03337740351 | E78: 0.0335359222 | F78: 0.03366134693 | G78: 0.03375676246 | H78: 0.03382449684 | I78: 0.03385940945 | J78: 0.03388097558 | K78: 0.03388142116 | L78: 0.03385373706 | M78: 0.03382404047 | N78: 0.03378120258 | O78: 0.0337081745 | P78: 0.03365222192 | Q78: 0.03361326191 | R78: 0.03357684621 | S78: 0.03354050311 | T78: 0.03350477073 | U78: 0.03347019517 | V78: 0.03343733319 | X78: 54 | Y78: 0.1739177858 | Z78: 0.1717105709 | AA78: 0.1698306686 | AB78: 0.1684297893 | AC78: 0.1673297156 | AD78: 0.1664977494 | AE78: 0.1659097043 | AF78: 0.1656074324 | AG78: 0.1654209941 | AH78: 0.1654171443 | AI78: 0.1656565055 | AJ78: 0.1659136593 | AK78: 0.1662853249 | AL78: 0.1669208795 | AM78: 0.1674095017 | AN78: 0.1677505915 | AO78: 0.1680700462 | AP78: 0.1683894818 | AQ78: 0.1687041523 | AR78: 0.1690092058 | AS78: 0.1692996614
A79: 55 | B79: 0.03292416449 | C79: 0.03316403933 | D79: 0.03337082981 | E79: 0.03352644476 | F79: 0.0336495688 | G79: 0.03374323072 | H79: 0.03380971624 | I79: 0.03384397831 | J79: 0.03386513782 | K79: 0.0338655621 | L79: 0.03383836949 | M79: 0.03380920186 | N79: 0.03376713282 | O79: 0.03369542361 | P79: 0.03364047984 | Q79: 0.0336022201 | R79: 0.03356645896 | S79: 0.03353076965 | T79: 0.03349568043 | U79: 0.03346172745 | V79: 0.03342945732 | X79: 55 | Y79: 0.1683588442 | Z79: 0.1662223869 | AA79: 0.1644027614 | AB79: 0.1630468321 | AC79: 0.1619820798 | AD79: 0.1611768535 | AE79: 0.1606077413 | AF79: 0.1603152592 | AG79: 0.1601348995 | AH79: 0.1601312852 | AI79: 0.1603631024 | AJ79: 0.1606121364 | AK79: 0.1609720168 | AL79: 0.1615873483 | AM79: 0.1620604368 | AN79: 0.1623907017 | AO79: 0.1627000178 | AP79: 0.1630093108 | AQ79: 0.1633139868 | AR79: 0.163609349 | AS79: 0.1638905759
A80: 56 | B80: 0.03292580596 | C80: 0.033161377 | D80: 0.0333644551 | E80: 0.03351727256 | F80: 0.03363818048 | G80: 0.03373015363 | H80: 0.03379543696 | I80: 0.03382907364 | J80: 0.03384984282 | K80: 0.03385024819 | L80: 0.03382353102 | M80: 0.03379487486 | N80: 0.03375354851 | O80: 0.03368311224 | P80: 0.03362914237 | Q80: 0.03359155893 | R80: 0.03355642995 | S80: 0.03352137196 | T80: 0.03348690377 | U80: 0.03345355192 | V80: 0.03342185322 | X80: 56 | Y80: 0.1629779493 | Z80: 0.1609099514 | AA80: 0.159148643 | AB80: 0.1578361972 | AC80: 0.1568056105 | AD80: 0.1560262448 | AE80: 0.1554754379 | AF80: 0.1551924123 | AG80: 0.1550179184 | AH80: 0.1550145146 | AI80: 0.1552390129 | AJ80: 0.155480172 | AK80: 0.1558286301 | AL80: 0.1564243722 | AM80: 0.1568824116 | AN80: 0.1572021863 | AO80: 0.1575016774 | AP80: 0.1578011424 | AQ80: 0.1580961342 | AR80: 0.1583821064 | AS80: 0.1586543918
A81: 57 | B81: 0.03292735427 | C81: 0.03315877501 | D81: 0.03335827334 | E81: 0.03350839367 | F81: 0.03362716528 | G81: 0.03371751083 | H81: 0.03378163592 | I81: 0.03381467079 | J81: 0.03383506485 | K81: 0.03383545338 | L81: 0.03380919626 | M81: 0.03378103482 | N81: 0.03374042621 | O81: 0.03367121924 | P81: 0.03361819004 | Q81: 0.03358126007 | R81: 0.03354674189 | S81: 0.03351229385 | T81: 0.03347842562 | U81: 0.03344565447 | V81: 0.03341450776 | X81: 57 | Y81: 0.1577693423 | Z81: 0.1557675846 | AA81: 0.1540627014 | AB81: 0.1527923243 | AC81: 0.1517947884 | AD81: 0.1510404361 | AE81: 0.1505073306 | AF81: 0.1502334421 | AG81: 0.1500646103 | AH81: 0.1500613958 | AI81: 0.1502787957 | AJ81: 0.150512319 | AK81: 0.1508497083 | AL81: 0.1514264763 | AM81: 0.1518699374 | AN81: 0.1521795478 | AO81: 0.1524695192 | AP81: 0.1527594619 | AQ81: 0.1530450714 | AR81: 0.1533219465 | AS81: 0.1535855695
A82: 58 | B82: 0.03292881862 | C82: 0.03315623433 | D82: 0.03335227836 | E82: 0.03349979646 | F82: 0.03361650719 | G82: 0.03370528291 | H82: 0.03376829123 | I82: 0.03380074644 | J82: 0.03382077963 | K82: 0.0338211531 | L82: 0.03379534128 | M82: 0.03376765852 | N82: 0.03372774386 | O82: 0.03365972467 | P82: 0.03360760453 | Q82: 0.03357130625 | R82: 0.03353737852 | S82: 0.03350352005 | T82: 0.03347023171 | U82: 0.0334380218 | V82: 0.03340740859 | X82: 58 | Y82: 0.1527274591 | Z82: 0.1507897983 | AA82: 0.1491395133 | AB82: 0.1479098392 | AC82: 0.1469442786 | AD82: 0.1462141228 | AE82: 0.1456981369 | AF82: 0.1454330789 | AG82: 0.1452697149 | AH82: 0.1452666712 | AI82: 0.1454771882 | AJ82: 0.1457033091 | AK82: 0.1460299734 | AL82: 0.1465883646 | AM82: 0.1470177049 | AN82: 0.1473174679 | AO82: 0.1475982162 | AP82: 0.1478789341 | AQ82: 0.1481554545 | AR82: 0.1484235173 | AS82: 0.148678749
A83: 59 | B83: 0.03293020709 | C83: 0.03315375537 | D83: 0.03334646393 | E83: 0.03349146965 | F83: 0.03360619088 | G83: 0.03369345139 | H83: 0.03375538211 | I83: 0.03378727853 | J83: 0.03380696419 | K83: 0.03380732416 | L83: 0.03378194348 | M83: 0.03375472407 | N83: 0.03371548064 | O83: 0.03364860972 | P83: 0.03359736852 | Q83: 0.03356168118 | R83: 0.0335283245 | S83: 0.03349503618 | T83: 0.03346230859 | U83: 0.0334306414 | V83: 0.03340054406 | X83: 59 | Y83: 0.1478469226 | Z83: 0.1459712882 | AA83: 0.1443738365 | AB83: 0.1431835466 | AC83: 0.1422489232 | AD83: 0.1415421758 | AE83: 0.1410427489 | AF83: 0.1407862267 | AG83: 0.1406281445 | AH83: 0.1406252556 | AI83: 0.1408291 | AJ83: 0.1410480461 | AK83: 0.1413643199 | AL83: 0.141904914 | AM83: 0.1423205775 | AN83: 0.1426108008 | AO83: 0.1428826146 | AP83: 0.1431543965 | AQ83: 0.1434221129 | AR83: 0.1436816398 | AS83: 0.1439287437
A84: 60 | B84: 0.03293152671 | C84: 0.03315133806 | D84: 0.03334082384 | E84: 0.03348340232 | F84: 0.03359620168 | G84: 0.03368199872 | H84: 0.03374288888 | I84: 0.03377424617 | J84: 0.03379359686 | K84: 0.03379394466 | L84: 0.03376898158 | M84: 0.03374221083 | N84: 0.03370361696 | O84: 0.03363785666 | P84: 0.0335874657 | Q84: 0.03355236951 | R84: 0.03351956535 | S84: 0.03348682868 | T84: 0.0334546436 | U84: 0.03342350145 | V84: 0.03339390317 | X84: 60 | Y84: 0.1431225354 | Z84: 0.1413069264 | AA84: 0.1397606028 | AB84: 0.1386084233 | AC84: 0.1377037347 | AD84: 0.1370196351 | AE84: 0.1365362266 | AF84: 0.1362879571 | AG84: 0.1361349782 | AH84: 0.1361322303 | AI84: 0.1363296072 | AJ84: 0.1365416002 | AK84: 0.1368478085 | AL84: 0.1373711676 | AM84: 0.1377735852 | AN84: 0.1380545681 | AO84: 0.1383177275 | AP84: 0.138580854 | AQ84: 0.138840043 | AR84: 0.1390913025 | AS84: 0.1393305342
A85: 61 | B85: 0.03293278367 | C85: 0.03314898198 | D85: 0.03333535192 | E85: 0.03347558396 | F85: 0.03358652559 | G85: 0.03367090819 | H85: 0.03373079289 | I85: 0.03376162963 | J85: 0.03378065716 | K85: 0.03378099395 | L85: 0.03375643547 | M85: 0.03373009932 | N85: 0.03369213431 | O85: 0.03362744878 | P85: 0.0335778807 | Q85: 0.03354335674 | R85: 0.03351108746 | S85: 0.03347888475 | T85: 0.03344722479 | U85: 0.03341659083 | V85: 0.03338747558 | X85: 61 | Y85: 0.1385492727 | Z85: 0.1367917552 | AA85: 0.1352949114 | AB85: 0.1341796118 | AC85: 0.1333038897 | AD85: 0.1326417036 | AE85: 0.132173792 | AF85: 0.1319335026 | AG85: 0.1317854558 | AH85: 0.1317828369 | AI85: 0.131973946 | AJ85: 0.1321792017 | AK85: 0.1324756601 | AL85: 0.1329823295 | AM85: 0.1333719193 | AN85: 0.1336439522 | AO85: 0.1338987292 | AP85: 0.1341534727 | AQ85: 0.1344044029 | AR85: 0.1346476554 | AS85: 0.1348792632
A86: 62 | B86: 0.0329339834 | C86: 0.0331466864 | D86: 0.03333004213 | E86: 0.03346800446 | F86: 0.03357714926 | G86: 0.03366016394 | H86: 0.03371907646 | I86: 0.03374941021 | J86: 0.03376812571 | K86: 0.03376845251 | L86: 0.03374428619 | M86: 0.03371837117 | N86: 0.03368101525 | O86: 0.03361737029 | P86: 0.03356859899 | Q86: 0.03353462922 | R86: 0.03350287794 | S86: 0.03347119234 | T86: 0.03344004088 | U86: 0.03340989902 | V86: 0.03338125152 | X86: 62 | Y86: 0.134122276 | Z86: 0.1324209801 | AA86: 0.1309720231 | AB86: 0.129892414 | AC86: 0.1290447229 | AD86: 0.1284037412 | AE86: 0.1279508231 | AF86: 0.1277182513 | AG86: 0.1275749721 | AH86: 0.1275724717 | AI86: 0.1277575074 | AJ86: 0.1279562357 | AK86: 0.1282432508 | AL86: 0.1287337591 | AM86: 0.1291109266 | AN86: 0.1293742914 | AO86: 0.12962095 | AP86: 0.1298675748 | AQ86: 0.1301105068 | AR86: 0.1303460051 | AS86: 0.1305702295
A87: 63 | B87: 0.03293513071 | C87: 0.03314445036 | D87: 0.03332488853 | E87: 0.0334606541 | F87: 0.03356805996 | G87: 0.03364975093 | H87: 0.03370772284 | I87: 0.03373757023 | J87: 0.03375598424 | K87: 0.03375630192 | L87: 0.03373251583 | M87: 0.03370700906 | N87: 0.03367024333 | O87: 0.0336076063 | P87: 0.03355960686 | Q87: 0.03352617405 | R87: 0.03349492466 | S87: 0.03346374005 | T87: 0.03343308125 | U87: 0.03340341614 | V87: 0.03337522177 | X87: 63 | Y87: 0.1298368465 | Z87: 0.1281899646 | AA87: 0.1267873538 | AB87: 0.1257422856 | AC87: 0.1249217216 | AD87: 0.124301259 | AE87: 0.1238628484 | AF87: 0.1236377414 | AG87: 0.1234990715 | AH87: 0.1234966805 | AI87: 0.1236758321 | AJ87: 0.1238682368 | AK87: 0.1241461061 | AL87: 0.1246209657 | AM87: 0.1249861042 | AN87: 0.1252410744 | AO87: 0.1254798707 | AP87: 0.1257186332 | AQ87: 0.1259538197 | AR87: 0.126181809 | AS87: 0.1263988836
A88: 64 | B88: 0.03293622982 | C88: 0.03314227273 | D88: 0.03331988533 | E88: 0.03345352357 | F88: 0.03355924555 | G88: 0.03363965486 | H88: 0.03369671618 | I88: 0.03372609298 | J88: 0.03374421544 | K88: 0.03374452479 | L88: 0.03372110748 | M88: 0.03369599661 | N88: 0.03365980301 | O88: 0.03359814276 | P88: 0.03355089139 | Q88: 0.03351797906 | R88: 0.03348721615 | S88: 0.03345651714 | T88: 0.03342633584 | U88: 0.03339713281 | V88: 0.03336937764 | X88: 64 | Y88: 0.1256884397 | Z88: 0.1240942234 | AA88: 0.1227364695 | AB88: 0.1217248307 | AC88: 0.1209305199 | AD88: 0.1203299145 | AE88: 0.1199055419 | AF88: 0.1196876558 | AG88: 0.1195534431 | AH88: 0.1195511535 | AI88: 0.1197246047 | AJ88: 0.119910884 | AK88: 0.1201798961 | AL88: 0.1206396037 | AM88: 0.1209930944 | AN88: 0.1212399352 | AO88: 0.1214711178 | AP88: 0.1217022666 | AQ88: 0.1219299528 | AR88: 0.1221506707 | AS88: 0.1223608218
A89: 65 | B89: 0.03293728449 | C89: 0.03314015223 | D89: 0.03331502692 | E89: 0.03344660395 | F89: 0.03355069449 | G89: 0.03362986215 | H89: 0.03368604144 | I89: 0.03371496263 | J89: 0.03373280297 | K89: 0.03373310465 | L89: 0.03371004516 | M89: 0.03368531836 | N89: 0.03364967962 | O89: 0.03358896638 | P89: 0.03354244034 | Q89: 0.03351003274 | R89: 0.03347974159 | S89: 0.03344951347 | T89: 0.03341979519 | U89: 0.03339104022 | V89: 0.03336371091 | X89: 65 | Y89: 0.1216726596 | Z89: =(1+C89)^-$A89 -> 0.1201294181 | AA89: =(1+D89)^-$A89 -> 0.1188150804 | AB89: =(1+E89)^-$A89 -> 0.1178357963 | AC89: =(1+F89)^-$A89 -> 0.1170668941 | AD89: =(1+G89)^-$A89 -> 0.1164855059 | AE89: =(1+H89)^-$A89 -> 0.1160747179 | AF89: =(1+I89)^-$A89 -> 0.1158638174 | AG89: =(1+J89)^-$A89 -> 0.1157339153 | AH89: =(1+K89)^-$A89 -> 0.1157317199 | AI89: =(1+L89)^-$A89 -> 0.1158996493 | AJ89: =(1+M89)^-$A89 -> 0.1160799957 | AK89: =(1+N89)^-$A89 -> 0.1163404305 | AL89: =(1+O89)^-$A89 -> 0.1167854675 | AM89: =(1+P89)^-$A89 -> 0.1171276799 | AN89: =(1+Q89)^-$A89 -> 0.1173666485 | AO89: =(1+R89)^-$A89 -> 0.1175904584 | AP89: =(1+S89)^-$A89 -> 0.1178142346 | AQ89: =(1+T89)^-$A89 -> 0.118034658 | AR89: =(1+U89)^-$A89 -> 0.1182483351 | AS89: =(1+V89)^-$A89 -> 0.1184517822
A90: 66 | B90: 0.03293829807 | C90: 0.03313808749 | D90: 0.03331030785 | E90: 0.03343988672 | F90: 0.03354239579 | G90: 0.03362035993 | H90: 0.03367568438 | I90: 0.03370416419 | J90: 0.03372173135 | K90: 0.03372202596 | L90: 0.03369931377 | M90: 0.03367495971 | N90: 0.03363985929 | O90: 0.03358006463 | P90: 0.03353424217 | Q90: 0.03350232423 | R90: 0.03347249075 | S90: 0.03344271944 | T90: 0.03341345033 | U90: 0.03338513001 | V90: 0.03335821381 | X90: 66 | Y90: =(1+B90)^-$A90 -> 0.1177852536 | Z90: 0.1162913513 | AA90: 0.1150190364 | AB90: 0.1140710678 | AC90: 0.1133267571 | AD90: 0.1127639676 | AE90: 0.112366326 | AF90: 0.1121621841 | AG90: 0.1120364513 | AH90: 0.112034344 | AI90: 0.112196925 | AJ90: 0.1123715253 | AK90: 0.1126236542 | AL90: 0.1130544869 | AM90: 0.1133857791 | AN90: 0.113617125 | AO90: 0.1138337957 | AP90: 0.114050433 | AQ90: 0.114263824 | AR90: 0.1144706836 | AS90: 0.1146676394
A91: 67 | B91: 0.03293927352 | C91: 0.03313607708 | D91: 0.03330572287 | E91: 0.03343336371 | F91: 0.033534339 | G91: 0.03361113597 | H91: 0.03366563151 | I91: 0.03369368348 | J91: 0.03371098595 | K91: 0.03371127401 | L91: 0.03368889904 | M91: 0.03366490686 | N91: 0.03363032892 | O91: 0.03357142563 | P91: 0.03352628595 | Q91: 0.03349484325 | R91: 0.03346545397 | S91: 0.033436126 | T91: 0.03340729281 | U91: 0.0333793943 | V91: 0.03335287902 | X91: 67 | Y91: 0.1140221072 | Z91: 0.112575962 | AA91: 0.1113443221 | AB91: 0.1104266636 | AC91: 0.1097061546 | AD91: 0.1091613656 | AE91: 0.1087764467 | AF91: 0.1085788442 | AG91: 0.1084571447 | AH91: 0.1084551197 | AI91: 0.1086125208 | AJ91: 0.1087815561 | AK91: 0.1090256424 | AL91: 0.1094427226 | AM91: 0.1097634416 | AN91: 0.1099874066 | AO91: 0.1101971645 | AP91: 0.1104068896 | AQ91: 0.1106134714 | AR91: 0.1108137299 | AS91: 0.1110044005
A92: 68 | B92: 0.03294021351 | C92: 0.03313411949 | D92: 0.0333012669 | E92: 0.03342702716 | F92: 0.03352651417 | G92: 0.03360217869 | H92: 0.03365587002 | I92: 0.03368350706 | J92: 0.03370055292 | K92: 0.03370083489 | L92: 0.03367878747 | M92: 0.03365514673 | N92: 0.03362107612 | O92: 0.03356303817 | P92: 0.03351856137 | Q92: 0.03348758009 | R92: 0.03345862209 | S92: 0.03342972458 | T92: 0.03340131461 | U92: 0.03337382564 | V92: 0.03334769959 | X92: 68 | Y92: 0.1103792397 | Z92: 0.1089793208 | AA92: 0.1077870518 | AB92: 0.1068987312 | AC92: 0.1062012597 | AD92: 0.1056738928 | AE92: 0.1053012873 | AF92: 0.1051100125 | AG92: 0.1049922147 | AH92: 0.1049902672 | AI92: 0.1051426517 | AJ92: 0.1053062979 | AK92: 0.1055425967 | AL92: 0.105946362 | AM92: 0.1062568439 | AN92: 0.1064736624 | AO92: 0.106676727 | AP92: 0.1068797592 | AQ92: 0.1070797482 | AR92: 0.1072736155 | AS92: 0.1074582007
A93: 69 | B93: 0.03294112041 | C93: 0.03313221323 | D93: 0.03329693507 | E93: 0.03342086962 | F93: 0.03351891184 | G93: 0.03359347705 | H93: 0.03364638781 | I93: 0.03367362221 | J93: 0.03369041915 | K93: 0.03369069543 | L93: 0.03366896627 | M93: 0.03364566699 | N93: 0.03361208917 | O93: 0.03355489163 | P93: 0.03351105866 | Q93: 0.03348052556 | R93: 0.03345198648 | S93: 0.03342350706 | T93: 0.03339550817 | U93: 0.03336841696 | V93: 0.03334266897 | X93: 69 | Y93: 0.106852799 | Z93: 0.1054976253 | AA93: 0.1043434656 | AB93: 0.1034835422 | AC93: 0.1028083692 | AD93: 0.1022978651 | AE93: 0.1019371768 | AF93: 0.1017520254 | AG93: 0.1016380025 | AH93: 0.1016361281 | AI93: 0.1017836543 | AJ93: 0.1019420819 | AK93: 0.1021708404 | AL93: 0.1025617148 | AM93: 0.1028622855 | AN93: 0.1030721844 | AO93: 0.1032687683 | AP93: 0.1034653205 | AQ93: 0.1036589263 | AR93: 0.1038466055 | AS93: 0.1040252988
A94: 70 | B94: 0.03294199638 | C94: 0.03313035676 | D94: 0.03329272267 | E94: 0.033414884 | F94: 0.03351152302 | G94: 0.03358502062 | H94: 0.03363717335 | I94: 0.03366401685 | J94: 0.03368057221 | K94: 0.03368084317 | L94: 0.03365942334 | M94: 0.03363645593 | N94: 0.03360335698 | O94: 0.03354697597 | P94: 0.03350376855 | Q94: 0.03347367096 | R94: 0.03344553894 | S94: 0.03341746577 | T94: 0.03338986631 | U94: 0.0333631616 | V94: 0.03333778095 | X94: 70 | Y94: 0.1034390577 | Z94: 0.1021271962 | AA94: 0.1010099251 | AB94: 0.1001774887 | AC94: 0.09952389915 | AD94: 0.0990297167 | AE94: 0.09868056293 | AF94: 0.09850133716 | AG94: 0.09839096684 | AH94: 0.09838916146 | AI94: 0.09853198321 | AJ94: 0.09868535744 | AK94: 0.09890681523 | AL94: 0.0992852094 | AM94: 0.09957618425 | AN94: 0.09977938354 | AO94: 0.09996969292 | AP94: 0.1001599712 | AQ94: 0.1003473967 | AR94: 0.1005290847 | AS94: 0.1007020737
A95: 71 | B95: 0.03294284334 | C95: 0.03312854856 | D95: 0.0332886252 | E95: 0.03340906354 | F95: 0.03350433915 | G95: 0.03357679944 | H95: 0.03362821573 | I95: 0.03365467956 | J95: 0.03367100031 | K95: 0.03367126627 | L95: 0.03365014722 | M95: 0.03362750248 | N95: 0.03359486903 | O95: 0.03353928168 | P95: 0.03349668229 | Q95: 0.03346700805 | R95: 0.03343927171 | S95: 0.03341159344 | T95: 0.03338438224 | U95: 0.03335805322 | V95: 0.03333302964 | X95: 71 | Y95: 0.1001344087 | Z95: 0.09886447261 | AA95: 0.09778290891 | AB95: 0.09697707894 | AC95: 0.09634438116 | AD95: 0.09586599693 | AE95: 0.09552800729 | AF95: 0.09535451622 | AG95: 0.09524768023 | AH95: 0.09524594027 | AI95: 0.09538420652 | AJ95: 0.09553268766 | AK95: 0.09574707686 | AL95: 0.09611338845 | AM95: 0.0963950731 | AN95: 0.09659178595 | AO95: 0.09677602034 | AP95: 0.09696022428 | AQ95: 0.09714166637 | AR95: 0.09731755392 | AS95: 0.09748502003
A96: 72 | B96: 0.03294366304 | C96: 0.03312678712 | D96: 0.03328463834 | E96: 0.0334034018 | F96: 0.03349735209 | G96: 0.03356880411 | H96: 0.0336195046 | I96: 0.03364559947 | J96: 0.03366169231 | K96: 0.03366195355 | L96: 0.03364112706 | M96: 0.03361879614 | N96: 0.03358661538 | O96: 0.03353179972 | P96: 0.03348979158 | Q96: 0.03346052901 | R96: 0.03343317746 | S96: 0.03340588319 | T96: 0.03337904954 | U96: 0.03335308584 | V96: 0.03332840946 | X96: 72 | Y96: 0.09693536115 | Z96: 0.09570600852 | AA96: 0.09465900915 | AB96: 0.09387893359 | AC96: 0.09326645825 | AD96: 0.09280336582 | AE96: 0.09247618211 | AF96: 0.09230824113 | AG96: 0.09220482526 | AH96: 0.09220314743 | AI96: 0.09233700264 | AJ96: 0.09248074598 | AK96: 0.09268829147 | AL96: 0.09304290562 | AM96: 0.09331559605 | AN96: 0.09350602891 | AO96: 0.09368438167 | AP96: 0.09386270469 | AQ96: 0.09403835384 | AR96: 0.09420862566 | AS96: 0.09437074486
A97: 73 | B97: 0.03294445707 | C97: 0.03312507095 | D97: 0.03328075794 | E97: 0.03339789261 | F97: 0.0334905541 | G97: 0.03356102565 | H97: 0.03361103013 | I97: 0.0336367663 | J97: 0.03365263761 | K97: 0.03365289439 | L97: 0.03363235255 | M97: 0.03361032695 | N97: 0.03357858658 | O97: 0.03352452157 | P97: 0.03348308855 | Q97: 0.03345422645 | R97: 0.0334272492 | S97: 0.0334003285 | T97: 0.03337386211 | U97: 0.03334825378 | V97: 0.03332391515 | X97: 73 | Y97: 0.09383853661 | Z97: 0.09264846877 | AA97: 0.09163492756 | AB97: 0.09087978188 | AC97: 0.09028688137 | AD97: 0.08983859077 | AE97: 0.08952186647 | AF97: 0.08935929707 | AG97: 0.08925919096 | AH97: 0.08925757228 | AI97: 0.08938715643 | AJ97: 0.08952631247 | AK97: 0.0897272321 | AL97: 0.09007052177 | AM97: 0.09033450462 | AN97: 0.09051885748 | AO97: 0.0906915159 | AP97: 0.09086414531 | AQ97: 0.09103418606 | AR97: 0.09119902107 | AS97: 0.09135596372
A98: 74 | B98: 0.03294522687 | C98: 0.03312339858 | D98: 0.03327698004 | E98: 0.03339253012 | F98: 0.03348393781 | G98: 0.03355345555 | H98: 0.03360278297 | I98: 0.03362817028 | J98: 0.03364382616 | K98: 0.03364407871 | L98: 0.03362381393 | M98: 0.03360208549 | N98: 0.03357077367 | O98: 0.03351743909 | P98: 0.03347656572 | Q98: 0.03344809334 | R98: 0.03342148035 | S98: 0.03339492315 | T98: 0.03336881416 | U98: 0.03334355164 | V98: 0.03331954168 | X98: 74 | Y98: 0.09084066536 | Z98: 0.08968862545 | AA98: 0.08870747187 | AB98: 0.08797645816 | AC98: 0.08740250578 | AD98: 0.08696854294 | AE98: 0.08666194278 | AF98: 0.08650457237 | AG98: 0.08640766935 | AH98: 0.08640610706 | AI98: 0.08653155582 | AJ98: 0.08666627039 | AK98: 0.08686077515 | AL98: 0.08719310151 | AM98: 0.08744865437 | AN98: 0.08762712091 | AO98: 0.08779426641 | AP98: 0.08796138362 | AQ98: 0.0881259947 | AR98: 0.08828556617 | AS98: 0.08843749726
A99: 75 | B99: 0.03294597374 | C99: 0.03312176859 | D99: 0.03327330082 | E99: 0.03338730873 | F99: 0.0334774962 | G99: 0.03354608571 | H99: 0.03359475426 | I99: 0.03361980211 | J99: 0.03363524842 | K99: 0.03363549695 | L99: 0.03361550192 | M99: 0.0335940628 | N99: 0.03356316818 | O99: 0.03351054461 | P99: 0.03347021602 | Q99: 0.03344212301 | R99: 0.03341586462 | S99: 0.03338966129 | T99: 0.03336390021 | U99: 0.03333897433 | V99: 0.0333152843 | X99: 75 | Y99: 0.08793858274 | Z99: 0.08682335435 | AA99: 0.08587355233 | AB99: 0.08516589841 | AC99: 0.08461028769 | AD99: 0.08419019386 | AE99: 0.08389339348 | AF99: 0.0837410551 | AG99: 0.08364725206 | AH99: 0.08364574365 | AI99: 0.08376718846 | AJ99: 0.08389760283 | AK99: 0.08408589709 | AL99: 0.08440760985 | AM99: 0.08465500154 | AN99: 0.08482776935 | AO99: 0.0849895776 | AP99: 0.08515135832 | AQ99: 0.08531071281 | AR99: 0.08546518854 | AS99: 0.08561226785
A100: 76 | B100: 0.0329466989 | C100: 0.03312017958 | D100: 0.03326971665 | E100: 0.03338222312 | F100: 0.03347122261 | G100: 0.03353890843 | H100: 0.03358693555 | I100: 0.03361165299 | J100: 0.03362689532 | K100: 0.03362714002 | L100: 0.03360740771 | M100: 0.03358625037 | N100: 0.03355576203 | O100: 0.0335038308 | P100: 0.03346403271 | Q100: 0.03343630914 | R100: 0.03341039606 | S100: 0.03338453733 | T100: 0.03335911504 | U100: 0.03333451697 | V100: 0.0333111385 | X100: 76 | Y100: 0.08512922574 | Z100: 0.08404963156 | AA100: 0.08313017834 | AB100: 0.08244513689 | AC100: 0.08190728093 | AD100: 0.08150061216 | AE100: 0.0812132977 | AF100: 0.08106582988 | AG100: 0.08097502712 | AH100: 0.08097357025 | AI100: 0.08109113847 | AJ100: 0.0812173895 | AK100: 0.08139967117 | AL100: 0.08171110895 | AM100: 0.08195059979 | AN100: 0.08211785053 | AO100: 0.08227449168 | AP100: 0.08243110603 | AQ100: 0.08258537154 | AR100: 0.08273491404 | AS100: 0.08287729628
A101: 77 | B101: 0.03294740344 | C101: 0.03311863019 | D101: 0.03326622405 | E101: 0.03337726819 | F101: 0.03346511068 | G101: 0.03353191639 | H101: 0.03357931884 | I101: 0.03360371452 | J101: 0.03361875827 | K101: 0.03361899929 | L101: 0.03359952295 | M101: 0.03357864011 | N101: 0.03354854755 | O101: 0.03349729073 | P101: 0.0334580094 | Q101: 0.03343064572 | R101: 0.03340506902 | S101: 0.03337954598 | T101: 0.03335445371 | U101: 0.03333017496 | V101: 0.03330709999 | X101: 77 | Y101: 0.08240962967 | Z101: 0.0813645302 | AA101: 0.08047445524 | AB101: 0.07981130297 | AC101: 0.07929063376 | AD101: 0.07889696044 | AE101: 0.07861882819 | AF101: 0.07847607471 | AG101: 0.07838817582 | AH101: 0.07838676833 | AI101: 0.07850058334 | AJ101: 0.07862280358 | AK101: 0.07879926434 | AL101: 0.07910075502 | AM101: 0.07933259705 | AN101: 0.07949450664 | AO101: 0.07964614544 | AP101: 0.0797977582 | AQ101: 0.07994709703 | AR101: 0.08009186364 | AS101: 0.08022969863
A102: 78 | B102: 0.03294808838 | C102: 0.0331171191 | D102: 0.03326281969 | E102: 0.0333724391 | F102: 0.03345915435 | G102: 0.0335251026 | H102: 0.03357189649 | I102: 0.03359597874 | J102: 0.03361082906 | K102: 0.03361106657 | L102: 0.03359183969 | M102: 0.03357122436 | N102: 0.03354151747 | O102: 0.03349091781 | P102: 0.03345214002 | Q102: 0.03342512704 | R102: 0.03339987812 | S102: 0.03337468219 | T102: 0.03334991151 | U102: 0.03332594393 | V102: 0.03330316469 | X102: 78 | Y102: 0.0797769249 | Z102: 0.07876521723 | AA102: 0.07790358116 | AB102: 0.07726161804 | AC102: 0.07675758584 | AD102: 0.07637649218 | AE102: 0.07610724823 | AF102: 0.07596905798 | AG102: 0.07588396971 | AH102: 0.07588260959 | AI102: 0.07599279088 | AJ102: 0.07611110874 | AK102: 0.0762819342 | AL102: 0.07657379523 | AM102: 0.0767982325 | AN102: 0.07695497128 | AO102: 0.0771017673 | AP102: 0.07724853798 | AQ102: 0.07739310731 | AR102: 0.07753325038 | AS102: 0.0776666832
A103: 79 | B103: 0.03294875466 | C103: 0.03311564504 | D103: 0.03325950038 | E103: 0.03336773123 | F103: 0.03345334785 | G103: 0.03351846045 | H103: 0.03356466125 | I103: 0.03358843807 | J103: 0.03360309991 | K103: 0.03360333405 | L103: 0.03358435035 | M103: 0.03356399581 | N103: 0.03353466486 | O103: 0.03348470575 | P103: 0.03344641879 | Q103: 0.03341974765 | R103: 0.03339481825 | S103: 0.03336994117 | T103: 0.03334548397 | U103: 0.0333218197 | V103: 0.03329932873 | X103: 79 | Y103: 0.07722833385 | Z103: 0.07624895042 | AA103: 0.07541484401 | AB103: 0.07479339249 | AC103: 0.07430546523 | AD103: 0.07393654883 | AE103: 0.07367590876 | AF103: 0.07354213552 | AG103: 0.07345976768 | AH103: 0.07345845304 | AI103: 0.07356511635 | AJ103: 0.07367965618 | AK103: 0.07384502607 | AL103: 0.07412756483 | AM103: 0.07434483364 | AN103: 0.07449656657 | AO103: 0.07463867427 | AP103: 0.07478075738 | AQ103: 0.07492070937 | AR103: 0.07505637643 | AS103: 0.07518554754
A104: 80 | B104: 0.03294940314 | C104: 0.03311420677 | D104: 0.03325626308 | E104: 0.03336314015 | F104: 0.0334476857 | G104: 0.03351198359 | H104: 0.03355760619 | I104: 0.03358108528 | J104: 0.03359556341 | K104: 0.03359579431 | L104: 0.03357704775 | M104: 0.03355694751 | N104: 0.03352798314 | O104: 0.03347864859 | P104: 0.03344084021 | Q104: 0.0334145024 | R104: 0.03338988455 | S104: 0.03336531837 | T104: 0.03334116682 | U104: 0.0333177983 | V104: 0.03329558842 | X104: 80 | Y104: 0.07476116789 | Z104: 0.07381307542 | AA104: 0.07300561859 | AB104: 0.07240402285 | AC104: 0.07193168554 | AD104: 0.07157455695 | AE104: 0.07132224548 | AF104: 0.07119274777 | AG104: 0.07111301312 | AH104: 0.0711117422 | AI104: 0.07121499963 | AJ104: 0.07132588185 | AK104: 0.07148597022 | AL104: 0.07175948428 | AM104: 0.07196981342 | AN104: 0.07211670022 | AO104: 0.0722542692 | AP104: 0.07239181429 | AQ104: 0.07252729629 | AR104: 0.07265863019 | AS104: 0.07278367559
A105: 81 | B105: 0.03295003462 | C105: 0.03311280309 | D105: 0.03325310486 | E105: 0.03335866166 | F105: 0.03344216264 | G105: 0.03350566601 | H105: 0.03355072475 | I105: 0.0335739135 | J105: 0.03358821249 | K105: 0.03358844028 | L105: 0.03356992503 | M105: 0.03355007284 | N105: 0.03352146603 | O105: 0.03347274064 | P105: 0.03343539905 | Q105: 0.03340938635 | R105: 0.03338507238 | S105: 0.03336080945 | T105: 0.03333695603 | U105: 0.03331387597 | V105: 0.03329194024 | X105: 81 | Y105: 0.07237282457 | Z105: 0.07145502285 | AA105: 0.07067336373 | AB105: 0.070090989 | AC105: 0.06963374319 | AD105: 0.06928802546 | AE105: 0.06904377618 | AF105: 0.06891841711 | AG105: 0.06884123123 | AH105: 0.06884000237 | AI105: 0.06893996249 | AJ105: 0.06904730372 | AK105: 0.06920227907 | AL105: 0.06946705655 | AM105: 0.06967066754 | AN105: 0.06981286285 | AO105: 0.06994603794 | AP105: 0.07007918985 | AQ105: 0.07021034452 | AR105: 0.07033748355 | AS105: 0.07045853493
A106: 82 | B106: 0.03295064984 | C106: 0.03311143286 | D106: 0.03325002295 | E106: 0.03335429173 | F106: 0.03343677369 | G106: 0.03349950196 | H106: 0.03354401064 | I106: 0.03356691618 | J106: 0.03358104045 | K106: 0.03358126522 | L106: 0.03356297567 | M106: 0.03354336552 | N106: 0.03351510756 | O106: 0.03346697648 | P106: 0.03343009032 | Q106: 0.03340439483 | R106: 0.03338037734 | S106: 0.03335641027 | T106: 0.03333284773 | U106: 0.03331004911 | V106: 0.03328838086 | X106: 82 | Y106: 0.07006078474 | Z106: 0.06917230561 | AA106: 0.06841561964 | AB106: 0.0678518515 | AC106: 0.06740921473 | AD106: 0.06707454299 | AE106: 0.06683809806 | AF106: 0.06671674514 | AG106: 0.06664202637 | AH106: 0.066640838 | AI106: 0.06673760594 | AJ106: 0.06684151911 | AK106: 0.06699154462 | AL106: 0.06724786445 | AM106: 0.06744497175 | AN106: 0.0675826253 | AO106: 0.06771154674 | AP106: 0.06784044569 | AQ106: 0.06796741115 | AR106: 0.06809048921 | AS106: 0.06820767406
A107: 83 | B107: 0.03295124951 | C107: 0.03311009497 | D107: 0.03324701468 | E107: 0.03335002653 | F107: 0.03343151407 | G107: 0.03349348597 | H107: 0.03353745788 | I107: 0.03356008707 | J107: 0.03357404086 | K107: 0.03357426272 | L107: 0.03355619346 | M107: 0.03353681953 | N107: 0.03350890204 | O107: 0.03346135098 | P107: 0.03342490927 | Q107: 0.03339952336 | R107: 0.03337579523 | S107: 0.03335211691 | T107: 0.03332883824 | U107: 0.03330631429 | V107: 0.03328490709 | X107: 83 | Y107: 0.0678226099 | Z107: 0.06696251622 | AA107: 0.06623000524 | AB107: 0.06568424895 | AC107: 0.06525575421 | AD107: 0.06493177533 | AE107: 0.06470288518 | AF107: 0.06458541022 | AG107: 0.06451307953 | AH107: 0.06451193016 | AI107: 0.06460560772 | AJ107: 0.06470620219 | AK107: 0.06485143583 | AL107: 0.06509956806 | AM107: 0.06529037932 | AN107: 0.06542363608 | AO107: 0.06554843964 | AP107: 0.06567322138 | AQ107: 0.06579613137 | AR107: 0.06591527811 | AS107: 0.06602871986
A108: 84 | B108: 0.03295183426 | C108: 0.03310878834 | D108: 0.03324407748 | E108: 0.03334586239 | F108: 0.03342637922 | G108: 0.03348761281 | H108: 0.03353106077 | I108: 0.03355342023 | J108: 0.03356720762 | K108: 0.03356742666 | L108: 0.03354957247 | M108: 0.03353042915 | N108: 0.03350284403 | O108: 0.03345585919 | P108: 0.03341985138 | Q108: 0.03339476769 | R108: 0.03337132204 | S108: 0.0333479256 | T108: 0.03332492406 | U108: 0.03330266825 | V108: 0.03328151589 | X108: 84 | Y108: 0.06565593961 | Z108: 0.06482332423 | AA108: 0.06411421563 | AB108: 0.0635858955 | AC108: 0.06317109077 | AD108: 0.06285746291 | AE108: 0.062635886 | AF108: 0.06252216491 | AG108: 0.06245214585 | AH108: 0.06245103408 | AI108: 0.06254171984 | AJ108: 0.06263910148 | AK108: 0.06277969621 | AL108: 0.06301990228 | AM108: 0.06320461852 | AN108: 0.06333361885 | AO108: 0.06345443598 | AP108: 0.06357523196 | AQ108: 0.06369421594 | AR108: 0.06380955687 | AS108: 0.06391937502
A109: 85 | B109: 0.03295240471 | C109: 0.03310751195 | D109: 0.03324120894 | E109: 0.03334179581 | F109: 0.03342136482 | G109: 0.03348187749 | H109: 0.03352481386 | I109: 0.03354690996 | J109: 0.0335605349 | K109: 0.03356075121 | L109: 0.03354310705 | M109: 0.03352418892 | N109: 0.03349692838 | O109: 0.03345049644 | P109: 0.03341491233 | Q109: 0.03339012376 | R109: 0.03336695394 | S109: 0.03334383277 | T109: 0.03332110185 | U109: 0.03329910788 | V109: 0.03327820437 | X109: 85 | Y109: 0.06355848892 | Z109: 0.06275247374 | AA109: 0.06206601964 | AB109: 0.06155457842 | AC109: 0.06115302614 | AD109: 0.06084941845 | AE109: 0.06063492096 | AF109: 0.06052483366 | AG109: 0.06045705223 | AH109: 0.06045597672 | AI109: 0.06054376613 | AJ109: 0.06063803748 | AK109: 0.06077414138 | AL109: 0.06100667441 | AM109: 0.06118549025 | AN109: 0.06131037003 | AO109: 0.061427328 | AP109: 0.06154426548 | AQ109: 0.0616594488 | AR109: 0.06177110543 | AS109: 0.06187741569
A110: 86 | B110: 0.03295296142 | C110: 0.0331062648 | D110: 0.0332384067 | E110: 0.03333782343 | F110: 0.03341646669 | G110: 0.03347627525 | H110: 0.03351871196 | I110: 0.03354055085 | J110: 0.03355401713 | K110: 0.0335542308 | L110: 0.03353679179 | M110: 0.03351809364 | N110: 0.03349115014 | O110: 0.03344525825 | P110: 0.03341008798 | Q110: 0.03338558768 | R110: 0.03336268731 | S110: 0.03333983501 | T110: 0.03331736841 | U110: 0.0332956302 | V110: 0.03327496977 | X110: 86 | Y110: 0.06152804602 | Z110: 0.06074778101 | AA110: 0.06008325747 | AB110: 0.05958815576 | AC110: 0.05919943238 | AD110: 0.05890552459 | AE110: 0.05869788021 | AF110: 0.05859131049 | AG110: 0.05852569508 | AH110: 0.05852465456 | AI110: 0.05860964004 | AJ110: 0.05870090035 | AK110: 0.0588326568 | AL110: 0.05905776183 | AM110: 0.05923086568 | AN110: 0.05935175648 | AO110: 0.05946497851 | AP110: 0.05957818067 | AQ110: 0.0596896847 | AR110: 0.05979777466 | AS110: 0.05990068904
A111: 87 | B111: 0.03295350492 | C111: 0.03310504594 | D111: 0.03323566853 | E111: 0.03333394205 | F111: 0.03341168089 | G111: 0.03347080155 | H111: 0.03351275011 | I111: 0.03353433771 | J111: 0.03354764901 | K111: 0.03354786012 | L111: 0.03353062155 | M111: 0.03351213834 | N111: 0.03348550459 | O111: 0.03344014035 | P111: 0.03340537442 | Q111: 0.03338115577 | R111: 0.03335851864 | S111: 0.03333592904 | T111: 0.03331372071 | U111: 0.03329223237 | V111: 0.03327180943 | X111: 87 | Y111: 0.05956246981 | Z111: 0.05880713214 | AA111: 0.05816383839 | AB111: 0.05768455403 | AC111: 0.05730824958 | AD111: 0.05702373167 | AE111: 0.05682272136 | AF111: 0.05671955672 | AG111: 0.05665603803 | AH111: 0.05665503128 | AI111: 0.05673730233 | AJ111: 0.0568256477 | AK111: 0.0569531955 | AL111: 0.05717110976 | AM111: 0.05733868402 | AN111: 0.05745571321 | AO111: 0.05756531859 | AP111: 0.05767490472 | AQ111: 0.05778284694 | AR111: 0.05788748414 | AS111: 0.05798711107
A112: 88 | B112: 0.03295403571 | C112: 0.03310385446 | D112: 0.0332329923 | E112: 0.03333014862 | F112: 0.0334070036 | G112: 0.03346545203 | H112: 0.03350692356 | I112: 0.03352826561 | J112: 0.03354142547 | K112: 0.03354163407 | L112: 0.03352459141 | M112: 0.03350631826 | N112: 0.03347998723 | O112: 0.03343513865 | P112: 0.03340076788 | Q112: 0.03337682448 | R112: 0.03335444463 | S112: 0.03333211176 | T112: 0.03331015582 | U112: 0.0332889117 | V112: 0.03326872085 | X112: 88 | Y112: 0.05765968767 | Z112: 0.05692848085 | AA112: 0.05630573852 | AB112: 0.05584176607 | AC112: 0.05547748368 | AD112: 0.05520205557 | AE112: 0.05500746728 | AF112: 0.05490759886 | AG112: 0.05484610981 | AH112: 0.05484513568 | AI112: 0.05492477892 | AJ112: 0.05501030241 | AK112: 0.05513377595 | AL112: 0.05534472909 | AM112: 0.05550695036 | AN112: 0.05562024125 | AO112: 0.05572634547 | AP112: 0.05583243102 | AQ112: 0.05593692518 | AR112: 0.05603821988 | AS112: 0.05613466435
A113: 89 | B113: 0.03295455427 | C113: 0.03310268946 | D113: 0.03323037595 | E113: 0.0333264402 | F113: 0.03340243122 | G113: 0.03346022254 | H113: 0.03350122777 | I113: 0.03352232982 | J113: 0.03353534164 | K113: 0.03353554782 | L113: 0.03351869667 | M113: 0.03350062886 | N113: 0.03347459375 | O113: 0.03343024925 | P113: 0.03339626477 | Q113: 0.03337259044 | R113: 0.03335046209 | S113: 0.03332838018 | T113: 0.03330667097 | U113: 0.03328566558 | V113: 0.03326570162 | X113: 89 | Y113: 0.05581769327 | Z113: 0.05510984626 | AA113: 0.05450699868 | AB113: 0.05405784887 | AC113: 0.05370520437 | AD113: 0.05343857558 | AE113: 0.05325020407 | AF113: 0.05315352647 | AG113: 0.05309400216 | AH113: 0.05309305953 | AI113: 0.05317015885 | AJ113: 0.05325295055 | AK113: 0.05337247993 | AL113: 0.05357669427 | AM113: 0.05373373352 | AN113: 0.05384340548 | AO113: 0.05394612035 | AP113: 0.05404881713 | AQ113: 0.05414997333 | AR113: 0.05424803227 | AS113: 0.05434139592
A114: 90 | B114: 0.03295506104 | C114: 0.03310155012 | D114: 0.03322781752 | E114: 0.03332281399 | F114: 0.03339796027 | G114: 0.0334551091 | H114: 0.03349565842 | I114: 0.0335165258 | J114: 0.0335293929 | K114: 0.03352959671 | L114: 0.03351293282 | M114: 0.0334950658 | N114: 0.03346932005 | O114: 0.03342546842 | P114: 0.03339186165 | Q114: 0.03336845042 | R114: 0.03334656798 | S114: 0.03332473147 | T114: 0.0333032635 | U114: 0.03328249153 | V114: 0.03326274943 | X114: 90 | Y114: 0.05403454439 | Z114: 0.05334931083 | AA114: 0.05276572232 | AB114: 0.05233092153 | AC114: 0.05198954305 | AD114: 0.05173143239 | AE114: 0.05154907898 | AF114: 0.05145549021 | AG114: 0.05139786781 | AH114: 0.05139695561 | AI114: 0.05147159223 | AJ114: 0.05155173936 | AK114: 0.05166745052 | AL114: 0.05186514131 | AM114: 0.05201716403 | AN114: 0.05212333264 | AO114: 0.05222276639 | AP114: 0.05232218262 | AQ114: 0.05242010747 | AR114: 0.052515034 | AS114: 0.05260541522
A115: 91 | B115: 0.03295555645 | C115: 0.0331004356 | D115: 0.03322531512 | E115: 0.03331926731 | F115: 0.03339358743 | G115: 0.03345010791 | H115: 0.03349021135 | I115: 0.03351084924 | J115: 0.0335235748 | K115: 0.03352377631 | L115: 0.03350729557 | M115: 0.03348962494 | N115: 0.03346416219 | O115: 0.03342079261 | P115: 0.03338755524 | Q115: 0.03336440133 | R115: 0.0333427594 | S115: 0.03332116289 | T115: 0.03329993088 | U115: 0.03327938721 | V115: 0.03325986207 | X115: 91 | Y115: 0.05230836095 | Z115: 0.05164501831 | AA115: 0.05108007354 | AB115: 0.05065916328 | AC115: 0.05032869084 | AD115: 0.05007882612 | AE115: 0.04990229849 | AF115: 0.04981169982 | AG115: 0.0497559185 | AH115: 0.04975503572 | AI115: 0.04982728826 | AJ115: 0.04990487526 | AK115: 0.05001689016 | AL115: 0.05020826575 | AM115: 0.05035543217 | AN115: 0.05045820931 | AO115: 0.05055446673 | AP115: 0.05065070718 | AQ115: 0.05074550389 | AR115: 0.05083739804 | AS115: 0.05092489209
A116: 92 | B116: 0.03295604089 | C116: 0.03309934513 | D116: 0.03322286696 | E116: 0.03331579758 | F116: 0.03338930952 | G116: 0.03344521533 | H116: 0.0334848826 | I116: 0.03350529599 | J116: 0.03351788311 | K116: 0.03351808237 | L116: 0.03350178081 | M116: 0.03348430229 | N116: 0.0334591164 | O116: 0.03341621838 | P116: 0.03338334239 | Q116: 0.03336044021 | R116: 0.03333903356 | S116: 0.03331767184 | T116: 0.03329667066 | U116: 0.03327635032 | V116: 0.03325703745 | X116: 92 | Y116: 0.05063732292 | Z116: 0.04999517179 | AA116: 0.04944827508 | AB116: 0.04904081154 | AC116: 0.04872089667 | AD116: 0.04847901441 | AE116: 0.0483081264 | AF116: 0.04822042224 | AG116: 0.04816642316 | AH116: 0.04816556881 | AI116: 0.0482355134 | AJ116: 0.04831062201 | AK116: 0.04841905869 | AL116: 0.0486043208 | AM116: 0.04874678603 | AN116: 0.04884628002 | AO116: 0.04893946256 | AP116: 0.04903262866 | AQ116: 0.04912439713 | AR116: 0.04921335577 | AS116: 0.04929805485
A117: 93 | B117: 0.03295651474 | C117: 0.03309827795 | D117: 0.03322047131 | E117: 0.03331240235 | F117: 0.0333851235 | G117: 0.03344042787 | H117: 0.03347966836 | I117: 0.0334998621 | J117: 0.03351231375 | K117: 0.03351251082 | L117: 0.03349638459 | M117: 0.03347909406 | N117: 0.03345417907 | O117: 0.03341174248 | P117: 0.0333792201 | Q117: 0.03335656423 | R117: 0.03333538782 | S117: 0.03331425584 | T117: 0.03329348051 | U117: 0.03327337871 | V117: 0.03325427354 | X117: 93 | Y117: 0.04901966846 | Z117: 0.04839803179 | AA117: 0.04786860651 | AB117: 0.04747416006 | AC117: 0.04716446543 | AD117: 0.04693031058 | AE117: 0.04676488197 | AF117: 0.04667997983 | AG117: 0.046627706 | AH117: 0.04662687914 | AI117: 0.04669458947 | AJ117: 0.04676729885 | AK117: 0.04687227158 | AL117: 0.04705161549 | AM117: 0.04718952969 | AN117: 0.04728584539 | AO117: 0.04737605125 | AP117: 0.0474662412 | AQ117: 0.04755507815 | AR117: 0.04764119503 | AS117: 0.04772318842
A118: 94 | B118: 0.03295697836 | C118: 0.03309723334 | D118: 0.03321812651 | E118: 0.03330907924 | F118: 0.03338102645 | G118: 0.03343574219 | H118: 0.033474565 | I118: 0.03349454376 | J118: 0.03350686284 | K118: 0.03350705777 | L118: 0.03349110314 | M118: 0.0334739966 | N118: 0.03344934675 | O118: 0.03340736177 | P118: 0.03337518548 | Q118: 0.03335277069 | R118: 0.0333318196 | S118: 0.03331091248 | T118: 0.03329035822 | U118: 0.0332704703 | V118: 0.03325156841 | X118: 94 | Y118: 0.04745369206 | Z118: 0.04685191443 | AA118: 0.04633940238 | AB118: 0.04595755712 | AC118: 0.0456577562 | AD118: 0.04543108184 | AE118: 0.0452709382 | AF118: 0.04518874852 | AG118: 0.04513814481 | AH118: 0.04513734452 | AI118: 0.04520289195 | AJ118: 0.04527327871 | AK118: 0.04537489813 | AL118: 0.04554851287 | AM118: 0.04568202141 | AN118: 0.04577526033 | AO118: 0.0458625846 | AP118: 0.04594989344 | AQ118: 0.04603589252 | AR118: 0.0461192584 | AS118: 0.04619863252
A119: 95 | B119: 0.0329574321 | C119: 0.03309621061 | D119: 0.03321583096 | E119: 0.03330582601 | F119: 0.03337701558 | G119: 0.03343115509 | H119: 0.03346956901 | I119: 0.03348933733 | J119: 0.03350152664 | K119: 0.03350171948 | L119: 0.03348593285 | M119: 0.03346900643 | N119: 0.03344461613 | O119: 0.03340307326 | P119: 0.03337123576 | Q119: 0.03334905698 | R119: 0.03332832649 | S119: 0.03330763949 | T119: 0.03328730163 | U119: 0.0332676231 | V119: 0.03324892021 | X119: 95 | Y119: 0.04593774269 | Z119: 0.04535518963 | AA119: 0.04485905046 | AB119: 0.04448940379 | AC119: 0.04419918047 | AD119: 0.04397974761 | AE119: 0.04382472007 | AF119: 0.04374515617 | AG119: 0.04369616918 | AH119: 0.0436953946 | AI119: 0.04375884819 | AJ119: 0.04382698651 | AK119: 0.04392535973 | AL119: 0.04409342831 | AM119: 0.0442226719 | AN119: 0.04431293232 | AO119: 0.04439746703 | AP119: 0.0444819868 | AQ119: 0.04456523864 | AR119: 0.0446459414 | AS119: 0.04472277991
A120: 96 | B120: 0.03295787627 | C120: 0.03309520908 | D120: 0.03321358315 | E120: 0.03330264047 | F120: 0.03337308819 | G120: 0.03342666349 | H120: 0.03346467706 | I120: 0.03348423933 | J120: 0.03349630157 | K120: 0.03349649238 | L120: 0.03348087024 | M120: 0.03346412019 | N120: 0.03343998405 | O120: 0.03339887406 | P120: 0.03336736831 | Q120: 0.03334542062 | R120: 0.03332490612 | S120: 0.03330443466 | T120: 0.03328430869 | U120: 0.03326483519 | V120: 0.03324632715 | X120: 96 | Y120: 0.0444702221 | Z120: 0.04390627941 | AA120: 0.04342599003 | AB120: 0.04306815223 | AC120: 0.04278720051 | AD120: 0.04257477777 | AE120: 0.04242470286 | AF120: 0.04234768083 | AG120: 0.0423002589 | AH120: 0.04229950919 | AI120: 0.04236093581 | AJ120: 0.04242689749 | AK120: 0.0425221282 | AL120: 0.04268482778 | AM120: 0.04280994266 | AN120: 0.04289731972 | AO120: 0.04297915397 | AP120: 0.04306097376 | AQ120: 0.04314156611 | AR120: 0.04321969082 | AS120: 0.04329407471
A121: 97 | B121: 0.03295831119 | C121: 0.03309422811 | D121: 0.03321138161 | E121: 0.03329952054 | F121: 0.03336924173 | G121: 0.03342226446 | H121: 0.03345988594 | I121: 0.03347924641 | J121: 0.03349118421 | K121: 0.03349137303 | L121: 0.03347591199 | M121: 0.03345933468 | N121: 0.03343544745 | O121: 0.03339476143 | P121: 0.03336358058 | Q121: 0.03334185921 | R121: 0.03332155625 | S121: 0.03330129589 | T121: 0.03328137745 | U121: 0.03326210475 | V121: 0.03324378755 | X121: 97 | Y121: 0.04304958309 | Z121: 0.04250365622 | AA121: 0.04203871026 | AB121: 0.04169230405 | AC121: 0.04142032771 | AD121: 0.04121469113 | AE121: 0.04106941061 | AF121: 0.04099484923 | AG121: 0.04094894234 | AH121: 0.04094821668 | AI121: 0.04100768107 | AJ121: 0.04107153564 | AK121: 0.0411637242 | AL121: 0.04132122629 | AM121: 0.04144234435 | AN121: 0.04152693014 | AO121: 0.04160615019 | AP121: 0.04168535623 | AQ121: 0.04176337405 | AR121: 0.04183900305 | AS121: 0.04191101074
A122: 98 | B122: 0.03295873715 | C122: 0.03309326709 | D122: 0.03320922493 | E122: 0.03329646423 | F122: 0.03336547372 | G122: 0.03341795516 | H122: 0.03345519256 | I122: 0.03347435536 | J122: 0.03348617127 | K122: 0.03348635813 | L122: 0.03347105491 | M122: 0.03345464681 | N122: 0.03343100342 | O122: 0.03339073271 | P122: 0.03335987013 | Q122: 0.03333837047 | R122: 0.03331827474 | S122: 0.03329822116 | T122: 0.03327850602 | U122: 0.03325943002 | V122: 0.03324129977 | X122: 98 | Y122: 0.04167432793 | Z122: 0.04114584131 | AA122: 0.04069574859 | AB122: 0.04036040874 | AC122: 0.04009712103 | AD122: 0.0398980538 | AE122: 0.0397574145 | AF122: 0.03968523514 | AG122: 0.03964079487 | AH122: 0.03964009247 | AI122: 0.0396976573 | AJ122: 0.03975947206 | AK122: 0.03984871566 | AL122: 0.04000118628 | AM122: 0.04011843518 | AN122: 0.04020031887 | AO122: 0.04027700822 | AP122: 0.04035368401 | AQ122: 0.04042920953 | AR122: 0.04050242254 | AS122: 0.04057212993
A123: 99 | B123: 0.03295915443 | C123: 0.03309232542 | D123: 0.03320711177 | E123: 0.03329346962 | F123: 0.03336178179 | G123: 0.03341373289 | H123: 0.03345059397 | I123: 0.0334695631 | J123: 0.03348125958 | K123: 0.03348144454 | L123: 0.03346629594 | M123: 0.03345005364 | N123: 0.03342664915 | O123: 0.03338678537 | P123: 0.03335623463 | Q123: 0.0333349522 | R123: 0.03331505951 | S123: 0.03329520854 | T123: 0.03327569259 | U123: 0.03325680931 | V123: 0.03323886223 | X123: 99 | Y123: 0.04034300673 | Z123: 0.03983140319 | AA123: 0.03939568918 | AB123: 0.03907106215 | AC123: 0.03881618549 | AD123: 0.03862347772 | AE123: 0.03848733134 | AF123: 0.0384174579 | AG123: 0.03837443739 | AH123: 0.0383737575 | AI123: 0.03842948344 | AJ123: 0.03848932354 | AK123: 0.03857571623 | AL123: 0.03872331611 | AM123: 0.03883681945 | AN123: 0.03891608735 | AO123: 0.03899032684 | AP123: 0.0390645532 | AQ123: 0.03913766604 | AR123: 0.03920854023 | AS123: 0.0392760208
A124: 100 | B124: 0.03295956331 | C124: 0.03309140252 | D124: 0.03320504081 | E124: 0.03329053485 | F124: 0.03335816366 | G124: 0.03340959504 | H124: 0.03344608734 | I124: 0.03346486667 | J124: 0.03347644611 | K124: 0.0334766292 | L124: 0.03346163215 | M124: 0.03344555233 | N124: 0.03342238197 | O124: 0.03338291696 | P124: 0.03335267183 | Q124: 0.03333160228 | R124: 0.03331190857 | S124: 0.03329225616 | T124: 0.03327293541 | U124: 0.03325424101 | V124: 0.03323647343 | X124: 100 | Y124: 0.03905421594 | Z124: 0.0385589561 | AA124: 0.03813716144 | AB124: 0.03782290498 | AC124: 0.03757617066 | AD124: 0.03738961918 | AE124: 0.03725782218 | AF124: 0.03719018097 | AG124: 0.03714853485 | AH124: 0.03714787675 | AI124: 0.03720182253 | AJ124: 0.03725975105 | AK124: 0.0373433839 | AL124: 0.03748626863 | AM124: 0.03759614606 | AN124: 0.03767288171 | AO124: 0.0377447496 | AP124: 0.03781660478 | AQ124: 0.037887382 | AR124: 0.03795599209 | AS124: 0.03802131696
A125: 101 | B125: 0.03295996403 | C125: 0.03309049785 | D125: 0.03320301083 | E125: 0.03328765817 | F125: 0.03335461716 | G125: 0.03340553911 | H125: 0.03344166993 | I125: 0.03346026323 | J125: 0.03347172796 | K125: 0.03347190922 | L125: 0.0334570607 | M125: 0.03344114014 | N125: 0.03341819928 | O125: 0.03337912515 | P125: 0.03334917957 | Q125: 0.0333283187 | R125: 0.03330882002 | S125: 0.03328936224 | T125: 0.03327023283 | U125: 0.03325172355 | V125: 0.03323413193 | X125: 101 | Y125: 0.03780659682 | Z125: 0.03732715857 | AA125: 0.03691883857 | AB125: 0.03661462138 | AC125: 0.03637576926 | AD125: 0.03619517738 | AE125: 0.03606759081 | AF125: 0.03600211052 | AG125: 0.03596179487 | AH125: 0.03596115784 | AI125: 0.03601338033 | AJ125: 0.03606945832 | AK125: 0.0361504195 | AL125: 0.03628873969 | AM125: 0.03639510703 | AN125: 0.03646939134 | AO125: 0.03653896339 | AP125: 0.03660852312 | AQ125: 0.03667703933 | AR125: 0.03674345765 | AS125: 0.03680669569
A126: 102 | B126: 0.03296035686 | C126: 0.03308961087 | D126: 0.03320102061 | E126: 0.03328483786 | F126: 0.03335114017 | G126: 0.03340156268 | H126: 0.03343733912 | I126: 0.03345575004 | J126: 0.03346710231 | K126: 0.03346728177 | L126: 0.03345257889 | M126: 0.03343681447 | N126: 0.0334140986 | O126: 0.03337540769 | P126: 0.03334575579 | Q126: 0.03332509949 | R126: 0.03330579202 | S126: 0.03328652505 | T126: 0.03326758323 | U126: 0.03324925546 | V126: 0.03323183633 | X126: 102 | Y126: 0.0365988341 | Z126: 0.03613471197 | AA126: 0.03573943616 | AB126: 0.03544493751 | AC126: 0.03521371578 | AD126: 0.03503889311 | AE126: 0.03491538246 | AF126: 0.03485199403 | AG126: 0.03481296635 | AH126: 0.03481234971 | AI126: 0.03486290395 | AJ126: 0.03491719052 | AK126: 0.03499556536 | AL126: 0.03512946684 | AM126: 0.03523243623 | AN126: 0.03530434749 | AO126: 0.03537169703 | AP126: 0.03543903464 | AQ126: 0.03550536207 | AR126: 0.03556965862 | AS126: 0.03563087649
A127: 103 | B127: 0.03296074201 | C127: 0.03308874109 | D127: 0.033199069 | E127: 0.03328207229 | F127: 0.03334773067 | G127: 0.03339766346 | H127: 0.0334330924 | I127: 0.03345132448 | J127: 0.03346256647 | K127: 0.03346274419 | L127: 0.0334481841 | M127: 0.03343257279 | N127: 0.03341007754 | O127: 0.03337176241 | P127: 0.03334239848 | Q127: 0.03332194278 | R127: 0.03330282282 | S127: 0.03328374295 | T127: 0.03326498507 | U127: 0.03324683528 | V127: 0.03322958531 | X127: 103 | Y127: 0.03542965449 | Z127: 0.03498035919 | AA127: 0.03459771085 | AB127: 0.03431262025 | AC127: 0.03408878514 | AD127: 0.03391954738 | AE127: 0.03379998241 | AF127: 0.03373861902 | AG127: 0.03370083815 | AH127: 0.03370024125 | AI127: 0.03374918053 | AJ127: 0.0338017329 | AK127: 0.03387760403 | AL127: 0.03400722795 | AM127: 0.03410690791 | AN127: 0.03417652194 | AO127: 0.03424171996 | AP127: 0.03430690645 | AQ127: 0.03437111501 | AR127: 0.03443335758 | AS127: 0.03449261981
A128: 104 | B128: 0.03296111972 | C128: 0.03308788799 | D128: 0.0331971549 | E128: 0.03327935988 | F128: 0.03334438673 | G128: 0.03339383921 | H128: 0.03342892734 | I128: 0.03344698403 | J128: 0.03345811786 | K128: 0.03345829386 | L128: 0.03344387383 | M128: 0.03342841268 | N128: 0.03340613381 | O128: 0.03336818722 | P128: 0.03333910573 | Q128: 0.03331884678 | R128: 0.03329991071 | S128: 0.03328101435 | T128: 0.03326243688 | U128: 0.03324446165 | V128: 0.03322737757 | X128: 104 | Y128: 0.0342978254 | Z128: 0.03386288326 | AA128: 0.03349245898 | AB128: 0.03321647588 | AC128: 0.03299979141 | AD128: 0.03283596012 | AE128: 0.0327202148 | AF128: 0.03266081175 | AG128: 0.03262423785 | AH128: 0.03262366005 | AI128: 0.03267103595 | AJ128: 0.03272190952 | AK128: 0.03279535691 | AL128: 0.03292083991 | AM128: 0.03301733555 | AN128: 0.03308472572 | AO128: 0.03314784096 | AP128: 0.03321094502 | AQ128: 0.03327310241 | AR128: 0.0333333566 | AS128: 0.03339072567
A129: 105 | B129: 0.03296149021 | C129: 0.03308705112 | D129: 0.03319527724 | E129: 0.03327669912 | F129: 0.03334110647 | G129: 0.0333900878 | H129: 0.03342484161 | I129: 0.03344272625 | J129: 0.03345375399 | K129: 0.03345392831 | L129: 0.03343964566 | M129: 0.03342433181 | N129: 0.0334022652 | O129: 0.03336468014 | P129: 0.0333358757 | Q129: 0.03331580975 | R129: 0.03329705407 | S129: 0.03327833772 | T129: 0.03325993722 | U129: 0.03324213322 | V129: 0.03322521188 | X129: 105 | Y129: 0.0332021536 | Z129: 0.03278110609 | AA129: 0.03242251536 | AB129: 0.0321553488 | AC129: 0.03194558653 | AD129: 0.031786989 | AE129: 0.03167494129 | AF129: 0.03161743595 | AG129: 0.03158203046 | AH129: 0.03158147114 | AI129: 0.03162733361 | AJ129: 0.03167658201 | AK129: 0.03174768308 | AL129: 0.03186915745 | AM129: 0.03196257047 | AN129: 0.03202780783 | AO129: 0.03208890681 | AP129: 0.03214999499 | AQ129: 0.03221016672 | AR129: 0.03226849606 | AS129: 0.03232403244
A130: 106 | B130: 0.03296185369 | C130: 0.03308623002 | D130: 0.03319343499 | E130: 0.03327408855 | F130: 0.03333788809 | G130: 0.03338640716 | H130: 0.03342083297 | I130: 0.03343854881 | J130: 0.03344947247 | K130: 0.03344964512 | L130: 0.03343549727 | M130: 0.03342032795 | N130: 0.03339846959 | O130: 0.03336123923 | P130: 0.03333270662 | Q130: 0.03331283002 | R130: 0.03329425133 | S130: 0.0332757116 | T130: 0.03325748473 | U130: 0.03323984872 | V130: 0.03322308705 | X130: 106 | Y130: 0.03214148402 | Z130: 0.03173388725 | AA130: 0.03138675203 | AB130: 0.03112812036 | AC130: 0.03092505914 | AD130: 0.03077152817 | AE130: 0.03066305993 | AF130: 0.03060739167 | AG130: 0.03057311726 | AH130: 0.03057257584 | AI130: 0.03061697321 | AJ130: 0.03066464835 | AK130: 0.03073347806 | AL130: 0.03085107185 | AM130: 0.03094150073 | AN130: 0.03100465404 | AO130: 0.03106380119 | AP130: 0.03112293787 | AQ130: 0.03118118738 | AR130: 0.03123765335 | AS130: 0.03129141559
A131: 107 | B131: 0.03296221034 | C131: 0.03308542424 | D131: 0.03319162715 | E131: 0.03327152676 | F131: 0.03333472987 | G131: 0.03338279532 | H131: 0.03341689926 | I131: 0.03343444946 | J131: 0.03344527097 | K131: 0.03344544201 | L131: 0.03343142643 | M131: 0.03341639893 | N131: 0.03339474493 | O131: 0.03335786264 | P131: 0.03332959677 | Q131: 0.03330990599 | R131: 0.03329150098 | S131: 0.03327313456 | T131: 0.03325507807 | U131: 0.03323760693 | V131: 0.03322100194 | X131: 107 | Y131: 0.03111469845 | Z131: 0.03072012272 | AA131: 0.03038407705 | AB131: 0.0301337076 | AC131: 0.02993713336 | AD131: 0.02978850709 | AE131: 0.02968350398 | AF131: 0.02962961411 | AG131: 0.02959643465 | AH131: 0.02959591053 | AI131: 0.02963888962 | AJ131: 0.02968504175 | AK131: 0.02975167266 | AL131: 0.02986550983 | AM131: 0.02995304991 | AN131: 0.03001418575 | AO131: 0.0300714434 | AP131: 0.03012869092 | AQ131: 0.03018507962 | AR131: 0.03023974175 | AS131: 0.03029178651
A132: 108 | B132: 0.03296256038 | C132: 0.03308463337 | D132: 0.03318985278 | E132: 0.03326901241 | F132: 0.03333163012 | G132: 0.03337925036 | H132: 0.0334130384 | I132: 0.03343042602 | J132: 0.03344114729 | K132: 0.03344131673 | L132: 0.03342743098 | M132: 0.03341254267 | N132: 0.03339108925 | O132: 0.03335454858 | P132: 0.03332654451 | Q132: 0.03330703611 | R132: 0.03328880156 | S132: 0.03327060524 | T132: 0.03325271598 | U132: 0.03323540664 | V132: 0.03321895544 | X132: 108 | Y132: 0.03012071443 | Z132: 0.02973874377 | AA132: 0.02941343338 | AB132: 0.02917106221 | AC132: 0.02898076771 | AD132: 0.02883688944 | AE132: 0.02873524077 | AF132: 0.02868307247 | AG132: 0.02865095296 | AH132: 0.02865044561 | AI132: 0.02869205171 | AJ132: 0.02873672949 | AK132: 0.02880123183 | AL132: 0.0289114324 | AM132: 0.02899617595 | AN132: 0.02905535877 | AO132: 0.02911078729 | AP132: 0.029166206 | AQ132: 0.02922079332 | AR132: 0.02927370924 | AS132: 0.0293240914
A133: 109 | B133: 0.03296290397 | C133: 0.033083857 | D133: 0.03318811095 | E133: 0.03326654418 | F133: 0.03332858724 | G133: 0.03337577045 | H133: 0.03340924838 | I133: 0.03342647641 | J133: 0.03343709927 | K133: 0.03343726716 | L133: 0.03342350884 | M133: 0.03340875718 | N133: 0.03338750065 | O133: 0.03335129533 | P133: 0.03332354827 | Q133: 0.03330421889 | R133: 0.03328615168 | S133: 0.03326812234 | T133: 0.03325039724 | U133: 0.03323324674 | V133: 0.03321694649 | X133: 109 | Y133: 0.02915848409 | Z133: 0.02878871581 | AA133: 0.02847379774 | AB133: 0.02823916933 | AC133: 0.02805495397 | AD133: 0.02791567202 | AE133: 0.02781727061 | AF133: 0.02776676888 | AG133: 0.02773567548 | AH133: 0.02773518435 | AI133: 0.02777546132 | AJ133: 0.02781871184 | AK133: 0.02788115361 | AL133: 0.02798783375 | AM133: 0.02806987011 | AN133: 0.02812716229 | AO133: 0.02818082012 | AP133: 0.02823446844 | AQ133: 0.02828731193 | AR133: 0.02833853741 | AS133: 0.02838731008
A134: 110 | B134: 0.0329632413 | C134: 0.03308309472 | D134: 0.03318640079 | E134: 0.03326412082 | F134: 0.03332559969 | G134: 0.03337235381 | H134: 0.03340552727 | I134: 0.03342259862 | J134: 0.03343312487 | K134: 0.03343329122 | L134: 0.03341965803 | M134: 0.03340504052 | N134: 0.0333839773 | O134: 0.03334810124 | P134: 0.0333206065 | Q134: 0.03330145289 | R134: 0.03328354997 | S134: 0.03326568458 | T134: 0.03324812065 | U134: 0.0332311261 | V134: 0.03321497407 | X134: 110 | Y134: 0.028226993 | Z134: 0.02786903729 | AA134: 0.02756417955 | AB134: 0.02733704655 | AC134: 0.02715871611 | AD134: 0.02702388365 | AE134: 0.02692862576 | AF134: 0.02687973737 | AG134: 0.02684963728 | AH134: 0.02684916185 | AI134: 0.02688815215 | AJ134: 0.02693002101 | AK134: 0.02699046804 | AL134: 0.02709374021 | AM134: 0.02717315586 | AN134: 0.0272286178 | AO134: 0.02728056149 | AP134: 0.02733249598 | AQ134: 0.02738365136 | AR134: 0.0274332404 | AS134: 0.027480455
A135: 111 | B135: 0.03296357254 | C135: 0.03308234617 | D135: 0.03318472143 | E135: 0.03326174112 | F135: 0.03332266597 | G135: 0.03336899873 | H135: 0.03340187322 | I135: 0.03341879071 | J135: 0.03342922208 | K135: 0.03342938693 | L135: 0.03341587661 | M135: 0.03340139084 | N135: 0.03338051745 | O135: 0.0333449647 | P135: 0.03331771774 | Q135: 0.03329873674 | R135: 0.03328099515 | S135: 0.03326329074 | T135: 0.03324588509 | U135: 0.03322904367 | V135: 0.03321303719 | X135: 111 | Y135: 0.02732525918 | Z135: 0.02697873867 | AA135: 0.02668361987 | AB135: 0.02646374283 | AC135: 0.02629110931 | AD135: 0.0261605842 | AE135: 0.02606836941 | AF135: 0.0260210428 | AG135: 0.0259919043 | AH135: 0.02599144406 | AI135: 0.0260291888 | AJ135: 0.02606972013 | AK135: 0.02612823615 | AL135: 0.0262282092 | AM135: 0.02630508786 | AN135: 0.02635877804 | AO135: 0.02640906236 | AP135: 0.02645933776 | AQ135: 0.02650885894 | AR135: 0.02655686383 | AS135: 0.02660257012
A136: 112 | B136: 0.03296389786 | C136: 0.03308161098 | D136: 0.03318307205 | E136: 0.03325940392 | F136: 0.03331978463 | G136: 0.03336570357 | H136: 0.03339828442 | I136: 0.0334150508 | J136: 0.03342538899 | K136: 0.03342555237 | L136: 0.03341216272 | M136: 0.03339780634 | N136: 0.03337711938 | O136: 0.03334188418 | P136: 0.03331488057 | Q136: 0.03329606909 | R136: 0.03327848595 | S136: 0.03326093966 | T136: 0.03324368945 | U136: 0.03322699843 | V136: 0.03321113489 | X136: 112 | Y136: 0.026452332 | Z136: 0.02611688138 | AA136: 0.02583119039 | AB136: 0.02561833752 | AC136: 0.02545121892 | AD136: 0.02532486355 | AE136: 0.02523559465 | AF136: 0.02518977994 | AG136: 0.02516157229 | AH136: 0.02516112677 | AI136: 0.02519766573 | AJ136: 0.02523690226 | AK136: 0.02529354894 | AL136: 0.02539032829 | AM136: 0.025464751 | AN136: 0.02551672601 | AO136: 0.02556540396 | AP136: 0.02561407328 | AQ136: 0.02566201247 | AR136: 0.02570848381 | AS136: 0.02575272998
A137: 113 | B137: 0.03296421741 | C137: 0.03308088879 | D137: 0.03318145185 | E137: 0.03325710807 | F137: 0.0333169543 | G137: 0.03336246673 | H137: 0.03339475915 | I137: 0.03341137709 | J137: 0.03342162376 | K137: 0.03342178569 | L137: 0.03340851457 | M137: 0.03339428529 | N137: 0.03337378147 | O137: 0.03333885818 | P137: 0.03331209362 | Q137: 0.03329344866 | R137: 0.03327602116 | S137: 0.03325863019 | T137: 0.03324153267 | U137: 0.0332249894 | V137: 0.03320926627 | X137: 113 | Y137: 0.0256072912 | Z137: 0.02528255683 | AA137: 0.02500599248 | AB137: 0.02479993937 | AC137: 0.02463815952 | AD137: 0.02451584068 | AE137: 0.02442942355 | AF137: 0.02438507244 | AG137: 0.02435776592 | AH137: 0.02435733463 | AI137: 0.02439270633 | AJ137: 0.02443068943 | AK137: 0.02448552649 | AL137: 0.02457921415 | AM137: 0.02465125938 | AN137: 0.02470157401 | AO137: 0.0247486969 | AP137: 0.02479581145 | AQ137: 0.02484221919 | AR137: 0.02488720597 | AS137: 0.02493003866
A138: 114 | B138: 0.03296453134 | C138: 0.03308017927 | D138: 0.03317986008 | E138: 0.03325485251 | F138: 0.03331417361 | G138: 0.03335928668 | H138: 0.03339129573 | I138: 0.03340776784 | J138: 0.03341792459 | K138: 0.03341808509 | L138: 0.03340493044 | M138: 0.03339082601 | N138: 0.03337050212 | O138: 0.03333588528 | P138: 0.03330935556 | Q138: 0.0332908742 | R138: 0.03327359962 | S138: 0.03325636124 | T138: 0.03323941373 | U138: 0.03322301561 | V138: 0.03320743043 | X138: 114 | Y138: 0.02478924593 | Z138: 0.02447488546 | AA138: 0.02420715619 | AB138: 0.02400768562 | AC138: 0.02385107397 | AD138: 0.0237326627 | AE138: 0.02364900625 | AF138: 0.02360607197 | AG138: 0.02357963778 | AH138: 0.02357922028 | AI138: 0.02361346201 | AJ138: 0.02365023172 | AK138: 0.02370331697 | AL138: 0.0237940117 | AM138: 0.02386375539 | AN138: 0.02391246269 | AO138: 0.02395808021 | AP138: 0.02400368965 | AQ138: 0.02404861486 | AR138: 0.0240921645 | AS138: 0.02413362888
A139: 115 | B139: 0.03296483981 | C139: 0.03307948208 | D139: 0.03317829599 | E139: 0.03325263617 | F139: 0.0333114413 | G139: 0.03335616195 | H139: 0.03338789255 | I139: 0.03340422137 | J139: 0.03341428976 | K139: 0.03341444887 | L139: 0.03340140864 | M139: 0.03338742691 | N139: 0.03336727981 | O139: 0.03333296409 | P139: 0.03330666513 | Q139: 0.03328834452 | R139: 0.0332712202 | S139: 0.03325413175 | T139: 0.03323733165 | U139: 0.03322107614 | V139: 0.03320562652 | X139: 115 | Y139: 0.02399733377 | Z139: 0.02369301582 | AA139: 0.02343383938 | AB139: 0.02324074106 | AC139: 0.0230891325 | AD139: 0.02297450398 | AE139: 0.02289352 | AF139: 0.0228519573 | AG139: 0.02282636758 | AH139: 0.02282596342 | AI139: 0.02285911128 | AJ139: 0.02289470635 | AK139: 0.02294609575 | AL139: 0.02303389318 | AM139: 0.02310140886 | AN139: 0.02314856016 | AO139: 0.02319272039 | AP139: 0.02323687281 | AQ139: 0.02328036285 | AR139: 0.02332252127 | AS139: 0.02336266103
A140: 116 | B140: 0.03296514295 | C140: 0.0330787969 | D140: 0.03317675886 | E140: 0.03325045804 | F140: 0.03330875609 | G140: 0.03335309109 | H140: 0.03338454806 | I140: 0.03340073605 | J140: 0.03341071761 | K140: 0.03341087534 | L140: 0.03339794758 | M140: 0.03338408642 | N140: 0.03336411306 | O140: 0.03333009327 | P140: 0.0333040211 | Q140: 0.03328585847 | R140: 0.0332688818 | S140: 0.0332519407 | T140: 0.03323528547 | U140: 0.03321917012 | V140: 0.03320385371 | X140: 116 | Y140: 0.0232307199 | Z140: 0.02293612363 | AA140: 0.02268522679 | AB140: 0.02249829716 | AC140: 0.02235153186 | AD140: 0.02224056525 | AE140: 0.02216216838 | AF140: 0.02212193343 | AG140: 0.0220971612 | AH140: 0.02209676996 | AI140: 0.02212885888 | AJ140: 0.02216331684 | AK140: 0.02221306458 | AL140: 0.02229805725 | AM140: 0.02236341608 | AN140: 0.02240906111 | AO140: 0.02245181061 | AP140: 0.02249455254 | AQ140: 0.02253665326 | AR140: 0.0225774649 | AS140: 0.02261632237
A141: 117 | B141: 0.03296544091 | C141: 0.03307812343 | D141: 0.033175248 | E141: 0.03324831715 | F141: 0.03330611678 | G141: 0.03335007273 | H141: 0.03338126074 | I141: 0.03339731032 | J141: 0.03340720653 | K141: 0.03340736292 | L141: 0.03339454568 | M141: 0.03338080305 | N141: 0.03336100046 | O141: 0.03332727152 | P141: 0.03330142226 | Q141: 0.03328341491 | R141: 0.03326658338 | S141: 0.03324978711 | T141: 0.03323327426 | U141: 0.03321729669 | V141: 0.03320211121 | X141: 117 | Y141: 0.02248859613 | Z141: 0.02220341098 | AA141: 0.02196052925 | AB141: 0.02177957123 | AC141: 0.02163749447 | AD141: 0.02153007279 | AE141: 0.02145418037 | AF141: 0.02141523076 | AG141: 0.0213912499 | AH141: 0.02139087116 | AI141: 0.02142193498 | AJ141: 0.02145529216 | AK141: 0.02150345067 | AL141: 0.02158572818 | AM141: 0.02164899908 | AN141: 0.02169318594 | AO141: 0.02173456978 | AP141: 0.02177594629 | AQ141: 0.02181670207 | AR141: 0.02185620995 | AS141: 0.02189382608
A142: 118 | B142: 0.03296573381 | C142: 0.03307746137 | D142: 0.03317376275 | E142: 0.03324621254 | F142: 0.03330352222 | G142: 0.03334710554 | H142: 0.03337802915 | I142: 0.03339394266 | J142: 0.03340375497 | K142: 0.03340391003 | L142: 0.03339120146 | M142: 0.03337757533 | N142: 0.03335794061 | O142: 0.03332449761 | P142: 0.03329886748 | Q142: 0.03328101277 | R142: 0.03326432392 | S142: 0.03324767003 | T142: 0.03323129715 | U142: 0.03321545501 | V142: 0.03320039824 | X142: 118 | Y142: 0.02177018011 | Z142: 0.02149410542 | AA142: 0.02125898275 | AB142: 0.02108380559 | AC142: 0.02094626758 | AD142: 0.02084227757 | AE142: 0.0207688096 | AF142: 0.02073110428 | AG142: 0.02070788951 | AH142: 0.02070752287 | AI142: 0.02073759433 | AJ142: 0.02076988589 | AK142: 0.02081650594 | AL142: 0.02089615503 | AM142: 0.0209574047 | AN142: 0.02100017997 | AO142: 0.02104024177 | AP142: 0.02108029648 | AQ142: 0.02111975029 | AR142: 0.02115799606 | AS142: 0.02119441052
A143: 119 | B143: 0.03296602178 | C143: 0.03307681044 | D143: 0.03317230247 | E143: 0.0332441433 | F143: 0.03330097126 | G143: 0.03334418822 | H143: 0.03337485187 | I143: 0.03339063161 | J143: 0.03340036143 | K143: 0.03340051518 | L143: 0.03338791345 | M143: 0.03337440186 | N143: 0.0333549322 | O143: 0.03332177033 | P143: 0.03329635563 | Q143: 0.03327865101 | R143: 0.03326210244 | S143: 0.03324558853 | T143: 0.03322935327 | U143: 0.03321364428 | V143: 0.03319871407 | X143: 119 | Y143: 0.02107471446 | Z143: 0.02080745921 | AA143: 0.02057984771 | AB143: 0.02041026673 | AC143: 0.02027712249 | AD143: 0.02017645453 | AE143: 0.02010533355 | AF143: 0.02006883275 | AG143: 0.0200463596 | AH143: 0.02004600468 | AI143: 0.02007511549 | AJ143: 0.02010637547 | AK143: 0.0201515062 | AL143: 0.02022861085 | AM143: 0.02028790385 | AN143: 0.02032931263 | AO143: 0.02036809463 | AP143: 0.02040686976 | AQ143: 0.02044506318 | AR143: 0.02048208716 | AS143: 0.02051733834
A144: 120 | B144: 0.03296630495 | C144: 0.03307617035 | D144: 0.03317086651 | E144: 0.03324210856 | F144: 0.03329846282 | G144: 0.03334131953 | H144: 0.03337172756 | I144: 0.03338737575 | J144: 0.03339702446 | K144: 0.03339717693 | L144: 0.03338468025 | M144: 0.0333712813 | N144: 0.03335197394 | O144: 0.0333190885 | P144: 0.03329388566 | Q144: 0.03327632862 | R144: 0.03325991798 | S144: 0.03324354172 | T144: 0.03322744178 | U144: 0.03321186373 | V144: 0.03319705797 | X144: 120 | Y144: 0.02040146602 | Z144: 0.02014274845 | AA144: 0.01992240819 | AB144: 0.01975824461 | AC144: 0.01962935377 | AD144: 0.01953190173 | AE144: 0.01946305277 | AF144: 0.01942771803 | AG144: 0.0194059628 | AH144: 0.01940561922 | AI144: 0.01943380006 | AJ144: 0.01946406142 | AK144: 0.01950775042 | AL144: 0.0195823919 | AM144: 0.01963979073 | AN144: 0.01967987668 | AO144: 0.01971741976 | AP144: 0.01975495619 | AQ144: 0.0197919295 | AR144: 0.01982777072 | AS144: 0.01986189576
B147: 0.03045624628 | C147: 0.02903658287 | D147: 0.02879640421 | E147: 0.0288548178 | F147: 0.02892726866 | G147: 0.02898330961 | H147: 0.02893902012 | I147: 0.02896530603 | J147: 0.02896406574 | K147: 0.02895837708 | L147: 0.02893913771 | M147: 0.02884086933 | N147: 0.02882119925 | O147: 0.02876449549 | P147: 0.02870651455 | Q147: 0.02865342342 | R147: 0.02861285721 | S147: 0.02857776712 | T147: 0.02853621683 | U147: 0.0284795487 | V147: 0.0283991668
B148: =B144-B147 -> 0.002510058678 | C148: =C144-C147 -> 0.004039587479 | D148: 0.004374462302 | E148: 0.004387290756 | F148: 0.004371194165 | G148: 0.004358009918 | H148: 0.004432707441 | I148: 0.004422069722 | J148: 0.004432958721 | K148: 0.004438799844 | L148: 0.00444554254 | M148: 0.004530411969 | N148: 0.004530774695 | O148: 0.004554593013 | P148: 0.004587371112 | Q148: 0.004622905198 | R148: 0.004647060768 | S148: 0.004665774607 | T148: 0.004691224952 | U148: 0.004732315038 | V148: 0.004797891162
B151: Benodigde input voor SmithWilsonBruteForce
B153: 1 | C153: 2 | D153: 3 | E153: 4 | F153: 5 | G153: 6 | H153: 7 | I153: 8 | J153: 9 | K153: 10 | L153: 11 | M153: 12 | N153: 13 | O153: 14 | P153: 15 | Q153: 16 | R153: 17 | S153: 18 | T153: 19 | U153: 20 | V153: 21
A154: 1 | B154: =IF(B$22>=$A154,1,0) -> 1 | C154: 1 | D154: 1 | E154: 1 | F154: 1 | G154: 1 | H154: 1 | I154: 1 | J154: 1 | K154: 1 | L154: 1 | M154: 1 | N154: 1 | O154: 1 | P154: 1 | Q154: 1 | R154: 1 | S154: 1 | T154: =IF(T$22>=$A154,1,0) -> 1 | U154: 1 | V154: 1
A155: 2 | B155: =IF(B$22>=$A155,1,0) -> 1 | C155: 1 | D155: 1 | E155: 1 | F155: 1 | G155: 1 | H155: =IF(H$22>=$A155,1,0) -> 1 | I155: 1 | J155: 1 | K155: 1 | L155: 1 | M155: 1 | N155: =IF(N$22>=$A155,1,0) -> 1 | O155: 1 | P155: 1 | Q155: 1 | R155: 1 | S155: 1 | T155: 1 | U155: 1 | V155: 1
A156: 3 | B156: 1 | C156: 1 | D156: 1 | E156: 1 | F156: 1 | G156: 1 | H156: 1 | I156: 1 | J156: 1 | K156: 1 | L156: 1 | M156: 1 | N156: 1 | O156: 1 | P156: 1 | Q156: 1 | R156: 1 | S156: 1 | T156: 1 | U156: 1 | V156: 1
A157: 4 | B157: 1 | C157: 1 | D157: 1 | E157: 1 | F157: 1 | G157: 1 | H157: 1 | I157: 1 | J157: 1 | K157: 1 | L157: 1 | M157: 1 | N157: 1 | O157: 1 | P157: 1 | Q157: 1 | R157: 1 | S157: 1 | T157: 1 | U157: 1 | V157: 1
A158: 5 | B158: 1 | C158: 1 | D158: 1 | E158: 1 | F158: 1 | G158: 1 | H158: 1 | I158: 1 | J158: 1 | K158: 1 | L158: 1 | M158: 1 | N158: 1 | O158: 1 | P158: 1 | Q158: 1 | R158: 1 | S158: 1 | T158: 1 | U158: 1 | V158: 1
A159: 6 | B159: 1 | C159: 1 | D159: 1 | E159: 1 | F159: 1 | G159: 1 | H159: 1 | I159: 1 | J159: 1 | K159: 1 | L159: 1 | M159: 1 | N159: 1 | O159: 1 | P159: 1 | Q159: 1 | R159: 1 | S159: 1 | T159: 1 | U159: 1 | V159: 1
A160: 7 | B160: 1 | C160: 1 | D160: 1 | E160: 1 | F160: 1 | G160: 1 | H160: 1 | I160: 1 | J160: 1 | K160: 1 | L160: 1 | M160: 1 | N160: 1 | O160: 1 | P160: 1 | Q160: 1 | R160: 1 | S160: 1 | T160: 1 | U160: 1 | V160: 1
A161: 8 | B161: 1 | C161: 1 | D161: 1 | E161: 1 | F161: 1 | G161: 1 | H161: 1 | I161: 1 | J161: 1 | K161: 1 | L161: 1 | M161: 1 | N161: 1 | O161: 1 | P161: 1 | Q161: 1 | R161: 1 | S161: 1 | T161: 1 | U161: 1 | V161: 1
A162: 9 | B162: 1 | C162: 1 | D162: 1 | E162: 1 | F162: 1 | G162: 1 | H162: 1 | I162: 1 | J162: 1 | K162: 1 | L162: 1 | M162: 1 | N162: 1 | O162: 1 | P162: 1 | Q162: 1 | R162: 1 | S162: 1 | T162: 1 | U162: 1 | V162: 1
A163: 10 | B163: 1 | C163: 1 | D163: 1 | E163: 1 | F163: 1 | G163: 1 | H163: 1 | I163: 1 | J163: 1 | K163: 1 | L163: 1 | M163: 1 | N163: 1 | O163: 1 | P163: 1 | Q163: 1 | R163: 1 | S163: 1 | T163: 1 | U163: 1 | V163: 1
A164: 11 | B164: 1 | C164: 1 | D164: 1 | E164: 1 | F164: 1 | G164: 1 | H164: 1 | I164: 1 | J164: 1 | K164: 1 | L164: 1 | M164: 1 | N164: 1 | O164: 1 | P164: 1 | Q164: 1 | R164: 1 | S164: 1 | T164: 1 | U164: 1 | V164: 1
A165: 12 | B165: 1 | C165: 1 | D165: 1 | E165: 1 | F165: 1 | G165: =IF(G$22>=$A165,1,0) -> 1 | H165: 1 | I165: 1 | J165: 1 | K165: 1 | L165: 1 | M165: =IF(M$22>=$A165,1,0) -> 1 | N165: 1 | O165: 1 | P165: 1 | Q165: 1 | R165: 1 | S165: =IF(S$22>=$A165,1,0) -> 1 | T165: 1 | U165: 1 | V165: 1
A166: 13 | B166: 1 | C166: 1 | D166: 1 | E166: 1 | F166: 1 | G166: 1 | H166: 1 | I166: 1 | J166: 1 | K166: 1 | L166: 1 | M166: 1 | N166: 1 | O166: 1 | P166: 1 | Q166: 1 | R166: 1 | S166: 1 | T166: 1 | U166: 1 | V166: 1
A167: 14 | B167: 1 | C167: 1 | D167: 1 | E167: 1 | F167: 1 | G167: 1 | H167: 1 | I167: 1 | J167: 1 | K167: 1 | L167: 1 | M167: 1 | N167: 1 | O167: 1 | P167: 1 | Q167: 1 | R167: 1 | S167: 1 | T167: 1 | U167: 1 | V167: 1
A168: 15 | B168: 1 | C168: 1 | D168: 1 | E168: 1 | F168: 1 | G168: 1 | H168: 1 | I168: 1 | J168: 1 | K168: 1 | L168: 1 | M168: 1 | N168: 1 | O168: 1 | P168: 1 | Q168: 1 | R168: 1 | S168: 1 | T168: 1 | U168: 1 | V168: 1
A169: 16 | B169: 1 | C169: 1 | D169: 1 | E169: 1 | F169: 1 | G169: 1 | H169: 1 | I169: 1 | J169: 1 | K169: 1 | L169: 1 | M169: 1 | N169: 1 | O169: 1 | P169: 1 | Q169: 1 | R169: 1 | S169: 1 | T169: 1 | U169: 1 | V169: 1
A170: 17 | B170: 1 | C170: 1 | D170: 1 | E170: 1 | F170: 1 | G170: 1 | H170: 1 | I170: 1 | J170: 1 | K170: 1 | L170: 1 | M170: 1 | N170: 1 | O170: 1 | P170: 1 | Q170: 1 | R170: 1 | S170: 1 | T170: 1 | U170: 1 | V170: 1
A171: 18 | B171: 1 | C171: 1 | D171: 1 | E171: 1 | F171: 1 | G171: 1 | H171: 1 | I171: 1 | J171: 1 | K171: 1 | L171: 1 | M171: 1 | N171: 1 | O171: 1 | P171: 1 | Q171: 1 | R171: 1 | S171: 1 | T171: 1 | U171: 1 | V171: 1
A172: 19 | B172: 1 | C172: 1 | D172: 1 | E172: 1 | F172: 1 | G172: 1 | H172: 1 | I172: 1 | J172: 1 | K172: 1 | L172: 1 | M172: 1 | N172: 1 | O172: 1 | P172: 1 | Q172: 1 | R172: 1 | S172: 1 | T172: 1 | U172: 1 | V172: 1
A173: 20 | B173: 1 | C173: 1 | D173: 1 | E173: 1 | F173: 1 | G173: 1 | H173: 1 | I173: 1 | J173: 1 | K173: 1 | L173: 1 | M173: 1 | N173: 1 | O173: 1 | P173: 1 | Q173: 1 | R173: 1 | S173: 1 | T173: 1 | U173: 1 | V173: 1
A174: 21 | B174: 0 | C174: 0 | D174: 0 | E174: 0 | F174: 0 | G174: 0 | H174: 0 | I174: 0 | J174: 0 | K174: 0 | L174: 0 | M174: 0 | N174: 0 | O174: 0 | P174: 0 | Q174: 0 | R174: 0 | S174: 0 | T174: 0 | U174: 0 | V174: 0
A175: 22 | B175: 0 | C175: 0 | D175: 0 | E175: 0 | F175: 0 | G175: 0 | H175: 0 | I175: 0 | J175: 0 | K175: 0 | L175: 0 | M175: 0 | N175: 0 | O175: 0 | P175: 0 | Q175: 0 | R175: 0 | S175: 0 | T175: 0 | U175: 0 | V175: 0
A176: 23 | B176: 0 | C176: 0 | D176: 0 | E176: 0 | F176: 0 | G176: 0 | H176: 0 | I176: 0 | J176: 0 | K176: 0 | L176: 0 | M176: 0 | N176: 0 | O176: 0 | P176: 0 | Q176: 0 | R176: 0 | S176: 0 | T176: 0 | U176: 0 | V176: 0
A177: 24 | B177: 0 | C177: 0 | D177: 0 | E177: 0 | F177: 0 | G177: 0 | H177: 0 | I177: 0 | J177: 0 | K177: 0 | L177: 0 | M177: 0 | N177: 0 | O177: 0 | P177: 0 | Q177: 0 | R177: 0 | S177: 0 | T177: 0 | U177: 0 | V177: 0
A178: 25 | B178: 0 | C178: 0 | D178: 0 | E178: 0 | F178: 0 | G178: 0 | H178: 0 | I178: 0 | J178: 0 | K178: 0 | L178: 0 | M178: 0 | N178: 0 | O178: 0 | P178: 0 | Q178: 0 | R178: 0 | S178: 0 | T178: 0 | U178: 0 | V178: 0
A179: 26 | B179: 0 | C179: 0 | D179: 0 | E179: 0 | F179: 0 | G179: 0 | H179: 0 | I179: 0 | J179: 0 | K179: 0 | L179: 0 | M179: 0 | N179: 0 | O179: 0 | P179: 0 | Q179: 0 | R179: 0 | S179: 0 | T179: 0 | U179: 0 | V179: 0
A180: 27 | B180: 0 | C180: 0 | D180: 0 | E180: 0 | F180: 0 | G180: 0 | H180: 0 | I180: 0 | J180: 0 | K180: 0 | L180: 0 | M180: 0 | N180: 0 | O180: 0 | P180: 0 | Q180: 0 | R180: 0 | S180: 0 | T180: 0 | U180: 0 | V180: 0
A181: 28 | B181: 0 | C181: 0 | D181: 0 | E181: 0 | F181: 0 | G181: 0 | H181: 0 | I181: 0 | J181: 0 | K181: 0 | L181: 0 | M181: 0 | N181: 0 | O181: 0 | P181: 0 | Q181: 0 | R181: 0 | S181: 0 | T181: 0 | U181: 0 | V181: 0
A182: 29 | B182: 0 | C182: 0 | D182: 0 | E182: 0 | F182: 0 | G182: 0 | H182: 0 | I182: 0 | J182: 0 | K182: 0 | L182: 0 | M182: 0 | N182: 0 | O182: 0 | P182: 0 | Q182: 0 | R182: 0 | S182: 0 | T182: 0 | U182: 0 | V182: 0
